Workbook

Sheet KALKULATOR podpor
Z2: POMOČ PRI KODAH
Z3: HE0 | AA3: hidroelektrarne
Z4: VE0 | AA4: vetrne elektrarne
A5: Inačica: 27nov15; PRAVNO POJASNILO: | Z5: SE1 | AA5: sončne elektrarne - na stavbah
A6: Izračun je izključno informativne narave. Borzen, d.o.o. ne prevzema nobenih garancij o točnosti izračunov. | Z6: SE2 | AA6: sončne elektrarne - ostale
A7: Vsi uporabniki vso objavljeno vsebino uporabljajo izključno na lastno odgovornost. | Z7: GT0 | AA7: geotermalne elektrarne
Z8: LB1 | AA8: elektrarne na lesno biomaso
B9: VPIŠI KODO | D9: =IF(LEFT(C9,2)="se",D10,C9) -> 0 | E9: =SEARCH("SE1",$C$9) ->  | F9: =SEARCH("SE",$C$9) ->  | Z9: LB2 | AA9: sosežig nad 5% do 90%
B10: Izračun podpore za leto: | D10: =IF(C14>2008,D13,CONCATENATE(C9,"-2009")) -> -2009 | E10: =SEARCH("GT",$C$9) ->  | F10: =SEARCH("BP",$C$9) ->  | G10: =SEARCH("ČN",$C$9) ->  | H10: =SEARCH("OP",$C$9) ->  | I10: =SEARCH("BO",$C$9) -> 
B11: Vpiši odbitke v EUR/MWh | E11: =SEARCH("LB1",$C$9) ->  | F11: =SEARCH("LB2",$C$9) ->  | G11: =SEARCH("SL",$C$9) ->  | Z11: BP1 | AA11: bioplin iz biomase
B12: (odbitki zaradi subvencij / obnov) | Z12: BP2 | AA12: bioplin iz odpadkov
B13: =IF(ISERROR(E9),"",IF(C14=2012,"","Integrirana (do2011) ali PX3 bonus (od dec2012 - max 5kW)? (1-DA, 0-NE)")) ->  | D13: =CONCATENATE(C9,"-",C14) -> - | E13: =IF(C10=2011,3,0) -> 0 | F13: =IF(C10=2011,2,0) -> 0 | Z13: ČN0 | AA13: bioplin iz čistilnih naprav
B14: =IF(ISERROR(F9),"","RSEE 2009 / 2010 / 2011 / 2012H1 / 2012H2 / 2012dec / 2013mmm / 2014mmm ") ->  | Z14: OP0 | AA14: odlagališčni plin
B15: =IF(OR(ISNUMBER(E10),ISNUMBER(F10),ISNUMBER(G10),ISNUMBER(H10),ISNUMBER(I10)),"Vpiši dodatek na OP v %","") ->  | D15: napake | E15: =IF(ISNUMBER(C10),OR(C10>2016,C10<2009)) -> FALSE | F15: =IF(ISBLANK(C9),0,ISERROR(C24)) -> 0 | G15: =IF(AND(ISNUMBER(C14),C14>C10),1,0) -> 0 | H15: =E15+F15+G15 -> 0 | Z15: BO0 | AA15: biološko razgradljivi odpadki
B16: =IF(OR(ISNUMBER(E11),ISNUMBER(F11),ISNUMBER(G11)),"Vpiši dodatek/odbitek za LB na SDRS v %","") ->  | Z16: SL1 | AA16: SPTE na lesno biomaso do 4000 OU
B17: =IF(ISERROR(F10),"","Ali ima 70% RSEE (1-DA)?") ->  | Z17: SL2 | AA17: SPTE na lesno biomaso nad 4000 OU
Z18: SF1 | AA18: SPTE na fosilna goriva do 4000 OU
B19: Tip | C19: =VLOOKUP($D$9,'Izračuni 2009-2016'!$A$2:$BA$321,2,FALSE) ->  | Z19: SF2 | AA19: SPTE na fosilna goriva nad 4000 OU
B20: Velikost | C20: =VLOOKUP($D$9,'Izračuni 2009-2016'!$A$2:$BA$321,4,FALSE) -> 
B21: Faktor B | C21: =VLOOKUP($D$9,'Izračuni 2009-2016'!$A$2:$BA$321,32,FALSE) ->  | Z21: Velikostni razredi OVE
B22: Pripomba - skladnost Uredba? | C22: =VLOOKUP($D$9,'Izračuni 2009-2016'!$A$2:$BA$321,43,FALSE) ->  | F22: =IS ->  | Z22: 1 | AA22: mikro - manjše od 50kW
Z23: 2 | AA23: mala - manjše od 1MW
A24: za skupino | B24: NDRS brez odbitkov / dodatkov | C24: =VLOOKUP($D$9,'Izračuni 2009-2016'!$A$2:$BA$321,D32,FALSE) ->  | I24: =C33/C24 ->  | O24: NAVODILA | Z24: 3 | AA24: srednja - od 1MW do vključno 10MW
B25: SDRS brez odbitkov / dodatkov | C25: =VLOOKUP($D$9,'Izračuni 2009-2016'!$A$2:$BA$321,D33,FALSE) ->  | F25: leta | O25: 1. V celico C9 vpiši kodo (glej pomoč pri strani) | Z25: 4 | AA25: velika - nad 10MW do vključno 125MW
B26: Skupni brez odbitkov / dodatkov | C26: =VLOOKUP($D$9,'Izračuni 2009-2016'!$A$2:$BA$321,D34,FALSE) ->  | F26: 2009 | O26: 2. V C10 pa leto za izračun
B27: =IF(C25>0,"SDRS(0) - 2009 po uredbi","") ->  | C27: =IF(C25>0,VLOOKUP($D$9,'Izračuni 2009-2016'!$A$2:$BA$321,7,FALSE),"") ->  | F27: 2010 | O27: 2. V roza obarvane celice vpiši podatek, če zahtevan | Z27: Velikostni razredi SPTE
B28: Splošni ZO v EUR/MWh | C28: =VLOOKUP($D$9,'Izračuni 2009-2016'!$A$2:$BA$321,D35,FALSE) ->  | F28: 2011 | O28: 3. Gumb RESET počisti obrazec | Z28: 1 | AA28: mikro - manjše od 50kW
B29: Splošni OP v EUR/MWh | C29: =VLOOKUP($D$9,'Izračuni 2009-2016'!$A$2:$BA$321,D36,FALSE) ->  | F29: 2012 | O29: 4. Pomoč za dodatke lesna biomasa desno spodaj | Z29: 2 | AA29: mala - manjše od 1MW
F30: 2013 | O30: Podpore SF so v primeru spremembe cene plina za | Z30: 3 | AA30: srednja - nižja - od 1MW do vključno 5MW
F31: 2014 | O31: drugo polovico leta! | Z31: 4 | AA31: srednja - višja - nad 5MW do vključno 25MW
A32: za konkretno enoto | B32: Veljavni NDRS | C32: =IF(ISNUMBER(C24),ROUND(C24+C13*(IF(C14<2012,0.15,0.05))*C24,2)-ROUND(ABS(C11),2),"") ->  | D32: =HLOOKUP($C$10,$F$35:$M$41,2,FALSE) ->  | F32: 2015 | N32: z upoštevanimi dodatki (INT) in odbitki iz celice C3 | Z32: 5 | AA32: velika - nižja - nad 25MW do vključno 50MW
B33: od tega kot dodatek za INT ali PX3 | C33: =IF(ISNUMBER(C24),ROUND(C13*(IF(C14<2012,0.15,0.05))*C24,2),"") ->  | D33: =HLOOKUP($C$10,$F$35:$M$41,3,FALSE) ->  | F33: 2016 | Z33: 6 | AA33: velika - višja - nad 50MW do 200MW
B34: Veljavni SDRS | C34: =IF(AND(C17=1,ISNUMBER(C25)),ROUND(C17*0.7*C25,2),IF(ISNUMBER(C25),ROUND(C25+C16/100*C25,2),"")) ->  | D34: =HLOOKUP($C$10,$F$35:$M$41,4,FALSE) ->  | F34: številke stolpcev za NDRS/SDRS/skupni/ZO/OP | N34: z upoštevanimi dodatki / odbitki (LB)
B35: od tega kot dodatek | C35: =IF(ISNUMBER(C25),ROUND(C16/100*C25,2),"") ->  | D35: =HLOOKUP($C$10,$F$35:$M$41,5,FALSE) ->  | F35: 2009 | G35: 2010 | H35: 2011 | I35: 2012 | J35: 2013 | K35: 2014 | L35: 2015 | M35: 2016
B36: Skupni veljavni | C36: =IF(ISNUMBER(C26),C32+C34,"") ->  | D36: =HLOOKUP($C$10,$F$35:$M$41,6,FALSE) ->  | E36: ndrs | F36: 6 | G36: 11 | H36: 14 | I36: 17 | J36: 20 | K36: 23 | L36: 26 | M36: 29 | Z36: POMOČ ZA IZRAČUN DODATKOV ZA LESNO BIOMASO
D37: =HLOOKUP($C$10,$F$35:$M$41,7,FALSE) ->  | E37: sdrs | F37: 7 | G37: 12 | H37: 15 | I37: 18 | J37: 21 | K37: 24 | L37: 27 | M37: 30 | Z37: Tip biomase | AA37: SDRS | AB37: Delež v %
B38: ZO v EUR/MWh | C38: =IF(ISNUMBER(C28),ROUND(C36,5),C28) ->  | E38: skupni | F38: 9 | G38: 13 | H38: 16 | I38: 19 | J38: 22 | K38: 25 | L38: 28 | M38: 31 | N38: brez morebitnih dodatkov vezanih na OP | Z38: A1 s certifikati | AA38: 0.1
B39: OP v EUR/MWh | C39: =IF(ISNUMBER(C29),IF(ISNUMBER(C21),ROUND((C36-C21*D37),2),C29),C29) ->  | E39: zo | F39: 33 | G39: 39 | H39: 41 | I39: 43 | J39: 45 | K39: 47 | L39: 49 | M39: 51 | N39: brez morebitnih dodatkov vezanih na OP | Z39: A1 | AA39: 0
B40: dodatek vezan na OP v EUR/MWh | C40: =IF(ISNUMBER(C39),ROUND(C15/100*C29,2),"") ->  | E40: op | F40: 36 | G40: 40 | H40: 42 | I40: 44 | J40: 46 | K40: 48 | L40: 50 | M40: 52 | Z40: A2 | AA40: -0.1
E41: tržna cena | F41: ='Izračuni 2009-2016'!$L$326 -> 65 | G41: ='Izračuni 2009-2016'!$K$326 -> 53.41 | H41: ='Izračuni 2009-2016'!$J$326 -> 53.13 | I41: ='Izračuni 2009-2016'!$I$326 -> 55.79 | J41: 50.66 | K41: 43.31 | L41: 39.65 | M41: 36.89 | Z41: A3 | AA41: -0.35
B42: Končni ZO v EUR/kWh | C42: =IF(ISNUMBER(C38),IF(ISNUMBER(C40),(ROUND((C38+C40)/1000,5)),(ROUND((C38)/1000,5))),C38) ->  | N42: za leto | Z42: Tehtana sprememba SDRS | AB42: =IF(SUM(AB38:AB41)=100,(AB38*AA38/100)+(AB39*AA39/100)+(AB40*AA40/100)+(AB41*AA41/100),"napaka v deležih!") -> napaka v deležih!
B43: Končni OP v EUR/kWh | C43: =IF(ISNUMBER(C39),IF(ISNUMBER(C40),(ROUND((C39+C40)/1000,5)),(ROUND((C39)/1000,5))),C39) ->  | N43: =C10 -> 0 | O43: =IF(C17=1,"Pozor, bioplinarna z znižanimi SDRS!","") ->  | AB43: (vnos v C9 v odstotkih, brez znaka "%")
B44: =IF(H15>0,"Napaka v vnosnih poljih!","") -> 
B45: =IF(AND(C14=2012,C13=1),"Napaka - v 2012 ni več dodatka INT!","") -> 

Sheet Pojasnila
A1: Za pravilno delovanje kalkulatorja mora biti omogočeno delovanje makrojev!
A3: TEMA | B3: POJASNILO
A4: VPIŠI KODO | B4: Kode so sestavljene na naslednji način: prva dva znaka določata tip naprave, sledi številka glede podvrste in zadnja številka, ki določa velikostni razred.
B5: Ta se razlikuje med OVE (4 razredi) in SPTE (6 razredov)
B6: Primer: SE21 … sončne elekrtrarne (SE), ostale (2), mikro do 50kW (1) = SE21
A7: Vpiši odbitke v EUR/MWh | B7: Odbitki kot bi bili določeni na odločbi Agencije za energijo (v EUR/MWh), na primer zaradi subvencij ali pri vstopu obnovljenih naprav, kjer je delež pod 100%
A8: Integrirana (do2011) ali PX3 bonus (od dec2012 - max 5kW)? (1-DA, 0-NE) | B8: Ali gre za integrirano sončno elektrarno (relevantno le za postavitve do leta 2011) oziroma ali ima dodatek na notranji priklop
B9: (relevantno le za postavitve od decembra 2012 dalje, ter moči do 5kW)
A10: RSEE 2009 / 2010 / 2011 / 2012H1 / 2012H2 / 2012dec / 2013mmm / 2014mmm | B10: Leto oziroma mesec priznanih referenčnih stroškov oziroma obdobje postavitve / priklopa elektrarne (npr. 2009, 2013feb, 2012dec)
A11: Vpiši dodatek na OP v % | B11: Dodatek na obratovalno podporo v % - denimo zaradi koristne rabe toplote, rabe gnojevke (primer: 10)
A12: Vpiši dodatek/odbitek za LB na SDRS v % | B12: Dodatek ali odbitek pri spremenljivem delu stroškov (SDRS) vezan na vrsto uporabljene lesne biomase (pomoč desno spodaj od kalkulatorja)
A13: Ali ima 70% RSEE (1-DA)? | B13: Proizvodnim napravam na bioplin, ki za proizvodnjo bioplina uporabljajo substrat, ki vsebuje več kot 25 in manj kot 40 prostorninskih odstotkov zrnja oziroma
B14: silaže prvih posevkov koruze in drugih pravih žit, se določi spremenljivi del referenčnih stroškov v višini 70 %.
A15: NDRS | B15: nespremenljivi del referečnih stroškov
A16: SDRS | B16: spremenljivi del referenčnih stroškov
A17: ZO | B17: zagotovljeni odkup
A18: OP | B18: obratovalna podpora
A19: od tega kot dodatek za INT ali PX3 | B19: del vezan na dodatek za integrirane sončne elektrarne (postavitve do 2011) oz interni priklop (postavitve od dec2012 dalje, do največ 5kW)

Sheet Izračuni 2009-2016 (hidden)
E1: KODA | F1: NDRS 2009 po uredbi | G1: SDRS 2009 po uredbi | H1: Skupni 2009 po uredbi | I1: Skupni 2009 seštevek | J1: Skladnost skupni | K1: NDRS 2010 | L1: SDRS 2010 | M1: Skupni 2010 | N1: NDRS 2011 | O1: SDRS 2011 | P1: Skupni 2011 | Q1: NDRS 2012 | R1: SDRS 2012 | S1: Skupni 2012 | T1: NDRS 2013 | U1: SDRS 2013 | V1: Skupni 2013 | W1: NDRS 2014 | X1: SDRS 2014 | Y1: Skupni 2014 | Z1: NDRS 2015 | AA1: SDRS 2015 | AB1: Skupni 2015 | AC1: NDRS 2016 | AD1: SDRS 2016 | AE1: Skupni 2016 | AF1: Faktor B po Prilogi III | AG1: Cena ZO 2009 po uredbi | AH1: Cena ZO 2009 izračunana | AI1: Cena ZO 2009 skladna | AJ1: Višina OP 2009 po uredbi | AK1: Višina OP 2009 izračunana | AL1: Višina OP 2009 skladna | AM1: Cena ZO 2010 | AN1: Višina OP 2010 | AO1: Cena ZO 2011 | AP1: Višina OP 2011 | AQ1: Cena ZO 2012 | AR1: Višina OP 2012 | AS1: Cena ZO 2013 | AT1: Višina OP 2013 | AU1: Cena ZO 2014 | AV1: Višina OP 2014 | AW1: Cena ZO 2015 | AX1: Višina OP 2015 | AY1: Cena ZO 2016 | AZ1: Višina OP 2016 | BA1: OPOMBE za kategorijo | BB1: ZO2012 - ZO2011 | BC1: OP2012 - OP2011 | BD1: ZO2013 - ZO2012 | BE1: OP2013 - OP2012 | BF1: ZO2014 - ZO2013 | BG1: OP2014 - OP2013 | BH1: ZO2015 - ZO2014 | BI1: OP2015 - OP2014 | BJ1: ZO2016 - ZO2015 | BK1: OP2016 - OP2015
A2: HE01 | B2: 1. Hidroelektrarne | C2: 1. Hidroelektrarne | D2: mikro - manjše od 50kW | E2: HE01 | F2: 105.47 | G2: 0 | H2: 105.47 | I2: =F2+G2 -> 105.47 | J2: =IF(H2=I2,"OK","razlika") -> OK | K2: =F2 -> 105.47 | L2: 0 | M2: =K2+L2 -> 105.47 | N2: =F2 -> 105.47 | O2: 0 | P2: =N2+O2 -> 105.47 | Q2: =F2 -> 105.47 | R2: 0 | S2: =Q2+R2 -> 105.47 | T2: =F2 -> 105.47 | U2: 0 | V2: =T2+U2 -> 105.47 | W2: =F2 -> 105.47 | X2: 0 | Y2: =W2+X2 -> 105.47 | Z2: =+W2 -> 105.47 | AA2: =+X2 -> 0 | AB2: =+Z2+AA2 -> 105.47 | AC2: =+Z2 -> 105.47 | AD2: =+AA2 -> 0 | AE2: =+AC2+AD2 -> 105.47 | AF2: 0.86 | AG2: 105.47 | AH2: =I2 -> 105.47 | AI2: =IF(AG2=AH2,"OK","razlika") -> OK | AJ2: 49.57 | AK2: =ROUND(I2-AF2*$L$326,2) -> 49.57 | AL2: =IF(AJ2=AK2,"OK","razlika") -> OK | AM2: =K2+L2 -> 105.47 | AN2: =ROUND((K2+L2)-AF2*$K$326,2) -> 59.54 | AO2: =N2+O2 -> 105.47 | AP2: =ROUND((N2+O2)-AF2*$J$326,2) -> 59.78 | AQ2: =Q2+R2 -> 105.47 | AR2: =ROUND((Q2+R2)-AF2*$I$326,2) -> 57.49 | AS2: =T2+U2 -> 105.47 | AT2: =ROUND((T2+U2)-AF2*$H$326,2) -> 61.9 | AU2: =W2+X2 -> 105.47 | AV2: =ROUND((W2+X2)-AF2*$G$326,2) -> 68.22 | AW2: =+Z2+AA2 -> 105.47 | AX2: =ROUND((Z2+AA2)-AF2*$F$326,2) -> 71.37 | AY2: =+AC2+AD2 -> 105.47 | AZ2: =ROUND((AC2+AD2)-AF2*$E$326,2) -> 73.74 | BB2: =AQ2-AO2 -> 0 | BC2: -2.29 | BD2: 0 | BE2: 4.41 | BF2: 0 | BG2: 6.32 | BH2: =AW2-AU2 -> 0 | BI2: =AX2-AV2 -> 3.15 | BJ2: =AY2-AW2 -> 0 | BK2: =AZ2-AX2 -> 2.37
A3: HE02 | B3: 1. Hidroelektrarne | D3: mala - manjše od 1MW | E3: HE02 | F3: 92.61 | G3: 0 | H3: 92.61 | I3: 92.61 | J3: =IF(H3=I3,"OK","razlika") -> OK | K3: =F3 -> 92.61 | L3: 0 | M3: =K3+L3 -> 92.61 | N3: 92.61 | O3: 0 | P3: =N3+O3 -> 92.61 | Q3: 92.61 | R3: 0 | S3: =Q3+R3 -> 92.61 | T3: 92.61 | U3: 0 | V3: =T3+U3 -> 92.61 | W3: =F3 -> 92.61 | X3: 0 | Y3: =W3+X3 -> 92.61 | Z3: 92.61 | AA3: 0 | AB3: 92.61 | AC3: =+Z3 -> 92.61 | AD3: =+AA3 -> 0 | AE3: =+AC3+AD3 -> 92.61 | AF3: 0.86 | AG3: 92.61 | AH3: =I3 -> 92.61 | AI3: =IF(AG3=AH3,"OK","razlika") -> OK | AJ3: 36.71 | AK3: 36.71 | AL3: =IF(AJ3=AK3,"OK","razlika") -> OK | AM3: =K3+L3 -> 92.61 | AN3: 46.68 | AO3: =N3+O3 -> 92.61 | AP3: 46.92 | AQ3: =Q3+R3 -> 92.61 | AR3: 44.63 | AS3: =T3+U3 -> 92.61 | AT3: 49.04 | AU3: =W3+X3 -> 92.61 | AV3: 55.36 | AW3: =+Z3+AA3 -> 92.61 | AX3: 58.51 | AY3: =+AC3+AD3 -> 92.61 | AZ3: =ROUND((AC3+AD3)-AF3*$E$326,2) -> 60.88 | BB3: =AQ3-AO3 -> 0 | BC3: =AR3-AP3 -> -2.29 | BD3: =AS3-AQ3 -> 0 | BE3: =AT3-AR3 -> 4.41 | BF3: =AU3-AS3 -> 0 | BG3: =AV3-AT3 -> 6.32 | BH3: =AW3-AU3 -> 0 | BI3: =AX3-AV3 -> 3.15 | BJ3: 0 | BK3: 2.37
A4: HE03 | B4: 1. Hidroelektrarne | D4: srednja - od 1MW do vključno 10MW | E4: HE03 | F4: 82.34 | G4: 0 | H4: 82.34 | I4: 82.34 | J4: OK | K4: 82.34 | L4: 0 | M4: 82.34 | N4: 82.34 | O4: 0 | P4: 82.34 | Q4: 82.34 | R4: 0 | S4: 82.34 | T4: 82.34 | U4: 0 | V4: 82.34 | W4: 82.34 | X4: 0 | Y4: 82.34 | Z4: 82.34 | AA4: 0 | AB4: 82.34 | AC4: 82.34 | AD4: 0 | AE4: 82.34 | AF4: 0.9 | AG4: 82.34 | AH4: =I4 -> 82.34 | AI4: OK | AJ4: 23.84 | AK4: 23.84 | AL4: OK | AM4: =K4+L4 -> 82.34 | AN4: 34.27 | AO4: =N4+O4 -> 82.34 | AP4: 34.52 | AQ4: =Q4+R4 -> 82.34 | AR4: 32.13 | AS4: =T4+U4 -> 82.34 | AT4: 36.75 | AU4: =W4+X4 -> 82.34 | AV4: 43.36 | AW4: =+Z4+AA4 -> 82.34 | AX4: 46.66 | AY4: 82.34 | AZ4: 49.14 | BB4: 0 | BC4: -2.39 | BD4: 0 | BE4: 4.62 | BF4: 0 | BG4: 6.61 | BH4: 0 | BI4: 3.3 | BJ4: 0 | BK4: 2.48
A5: HE04 | B5: 1. Hidroelektrarne | D5: velika - nad 10MW do vključno 125MW | E5: HE04 | F5: 76.57 | G5: 0 | H5: 76.57 | I5: 76.57 | J5: OK | K5: 76.57 | L5: 0 | M5: 76.57 | N5: 76.57 | O5: 0 | P5: 76.57 | Q5: 76.57 | R5: 0 | S5: 76.57 | T5: 76.57 | U5: 0 | V5: 76.57 | W5: 76.57 | X5: 0 | Y5: 76.57 | Z5: 76.57 | AA5: 0 | AB5: 76.57 | AC5: 76.57 | AD5: 0 | AE5: 76.57 | AF5: 0.9 | AG5: (ni ZO) | AH5: (ni ZO) | AI5: OK | AJ5: 18.07 | AK5: 18.07 | AL5: OK | AM5: (ni ZO) | AN5: 28.5 | AO5: (ni ZO) | AP5: 28.75 | AQ5: (ni ZO) | AR5: 26.36 | AS5: (ni ZO) | AT5: 30.98 | AU5: (ni ZO) | AV5: 37.59 | AW5: (ni ZO) | AX5: 40.89 | AY5: (ni ZO) | AZ5: 43.37 | BB5: (ni ZO) | BC5: -2.39 | BD5: (ni ZO) | BE5: 4.62 | BF5: (ni ZO) | BG5: 6.61 | BH5: (ni ZO) | BI5: 3.3 | BJ5: (ni ZO) | BK5: 2.48
A6: VE01 | B6: 2. Vetrne elektrarne | C6: 2. Vetrne elektrarne | D6: mikro - manjše od 50kW | E6: VE01 | F6: 95.38 | G6: 0 | H6: 95.38 | I6: 95.38 | J6: OK | K6: 95.38 | L6: 0 | M6: 95.38 | N6: 95.38 | O6: 0 | P6: 95.38 | Q6: 95.38 | R6: 0 | S6: 95.38 | T6: 95.38 | U6: 0 | V6: 95.38 | W6: 95.38 | X6: 0 | Y6: 95.38 | Z6: 95.38 | AA6: 0 | AB6: 95.38 | AC6: 95.38 | AD6: 0 | AE6: 95.38 | AF6: 0.8 | AG6: 95.38 | AH6: =I6 -> 95.38 | AI6: OK | AJ6: 43.38 | AK6: 43.38 | AL6: OK | AM6: =K6+L6 -> 95.38 | AN6: 52.65 | AO6: =N6+O6 -> 95.38 | AP6: 52.88 | AQ6: =Q6+R6 -> 95.38 | AR6: 50.75 | AS6: =T6+U6 -> 95.38 | AT6: 54.85 | AU6: =W6+X6 -> 95.38 | AV6: 60.73 | AW6: =+Z6+AA6 -> 95.38 | AX6: 63.66 | AY6: 95.38 | AZ6: 65.87 | BB6: 0 | BC6: -2.13 | BD6: =AS6-AQ6 -> 0 | BE6: 4.1 | BF6: =AU6-AS6 -> 0 | BG6: 5.88 | BH6: 0 | BI6: 2.93 | BJ6: 0 | BK6: 2.21
A7: VE02 | B7: 2. Vetrne elektrarne | D7: mala - manjše od 1MW | E7: VE02 | F7: 95.38 | G7: 0 | H7: 95.38 | I7: 95.38 | J7: OK | K7: 95.38 | L7: 0 | M7: 95.38 | N7: 95.38 | O7: 0 | P7: 95.38 | Q7: 95.38 | R7: 0 | S7: 95.38 | T7: 95.38 | U7: 0 | V7: 95.38 | W7: 95.38 | X7: 0 | Y7: 95.38 | Z7: 95.38 | AA7: 0 | AB7: 95.38 | AC7: 95.38 | AD7: 0 | AE7: 95.38 | AF7: 0.8 | AG7: 95.38 | AH7: =I7 -> 95.38 | AI7: OK | AJ7: 43.38 | AK7: 43.38 | AL7: OK | AM7: =K7+L7 -> 95.38 | AN7: 52.65 | AO7: =N7+O7 -> 95.38 | AP7: 52.88 | AQ7: =Q7+R7 -> 95.38 | AR7: 50.75 | AS7: =T7+U7 -> 95.38 | AT7: 54.85 | AU7: =W7+X7 -> 95.38 | AV7: 60.73 | AW7: =+Z7+AA7 -> 95.38 | AX7: 63.66 | AY7: 95.38 | AZ7: 65.87 | BB7: 0 | BC7: -2.13 | BD7: 0 | BE7: 4.1 | BF7: 0 | BG7: 5.88 | BH7: 0 | BI7: 2.93 | BJ7: 0 | BK7: 2.21
A8: VE03 | B8: 2. Vetrne elektrarne | D8: srednja - od 1MW do vključno 10MW | E8: VE03 | F8: 95.38 | G8: 0 | H8: 95.38 | I8: 95.38 | J8: OK | K8: 95.38 | L8: 0 | M8: 95.38 | N8: 95.38 | O8: 0 | P8: 95.38 | Q8: 95.38 | R8: 0 | S8: 95.38 | T8: 95.38 | U8: 0 | V8: 95.38 | W8: 95.38 | X8: 0 | Y8: 95.38 | Z8: 95.38 | AA8: 0 | AB8: 95.38 | AC8: 95.38 | AD8: 0 | AE8: 95.38 | AF8: 0.8 | AG8: 95.38 | AH8: =I8 -> 95.38 | AI8: OK | AJ8: 43.38 | AK8: 43.38 | AL8: OK | AM8: =K8+L8 -> 95.38 | AN8: 52.65 | AO8: =N8+O8 -> 95.38 | AP8: 52.88 | AQ8: =Q8+R8 -> 95.38 | AR8: 50.75 | AS8: =T8+U8 -> 95.38 | AT8: 54.85 | AU8: =W8+X8 -> 95.38 | AV8: 60.73 | AW8: =+Z8+AA8 -> 95.38 | AX8: 63.66 | AY8: 95.38 | AZ8: 65.87 | BB8: 0 | BC8: -2.13 | BD8: 0 | BE8: 4.1 | BF8: 0 | BG8: 5.88 | BH8: 0 | BI8: 2.93 | BJ8: 0 | BK8: 2.21
A9: VE04 | B9: 2. Vetrne elektrarne | D9: velika - nad 10MW do vključno 125MW | E9: VE04 | F9: 86.74 | G9: 0 | H9: 86.74 | I9: 86.74 | J9: OK | K9: 86.74 | L9: 0 | M9: 86.74 | N9: 86.74 | O9: 0 | P9: 86.74 | Q9: 86.74 | R9: 0 | S9: 86.74 | T9: 86.74 | U9: 0 | V9: 86.74 | W9: 86.74 | X9: 0 | Y9: 86.74 | Z9: 86.74 | AA9: 0 | AB9: 86.74 | AC9: 86.74 | AD9: 0 | AE9: 86.74 | AF9: 0.86 | AG9: (ni ZO) | AH9: (ni ZO) | AI9: OK | AJ9: 30.84 | AK9: 30.84 | AL9: OK | AM9: (ni ZO) | AN9: 40.81 | AO9: (ni ZO) | AP9: 41.05 | AQ9: (ni ZO) | AR9: 38.76 | AS9: (ni ZO) | AT9: 43.17 | AU9: (ni ZO) | AV9: 49.49 | AW9: (ni ZO) | AX9: 52.64 | AY9: (ni ZO) | AZ9: 55.01 | BB9: (ni ZO) | BC9: -2.29 | BD9: (ni ZO) | BE9: 4.41 | BF9: (ni ZO) | BG9: 6.32 | BH9: (ni ZO) | BI9: 3.15 | BJ9: (ni ZO) | BK9: 2.37
A10: SE11-2009 | B10: 3.1 Sončne elektrarne - na stavbah 2009 | C10: 3.1 Sončne elektrarne - na stavbah 2009 | D10: mikro - manjše od 50kW | E10: SE11 | F10: 415.46 | G10: 0 | H10: 415.46 | I10: 415.46 | J10: OK | K10: 415.46 | L10: 0 | M10: 415.46 | N10: 415.46 | O10: 0 | P10: 415.46 | Q10: 415.46 | R10: 0 | S10: 415.46 | T10: 415.46 | U10: 0 | V10: 415.46 | W10: 415.46 | X10: 0 | Y10: 415.46 | Z10: 415.46 | AA10: 0 | AB10: 415.46 | AC10: 415.46 | AD10: 0 | AE10: 415.46 | AF10: 0.88 | AG10: 415.46 | AH10: =I10 -> 415.46 | AI10: OK | AJ10: 358.26 | AK10: 358.26 | AL10: OK | AM10: =K10+L10 -> 415.46 | AN10: 368.46 | AO10: =N10+O10 -> 415.46 | AP10: 368.71 | AQ10: =Q10+R10 -> 415.46 | AR10: 366.36 | AS10: =T10+U10 -> 415.46 | AT10: 370.88 | AU10: =W10+X10 -> 415.46 | AV10: 377.35 | AW10: =+Z10+AA10 -> 415.46 | AX10: 380.57 | AY10: 415.46 | AZ10: 383 | BB10: 0 | BC10: -2.35 | BD10: =AS10-AQ10 -> 0 | BE10: 4.52 | BF10: =AU10-AS10 -> 0 | BG10: 6.47 | BH10: 0 | BI10: 3.22 | BJ10: 0 | BK10: 2.43
A11: SE12-2009 | B11: 3.1 Sončne elektrarne - na stavbah 2009 | D11: mala - manjše od 1MW | E11: SE12 | F11: 380.02 | G11: 0 | H11: 380.02 | I11: 380.02 | J11: OK | K11: 380.02 | L11: 0 | M11: 380.02 | N11: =F11 -> 380.02 | O11: 0 | P11: 380.02 | Q11: 380.02 | R11: 0 | S11: 380.02 | T11: =F11 -> 380.02 | U11: 0 | V11: 380.02 | W11: 380.02 | X11: 0 | Y11: 380.02 | Z11: 380.02 | AA11: 0 | AB11: 380.02 | AC11: 380.02 | AD11: 0 | AE11: 380.02 | AF11: 0.88 | AG11: 380.02 | AH11: =I11 -> 380.02 | AI11: OK | AJ11: 322.82 | AK11: 322.82 | AL11: OK | AM11: =K11+L11 -> 380.02 | AN11: 333.02 | AO11: =N11+O11 -> 380.02 | AP11: 333.27 | AQ11: =Q11+R11 -> 380.02 | AR11: 330.92 | AS11: =T11+U11 -> 380.02 | AT11: 335.44 | AU11: =W11+X11 -> 380.02 | AV11: 341.91 | AW11: =+Z11+AA11 -> 380.02 | AX11: 345.13 | AY11: 380.02 | AZ11: 347.56 | BA11: le za INTEGRIRANE - razlika pri ZO in OP 2009 zaradi zaokrožitve +15% | BB11: 0 | BC11: -2.35 | BD11: 0 | BE11: 4.52 | BF11: 0 | BG11: 6.47 | BH11: 0 | BI11: 3.22 | BJ11: 0 | BK11: 2.43
A12: SE13-2009 | B12: 3.1 Sončne elektrarne - na stavbah 2009 | D12: srednja - od 1MW do vključno 10MW | E12: SE13 | F12: 315.36 | G12: 0 | H12: 315.36 | I12: 315.36 | J12: OK | K12: 315.36 | L12: 0 | M12: 315.36 | N12: 315.36 | O12: 0 | P12: 315.36 | Q12: 315.36 | R12: 0 | S12: 315.36 | T12: 315.36 | U12: 0 | V12: 315.36 | W12: 315.36 | X12: 0 | Y12: 315.36 | Z12: 315.36 | AA12: 0 | AB12: 315.36 | AC12: 315.36 | AD12: 0 | AE12: 315.36 | AF12: 0.91 | AG12: 315.36 | AH12: =I12 -> 315.36 | AI12: OK | AJ12: 256.21 | AK12: 256.21 | AL12: OK | AM12: =K12+L12 -> 315.36 | AN12: 266.76 | AO12: =N12+O12 -> 315.36 | AP12: 267.01 | AQ12: =Q12+R12 -> 315.36 | AR12: 264.59 | AS12: =T12+U12 -> 315.36 | AT12: 269.26 | AU12: =W12+X12 -> 315.36 | AV12: 275.95 | AW12: =+Z12+AA12 -> 315.36 | AX12: 279.28 | AY12: 315.36 | AZ12: 281.79 | BA12: le za INTEGRIRANE - razlika pri ZO in OP 2009 zaradi zaokrožitve +15% | BB12: 0 | BC12: -2.42 | BD12: 0 | BE12: 4.67 | BF12: 0 | BG12: 6.69 | BH12: 0 | BI12: 3.33 | BJ12: 0 | BK12: 2.51
A13: SE14-2009 | B13: 3.1 Sončne elektrarne - na stavbah 2009 | D13: velika - nad 10MW do vključno 125MW | E13: SE14 | F13: 280.71 | G13: 0 | H13: 280.71 | I13: 280.71 | J13: OK | K13: 280.71 | L13: 0 | M13: 280.71 | N13: 280.71 | O13: 0 | P13: 280.71 | Q13: 280.71 | R13: 0 | S13: 280.71 | T13: 280.71 | U13: 0 | V13: 280.71 | W13: 280.71 | X13: 0 | Y13: 280.71 | Z13: 280.71 | AA13: 0 | AB13: 280.71 | AC13: 280.71 | AD13: 0 | AE13: 280.71 | AF13: 1 | AG13: (ni ZO) | AH13: (ni ZO) | AI13: OK | AJ13: 215.71 | AK13: 215.71 | AL13: OK | AM13: (ni ZO) | AN13: 227.3 | AO13: (ni ZO) | AP13: 227.58 | AQ13: (ni ZO) | AR13: 224.92 | AS13: (ni ZO) | AT13: 230.05 | AU13: (ni ZO) | AV13: 237.4 | AW13: (ni ZO) | AX13: 241.06 | AY13: (ni ZO) | AZ13: 243.82 | BB13: (ni ZO) | BC13: -2.66 | BD13: (ni ZO) | BE13: 5.13 | BF13: (ni ZO) | BG13: 7.35 | BH13: (ni ZO) | BI13: 3.66 | BJ13: (ni ZO) | BK13: 2.76
C14: 3.1. INT Sončne elektrarne - integrirane 2009 | D14: mikro - manjše od 50kW | F14: =ROUND(F10*1.15,2) -> 477.78 | G14: 0 | I14: =F14+G14 -> 477.78 | J14: niso v uredbi; ROUND(2009*1,15 ; 2) | K14: 477.78 | L14: 0 | M14: 477.78 | N14: 477.78 | O14: 0 | P14: 477.78 | Q14: 477.78 | R14: 0 | S14: 477.78 | T14: 477.78 | U14: 0 | V14: 477.78 | W14: 477.78 | X14: 0 | Y14: 477.78 | Z14: 477.78 | AA14: 0 | AB14: 477.78 | AC14: 477.78 | AD14: 0 | AE14: 477.78 | AF14: 0.88 | AG14: 477.78 | AH14: =I14 -> 477.78 | AI14: OK | AJ14: 420.58 | AK14: 420.58 | AL14: OK | AM14: =K14+L14 -> 477.78 | AN14: 430.78 | AO14: =N14+O14 -> 477.78 | AP14: 431.03 | AQ14: =Q14+R14 -> 477.78 | AR14: 428.68 | AS14: =T14+U14 -> 477.78 | AT14: 433.2 | AU14: =W14+X14 -> 477.78 | AV14: 439.67 | AW14: =+Z14+AA14 -> 477.78 | AX14: 442.89 | AY14: 477.78 | AZ14: 445.32 | BB14: 0 | BC14: -2.35 | BD14: =AS14-AQ14 -> 0 | BE14: 4.52 | BF14: =AU14-AS14 -> 0 | BG14: 6.47 | BH14: 0 | BI14: 3.22 | BJ14: 0 | BK14: 2.43
D15: mala - manjše od 1MW | F15: =ROUND(F11*1.15,2) -> 437.02 | G15: 0 | I15: =F15+G15 -> 437.02 | J15: niso v uredbi; ROUND(2009*1,15 ; 2) | K15: 437.02 | L15: 0 | M15: 437.02 | N15: 437.02 | O15: 0 | P15: 437.02 | Q15: 437.02 | R15: 0 | S15: 437.02 | T15: 437.02 | U15: 0 | V15: 437.02 | W15: 437.02 | X15: 0 | Y15: 437.02 | Z15: 437.02 | AA15: 0 | AB15: 437.02 | AC15: 437.02 | AD15: 0 | AE15: 437.02 | AF15: 0.88 | AG15: 437.03 | AH15: =I15 -> 437.02 | AI15: razlika | AJ15: 379.83 | AK15: 379.82 | AL15: razlika | AM15: =K15+L15 -> 437.02 | AN15: 390.02 | AO15: =N15+O15 -> 437.02 | AP15: 390.27 | AQ15: =Q15+R15 -> 437.02 | AR15: 387.92 | AS15: =T15+U15 -> 437.02 | AT15: 392.44 | AU15: =W15+X15 -> 437.02 | AV15: 398.91 | AW15: =+Z15+AA15 -> 437.02 | AX15: 402.13 | AY15: 437.02 | AZ15: 404.56 | BA15: razlika pri ZO in OP 2009 zaradi zaokrožitve +15% | BB15: 0 | BC15: -2.35 | BD15: 0 | BE15: 4.52 | BF15: 0 | BG15: 6.47 | BH15: 0 | BI15: 3.22 | BJ15: 0 | BK15: 2.43
D16: srednja - od 1MW do vključno 10MW | F16: =ROUND(F12*1.15,2) -> 362.66 | G16: 0 | I16: 362.66 | J16: niso v uredbi; ROUND(2009*1,15 ; 2) | K16: 362.66 | L16: 0 | M16: 362.66 | N16: 362.66 | O16: 0 | P16: 362.66 | Q16: 362.66 | R16: 0 | S16: 362.66 | T16: 362.66 | U16: 0 | V16: 362.66 | W16: 362.66 | X16: 0 | Y16: 362.66 | Z16: 362.66 | AA16: 0 | AB16: 362.66 | AC16: 362.66 | AD16: 0 | AE16: 362.66 | AF16: 0.91 | AG16: 362.67 | AH16: =I16 -> 362.66 | AI16: razlika | AJ16: 303.52 | AK16: 303.51 | AL16: razlika | AM16: =K16+L16 -> 362.66 | AN16: 314.06 | AO16: =N16+O16 -> 362.66 | AP16: 314.31 | AQ16: =Q16+R16 -> 362.66 | AR16: 311.89 | AS16: =T16+U16 -> 362.66 | AT16: 316.56 | AU16: =W16+X16 -> 362.66 | AV16: 323.25 | AW16: =+Z16+AA16 -> 362.66 | AX16: 326.58 | AY16: 362.66 | AZ16: 329.09 | BA16: razlika pri ZO in OP 2009 zaradi zaokrožitve +15% | BB16: 0 | BC16: -2.42 | BD16: 0 | BE16: 4.67 | BF16: 0 | BG16: 6.69 | BH16: 0 | BI16: 3.33 | BJ16: 0 | BK16: 2.51
D17: velika - nad 10MW do vključno 125MW | F17: =ROUND(F13*1.15,2) -> 322.82 | G17: 0 | I17: 322.82 | J17: niso v uredbi; ROUND(2009*1,15 ; 2) | K17: 322.82 | L17: 0 | M17: 322.82 | N17: 322.82 | O17: 0 | P17: 322.82 | Q17: 322.82 | R17: 0 | S17: 322.82 | T17: 322.82 | U17: 0 | V17: 322.82 | W17: 322.82 | X17: 0 | Y17: 322.82 | Z17: 322.82 | AA17: 0 | AB17: 322.82 | AC17: 322.82 | AD17: 0 | AE17: 322.82 | AF17: 1 | AG17: (ni ZO) | AH17: (ni ZO) | AI17: OK | AJ17: 257.82 | AK17: 257.82 | AL17: OK | AM17: (ni ZO) | AN17: 269.41 | AO17: (ni ZO) | AP17: 269.69 | AQ17: (ni ZO) | AR17: 267.03 | AS17: (ni ZO) | AT17: 272.16 | AU17: (ni ZO) | AV17: 279.51 | AW17: (ni ZO) | AX17: 283.17 | AY17: (ni ZO) | AZ17: 285.93 | BB17: (ni ZO) | BC17: -2.66 | BD17: (ni ZO) | BE17: 5.13 | BF17: (ni ZO) | BG17: 7.35 | BH17: (ni ZO) | BI17: 3.66 | BJ17: (ni ZO) | BK17: 2.76
A18: SE21-2009 | B18: 3.2 Sončne elektrarne - samostojni objekti 2009 | C18: 3.2 Sončne elektrarne - samostojni objekti 2009 | D18: mikro - manjše od 50kW | E18: SE21 | F18: 390.42 | G18: 0 | H18: 390.42 | I18: 390.42 | J18: =IF(H18=I18,"OK","razlika") -> OK | K18: 390.42 | L18: 0 | M18: 390.42 | N18: 390.42 | O18: 0 | P18: 390.42 | Q18: 390.42 | R18: 0 | S18: 390.42 | T18: 390.42 | U18: 0 | V18: 390.42 | W18: 390.42 | X18: 0 | Y18: 390.42 | Z18: 390.42 | AA18: 0 | AB18: 390.42 | AC18: 390.42 | AD18: 0 | AE18: 390.42 | AF18: 0.88 | AG18: 390.42 | AH18: =I18 -> 390.42 | AI18: OK | AJ18: 333.22 | AK18: 333.22 | AL18: OK | AM18: =K18+L18 -> 390.42 | AN18: 343.42 | AO18: =N18+O18 -> 390.42 | AP18: 343.67 | AQ18: =Q18+R18 -> 390.42 | AR18: 341.32 | AS18: =T18+U18 -> 390.42 | AT18: 345.84 | AU18: =W18+X18 -> 390.42 | AV18: 352.31 | AW18: =+Z18+AA18 -> 390.42 | AX18: 355.53 | AY18: 390.42 | AZ18: 357.96 | BB18: 0 | BC18: -2.35 | BD18: =AS18-AQ18 -> 0 | BE18: 4.52 | BF18: =AU18-AS18 -> 0 | BG18: 6.47 | BH18: 0 | BI18: 3.22 | BJ18: 0 | BK18: 2.43
A19: SE22-2009 | B19: 3.2 Sončne elektrarne - samostojni objekti 2009 | D19: mala - manjše od 1MW | E19: SE22 | F19: 359.71 | G19: 0 | H19: 359.71 | I19: 359.71 | J19: =IF(H19=I19,"OK","razlika") -> OK | K19: 359.71 | L19: 0 | M19: 359.71 | N19: 359.71 | O19: 0 | P19: 359.71 | Q19: 359.71 | R19: 0 | S19: 359.71 | T19: 359.71 | U19: 0 | V19: 359.71 | W19: 359.71 | X19: 0 | Y19: 359.71 | Z19: 359.71 | AA19: 0 | AB19: 359.71 | AC19: 359.71 | AD19: 0 | AE19: 359.71 | AF19: 0.88 | AG19: 359.71 | AH19: =I19 -> 359.71 | AI19: OK | AJ19: 302.51 | AK19: 302.51 | AL19: OK | AM19: =K19+L19 -> 359.71 | AN19: 312.71 | AO19: =N19+O19 -> 359.71 | AP19: 312.96 | AQ19: =Q19+R19 -> 359.71 | AR19: 310.61 | AS19: =T19+U19 -> 359.71 | AT19: 315.13 | AU19: =W19+X19 -> 359.71 | AV19: 321.6 | AW19: =+Z19+AA19 -> 359.71 | AX19: 324.82 | AY19: 359.71 | AZ19: 327.25 | BB19: 0 | BC19: -2.35 | BD19: 0 | BE19: 4.52 | BF19: 0 | BG19: 6.47 | BH19: 0 | BI19: 3.22 | BJ19: 0 | BK19: 2.43
A20: SE23-2009 | B20: 3.2 Sončne elektrarne - samostojni objekti 2009 | D20: srednja - od 1MW do vključno 10MW | E20: SE23 | F20: 289.98 | G20: 0 | H20: 289.98 | I20: 289.98 | J20: =IF(H20=I20,"OK","razlika") -> OK | K20: 289.98 | L20: 0 | M20: 289.98 | N20: 289.98 | O20: 0 | P20: 289.98 | Q20: 289.98 | R20: 0 | S20: 289.98 | T20: 289.98 | U20: 0 | V20: 289.98 | W20: 289.98 | X20: 0 | Y20: 289.98 | Z20: 289.98 | AA20: 0 | AB20: 289.98 | AC20: 289.98 | AD20: 0 | AE20: 289.98 | AF20: 0.91 | AG20: 289.98 | AH20: =I20 -> 289.98 | AI20: OK | AJ20: 230.83 | AK20: 230.83 | AL20: OK | AM20: =K20+L20 -> 289.98 | AN20: 241.38 | AO20: =N20+O20 -> 289.98 | AP20: 241.63 | AQ20: =Q20+R20 -> 289.98 | AR20: 239.21 | AS20: =T20+U20 -> 289.98 | AT20: 243.88 | AU20: =W20+X20 -> 289.98 | AV20: 250.57 | AW20: =+Z20+AA20 -> 289.98 | AX20: 253.9 | AY20: 289.98 | AZ20: 256.41 | BB20: 0 | BC20: -2.42 | BD20: 0 | BE20: 4.67 | BF20: 0 | BG20: 6.69 | BH20: 0 | BI20: 3.33 | BJ20: 0 | BK20: 2.51
A21: SE24-2009 | B21: 3.2 Sončne elektrarne - samostojni objekti 2009 | D21: velika - nad 10MW do vključno 125MW | E21: SE24 | F21: 269.22 | G21: 0 | H21: 269.22 | I21: 269.22 | J21: =IF(H21=I21,"OK","razlika") -> OK | K21: 269.22 | L21: 0 | M21: 269.22 | N21: 269.22 | O21: 0 | P21: 269.22 | Q21: 269.22 | R21: 0 | S21: 269.22 | T21: 269.22 | U21: 0 | V21: 269.22 | W21: 269.22 | X21: 0 | Y21: 269.22 | Z21: 269.22 | AA21: 0 | AB21: 269.22 | AC21: 269.22 | AD21: 0 | AE21: 269.22 | AF21: 1 | AG21: (ni ZO) | AH21: (ni ZO) | AI21: OK | AJ21: 204.22 | AK21: 204.22 | AL21: OK | AM21: (ni ZO) | AN21: 215.81 | AO21: (ni ZO) | AP21: 216.09 | AQ21: (ni ZO) | AR21: 213.43 | AS21: (ni ZO) | AT21: 218.56 | AU21: (ni ZO) | AV21: 225.91 | AW21: (ni ZO) | AX21: 229.57 | AY21: (ni ZO) | AZ21: 232.33 | BB21: (ni ZO) | BC21: -2.66 | BD21: (ni ZO) | BE21: 5.13 | BF21: (ni ZO) | BG21: 7.35 | BH21: (ni ZO) | BI21: 3.66 | BJ21: (ni ZO) | BK21: 2.76
A22: SE11-2010 | B22: 3.1 Sončne elektrarne - na stavbah 2010 | C22: 3.1 Sončne elektrarne - na stavbah 2010 | D22: mikro - manjše od 50kW | E22: SE11 | K22: =ROUND(F10*0.93,2) -> 386.38 | L22: 0 | M22: 386.38 | N22: =K22 -> 386.38 | O22: 0 | P22: 386.38 | Q22: =K22 -> 386.38 | R22: 0 | S22: 386.38 | T22: =K22 -> 386.38 | U22: 0 | V22: 386.38 | W22: =K22 -> 386.38 | X22: 0 | Y22: 386.38 | Z22: 386.38 | AA22: 0 | AB22: 386.38 | AC22: 386.38 | AD22: 0 | AE22: 386.38 | AF22: 0.88 | AM22: =K22+L22 -> 386.38 | AN22: 339.38 | AO22: =N22+O22 -> 386.38 | AP22: 339.63 | AQ22: =Q22+R22 -> 386.38 | AR22: 337.28 | AS22: =T22+U22 -> 386.38 | AT22: 341.8 | AU22: =W22+X22 -> 386.38 | AV22: 348.27 | AW22: =+Z22+AA22 -> 386.38 | AX22: 351.49 | AY22: 386.38 | AZ22: 353.92 | BB22: 0 | BC22: -2.35 | BD22: =AS22-AQ22 -> 0 | BE22: 4.52 | BF22: =AU22-AS22 -> 0 | BG22: 6.47 | BH22: 0 | BI22: 3.22 | BJ22: 0 | BK22: 2.43
A23: SE12-2010 | B23: 3.1 Sončne elektrarne - na stavbah 2010 | D23: mala - manjše od 1MW | E23: SE12 | K23: =ROUND(F11*0.93,2) -> 353.42 | L23: 0 | M23: 353.42 | N23: =K23 -> 353.42 | O23: 0 | P23: 353.42 | Q23: 353.42 | R23: 0 | S23: 353.42 | T23: 353.42 | U23: 0 | V23: 353.42 | W23: 353.42 | X23: 0 | Y23: 353.42 | Z23: 353.42 | AA23: 0 | AB23: 353.42 | AC23: 353.42 | AD23: 0 | AE23: 353.42 | AF23: 0.88 | AM23: =K23+L23 -> 353.42 | AN23: 306.42 | AO23: =N23+O23 -> 353.42 | AP23: 306.67 | AQ23: =Q23+R23 -> 353.42 | AR23: 304.32 | AS23: =T23+U23 -> 353.42 | AT23: 308.84 | AU23: =W23+X23 -> 353.42 | AV23: 315.31 | AW23: =+Z23+AA23 -> 353.42 | AX23: 318.53 | AY23: 353.42 | AZ23: 320.96 | BB23: 0 | BC23: -2.35 | BD23: 0 | BE23: 4.52 | BF23: 0 | BG23: 6.47 | BH23: 0 | BI23: 3.22 | BJ23: 0 | BK23: 2.43
A24: SE13-2010 | B24: 3.1 Sončne elektrarne - na stavbah 2010 | D24: srednja - od 1MW do vključno 10MW | E24: SE13 | K24: 293.28 | L24: 0 | M24: 293.28 | N24: 293.28 | O24: 0 | P24: 293.28 | Q24: 293.28 | R24: 0 | S24: 293.28 | T24: 293.28 | U24: 0 | V24: 293.28 | W24: 293.28 | X24: 0 | Y24: 293.28 | Z24: 293.28 | AA24: 0 | AB24: 293.28 | AC24: 293.28 | AD24: 0 | AE24: 293.28 | AF24: 0.91 | AM24: =K24+L24 -> 293.28 | AN24: 244.68 | AO24: =N24+O24 -> 293.28 | AP24: 244.93 | AQ24: =Q24+R24 -> 293.28 | AR24: 242.51 | AS24: =T24+U24 -> 293.28 | AT24: 247.18 | AU24: =W24+X24 -> 293.28 | AV24: 253.87 | AW24: =+Z24+AA24 -> 293.28 | AX24: 257.2 | AY24: 293.28 | AZ24: 259.71 | BB24: 0 | BC24: -2.42 | BD24: 0 | BE24: 4.67 | BF24: 0 | BG24: 6.69 | BH24: 0 | BI24: 3.33 | BJ24: 0 | BK24: 2.51
A25: SE14-2010 | B25: 3.1 Sončne elektrarne - na stavbah 2010 | D25: velika - nad 10MW do vključno 125MW | E25: SE14 | K25: 261.06 | L25: 0 | M25: 261.06 | N25: 261.06 | O25: 0 | P25: 261.06 | Q25: 261.06 | R25: 0 | S25: 261.06 | T25: 261.06 | U25: 0 | V25: 261.06 | W25: 261.06 | X25: 0 | Y25: 261.06 | Z25: 261.06 | AA25: 0 | AB25: 261.06 | AC25: 261.06 | AD25: 0 | AE25: 261.06 | AF25: 1 | AM25: (ni ZO) | AN25: 207.65 | AO25: (ni ZO) | AP25: 207.93 | AQ25: (ni ZO) | AR25: 205.27 | AS25: (ni ZO) | AT25: 210.4 | AU25: (ni ZO) | AV25: 217.75 | AW25: (ni ZO) | AX25: 221.41 | AY25: (ni ZO) | AZ25: 224.17 | BB25: (ni ZO) | BC25: -2.66 | BD25: (ni ZO) | BE25: 5.13 | BF25: (ni ZO) | BG25: 7.35 | BH25: (ni ZO) | BI25: 3.66 | BJ25: (ni ZO) | BK25: 2.76
C26: 3.1 INT Sončne elektrarne - integrirane 2010 | D26: mikro - manjše od 50kW | K26: =ROUND(K22*1.15,2) -> 444.34 | L26: 0 | M26: 444.34 | N26: 444.34 | O26: 0 | P26: 444.34 | Q26: 444.34 | R26: 0 | S26: 444.34 | T26: 444.34 | U26: 0 | V26: 444.34 | W26: 444.34 | X26: 0 | Y26: 444.34 | Z26: 444.34 | AA26: 0 | AB26: 444.34 | AC26: 444.34 | AD26: 0 | AE26: 444.34 | AF26: 0.88 | AM26: =K26+L26 -> 444.34 | AN26: 397.34 | AO26: =N26+O26 -> 444.34 | AP26: 397.59 | AQ26: =Q26+R26 -> 444.34 | AR26: 395.24 | AS26: =T26+U26 -> 444.34 | AT26: 399.76 | AU26: =W26+X26 -> 444.34 | AV26: 406.23 | AW26: =+Z26+AA26 -> 444.34 | AX26: 409.45 | AY26: 444.34 | AZ26: 411.88 | BB26: 0 | BC26: -2.35 | BD26: =AS26-AQ26 -> 0 | BE26: 4.52 | BF26: =AU26-AS26 -> 0 | BG26: 6.47 | BH26: 0 | BI26: 3.22 | BJ26: 0 | BK26: 2.43
D27: mala - manjše od 1MW | K27: =ROUND(K23*1.15,2) -> 406.43 | L27: 0 | M27: 406.43 | N27: 406.43 | O27: 0 | P27: 406.43 | Q27: 406.43 | R27: 0 | S27: 406.43 | T27: 406.43 | U27: 0 | V27: 406.43 | W27: 406.43 | X27: 0 | Y27: 406.43 | Z27: 406.43 | AA27: 0 | AB27: 406.43 | AC27: 406.43 | AD27: 0 | AE27: 406.43 | AF27: 0.88 | AM27: =K27+L27 -> 406.43 | AN27: 359.43 | AO27: =N27+O27 -> 406.43 | AP27: 359.68 | AQ27: =Q27+R27 -> 406.43 | AR27: 357.33 | AS27: =T27+U27 -> 406.43 | AT27: 361.85 | AU27: =W27+X27 -> 406.43 | AV27: 368.32 | AW27: =+Z27+AA27 -> 406.43 | AX27: 371.54 | AY27: 406.43 | AZ27: 373.97 | BB27: 0 | BC27: -2.35 | BD27: 0 | BE27: 4.52 | BF27: 0 | BG27: 6.47 | BH27: 0 | BI27: 3.22 | BJ27: 0 | BK27: 2.43
D28: srednja - od 1MW do vključno 10MW | K28: 337.27 | L28: 0 | M28: 337.27 | N28: 337.27 | O28: 0 | P28: 337.27 | Q28: 337.27 | R28: 0 | S28: 337.27 | T28: 337.27 | U28: 0 | V28: 337.27 | W28: 337.27 | X28: 0 | Y28: 337.27 | Z28: 337.27 | AA28: 0 | AB28: 337.27 | AC28: 337.27 | AD28: 0 | AE28: 337.27 | AF28: 0.91 | AM28: =K28+L28 -> 337.27 | AN28: 288.67 | AO28: =N28+O28 -> 337.27 | AP28: 288.92 | AQ28: =Q28+R28 -> 337.27 | AR28: 286.5 | AS28: =T28+U28 -> 337.27 | AT28: 291.17 | AU28: =W28+X28 -> 337.27 | AV28: 297.86 | AW28: =+Z28+AA28 -> 337.27 | AX28: 301.19 | AY28: 337.27 | AZ28: 303.7 | BB28: 0 | BC28: -2.42 | BD28: 0 | BE28: 4.67 | BF28: 0 | BG28: 6.69 | BH28: 0 | BI28: 3.33 | BJ28: 0 | BK28: 2.51
D29: velika - nad 10MW do vključno 125MW | K29: 300.22 | L29: 0 | M29: 300.22 | N29: 300.22 | O29: 0 | P29: 300.22 | Q29: 300.22 | R29: 0 | S29: 300.22 | T29: 300.22 | U29: 0 | V29: 300.22 | W29: 300.22 | X29: 0 | Y29: 300.22 | Z29: 300.22 | AA29: 0 | AB29: 300.22 | AC29: 300.22 | AD29: 0 | AE29: 300.22 | AF29: 1 | AM29: (ni ZO) | AN29: 246.81 | AO29: (ni ZO) | AP29: 247.09 | AQ29: (ni ZO) | AR29: 244.43 | AS29: (ni ZO) | AT29: 249.56 | AU29: (ni ZO) | AV29: 256.91 | AW29: (ni ZO) | AX29: 260.57 | AY29: (ni ZO) | AZ29: 263.33 | BB29: (ni ZO) | BC29: -2.66 | BD29: (ni ZO) | BE29: 5.13 | BF29: (ni ZO) | BG29: 7.35 | BH29: (ni ZO) | BI29: 3.66 | BJ29: (ni ZO) | BK29: 2.76
A30: SE21-2010 | B30: 3.2 Sončne elektrarne - samostojni objekti 2010 | C30: 3.2 Sončne elektrarne - samostojni objekti 2010 | D30: mikro - manjše od 50kW | E30: SE21 | K30: 363.09 | L30: 0 | M30: 363.09 | N30: 363.09 | O30: 0 | P30: 363.09 | Q30: 363.09 | R30: 0 | S30: 363.09 | T30: 363.09 | U30: 0 | V30: 363.09 | W30: 363.09 | X30: 0 | Y30: 363.09 | Z30: 363.09 | AA30: 0 | AB30: 363.09 | AC30: 363.09 | AD30: 0 | AE30: 363.09 | AF30: 0.88 | AM30: =K30+L30 -> 363.09 | AN30: 316.09 | AO30: =N30+O30 -> 363.09 | AP30: 316.34 | AQ30: =Q30+R30 -> 363.09 | AR30: 313.99 | AS30: =T30+U30 -> 363.09 | AT30: 318.51 | AU30: =W30+X30 -> 363.09 | AV30: 324.98 | AW30: =+Z30+AA30 -> 363.09 | AX30: 328.2 | AY30: 363.09 | AZ30: 330.63 | BB30: 0 | BC30: -2.35 | BD30: =AS30-AQ30 -> 0 | BE30: 4.52 | BF30: =AU30-AS30 -> 0 | BG30: 6.47 | BH30: 0 | BI30: 3.22 | BJ30: 0 | BK30: 2.43
A31: SE22-2010 | B31: 3.2 Sončne elektrarne - samostojni objekti 2010 | D31: mala - manjše od 1MW | E31: SE22 | K31: 334.53 | L31: 0 | M31: 334.53 | N31: 334.53 | O31: 0 | P31: 334.53 | Q31: 334.53 | R31: 0 | S31: 334.53 | T31: 334.53 | U31: 0 | V31: 334.53 | W31: 334.53 | X31: 0 | Y31: 334.53 | Z31: 334.53 | AA31: 0 | AB31: 334.53 | AC31: 334.53 | AD31: 0 | AE31: 334.53 | AF31: 0.88 | AM31: =K31+L31 -> 334.53 | AN31: 287.53 | AO31: =N31+O31 -> 334.53 | AP31: 287.78 | AQ31: =Q31+R31 -> 334.53 | AR31: 285.43 | AS31: =T31+U31 -> 334.53 | AT31: 289.95 | AU31: =W31+X31 -> 334.53 | AV31: 296.42 | AW31: =+Z31+AA31 -> 334.53 | AX31: 299.64 | AY31: 334.53 | AZ31: 302.07 | BB31: 0 | BC31: -2.35 | BD31: 0 | BE31: 4.52 | BF31: 0 | BG31: 6.47 | BH31: 0 | BI31: 3.22 | BJ31: 0 | BK31: 2.43
A32: SE23-2010 | B32: 3.2 Sončne elektrarne - samostojni objekti 2010 | D32: srednja - od 1MW do vključno 10MW | E32: SE23 | K32: 269.68 | L32: 0 | M32: 269.68 | N32: 269.68 | O32: 0 | P32: 269.68 | Q32: 269.68 | R32: 0 | S32: 269.68 | T32: 269.68 | U32: 0 | V32: 269.68 | W32: 269.68 | X32: 0 | Y32: 269.68 | Z32: 269.68 | AA32: 0 | AB32: 269.68 | AC32: 269.68 | AD32: 0 | AE32: 269.68 | AF32: 0.91 | AM32: =K32+L32 -> 269.68 | AN32: 221.08 | AO32: =N32+O32 -> 269.68 | AP32: 221.33 | AQ32: =Q32+R32 -> 269.68 | AR32: 218.91 | AS32: =T32+U32 -> 269.68 | AT32: 223.58 | AU32: =W32+X32 -> 269.68 | AV32: 230.27 | AW32: =+Z32+AA32 -> 269.68 | AX32: 233.6 | AY32: 269.68 | AZ32: 236.11 | BB32: 0 | BC32: -2.42 | BD32: 0 | BE32: 4.67 | BF32: 0 | BG32: 6.69 | BH32: 0 | BI32: 3.33 | BJ32: 0 | BK32: 2.51
A33: SE24-2010 | B33: 3.2 Sončne elektrarne - samostojni objekti 2010 | D33: velika - nad 10MW do vključno 125MW | E33: SE24 | K33: 250.37 | L33: 0 | M33: 250.37 | N33: 250.37 | O33: 0 | P33: 250.37 | Q33: 250.37 | R33: 0 | S33: 250.37 | T33: =K33 -> 250.37 | U33: 0 | V33: 250.37 | W33: =K33 -> 250.37 | X33: 0 | Y33: 250.37 | Z33: 250.37 | AA33: 0 | AB33: 250.37 | AC33: 250.37 | AD33: 0 | AE33: 250.37 | AF33: 1 | AM33: (ni ZO) | AN33: 196.96 | AO33: (ni ZO) | AP33: 197.24 | AQ33: (ni ZO) | AR33: 194.58 | AS33: (ni ZO) | AT33: 199.71 | AU33: (ni ZO) | AV33: 207.06 | AW33: (ni ZO) | AX33: 210.72 | AY33: (ni ZO) | AZ33: 213.48 | BB33: (ni ZO) | BC33: -2.66 | BD33: (ni ZO) | BE33: 5.13 | BF33: (ni ZO) | BG33: 7.35 | BH33: (ni ZO) | BI33: 3.66 | BJ33: (ni ZO) | BK33: 2.76
A34: SE11-2011 | B34: 3.1 Sončne elektrarne - na stavbah 2011 | C34: 3.1 Sončne elektrarne - na stavbah 2011 | D34: mikro - manjše od 50kW | E34: SE11 | N34: =ROUND(F10*0.8,2) -> 332.37 | O34: 0 | P34: 332.37 | Q34: =N34 -> 332.37 | R34: 0 | S34: 332.37 | T34: =N34 -> 332.37 | U34: 0 | V34: 332.37 | W34: =N34 -> 332.37 | X34: 0 | Y34: 332.37 | Z34: 332.37 | AA34: 0 | AB34: 332.37 | AC34: 332.37 | AD34: 0 | AE34: 332.37 | AF34: 0.88 | AO34: =N34+O34 -> 332.37 | AP34: 285.62 | AQ34: =Q34+R34 -> 332.37 | AR34: =ROUND((Q34+R34)-AF34*$I$326,2) -> 283.27 | AS34: =T34+U34 -> 332.37 | AT34: =ROUND((T34+U34)-AF34*$H$326,2) -> 287.79 | AU34: =W34+X34 -> 332.37 | AV34: 294.26 | AW34: =+Z34+AA34 -> 332.37 | AX34: 297.48 | AY34: 332.37 | AZ34: 299.91 | BB34: 0 | BC34: -2.35 | BD34: =AS34-AQ34 -> 0 | BE34: 4.52 | BF34: =AU34-AS34 -> 0 | BG34: 6.47 | BH34: 0 | BI34: 3.22 | BJ34: 0 | BK34: 2.43
A35: SE12-2011 | B35: 3.1 Sončne elektrarne - na stavbah 2011 | D35: mala - manjše od 1MW | E35: SE12 | N35: 304.02 | O35: 0 | P35: 304.02 | Q35: =N35 -> 304.02 | R35: 0 | S35: 304.02 | T35: 304.02 | U35: 0 | V35: 304.02 | W35: 304.02 | X35: 0 | Y35: 304.02 | Z35: 304.02 | AA35: 0 | AB35: 304.02 | AC35: 304.02 | AD35: 0 | AE35: 304.02 | AF35: 0.88 | AO35: =N35+O35 -> 304.02 | AP35: 257.27 | AQ35: =Q35+R35 -> 304.02 | AR35: 254.92 | AS35: =T35+U35 -> 304.02 | AT35: 259.44 | AU35: =W35+X35 -> 304.02 | AV35: 265.91 | AW35: =+Z35+AA35 -> 304.02 | AX35: 269.13 | AY35: 304.02 | AZ35: 271.56 | BB35: 0 | BC35: -2.35 | BD35: 0 | BE35: 4.52 | BF35: 0 | BG35: 6.47 | BH35: 0 | BI35: 3.22 | BJ35: 0 | BK35: 2.43
A36: SE13-2011 | B36: 3.1 Sončne elektrarne - na stavbah 2011 | D36: srednja - od 1MW do vključno 10MW | E36: SE13 | N36: 252.29 | O36: 0 | P36: 252.29 | Q36: 252.29 | R36: 0 | S36: 252.29 | T36: 252.29 | U36: 0 | V36: 252.29 | W36: 252.29 | X36: 0 | Y36: 252.29 | Z36: 252.29 | AA36: 0 | AB36: 252.29 | AC36: 252.29 | AD36: 0 | AE36: 252.29 | AF36: 0.91 | AO36: =N36+O36 -> 252.29 | AP36: 203.94 | AQ36: =Q36+R36 -> 252.29 | AR36: 201.52 | AS36: =T36+U36 -> 252.29 | AT36: 206.19 | AU36: =W36+X36 -> 252.29 | AV36: 212.88 | AW36: =+Z36+AA36 -> 252.29 | AX36: 216.21 | AY36: 252.29 | AZ36: 218.72 | BB36: 0 | BC36: -2.42 | BD36: 0 | BE36: 4.67 | BF36: 0 | BG36: 6.69 | BH36: 0 | BI36: 3.33 | BJ36: 0 | BK36: 2.51
A37: SE14-2011 | B37: 3.1 Sončne elektrarne - na stavbah 2011 | D37: velika - nad 10MW do vključno 125MW | E37: SE14 | N37: 224.57 | O37: 0 | P37: 224.57 | Q37: 224.57 | R37: 0 | S37: 224.57 | T37: 224.57 | U37: 0 | V37: 224.57 | W37: 224.57 | X37: 0 | Y37: 224.57 | Z37: 224.57 | AA37: 0 | AB37: 224.57 | AC37: 224.57 | AD37: 0 | AE37: 224.57 | AF37: 1 | AO37: (ni ZO) | AP37: 171.44 | AQ37: (ni ZO) | AR37: 168.78 | AS37: (ni ZO) | AT37: 173.91 | AU37: (ni ZO) | AV37: 181.26 | AW37: (ni ZO) | AX37: 184.92 | AY37: (ni ZO) | AZ37: 187.68 | BB37: (ni ZO) | BC37: -2.66 | BD37: (ni ZO) | BE37: 5.13 | BF37: (ni ZO) | BG37: 7.35 | BH37: (ni ZO) | BI37: 3.66 | BJ37: (ni ZO) | BK37: 2.76
C38: 3.1 INT Sončne elektrarne - integrirane 2011 | D38: mikro - manjše od 50kW | N38: =ROUND(N34*1.15,2) -> 382.23 | O38: 0 | P38: 382.23 | Q38: 382.23 | R38: 0 | S38: 382.23 | T38: 382.23 | U38: 0 | V38: 382.23 | W38: 382.23 | X38: 0 | Y38: 382.23 | Z38: 382.23 | AA38: 0 | AB38: 382.23 | AC38: 382.23 | AD38: 0 | AE38: 382.23 | AF38: 0.88 | AO38: =N38+O38 -> 382.23 | AP38: 335.48 | AQ38: =Q38+R38 -> 382.23 | AR38: 333.13 | AS38: =T38+U38 -> 382.23 | AT38: 337.65 | AU38: =W38+X38 -> 382.23 | AV38: 344.12 | AW38: =+Z38+AA38 -> 382.23 | AX38: 347.34 | AY38: 382.23 | AZ38: 349.77 | BB38: 0 | BC38: -2.35 | BD38: =AS38-AQ38 -> 0 | BE38: 4.52 | BF38: =AU38-AS38 -> 0 | BG38: 6.47 | BH38: 0 | BI38: 3.22 | BJ38: 0 | BK38: 2.43
D39: mala - manjše od 1MW | N39: =ROUND(N35*1.15,2) -> 349.62 | O39: 0 | P39: 349.62 | Q39: 349.62 | R39: 0 | S39: 349.62 | T39: 349.62 | U39: 0 | V39: 349.62 | W39: 349.62 | X39: 0 | Y39: 349.62 | Z39: 349.62 | AA39: 0 | AB39: 349.62 | AC39: 349.62 | AD39: 0 | AE39: 349.62 | AF39: 0.88 | AO39: =N39+O39 -> 349.62 | AP39: 302.87 | AQ39: =Q39+R39 -> 349.62 | AR39: 300.52 | AS39: =T39+U39 -> 349.62 | AT39: 305.04 | AU39: =W39+X39 -> 349.62 | AV39: 311.51 | AW39: =+Z39+AA39 -> 349.62 | AX39: 314.73 | AY39: 349.62 | AZ39: 317.16 | BB39: 0 | BC39: -2.35 | BD39: 0 | BE39: 4.52 | BF39: 0 | BG39: 6.47 | BH39: 0 | BI39: 3.22 | BJ39: 0 | BK39: 2.43
D40: srednja - od 1MW do vključno 10MW | N40: 290.13 | O40: 0 | P40: 290.13 | Q40: 290.13 | R40: 0 | S40: 290.13 | T40: 290.13 | U40: 0 | V40: 290.13 | W40: 290.13 | X40: 0 | Y40: 290.13 | Z40: 290.13 | AA40: 0 | AB40: 290.13 | AC40: 290.13 | AD40: 0 | AE40: 290.13 | AF40: 0.91 | AO40: =N40+O40 -> 290.13 | AP40: 241.78 | AQ40: =Q40+R40 -> 290.13 | AR40: 239.36 | AS40: =T40+U40 -> 290.13 | AT40: 244.03 | AU40: =W40+X40 -> 290.13 | AV40: 250.72 | AW40: =+Z40+AA40 -> 290.13 | AX40: 254.05 | AY40: 290.13 | AZ40: 256.56 | BB40: 0 | BC40: -2.42 | BD40: 0 | BE40: 4.67 | BF40: 0 | BG40: 6.69 | BH40: 0 | BI40: 3.33 | BJ40: 0 | BK40: 2.51
D41: velika - nad 10MW do vključno 125MW | N41: 258.26 | O41: 0 | P41: 258.26 | Q41: 258.26 | R41: 0 | S41: 258.26 | T41: 258.26 | U41: 0 | V41: 258.26 | W41: 258.26 | X41: 0 | Y41: 258.26 | Z41: 258.26 | AA41: 0 | AB41: 258.26 | AC41: 258.26 | AD41: 0 | AE41: 258.26 | AF41: 1 | AO41: (ni ZO) | AP41: 205.13 | AQ41: (ni ZO) | AR41: 202.47 | AS41: (ni ZO) | AT41: 207.6 | AU41: (ni ZO) | AV41: 214.95 | AW41: (ni ZO) | AX41: 218.61 | AY41: (ni ZO) | AZ41: 221.37 | BB41: (ni ZO) | BC41: -2.66 | BD41: (ni ZO) | BE41: 5.13 | BF41: (ni ZO) | BG41: 7.35 | BH41: (ni ZO) | BI41: 3.66 | BJ41: (ni ZO) | BK41: 2.76
A42: SE21-2011 | B42: 3.2 Sončne elektrarne - samostojni objekti 2011 | C42: 3.2 Sončne elektrarne - samostojni objekti 2011 | D42: mikro - manjše od 50kW | E42: SE21 | N42: 312.34 | O42: 0 | P42: 312.34 | Q42: 312.34 | R42: 0 | S42: 312.34 | T42: 312.34 | U42: 0 | V42: 312.34 | W42: 312.34 | X42: 0 | Y42: 312.34 | Z42: 312.34 | AA42: 0 | AB42: 312.34 | AC42: 312.34 | AD42: 0 | AE42: 312.34 | AF42: 0.88 | AO42: =N42+O42 -> 312.34 | AP42: 265.59 | AQ42: =Q42+R42 -> 312.34 | AR42: 263.24 | AS42: =T42+U42 -> 312.34 | AT42: 267.76 | AU42: =W42+X42 -> 312.34 | AV42: 274.23 | AW42: =+Z42+AA42 -> 312.34 | AX42: 277.45 | AY42: 312.34 | AZ42: 279.88 | BB42: 0 | BC42: -2.35 | BD42: =AS42-AQ42 -> 0 | BE42: 4.52 | BF42: =AU42-AS42 -> 0 | BG42: 6.47 | BH42: 0 | BI42: 3.22 | BJ42: 0 | BK42: 2.43
A43: SE22-2011 | B43: 3.2 Sončne elektrarne - samostojni objekti 2011 | D43: mala - manjše od 1MW | E43: SE22 | N43: 287.77 | O43: 0 | P43: 287.77 | Q43: 287.77 | R43: 0 | S43: 287.77 | T43: 287.77 | U43: 0 | V43: 287.77 | W43: 287.77 | X43: 0 | Y43: 287.77 | Z43: 287.77 | AA43: 0 | AB43: 287.77 | AC43: 287.77 | AD43: 0 | AE43: 287.77 | AF43: 0.88 | AO43: =N43+O43 -> 287.77 | AP43: 241.02 | AQ43: =Q43+R43 -> 287.77 | AR43: 238.67 | AS43: =T43+U43 -> 287.77 | AT43: 243.19 | AU43: =W43+X43 -> 287.77 | AV43: 249.66 | AW43: =+Z43+AA43 -> 287.77 | AX43: 252.88 | AY43: 287.77 | AZ43: 255.31 | BB43: 0 | BC43: -2.35 | BD43: 0 | BE43: 4.52 | BF43: 0 | BG43: 6.47 | BH43: 0 | BI43: 3.22 | BJ43: 0 | BK43: 2.43
A44: SE23-2011 | B44: 3.2 Sončne elektrarne - samostojni objekti 2011 | D44: srednja - od 1MW do vključno 10MW | E44: SE23 | N44: 231.98 | O44: 0 | P44: 231.98 | Q44: 231.98 | R44: 0 | S44: 231.98 | T44: 231.98 | U44: 0 | V44: 231.98 | W44: 231.98 | X44: 0 | Y44: 231.98 | Z44: 231.98 | AA44: 0 | AB44: 231.98 | AC44: 231.98 | AD44: 0 | AE44: 231.98 | AF44: 0.91 | AO44: =N44+O44 -> 231.98 | AP44: 183.63 | AQ44: =Q44+R44 -> 231.98 | AR44: 181.21 | AS44: =T44+U44 -> 231.98 | AT44: 185.88 | AU44: =W44+X44 -> 231.98 | AV44: 192.57 | AW44: =+Z44+AA44 -> 231.98 | AX44: 195.9 | AY44: 231.98 | AZ44: 198.41 | BB44: 0 | BC44: -2.42 | BD44: 0 | BE44: 4.67 | BF44: 0 | BG44: 6.69 | BH44: 0 | BI44: 3.33 | BJ44: 0 | BK44: 2.51
A45: SE24-2011 | B45: 3.2 Sončne elektrarne - samostojni objekti 2011 | D45: velika - nad 10MW do vključno 125MW | E45: SE24 | N45: 215.38 | O45: 0 | P45: 215.38 | Q45: 215.38 | R45: 0 | S45: 215.38 | T45: =N45 -> 215.38 | U45: 0 | V45: 215.38 | W45: =N45 -> 215.38 | X45: 0 | Y45: 215.38 | Z45: 215.38 | AA45: 0 | AB45: 215.38 | AC45: 215.38 | AD45: 0 | AE45: 215.38 | AF45: 1 | AO45: (ni ZO) | AP45: 162.25 | AQ45: (ni ZO) | AR45: 159.59 | AS45: (ni ZO) | AT45: 164.72 | AU45: (ni ZO) | AV45: 172.07 | AW45: (ni ZO) | AX45: 175.73 | AY45: (ni ZO) | AZ45: 178.49 | BB45: (ni ZO) | BC45: -2.66 | BD45: (ni ZO) | BE45: 5.13 | BF45: (ni ZO) | BG45: 7.35 | BH45: (ni ZO) | BI45: 3.66 | BJ45: (ni ZO) | BK45: 2.76
A46: SE11-2012H1 | B46: 3.1 Sončne elektrarne - na stavbah 2012 - prva polovica | C46: 3.1 Sončne elektrarne - na stavbah 2012 H1 | D46: mikro - manjše od 50kW | E46: SE11 | Q46: =ROUND(F10*0.7,2) -> 290.82 | R46: 0 | S46: =Q46+R46 -> 290.82 | T46: =Q46 -> 290.82 | U46: 0 | V46: 290.82 | W46: =Q46 -> 290.82 | X46: 0 | Y46: 290.82 | Z46: 290.82 | AA46: 0 | AB46: 290.82 | AC46: 290.82 | AD46: 0 | AE46: 290.82 | AF46: 0.88 | AQ46: =Q46+R46 -> 290.82 | AR46: 241.72 | AS46: =T46+U46 -> 290.82 | AT46: 246.24 | AU46: =W46+X46 -> 290.82 | AV46: 252.71 | AW46: =+Z46+AA46 -> 290.82 | AX46: 255.93 | AY46: 290.82 | AZ46: 258.36 | BB46: (ni podpore 2011) | BC46: (ni podpore 2011) | BD46: =AS46-AQ46 -> 0 | BE46: =AT46-AR46 -> 4.52 | BF46: =AU46-AS46 -> 0 | BG46: 6.47 | BH46: 0 | BI46: 3.22 | BJ46: 0 | BK46: 2.43
A47: SE12-2012H1 | B47: 3.1 Sončne elektrarne - na stavbah 2012 - prva polovica | D47: mala - manjše od 1MW | E47: SE12 | Q47: =ROUND(F11*0.7,2) -> 266.01 | R47: 0 | S47: 266.01 | T47: =Q47 -> 266.01 | U47: 0 | V47: 266.01 | W47: =Q47 -> 266.01 | X47: 0 | Y47: 266.01 | Z47: 266.01 | AA47: 0 | AB47: 266.01 | AC47: 266.01 | AD47: 0 | AE47: 266.01 | AF47: 0.88 | AQ47: =Q47+R47 -> 266.01 | AR47: 216.91 | AS47: =T47+U47 -> 266.01 | AT47: 221.43 | AU47: =W47+X47 -> 266.01 | AV47: 227.9 | AW47: =+Z47+AA47 -> 266.01 | AX47: 231.12 | AY47: 266.01 | AZ47: 233.55 | BB47: (ni podpore 2011) | BC47: (ni podpore 2011) | BD47: 0 | BE47: 4.52 | BF47: 0 | BG47: 6.47 | BH47: 0 | BI47: 3.22 | BJ47: 0 | BK47: 2.43
A48: SE13-2012H1 | B48: 3.1 Sončne elektrarne - na stavbah 2012 - prva polovica | D48: srednja - od 1MW do vključno 10MW | E48: SE13 | Q48: =ROUND(F12*0.7,2) -> 220.75 | R48: 0 | S48: 220.75 | T48: 220.75 | U48: 0 | V48: 220.75 | W48: 220.75 | X48: 0 | Y48: 220.75 | Z48: 220.75 | AA48: 0 | AB48: 220.75 | AC48: 220.75 | AD48: 0 | AE48: 220.75 | AF48: 0.91 | AQ48: =Q48+R48 -> 220.75 | AR48: 169.98 | AS48: =T48+U48 -> 220.75 | AT48: 174.65 | AU48: =W48+X48 -> 220.75 | AV48: 181.34 | AW48: =+Z48+AA48 -> 220.75 | AX48: 184.67 | AY48: 220.75 | AZ48: 187.18 | BB48: (ni podpore 2011) | BC48: (ni podpore 2011) | BD48: 0 | BE48: 4.67 | BF48: 0 | BG48: 6.69 | BH48: 0 | BI48: 3.33 | BJ48: 0 | BK48: 2.51
A49: SE14-2012H1 | B49: 3.1 Sončne elektrarne - na stavbah 2012 - prva polovica | D49: velika - nad 10MW do vključno 125MW | E49: SE14 | Q49: =ROUND(F13*0.7,2) -> 196.5 | R49: 0 | S49: 196.5 | T49: 196.5 | U49: 0 | V49: 196.5 | W49: 196.5 | X49: 0 | Y49: 196.5 | Z49: 196.5 | AA49: 0 | AB49: 196.5 | AC49: 196.5 | AD49: 0 | AE49: 196.5 | AF49: 1 | AQ49: (ni ZO) | AR49: 140.71 | AS49: (ni ZO) | AT49: 145.84 | AU49: (ni ZO) | AV49: 153.19 | AW49: (ni ZO) | AX49: 156.85 | AY49: (ni ZO) | AZ49: 159.61 | BB49: (ni podpore 2011) | BC49: (ni podpore 2011) | BD49: (ni ZO) | BE49: 5.13 | BF49: (ni ZO) | BG49: 7.35 | BH49: (ni ZO) | BI49: 3.66 | BJ49: (ni ZO) | BK49: 2.76
A50: SE11-2012H2 | B50: 3.1 Sončne elektrarne - na stavbah 2012 - druga polovica | C50: 3.1 Sončne elektrarne - na stavbah 2012 H2 | D50: mikro - manjše od 50kW | E50: SE11 | Q50: =ROUND(F10*0.4755,2) -> 197.55 | R50: 0 | S50: =Q50+R50 -> 197.55 | T50: 197.55 | U50: 0 | V50: 197.55 | W50: 197.55 | X50: 0 | Y50: 197.55 | Z50: 197.55 | AA50: 0 | AB50: 197.55 | AC50: 197.55 | AD50: 0 | AE50: 197.55 | AF50: 0.88 | AQ50: =Q50+R50 -> 197.55 | AR50: 148.45 | AS50: =T50+U50 -> 197.55 | AT50: 152.97 | AU50: =W50+X50 -> 197.55 | AV50: 159.44 | AW50: =+Z50+AA50 -> 197.55 | AX50: 162.66 | AY50: 197.55 | AZ50: 165.09 | BB50: (ni podpore 2011) | BC50: (ni podpore 2011) | BD50: 0 | BE50: 4.52 | BF50: =AU50-AS50 -> 0 | BG50: 6.47 | BH50: 0 | BI50: 3.22 | BJ50: 0 | BK50: 2.43
A51: SE12-2012H2 | B51: 3.1 Sončne elektrarne - na stavbah 2012 - druga polovica | D51: mala - manjše od 1MW | E51: SE12 | Q51: =ROUND(F11*0.4755,2) -> 180.7 | R51: 0 | S51: 180.7 | T51: 180.7 | U51: 0 | V51: 180.7 | W51: 180.7 | X51: 0 | Y51: 180.7 | Z51: 180.7 | AA51: 0 | AB51: 180.7 | AC51: 180.7 | AD51: 0 | AE51: 180.7 | AF51: 0.88 | AQ51: =Q51+R51 -> 180.7 | AR51: 131.6 | AS51: =T51+U51 -> 180.7 | AT51: 136.12 | AU51: =W51+X51 -> 180.7 | AV51: 142.59 | AW51: =+Z51+AA51 -> 180.7 | AX51: 145.81 | AY51: 180.7 | AZ51: 148.24 | BB51: (ni podpore 2011) | BC51: (ni podpore 2011) | BD51: 0 | BE51: 4.52 | BF51: 0 | BG51: 6.47 | BH51: 0 | BI51: 3.22 | BJ51: 0 | BK51: 2.43
A52: SE13-2012H2 | B52: 3.1 Sončne elektrarne - na stavbah 2012 - druga polovica | D52: srednja - od 1MW do vključno 10MW | E52: SE13 | Q52: =ROUND(F12*0.4755,2) -> 149.95 | R52: 0 | S52: 149.95 | T52: 149.95 | U52: 0 | V52: 149.95 | W52: 149.95 | X52: 0 | Y52: 149.95 | Z52: 149.95 | AA52: 0 | AB52: 149.95 | AC52: 149.95 | AD52: 0 | AE52: 149.95 | AF52: 0.91 | AQ52: =Q52+R52 -> 149.95 | AR52: 99.18 | AS52: =T52+U52 -> 149.95 | AT52: 103.85 | AU52: =W52+X52 -> 149.95 | AV52: 110.54 | AW52: =+Z52+AA52 -> 149.95 | AX52: 113.87 | AY52: 149.95 | AZ52: 116.38 | BB52: (ni podpore 2011) | BC52: (ni podpore 2011) | BD52: 0 | BE52: 4.67 | BF52: 0 | BG52: 6.69 | BH52: 0 | BI52: 3.33 | BJ52: 0 | BK52: 2.51
A53: SE14-2012H2 | B53: 3.1 Sončne elektrarne - na stavbah 2012 - druga polovica | D53: velika - nad 10MW do vključno 125MW | E53: SE14 | Q53: =ROUND(F13*0.4755,2) -> 133.48 | R53: 0 | S53: 133.48 | T53: 133.48 | U53: 0 | V53: 133.48 | W53: 133.48 | X53: 0 | Y53: 133.48 | Z53: 133.48 | AA53: 0 | AB53: 133.48 | AC53: 133.48 | AD53: 0 | AE53: 133.48 | AF53: 1 | AQ53: (ni ZO) | AR53: 77.69 | AS53: (ni ZO) | AT53: 82.82 | AU53: (ni ZO) | AV53: 90.17 | AW53: (ni ZO) | AX53: 93.83 | AY53: (ni ZO) | AZ53: 96.59 | BB53: (ni podpore 2011) | BC53: (ni podpore 2011) | BD53: (ni ZO) | BE53: 5.13 | BF53: (ni ZO) | BG53: 7.35 | BH53: (ni ZO) | BI53: 3.66 | BJ53: (ni ZO) | BK53: 2.76
A54: SE21-2012H1 | B54: 3.2 Sončne elektrarne - ostale 2012 - prva polovica | C54: 3.2 Sončne elektrarne - ostale 2012 H1 | D54: mikro - manjše od 50kW | E54: SE21 | Q54: =ROUND(F18*0.7,2) -> 273.29 | R54: 0 | S54: 273.29 | T54: 273.29 | U54: 0 | V54: 273.29 | W54: 273.29 | X54: 0 | Y54: 273.29 | Z54: 273.29 | AA54: 0 | AB54: 273.29 | AC54: 273.29 | AD54: 0 | AE54: 273.29 | AF54: 0.88 | AQ54: =Q54+R54 -> 273.29 | AR54: 224.19 | AS54: =T54+U54 -> 273.29 | AT54: 228.71 | AU54: =W54+X54 -> 273.29 | AV54: 235.18 | AW54: =+Z54+AA54 -> 273.29 | AX54: 238.4 | AY54: 273.29 | AZ54: 240.83 | BB54: (ni podpore 2011) | BC54: (ni podpore 2011) | BD54: 0 | BE54: 4.52 | BF54: =AU54-AS54 -> 0 | BG54: 6.47 | BH54: 0 | BI54: 3.22 | BJ54: 0 | BK54: 2.43
A55: SE22-2012H1 | B55: 3.2 Sončne elektrarne - ostale 2012 - prva polovica | D55: mala - manjše od 1MW | E55: SE22 | Q55: =ROUND(F19*0.7,2) -> 251.8 | R55: 0 | S55: 251.8 | T55: 251.8 | U55: 0 | V55: 251.8 | W55: 251.8 | X55: 0 | Y55: 251.8 | Z55: 251.8 | AA55: 0 | AB55: 251.8 | AC55: 251.8 | AD55: 0 | AE55: 251.8 | AF55: 0.88 | AQ55: =Q55+R55 -> 251.8 | AR55: 202.7 | AS55: =T55+U55 -> 251.8 | AT55: 207.22 | AU55: =W55+X55 -> 251.8 | AV55: 213.69 | AW55: =+Z55+AA55 -> 251.8 | AX55: 216.91 | AY55: 251.8 | AZ55: 219.34 | BB55: (ni podpore 2011) | BC55: (ni podpore 2011) | BD55: 0 | BE55: 4.52 | BF55: 0 | BG55: 6.47 | BH55: 0 | BI55: 3.22 | BJ55: 0 | BK55: 2.43
A56: SE23-2012H1 | B56: 3.2 Sončne elektrarne - ostale 2012 - prva polovica | D56: srednja - od 1MW do vključno 10MW | E56: SE23 | Q56: =ROUND(F20*0.7,2) -> 202.99 | R56: 0 | S56: 202.99 | T56: 202.99 | U56: 0 | V56: 202.99 | W56: 202.99 | X56: 0 | Y56: 202.99 | Z56: 202.99 | AA56: 0 | AB56: 202.99 | AC56: 202.99 | AD56: 0 | AE56: 202.99 | AF56: 0.91 | AQ56: =Q56+R56 -> 202.99 | AR56: 152.22 | AS56: =T56+U56 -> 202.99 | AT56: 156.89 | AU56: =W56+X56 -> 202.99 | AV56: 163.58 | AW56: =+Z56+AA56 -> 202.99 | AX56: 166.91 | AY56: 202.99 | AZ56: 169.42 | BB56: (ni podpore 2011) | BC56: (ni podpore 2011) | BD56: 0 | BE56: 4.67 | BF56: 0 | BG56: 6.69 | BH56: 0 | BI56: 3.33 | BJ56: 0 | BK56: 2.51
A57: SE24-2012H1 | B57: 3.2 Sončne elektrarne - ostale 2012 - prva polovica | D57: velika - nad 10MW do vključno 125MW | E57: SE24 | Q57: =ROUND(F21*0.7,2) -> 188.45 | R57: 0 | S57: 188.45 | T57: 188.45 | U57: 0 | V57: 188.45 | W57: 188.45 | X57: 0 | Y57: 188.45 | Z57: 188.45 | AA57: 0 | AB57: 188.45 | AC57: 188.45 | AD57: 0 | AE57: 188.45 | AF57: 1 | AQ57: (ni ZO) | AR57: 132.66 | AS57: (ni ZO) | AT57: 137.79 | AU57: (ni ZO) | AV57: 145.14 | AW57: (ni ZO) | AX57: 148.8 | AY57: (ni ZO) | AZ57: 151.56 | BB57: (ni podpore 2011) | BC57: (ni podpore 2011) | BD57: (ni ZO) | BE57: 5.13 | BF57: (ni ZO) | BG57: 7.35 | BH57: (ni ZO) | BI57: 3.66 | BJ57: (ni ZO) | BK57: 2.76
A58: SE21-2012H2 | B58: 3.2 Sončne elektrarne - ostale 2012 - druga polovica | C58: 3.2 Sončne elektrarne - ostale 2012 H2 | D58: mikro - manjše od 50kW | E58: SE21 | Q58: =ROUND(F18*0.4755,2) -> 185.64 | R58: 0 | S58: =Q58+R58 -> 185.64 | T58: 185.64 | U58: 0 | V58: 185.64 | W58: 185.64 | X58: 0 | Y58: 185.64 | Z58: 185.64 | AA58: 0 | AB58: 185.64 | AC58: 185.64 | AD58: 0 | AE58: 185.64 | AF58: 0.88 | AQ58: =Q58+R58 -> 185.64 | AR58: 136.54 | AS58: =T58+U58 -> 185.64 | AT58: 141.06 | AU58: =W58+X58 -> 185.64 | AV58: 147.53 | AW58: =+Z58+AA58 -> 185.64 | AX58: 150.75 | AY58: 185.64 | AZ58: 153.18 | BB58: (ni podpore 2011) | BC58: (ni podpore 2011) | BD58: 0 | BE58: 4.52 | BF58: =AU58-AS58 -> 0 | BG58: 6.47 | BH58: 0 | BI58: 3.22 | BJ58: 0 | BK58: 2.43
A59: SE22-2012H2 | B59: 3.2 Sončne elektrarne - ostale 2012 - druga polovica | D59: mala - manjše od 1MW | E59: SE22 | Q59: =ROUND(F19*0.4755,2) -> 171.04 | R59: 0 | S59: 171.04 | T59: 171.04 | U59: 0 | V59: 171.04 | W59: 171.04 | X59: 0 | Y59: 171.04 | Z59: 171.04 | AA59: 0 | AB59: 171.04 | AC59: 171.04 | AD59: 0 | AE59: 171.04 | AF59: 0.88 | AQ59: =Q59+R59 -> 171.04 | AR59: 121.94 | AS59: =T59+U59 -> 171.04 | AT59: 126.46 | AU59: =W59+X59 -> 171.04 | AV59: 132.93 | AW59: =+Z59+AA59 -> 171.04 | AX59: 136.15 | AY59: 171.04 | AZ59: 138.58 | BB59: (ni podpore 2011) | BC59: (ni podpore 2011) | BD59: 0 | BE59: 4.52 | BF59: 0 | BG59: 6.47 | BH59: 0 | BI59: 3.22 | BJ59: 0 | BK59: 2.43
A60: SE23-2012H2 | B60: 3.2 Sončne elektrarne - ostale 2012 - druga polovica | D60: srednja - od 1MW do vključno 10MW | E60: SE23 | Q60: =ROUND(F20*0.4755,2) -> 137.89 | R60: 0 | S60: 137.89 | T60: 137.89 | U60: 0 | V60: 137.89 | W60: 137.89 | X60: 0 | Y60: 137.89 | Z60: 137.89 | AA60: 0 | AB60: 137.89 | AC60: 137.89 | AD60: 0 | AE60: 137.89 | AF60: 0.91 | AQ60: =Q60+R60 -> 137.89 | AR60: 87.12 | AS60: =T60+U60 -> 137.89 | AT60: 91.79 | AU60: =W60+X60 -> 137.89 | AV60: 98.48 | AW60: =+Z60+AA60 -> 137.89 | AX60: 101.81 | AY60: 137.89 | AZ60: 104.32 | BB60: (ni podpore 2011) | BC60: (ni podpore 2011) | BD60: 0 | BE60: 4.67 | BF60: 0 | BG60: 6.69 | BH60: 0 | BI60: 3.33 | BJ60: 0 | BK60: 2.51
A61: SE24-2012H2 | B61: 3.2 Sončne elektrarne - ostale 2012 - druga polovica | D61: velika - nad 10MW do vključno 125MW | E61: SE24 | Q61: =ROUND(F21*0.4755,2) -> 128.01 | R61: 0 | S61: 128.01 | T61: 128.01 | U61: 0 | V61: 128.01 | W61: 128.01 | X61: 0 | Y61: 128.01 | Z61: 128.01 | AA61: 0 | AB61: 128.01 | AC61: 128.01 | AD61: 0 | AE61: 128.01 | AF61: 1 | AQ61: (ni ZO) | AR61: 72.22 | AS61: (ni ZO) | AT61: 77.35 | AU61: (ni ZO) | AV61: 84.7 | AW61: (ni ZO) | AX61: 88.36 | AY61: (ni ZO) | AZ61: 91.12 | BB61: (ni podpore 2011) | BC61: (ni podpore 2011) | BD61: (ni ZO) | BE61: 5.13 | BF61: (ni ZO) | BG61: 7.35 | BH61: (ni ZO) | BI61: 3.66 | BJ61: (ni ZO) | BK61: 2.76
A62: SE11-2012dec | B62: 3.1 Sončne elektrarne - na stavbah 2012 december | D62: mikro - manjše od 50kW | E62: SE11 | T62: 150 | U62: 0 | V62: =T62+U62 -> 150 | W62: 150 | X62: 0 | Y62: 150 | Z62: 150 | AA62: 0 | AB62: 150 | AC62: 150 | AD62: 0 | AE62: 150 | AF62: 0.88 | AS62: =T62+U62 -> 150 | AT62: 105.42 | AU62: =W62+X62 -> 150 | AV62: 111.89 | AW62: =+Z62+AA62 -> 150 | AX62: 115.11 | AY62: 150 | AZ62: 117.54 | BB62: (ni podpore 2011/2) | BC62: (ni podpore 2011/2) | BD62: (ni podpore 2011/2) | BE62: (ni podpore 2011/2) | BF62: =AU62-AS62 -> 0 | BG62: =AV62-AT62 -> 6.47 | BH62: 0 | BI62: 3.22 | BJ62: 0 | BK62: 2.43
A63: SE12-2012dec | B63: 3.1 Sončne elektrarne - na stavbah 2012 december | D63: mala - manjše od 1MW | E63: SE12 | T63: 137.19 | U63: 0 | V63: 137.19 | W63: 137.19 | X63: 0 | Y63: 137.19 | Z63: 137.19 | AA63: 0 | AB63: 137.19 | AC63: 137.19 | AD63: 0 | AE63: 137.19 | AF63: 0.88 | AS63: =T63+U63 -> 137.19 | AT63: 92.61 | AU63: =W63+X63 -> 137.19 | AV63: 99.08 | AW63: =+Z63+AA63 -> 137.19 | AX63: 102.3 | AY63: 137.19 | AZ63: 104.73 | BB63: (ni podpore 2011/2) | BC63: (ni podpore 2011/2) | BD63: (ni podpore 2011/2) | BE63: (ni podpore 2011/2) | BF63: 0 | BG63: 6.47 | BH63: 0 | BI63: 3.22 | BJ63: 0 | BK63: 2.43
A64: SE13-2012dec | B64: 3.1 Sončne elektrarne - na stavbah 2012 december | D64: srednja - od 1MW do vključno 10MW | E64: SE13 | T64: 113.85 | U64: 0 | V64: 113.85 | W64: 113.85 | X64: 0 | Y64: 113.85 | Z64: 113.85 | AA64: 0 | AB64: 113.85 | AC64: 113.85 | AD64: 0 | AE64: 113.85 | AF64: 0.91 | AS64: =T64+U64 -> 113.85 | AT64: 67.75 | AU64: =W64+X64 -> 113.85 | AV64: 74.44 | AW64: =+Z64+AA64 -> 113.85 | AX64: 77.77 | AY64: 113.85 | AZ64: 80.28 | BB64: (ni podpore 2011/2) | BC64: (ni podpore 2011/2) | BD64: (ni podpore 2011/2) | BE64: (ni podpore 2011/2) | BF64: 0 | BG64: 6.69 | BH64: 0 | BI64: 3.33 | BJ64: 0 | BK64: 2.51
A65: SE14-2012dec | B65: 3.1 Sončne elektrarne - na stavbah 2012 december | D65: velika - nad 10MW do vključno 125MW | E65: SE14 | T65: 101.34 | U65: 0 | V65: 101.34 | W65: 101.34 | X65: 0 | Y65: 101.34 | Z65: 101.34 | AA65: 0 | AB65: 101.34 | AC65: 101.34 | AD65: 0 | AE65: 101.34 | AF65: 1 | AS65: (ni ZO) | AT65: 50.68 | AU65: (ni ZO) | AV65: 58.03 | AW65: (ni ZO) | AX65: 61.69 | AY65: (ni ZO) | AZ65: 64.45 | BB65: (ni podpore 2011/2) | BC65: (ni podpore 2011/2) | BD65: (ni podpore 2011/2) | BE65: (ni podpore 2011/2) | BF65: (ni ZO) | BG65: 7.35 | BH65: (ni ZO) | BI65: 3.66 | BJ65: (ni ZO) | BK65: 2.76
A66: SE21-2012dec | B66: 3.2 Sončne elektrarne - ostale 2012 december | D66: mikro - manjše od 50kW | E66: SE21 | T66: 140.95 | U66: 0 | V66: 140.95 | W66: 140.95 | X66: 0 | Y66: 140.95 | Z66: =+W66 -> 140.95 | AA66: =+X66 -> 0 | AB66: =+Z66+AA66 -> 140.95 | AC66: 140.95 | AD66: 0 | AE66: 140.95 | AF66: 0.88 | AS66: =T66+U66 -> 140.95 | AT66: =ROUND((T66+U66)-AF66*$H$326,2) -> 96.37 | AU66: =W66+X66 -> 140.95 | AV66: =ROUND((W66+X66)-AF66*$G$326,2) -> 102.84 | AW66: =+Z66+AA66 -> 140.95 | AX66: =ROUND((Z66+AA66)-AF66*$F$326,2) -> 106.06 | AY66: 140.95 | AZ66: 108.49 | BB66: (ni podpore 2011/2) | BC66: (ni podpore 2011/2) | BD66: (ni podpore 2011/2) | BE66: (ni podpore 2011/2) | BF66: =AU66-AS66 -> 0 | BG66: 6.47 | BH66: 0 | BI66: 3.22 | BJ66: =AY66-AW66 -> 0 | BK66: =AZ66-AX66 -> 2.43
A67: SE22-2012dec | B67: 3.2 Sončne elektrarne - ostale 2012 december | D67: mala - manjše od 1MW | E67: SE22 | T67: 129.86 | U67: 0 | V67: 129.86 | W67: 129.86 | X67: 0 | Y67: 129.86 | Z67: 129.86 | AA67: 0 | AB67: 129.86 | AC67: =+Z67 -> 129.86 | AD67: =+AA67 -> 0 | AE67: =+AC67+AD67 -> 129.86 | AF67: 0.88 | AS67: =T67+U67 -> 129.86 | AT67: 85.28 | AU67: =W67+X67 -> 129.86 | AV67: 91.75 | AW67: =+Z67+AA67 -> 129.86 | AX67: 94.97 | AY67: =+AC67+AD67 -> 129.86 | AZ67: =ROUND((AC67+AD67)-AF67*$E$326,2) -> 97.4 | BB67: (ni podpore 2011/2) | BC67: (ni podpore 2011/2) | BD67: (ni podpore 2011/2) | BE67: (ni podpore 2011/2) | BF67: 0 | BG67: 6.47 | BH67: =AW67-AU67 -> 0 | BI67: =AX67-AV67 -> 3.22 | BJ67: 0 | BK67: 2.43
A68: SE23-2012dec | B68: 3.2 Sončne elektrarne - ostale 2012 december | D68: srednja - od 1MW do vključno 10MW | E68: SE23 | T68: 104.68 | U68: 0 | V68: 104.68 | W68: 104.68 | X68: 0 | Y68: 104.68 | Z68: 104.68 | AA68: 0 | AB68: 104.68 | AC68: 104.68 | AD68: 0 | AE68: 104.68 | AF68: 0.91 | AS68: =T68+U68 -> 104.68 | AT68: 58.58 | AU68: =W68+X68 -> 104.68 | AV68: 65.27 | AW68: =+Z68+AA68 -> 104.68 | AX68: 68.6 | AY68: 104.68 | AZ68: 71.11 | BB68: (ni podpore 2011/2) | BC68: (ni podpore 2011/2) | BD68: (ni podpore 2011/2) | BE68: (ni podpore 2011/2) | BF68: 0 | BG68: 6.69 | BH68: 0 | BI68: 3.33 | BJ68: 0 | BK68: 2.51
A69: SE24-2012dec | B69: 3.2 Sončne elektrarne - ostale 2012 december | D69: velika - nad 10MW do vključno 125MW | E69: SE24 | T69: 97.19 | U69: 0 | V69: 97.19 | W69: 97.19 | X69: 0 | Y69: 97.19 | Z69: 97.19 | AA69: 0 | AB69: 97.19 | AC69: 97.19 | AD69: 0 | AE69: 97.19 | AF69: 1 | AS69: (ni ZO) | AT69: 46.53 | AU69: (ni ZO) | AV69: 53.88 | AW69: (ni ZO) | AX69: 57.54 | AY69: (ni ZO) | AZ69: 60.3 | BB69: (ni podpore 2011/2) | BC69: (ni podpore 2011/2) | BD69: (ni podpore 2011/2) | BE69: (ni podpore 2011/2) | BF69: (ni ZO) | BG69: 7.35 | BH69: (ni ZO) | BI69: 3.66 | BJ69: (ni ZO) | BK69: 2.76
A70: SE11-2013jan | B70: 3.1 Sončne elektrarne - na stavbah 2013 januar | D70: mikro - manjše od 50kW | E70: SE11 | T70: =ROUND(0.98*T62,2) -> 147 | U70: 0 | V70: =T70+U70 -> 147 | W70: =ROUND(0.98*W62,2) -> 147 | X70: 0 | Y70: 147 | Z70: 147 | AA70: 0 | AB70: 147 | AC70: 147 | AD70: 0 | AE70: 147 | AF70: 0.88 | AS70: =T70+U70 -> 147 | AT70: 102.42 | AU70: =W70+X70 -> 147 | AV70: 108.89 | AW70: =+Z70+AA70 -> 147 | AX70: 112.11 | AY70: 147 | AZ70: 114.54 | BB70: (ni podpore 2011/2) | BC70: (ni podpore 2011/2) | BD70: (ni podpore 2011/2) | BE70: (ni podpore 2011/2) | BF70: =AU70-AS70 -> 0 | BG70: 6.47 | BH70: 0 | BI70: 3.22 | BJ70: 0 | BK70: 2.43
A71: SE12-2013jan | B71: 3.1 Sončne elektrarne - na stavbah 2013 januar | D71: mala - manjše od 1MW | E71: SE12 | T71: =ROUND(0.98*T63,2) -> 134.45 | U71: 0 | V71: 134.45 | W71: =ROUND(0.98*W63,2) -> 134.45 | X71: 0 | Y71: 134.45 | Z71: 134.45 | AA71: 0 | AB71: 134.45 | AC71: 134.45 | AD71: 0 | AE71: 134.45 | AF71: 0.88 | AS71: =T71+U71 -> 134.45 | AT71: 89.87 | AU71: =W71+X71 -> 134.45 | AV71: 96.34 | AW71: =+Z71+AA71 -> 134.45 | AX71: 99.56 | AY71: 134.45 | AZ71: 101.99 | BB71: (ni podpore 2011/2) | BC71: (ni podpore 2011/2) | BD71: (ni podpore 2011/2) | BE71: (ni podpore 2011/2) | BF71: 0 | BG71: 6.47 | BH71: 0 | BI71: 3.22 | BJ71: 0 | BK71: 2.43
A72: SE13-2013jan | B72: 3.1 Sončne elektrarne - na stavbah 2013 januar | D72: srednja - od 1MW do vključno 10MW | E72: SE13 | T72: 111.57 | U72: 0 | V72: 111.57 | W72: 111.57 | X72: 0 | Y72: 111.57 | Z72: 111.57 | AA72: 0 | AB72: 111.57 | AC72: 111.57 | AD72: 0 | AE72: 111.57 | AF72: 0.91 | AS72: =T72+U72 -> 111.57 | AT72: 65.47 | AU72: =W72+X72 -> 111.57 | AV72: 72.16 | AW72: =+Z72+AA72 -> 111.57 | AX72: 75.49 | AY72: 111.57 | AZ72: 78 | BB72: (ni podpore 2011/2) | BC72: (ni podpore 2011/2) | BD72: (ni podpore 2011/2) | BE72: (ni podpore 2011/2) | BF72: 0 | BG72: 6.69 | BH72: 0 | BI72: 3.33 | BJ72: 0 | BK72: 2.51
A73: SE14-2013jan | B73: 3.1 Sončne elektrarne - na stavbah 2013 januar | D73: velika - nad 10MW do vključno 125MW | E73: SE14 | T73: 99.31 | U73: 0 | V73: 99.31 | W73: 99.31 | X73: 0 | Y73: 99.31 | Z73: 99.31 | AA73: 0 | AB73: 99.31 | AC73: 99.31 | AD73: 0 | AE73: 99.31 | AF73: 1 | AS73: (ni ZO) | AT73: 48.65 | AU73: (ni ZO) | AV73: 56 | AW73: (ni ZO) | AX73: 59.66 | AY73: (ni ZO) | AZ73: 62.42 | BB73: (ni podpore 2011/2) | BC73: (ni podpore 2011/2) | BD73: (ni podpore 2011/2) | BE73: (ni podpore 2011/2) | BF73: (ni ZO) | BG73: 7.35 | BH73: (ni ZO) | BI73: 3.66 | BJ73: (ni ZO) | BK73: 2.76
A74: SE21-2013jan | B74: 3.2 Sončne elektrarne - ostale 2013 januar | D74: mikro - manjše od 50kW | E74: SE21 | T74: 138.13 | U74: 0 | V74: 138.13 | W74: 138.13 | X74: 0 | Y74: 138.13 | Z74: 138.13 | AA74: 0 | AB74: 138.13 | AC74: 138.13 | AD74: 0 | AE74: 138.13 | AF74: 0.88 | AS74: =T74+U74 -> 138.13 | AT74: 93.55 | AU74: =W74+X74 -> 138.13 | AV74: 100.02 | AW74: =+Z74+AA74 -> 138.13 | AX74: 103.24 | AY74: 138.13 | AZ74: 105.67 | BB74: (ni podpore 2011/2) | BC74: (ni podpore 2011/2) | BD74: (ni podpore 2011/2) | BE74: (ni podpore 2011/2) | BF74: =AU74-AS74 -> 0 | BG74: 6.47 | BH74: 0 | BI74: 3.22 | BJ74: 0 | BK74: 2.43
A75: SE22-2013jan | B75: 3.2 Sončne elektrarne - ostale 2013 januar | D75: mala - manjše od 1MW | E75: SE22 | T75: 127.26 | U75: 0 | V75: 127.26 | W75: 127.26 | X75: 0 | Y75: 127.26 | Z75: 127.26 | AA75: 0 | AB75: 127.26 | AC75: 127.26 | AD75: 0 | AE75: 127.26 | AF75: 0.88 | AS75: =T75+U75 -> 127.26 | AT75: 82.68 | AU75: =W75+X75 -> 127.26 | AV75: 89.15 | AW75: =+Z75+AA75 -> 127.26 | AX75: 92.37 | AY75: 127.26 | AZ75: 94.8 | BB75: (ni podpore 2011/2) | BC75: (ni podpore 2011/2) | BD75: (ni podpore 2011/2) | BE75: (ni podpore 2011/2) | BF75: 0 | BG75: 6.47 | BH75: 0 | BI75: 3.22 | BJ75: 0 | BK75: 2.43
A76: SE23-2013jan | B76: 3.2 Sončne elektrarne - ostale 2013 januar | D76: srednja - od 1MW do vključno 10MW | E76: SE23 | T76: 102.59 | U76: 0 | V76: 102.59 | W76: 102.59 | X76: 0 | Y76: 102.59 | Z76: 102.59 | AA76: 0 | AB76: 102.59 | AC76: 102.59 | AD76: 0 | AE76: 102.59 | AF76: 0.91 | AS76: =T76+U76 -> 102.59 | AT76: 56.49 | AU76: =W76+X76 -> 102.59 | AV76: 63.18 | AW76: =+Z76+AA76 -> 102.59 | AX76: 66.51 | AY76: 102.59 | AZ76: 69.02 | BB76: (ni podpore 2011/2) | BC76: (ni podpore 2011/2) | BD76: (ni podpore 2011/2) | BE76: (ni podpore 2011/2) | BF76: 0 | BG76: 6.69 | BH76: 0 | BI76: 3.33 | BJ76: 0 | BK76: 2.51
A77: SE24-2013jan | B77: 3.2 Sončne elektrarne - ostale 2013 januar | D77: velika - nad 10MW do vključno 125MW | E77: SE24 | T77: 95.25 | U77: 0 | V77: 95.25 | W77: 95.25 | X77: 0 | Y77: 95.25 | Z77: 95.25 | AA77: 0 | AB77: 95.25 | AC77: 95.25 | AD77: 0 | AE77: 95.25 | AF77: 1 | AS77: (ni ZO) | AT77: 44.59 | AU77: (ni ZO) | AV77: 51.94 | AW77: (ni ZO) | AX77: 55.6 | AY77: (ni ZO) | AZ77: 58.36 | BB77: (ni podpore 2011/2) | BC77: (ni podpore 2011/2) | BD77: (ni podpore 2011/2) | BE77: (ni podpore 2011/2) | BF77: (ni ZO) | BG77: 7.35 | BH77: (ni ZO) | BI77: 3.66 | BJ77: (ni ZO) | BK77: 2.76
A78: SE11-2013feb | B78: 3.1 Sončne elektrarne - na stavbah 2013 februar | D78: mikro - manjše od 50kW | E78: SE11 | T78: 144.06 | U78: 0 | V78: 144.06 | W78: 144.06 | X78: 0 | Y78: 144.06 | Z78: 144.06 | AA78: 0 | AB78: 144.06 | AC78: 144.06 | AD78: 0 | AE78: 144.06 | AF78: 0.88 | AS78: =T78+U78 -> 144.06 | AT78: 99.48 | AU78: =W78+X78 -> 144.06 | AV78: 105.95 | AW78: =+Z78+AA78 -> 144.06 | AX78: 109.17 | AY78: 144.06 | AZ78: 111.6 | BB78: (ni podpore 2011/2) | BC78: (ni podpore 2011/2) | BD78: (ni podpore 2011/2) | BE78: (ni podpore 2011/2) | BF78: =AU78-AS78 -> 0 | BG78: 6.47 | BH78: 0 | BI78: 3.22 | BJ78: 0 | BK78: 2.43
A79: SE12-2013feb | B79: 3.1 Sončne elektrarne - na stavbah 2013 februar | D79: mala - manjše od 1MW | E79: SE12 | T79: 131.76 | U79: 0 | V79: 131.76 | W79: 131.76 | X79: 0 | Y79: 131.76 | Z79: 131.76 | AA79: 0 | AB79: 131.76 | AC79: 131.76 | AD79: 0 | AE79: 131.76 | AF79: 0.88 | AS79: =T79+U79 -> 131.76 | AT79: 87.18 | AU79: =W79+X79 -> 131.76 | AV79: 93.65 | AW79: =+Z79+AA79 -> 131.76 | AX79: 96.87 | AY79: 131.76 | AZ79: 99.3 | BB79: (ni podpore 2011/2) | BC79: (ni podpore 2011/2) | BD79: (ni podpore 2011/2) | BE79: (ni podpore 2011/2) | BF79: 0 | BG79: 6.47 | BH79: 0 | BI79: 3.22 | BJ79: 0 | BK79: 2.43
A80: SE13-2013feb | B80: 3.1 Sončne elektrarne - na stavbah 2013 februar | D80: srednja - od 1MW do vključno 10MW | E80: SE13 | T80: 109.34 | U80: 0 | V80: 109.34 | W80: 109.34 | X80: 0 | Y80: 109.34 | Z80: 109.34 | AA80: 0 | AB80: 109.34 | AC80: 109.34 | AD80: 0 | AE80: 109.34 | AF80: 0.91 | AS80: =T80+U80 -> 109.34 | AT80: 63.24 | AU80: =W80+X80 -> 109.34 | AV80: 69.93 | AW80: =+Z80+AA80 -> 109.34 | AX80: 73.26 | AY80: 109.34 | AZ80: 75.77 | BB80: (ni podpore 2011/2) | BC80: (ni podpore 2011/2) | BD80: (ni podpore 2011/2) | BE80: (ni podpore 2011/2) | BF80: 0 | BG80: 6.69 | BH80: 0 | BI80: 3.33 | BJ80: 0 | BK80: 2.51
A81: SE14-2013feb | B81: 3.1 Sončne elektrarne - na stavbah 2013 februar | D81: velika - nad 10MW do vključno 125MW | E81: SE14 | T81: 97.32 | U81: 0 | V81: 97.32 | W81: 97.32 | X81: 0 | Y81: 97.32 | Z81: 97.32 | AA81: 0 | AB81: 97.32 | AC81: 97.32 | AD81: 0 | AE81: 97.32 | AF81: 1 | AS81: (ni ZO) | AT81: 46.66 | AU81: (ni ZO) | AV81: 54.01 | AW81: (ni ZO) | AX81: 57.67 | AY81: (ni ZO) | AZ81: 60.43 | BB81: (ni podpore 2011/2) | BC81: (ni podpore 2011/2) | BD81: (ni podpore 2011/2) | BE81: (ni podpore 2011/2) | BF81: (ni ZO) | BG81: 7.35 | BH81: (ni ZO) | BI81: 3.66 | BJ81: (ni ZO) | BK81: 2.76
A82: SE21-2013feb | B82: 3.2 Sončne elektrarne - ostale 2013 februar | D82: mikro - manjše od 50kW | E82: SE21 | T82: 135.37 | U82: 0 | V82: 135.37 | W82: 135.37 | X82: 0 | Y82: 135.37 | Z82: 135.37 | AA82: 0 | AB82: 135.37 | AC82: 135.37 | AD82: 0 | AE82: 135.37 | AF82: 0.88 | AS82: =T82+U82 -> 135.37 | AT82: 90.79 | AU82: =W82+X82 -> 135.37 | AV82: 97.26 | AW82: =+Z82+AA82 -> 135.37 | AX82: 100.48 | AY82: 135.37 | AZ82: 102.91 | BB82: (ni podpore 2011/2) | BC82: (ni podpore 2011/2) | BD82: (ni podpore 2011/2) | BE82: (ni podpore 2011/2) | BF82: =AU82-AS82 -> 0 | BG82: 6.47 | BH82: 0 | BI82: 3.22 | BJ82: 0 | BK82: 2.43
A83: SE22-2013feb | B83: 3.2 Sončne elektrarne - ostale 2013 februar | D83: mala - manjše od 1MW | E83: SE22 | T83: 124.71 | U83: 0 | V83: 124.71 | W83: 124.71 | X83: 0 | Y83: 124.71 | Z83: 124.71 | AA83: 0 | AB83: 124.71 | AC83: 124.71 | AD83: 0 | AE83: 124.71 | AF83: 0.88 | AS83: =T83+U83 -> 124.71 | AT83: 80.13 | AU83: =W83+X83 -> 124.71 | AV83: 86.6 | AW83: =+Z83+AA83 -> 124.71 | AX83: 89.82 | AY83: 124.71 | AZ83: 92.25 | BB83: (ni podpore 2011/2) | BC83: (ni podpore 2011/2) | BD83: (ni podpore 2011/2) | BE83: (ni podpore 2011/2) | BF83: 0 | BG83: 6.47 | BH83: 0 | BI83: 3.22 | BJ83: 0 | BK83: 2.43
A84: SE23-2013feb | B84: 3.2 Sončne elektrarne - ostale 2013 februar | D84: srednja - od 1MW do vključno 10MW | E84: SE23 | T84: 100.54 | U84: 0 | V84: 100.54 | W84: 100.54 | X84: 0 | Y84: 100.54 | Z84: 100.54 | AA84: 0 | AB84: 100.54 | AC84: 100.54 | AD84: 0 | AE84: 100.54 | AF84: 0.91 | AS84: =T84+U84 -> 100.54 | AT84: 54.44 | AU84: =W84+X84 -> 100.54 | AV84: 61.13 | AW84: =+Z84+AA84 -> 100.54 | AX84: 64.46 | AY84: 100.54 | AZ84: 66.97 | BB84: (ni podpore 2011/2) | BC84: (ni podpore 2011/2) | BD84: (ni podpore 2011/2) | BE84: (ni podpore 2011/2) | BF84: 0 | BG84: 6.69 | BH84: 0 | BI84: 3.33 | BJ84: 0 | BK84: 2.51
A85: SE24-2013feb | B85: 3.2 Sončne elektrarne - ostale 2013 februar | D85: velika - nad 10MW do vključno 125MW | E85: SE24 | T85: 93.35 | U85: 0 | V85: 93.35 | W85: 93.35 | X85: 0 | Y85: 93.35 | Z85: 93.35 | AA85: 0 | AB85: 93.35 | AC85: 93.35 | AD85: 0 | AE85: 93.35 | AF85: 1 | AS85: (ni ZO) | AT85: 42.69 | AU85: (ni ZO) | AV85: 50.04 | AW85: (ni ZO) | AX85: 53.7 | AY85: (ni ZO) | AZ85: 56.46 | BB85: (ni podpore 2011/2) | BC85: (ni podpore 2011/2) | BD85: (ni podpore 2011/2) | BE85: (ni podpore 2011/2) | BF85: (ni ZO) | BG85: 7.35 | BH85: (ni ZO) | BI85: 3.66 | BJ85: (ni ZO) | BK85: 2.76
A86: SE11-2013mar | B86: 3.1 Sončne elektrarne - na stavbah 2013 marec | D86: mikro - manjše od 50kW | E86: SE11 | T86: 141.18 | U86: 0 | V86: 141.18 | W86: 141.18 | X86: 0 | Y86: 141.18 | Z86: 141.18 | AA86: 0 | AB86: 141.18 | AC86: 141.18 | AD86: 0 | AE86: 141.18 | AF86: 0.88 | AS86: =T86+U86 -> 141.18 | AT86: 96.6 | AU86: =W86+X86 -> 141.18 | AV86: 103.07 | AW86: =+Z86+AA86 -> 141.18 | AX86: 106.29 | AY86: 141.18 | AZ86: 108.72 | BB86: (ni podpore 2011/2) | BC86: (ni podpore 2011/2) | BD86: (ni podpore 2011/2) | BE86: (ni podpore 2011/2) | BF86: =AU86-AS86 -> 0 | BG86: 6.47 | BH86: 0 | BI86: 3.22 | BJ86: 0 | BK86: 2.43
A87: SE12-2013mar | B87: 3.1 Sončne elektrarne - na stavbah 2013 marec | D87: mala - manjše od 1MW | E87: SE12 | T87: 129.12 | U87: 0 | V87: 129.12 | W87: 129.12 | X87: 0 | Y87: 129.12 | Z87: 129.12 | AA87: 0 | AB87: 129.12 | AC87: 129.12 | AD87: 0 | AE87: 129.12 | AF87: 0.88 | AS87: =T87+U87 -> 129.12 | AT87: 84.54 | AU87: =W87+X87 -> 129.12 | AV87: 91.01 | AW87: =+Z87+AA87 -> 129.12 | AX87: 94.23 | AY87: 129.12 | AZ87: 96.66 | BB87: (ni podpore 2011/2) | BC87: (ni podpore 2011/2) | BD87: (ni podpore 2011/2) | BE87: (ni podpore 2011/2) | BF87: 0 | BG87: 6.47 | BH87: 0 | BI87: 3.22 | BJ87: 0 | BK87: 2.43
A88: SE13-2013mar | B88: 3.1 Sončne elektrarne - na stavbah 2013 marec | D88: srednja - od 1MW do vključno 10MW | E88: SE13 | T88: 107.15 | U88: 0 | V88: 107.15 | W88: 107.15 | X88: 0 | Y88: 107.15 | Z88: 107.15 | AA88: 0 | AB88: 107.15 | AC88: 107.15 | AD88: 0 | AE88: 107.15 | AF88: 0.91 | AS88: =T88+U88 -> 107.15 | AT88: 61.05 | AU88: =W88+X88 -> 107.15 | AV88: 67.74 | AW88: =+Z88+AA88 -> 107.15 | AX88: 71.07 | AY88: 107.15 | AZ88: 73.58 | BB88: (ni podpore 2011/2) | BC88: (ni podpore 2011/2) | BD88: (ni podpore 2011/2) | BE88: (ni podpore 2011/2) | BF88: 0 | BG88: 6.69 | BH88: 0 | BI88: 3.33 | BJ88: 0 | BK88: 2.51
A89: SE14-2013mar | B89: 3.1 Sončne elektrarne - na stavbah 2013 marec | D89: velika - nad 10MW do vključno 125MW | E89: SE14 | T89: 95.37 | U89: 0 | V89: 95.37 | W89: 95.37 | X89: 0 | Y89: 95.37 | Z89: 95.37 | AA89: 0 | AB89: 95.37 | AC89: 95.37 | AD89: 0 | AE89: 95.37 | AF89: 1 | AS89: (ni ZO) | AT89: 44.71 | AU89: (ni ZO) | AV89: 52.06 | AW89: (ni ZO) | AX89: 55.72 | AY89: (ni ZO) | AZ89: 58.48 | BB89: (ni podpore 2011/2) | BC89: (ni podpore 2011/2) | BD89: (ni podpore 2011/2) | BE89: (ni podpore 2011/2) | BF89: (ni ZO) | BG89: 7.35 | BH89: (ni ZO) | BI89: 3.66 | BJ89: (ni ZO) | BK89: 2.76
A90: SE21-2013mar | B90: 3.2 Sončne elektrarne - ostale 2013 marec | D90: mikro - manjše od 50kW | E90: SE21 | T90: 132.66 | U90: 0 | V90: 132.66 | W90: 132.66 | X90: 0 | Y90: 132.66 | Z90: 132.66 | AA90: 0 | AB90: 132.66 | AC90: 132.66 | AD90: 0 | AE90: 132.66 | AF90: 0.88 | AS90: =T90+U90 -> 132.66 | AT90: 88.08 | AU90: =W90+X90 -> 132.66 | AV90: 94.55 | AW90: =+Z90+AA90 -> 132.66 | AX90: 97.77 | AY90: 132.66 | AZ90: 100.2 | BB90: (ni podpore 2011/2) | BC90: (ni podpore 2011/2) | BD90: (ni podpore 2011/2) | BE90: (ni podpore 2011/2) | BF90: =AU90-AS90 -> 0 | BG90: 6.47 | BH90: 0 | BI90: 3.22 | BJ90: 0 | BK90: 2.43
A91: SE22-2013mar | B91: 3.2 Sončne elektrarne - ostale 2013 marec | D91: mala - manjše od 1MW | E91: SE22 | T91: 122.22 | U91: 0 | V91: 122.22 | W91: 122.22 | X91: 0 | Y91: 122.22 | Z91: 122.22 | AA91: 0 | AB91: 122.22 | AC91: 122.22 | AD91: 0 | AE91: 122.22 | AF91: 0.88 | AS91: =T91+U91 -> 122.22 | AT91: 77.64 | AU91: =W91+X91 -> 122.22 | AV91: 84.11 | AW91: =+Z91+AA91 -> 122.22 | AX91: 87.33 | AY91: 122.22 | AZ91: 89.76 | BB91: (ni podpore 2011/2) | BC91: (ni podpore 2011/2) | BD91: (ni podpore 2011/2) | BE91: (ni podpore 2011/2) | BF91: 0 | BG91: 6.47 | BH91: 0 | BI91: 3.22 | BJ91: 0 | BK91: 2.43
A92: SE23-2013mar | B92: 3.2 Sončne elektrarne - ostale 2013 marec | D92: srednja - od 1MW do vključno 10MW | E92: SE23 | T92: 98.53 | U92: 0 | V92: 98.53 | W92: 98.53 | X92: 0 | Y92: 98.53 | Z92: 98.53 | AA92: 0 | AB92: 98.53 | AC92: 98.53 | AD92: 0 | AE92: 98.53 | AF92: 0.91 | AS92: =T92+U92 -> 98.53 | AT92: 52.43 | AU92: =W92+X92 -> 98.53 | AV92: 59.12 | AW92: =+Z92+AA92 -> 98.53 | AX92: 62.45 | AY92: 98.53 | AZ92: 64.96 | BB92: (ni podpore 2011/2) | BC92: (ni podpore 2011/2) | BD92: (ni podpore 2011/2) | BE92: (ni podpore 2011/2) | BF92: 0 | BG92: 6.69 | BH92: 0 | BI92: 3.33 | BJ92: 0 | BK92: 2.51
A93: SE24-2013mar | B93: 3.2 Sončne elektrarne - ostale 2013 marec | D93: velika - nad 10MW do vključno 125MW | E93: SE24 | T93: 91.48 | U93: 0 | V93: 91.48 | W93: 91.48 | X93: 0 | Y93: 91.48 | Z93: 91.48 | AA93: 0 | AB93: 91.48 | AC93: 91.48 | AD93: 0 | AE93: 91.48 | AF93: 1 | AS93: (ni ZO) | AT93: 40.82 | AU93: (ni ZO) | AV93: 48.17 | AW93: (ni ZO) | AX93: 51.83 | AY93: (ni ZO) | AZ93: 54.59 | BB93: (ni podpore 2011/2) | BC93: (ni podpore 2011/2) | BD93: (ni podpore 2011/2) | BE93: (ni podpore 2011/2) | BF93: (ni ZO) | BG93: 7.35 | BH93: (ni ZO) | BI93: 3.66 | BJ93: (ni ZO) | BK93: 2.76
A94: SE11-2013apr | B94: 3.1 Sončne elektrarne - na stavbah 2013 april | D94: mikro - manjše od 50kW | E94: SE11 | T94: 138.36 | U94: 0 | V94: 138.36 | W94: 138.36 | X94: 0 | Y94: 138.36 | Z94: 138.36 | AA94: 0 | AB94: 138.36 | AC94: 138.36 | AD94: 0 | AE94: 138.36 | AF94: 0.88 | AS94: =T94+U94 -> 138.36 | AT94: 93.78 | AU94: =W94+X94 -> 138.36 | AV94: 100.25 | AW94: =+Z94+AA94 -> 138.36 | AX94: 103.47 | AY94: 138.36 | AZ94: 105.9 | BB94: (ni podpore 2011/2) | BC94: (ni podpore 2011/2) | BD94: (ni podpore 2011/2) | BE94: (ni podpore 2011/2) | BF94: =AU94-AS94 -> 0 | BG94: 6.47 | BH94: 0 | BI94: 3.22 | BJ94: 0 | BK94: 2.43
A95: SE12-2013apr | B95: 3.1 Sončne elektrarne - na stavbah 2013 april | D95: mala - manjše od 1MW | E95: SE12 | T95: 126.54 | U95: 0 | V95: 126.54 | W95: 126.54 | X95: 0 | Y95: 126.54 | Z95: 126.54 | AA95: 0 | AB95: 126.54 | AC95: 126.54 | AD95: 0 | AE95: 126.54 | AF95: 0.88 | AS95: =T95+U95 -> 126.54 | AT95: 81.96 | AU95: =W95+X95 -> 126.54 | AV95: 88.43 | AW95: =+Z95+AA95 -> 126.54 | AX95: 91.65 | AY95: 126.54 | AZ95: 94.08 | BB95: (ni podpore 2011/2) | BC95: (ni podpore 2011/2) | BD95: (ni podpore 2011/2) | BE95: (ni podpore 2011/2) | BF95: 0 | BG95: 6.47 | BH95: 0 | BI95: 3.22 | BJ95: 0 | BK95: 2.43
A96: SE13-2013apr | B96: 3.1 Sončne elektrarne - na stavbah 2013 april | D96: srednja - od 1MW do vključno 10MW | E96: SE13 | T96: 105.01 | U96: 0 | V96: 105.01 | W96: 105.01 | X96: 0 | Y96: 105.01 | Z96: 105.01 | AA96: 0 | AB96: 105.01 | AC96: 105.01 | AD96: 0 | AE96: 105.01 | AF96: 0.91 | AS96: =T96+U96 -> 105.01 | AT96: 58.91 | AU96: =W96+X96 -> 105.01 | AV96: 65.6 | AW96: =+Z96+AA96 -> 105.01 | AX96: 68.93 | AY96: 105.01 | AZ96: 71.44 | BB96: (ni podpore 2011/2) | BC96: (ni podpore 2011/2) | BD96: (ni podpore 2011/2) | BE96: (ni podpore 2011/2) | BF96: 0 | BG96: 6.69 | BH96: 0 | BI96: 3.33 | BJ96: 0 | BK96: 2.51
A97: SE14-2013apr | B97: 3.1 Sončne elektrarne - na stavbah 2013 april | D97: velika - nad 10MW do vključno 125MW | E97: SE14 | T97: 93.46 | U97: 0 | V97: 93.46 | W97: 93.46 | X97: 0 | Y97: 93.46 | Z97: 93.46 | AA97: 0 | AB97: 93.46 | AC97: 93.46 | AD97: 0 | AE97: 93.46 | AF97: 1 | AS97: (ni ZO) | AT97: 42.8 | AU97: (ni ZO) | AV97: 50.15 | AW97: (ni ZO) | AX97: 53.81 | AY97: (ni ZO) | AZ97: 56.57 | BB97: (ni podpore 2011/2) | BC97: (ni podpore 2011/2) | BD97: (ni podpore 2011/2) | BE97: (ni podpore 2011/2) | BF97: (ni ZO) | BG97: 7.35 | BH97: (ni ZO) | BI97: 3.66 | BJ97: (ni ZO) | BK97: 2.76
A98: SE21-2013apr | B98: 3.2 Sončne elektrarne - ostale 2013 april | D98: mikro - manjše od 50kW | E98: SE21 | T98: 130.01 | U98: 0 | V98: 130.01 | W98: 130.01 | X98: 0 | Y98: 130.01 | Z98: 130.01 | AA98: 0 | AB98: 130.01 | AC98: 130.01 | AD98: 0 | AE98: 130.01 | AF98: 0.88 | AS98: =T98+U98 -> 130.01 | AT98: =ROUND((T98+U98)-AF98*$H$326,2) -> 85.43 | AU98: =W98+X98 -> 130.01 | AV98: 91.9 | AW98: =+Z98+AA98 -> 130.01 | AX98: 95.12 | AY98: 130.01 | AZ98: 97.55 | BB98: (ni podpore 2011/2) | BC98: (ni podpore 2011/2) | BD98: (ni podpore 2011/2) | BE98: (ni podpore 2011/2) | BF98: =AU98-AS98 -> 0 | BG98: 6.47 | BH98: 0 | BI98: 3.22 | BJ98: 0 | BK98: 2.43
A99: SE22-2013apr | B99: 3.2 Sončne elektrarne - ostale 2013 april | D99: mala - manjše od 1MW | E99: SE22 | T99: 119.78 | U99: 0 | V99: 119.78 | W99: 119.78 | X99: 0 | Y99: 119.78 | Z99: 119.78 | AA99: 0 | AB99: 119.78 | AC99: 119.78 | AD99: 0 | AE99: 119.78 | AF99: 0.88 | AS99: =T99+U99 -> 119.78 | AT99: 75.2 | AU99: =W99+X99 -> 119.78 | AV99: 81.67 | AW99: =+Z99+AA99 -> 119.78 | AX99: 84.89 | AY99: 119.78 | AZ99: 87.32 | BB99: (ni podpore 2011/2) | BC99: (ni podpore 2011/2) | BD99: (ni podpore 2011/2) | BE99: (ni podpore 2011/2) | BF99: 0 | BG99: 6.47 | BH99: 0 | BI99: 3.22 | BJ99: 0 | BK99: 2.43
A100: SE23-2013apr | B100: 3.2 Sončne elektrarne - ostale 2013 april | D100: srednja - od 1MW do vključno 10MW | E100: SE23 | T100: 96.56 | U100: 0 | V100: 96.56 | W100: 96.56 | X100: 0 | Y100: 96.56 | Z100: 96.56 | AA100: 0 | AB100: 96.56 | AC100: 96.56 | AD100: 0 | AE100: 96.56 | AF100: 0.91 | AS100: =T100+U100 -> 96.56 | AT100: 50.46 | AU100: =W100+X100 -> 96.56 | AV100: 57.15 | AW100: =+Z100+AA100 -> 96.56 | AX100: 60.48 | AY100: 96.56 | AZ100: 62.99 | BB100: (ni podpore 2011/2) | BC100: (ni podpore 2011/2) | BD100: (ni podpore 2011/2) | BE100: (ni podpore 2011/2) | BF100: 0 | BG100: 6.69 | BH100: 0 | BI100: 3.33 | BJ100: 0 | BK100: 2.51
A101: SE24-2013apr | B101: 3.2 Sončne elektrarne - ostale 2013 april | D101: velika - nad 10MW do vključno 125MW | E101: SE24 | T101: 89.65 | U101: 0 | V101: 89.65 | W101: 89.65 | X101: 0 | Y101: 89.65 | Z101: 89.65 | AA101: 0 | AB101: 89.65 | AC101: 89.65 | AD101: 0 | AE101: 89.65 | AF101: 1 | AS101: (ni ZO) | AT101: 38.99 | AU101: (ni ZO) | AV101: 46.34 | AW101: (ni ZO) | AX101: 50 | AY101: (ni ZO) | AZ101: 52.76 | BB101: (ni podpore 2011/2) | BC101: (ni podpore 2011/2) | BD101: (ni podpore 2011/2) | BE101: (ni podpore 2011/2) | BF101: (ni ZO) | BG101: 7.35 | BH101: (ni ZO) | BI101: 3.66 | BJ101: (ni ZO) | BK101: 2.76
A102: SE11-2013maj | B102: 3.1 Sončne elektrarne - na stavbah 2013 maj | D102: mikro - manjše od 50kW | E102: SE11 | T102: 135.59 | U102: 0 | V102: 135.59 | W102: 135.59 | X102: 0 | Y102: 135.59 | Z102: 135.59 | AA102: 0 | AB102: 135.59 | AC102: 135.59 | AD102: 0 | AE102: 135.59 | AF102: 0.88 | AS102: =T102+U102 -> 135.59 | AT102: 91.01 | AU102: =W102+X102 -> 135.59 | AV102: 97.48 | AW102: =+Z102+AA102 -> 135.59 | AX102: 100.7 | AY102: 135.59 | AZ102: 103.13 | BB102: (ni podpore 2011/2) | BC102: (ni podpore 2011/2) | BD102: (ni podpore 2011/2) | BE102: (ni podpore 2011/2) | BF102: =AU102-AS102 -> 0 | BG102: 6.47 | BH102: 0 | BI102: 3.22 | BJ102: 0 | BK102: 2.43
A103: SE12-2013maj | B103: 3.1 Sončne elektrarne - na stavbah 2013 maj | D103: mala - manjše od 1MW | E103: SE12 | T103: 124.01 | U103: 0 | V103: 124.01 | W103: 124.01 | X103: 0 | Y103: 124.01 | Z103: 124.01 | AA103: 0 | AB103: 124.01 | AC103: 124.01 | AD103: 0 | AE103: 124.01 | AF103: 0.88 | AS103: =T103+U103 -> 124.01 | AT103: 79.43 | AU103: =W103+X103 -> 124.01 | AV103: 85.9 | AW103: =+Z103+AA103 -> 124.01 | AX103: 89.12 | AY103: 124.01 | AZ103: 91.55 | BB103: (ni podpore 2011/2) | BC103: (ni podpore 2011/2) | BD103: (ni podpore 2011/2) | BE103: (ni podpore 2011/2) | BF103: 0 | BG103: 6.47 | BH103: 0 | BI103: 3.22 | BJ103: 0 | BK103: 2.43
A104: SE13-2013maj | B104: 3.1 Sončne elektrarne - na stavbah 2013 maj | D104: srednja - od 1MW do vključno 10MW | E104: SE13 | T104: 102.91 | U104: 0 | V104: 102.91 | W104: 102.91 | X104: 0 | Y104: 102.91 | Z104: 102.91 | AA104: 0 | AB104: 102.91 | AC104: 102.91 | AD104: 0 | AE104: 102.91 | AF104: 0.91 | AS104: =T104+U104 -> 102.91 | AT104: 56.81 | AU104: =W104+X104 -> 102.91 | AV104: 63.5 | AW104: =+Z104+AA104 -> 102.91 | AX104: 66.83 | AY104: 102.91 | AZ104: 69.34 | BB104: (ni podpore 2011/2) | BC104: (ni podpore 2011/2) | BD104: (ni podpore 2011/2) | BE104: (ni podpore 2011/2) | BF104: 0 | BG104: 6.69 | BH104: 0 | BI104: 3.33 | BJ104: 0 | BK104: 2.51
A105: SE14-2013maj | B105: 3.1 Sončne elektrarne - na stavbah 2013 maj | D105: velika - nad 10MW do vključno 125MW | E105: SE14 | T105: 91.59 | U105: 0 | V105: 91.59 | W105: 91.59 | X105: 0 | Y105: 91.59 | Z105: 91.59 | AA105: 0 | AB105: 91.59 | AC105: 91.59 | AD105: 0 | AE105: 91.59 | AF105: 1 | AS105: (ni ZO) | AT105: 40.93 | AU105: (ni ZO) | AV105: 48.28 | AW105: (ni ZO) | AX105: 51.94 | AY105: (ni ZO) | AZ105: 54.7 | BB105: (ni podpore 2011/2) | BC105: (ni podpore 2011/2) | BD105: (ni podpore 2011/2) | BE105: (ni podpore 2011/2) | BF105: (ni ZO) | BG105: 7.35 | BH105: (ni ZO) | BI105: 3.66 | BJ105: (ni ZO) | BK105: 2.76
A106: SE21-2013maj | B106: 3.2 Sončne elektrarne - ostale 2013 maj | D106: mikro - manjše od 50kW | E106: SE21 | T106: 127.41 | U106: 0 | V106: 127.41 | W106: 127.41 | X106: 0 | Y106: 127.41 | Z106: 127.41 | AA106: 0 | AB106: 127.41 | AC106: 127.41 | AD106: 0 | AE106: 127.41 | AF106: 0.88 | AS106: =T106+U106 -> 127.41 | AT106: 82.83 | AU106: =W106+X106 -> 127.41 | AV106: 89.3 | AW106: =+Z106+AA106 -> 127.41 | AX106: 92.52 | AY106: 127.41 | AZ106: 94.95 | BB106: (ni podpore 2011/2) | BC106: (ni podpore 2011/2) | BD106: (ni podpore 2011/2) | BE106: (ni podpore 2011/2) | BF106: =AU106-AS106 -> 0 | BG106: 6.47 | BH106: 0 | BI106: 3.22 | BJ106: 0 | BK106: 2.43
A107: SE22-2013maj | B107: 3.2 Sončne elektrarne - ostale 2013 maj | D107: mala - manjše od 1MW | E107: SE22 | T107: 117.38 | U107: 0 | V107: 117.38 | W107: 117.38 | X107: 0 | Y107: 117.38 | Z107: 117.38 | AA107: 0 | AB107: 117.38 | AC107: 117.38 | AD107: 0 | AE107: 117.38 | AF107: 0.88 | AS107: =T107+U107 -> 117.38 | AT107: 72.8 | AU107: =W107+X107 -> 117.38 | AV107: 79.27 | AW107: =+Z107+AA107 -> 117.38 | AX107: 82.49 | AY107: 117.38 | AZ107: 84.92 | BB107: (ni podpore 2011/2) | BC107: (ni podpore 2011/2) | BD107: (ni podpore 2011/2) | BE107: (ni podpore 2011/2) | BF107: 0 | BG107: 6.47 | BH107: 0 | BI107: 3.22 | BJ107: 0 | BK107: 2.43
A108: SE23-2013maj | B108: 3.2 Sončne elektrarne - ostale 2013 maj | D108: srednja - od 1MW do vključno 10MW | E108: SE23 | T108: 94.63 | U108: 0 | V108: 94.63 | W108: 94.63 | X108: 0 | Y108: 94.63 | Z108: 94.63 | AA108: 0 | AB108: 94.63 | AC108: 94.63 | AD108: 0 | AE108: 94.63 | AF108: 0.91 | AS108: =T108+U108 -> 94.63 | AT108: 48.53 | AU108: =W108+X108 -> 94.63 | AV108: 55.22 | AW108: =+Z108+AA108 -> 94.63 | AX108: 58.55 | AY108: 94.63 | AZ108: 61.06 | BB108: (ni podpore 2011/2) | BC108: (ni podpore 2011/2) | BD108: (ni podpore 2011/2) | BE108: (ni podpore 2011/2) | BF108: 0 | BG108: 6.69 | BH108: 0 | BI108: 3.33 | BJ108: 0 | BK108: 2.51
A109: SE24-2013maj | B109: 3.2 Sončne elektrarne - ostale 2013 maj | D109: velika - nad 10MW do vključno 125MW | E109: SE24 | T109: 87.86 | U109: 0 | V109: 87.86 | W109: 87.86 | X109: 0 | Y109: 87.86 | Z109: 87.86 | AA109: 0 | AB109: 87.86 | AC109: 87.86 | AD109: 0 | AE109: 87.86 | AF109: 1 | AS109: (ni ZO) | AT109: 37.2 | AU109: (ni ZO) | AV109: 44.55 | AW109: (ni ZO) | AX109: 48.21 | AY109: (ni ZO) | AZ109: 50.97 | BB109: (ni podpore 2011/2) | BC109: (ni podpore 2011/2) | BD109: (ni podpore 2011/2) | BE109: (ni podpore 2011/2) | BF109: (ni ZO) | BG109: 7.35 | BH109: (ni ZO) | BI109: 3.66 | BJ109: (ni ZO) | BK109: 2.76
A110: SE11-2013jun | B110: 3.1 Sončne elektrarne - na stavbah 2013 junij | D110: mikro - manjše od 50kW | E110: SE11 | T110: 132.88 | U110: 0 | V110: 132.88 | W110: 132.88 | X110: 0 | Y110: 132.88 | Z110: 132.88 | AA110: 0 | AB110: 132.88 | AC110: 132.88 | AD110: 0 | AE110: 132.88 | AF110: 0.88 | AS110: =T110+U110 -> 132.88 | AT110: 88.3 | AU110: =W110+X110 -> 132.88 | AV110: 94.77 | AW110: =+Z110+AA110 -> 132.88 | AX110: 97.99 | AY110: 132.88 | AZ110: 100.42 | BB110: (ni podpore 2011/2) | BC110: (ni podpore 2011/2) | BD110: (ni podpore 2011/2) | BE110: (ni podpore 2011/2) | BF110: =AU110-AS110 -> 0 | BG110: 6.47 | BH110: 0 | BI110: 3.22 | BJ110: 0 | BK110: 2.43
A111: SE12-2013jun | B111: 3.1 Sončne elektrarne - na stavbah 2013 junij | D111: mala - manjše od 1MW | E111: SE12 | T111: 121.53 | U111: 0 | V111: 121.53 | W111: 121.53 | X111: 0 | Y111: 121.53 | Z111: 121.53 | AA111: 0 | AB111: 121.53 | AC111: 121.53 | AD111: 0 | AE111: 121.53 | AF111: 0.88 | AS111: =T111+U111 -> 121.53 | AT111: 76.95 | AU111: =W111+X111 -> 121.53 | AV111: 83.42 | AW111: =+Z111+AA111 -> 121.53 | AX111: 86.64 | AY111: 121.53 | AZ111: 89.07 | BB111: (ni podpore 2011/2) | BC111: (ni podpore 2011/2) | BD111: (ni podpore 2011/2) | BE111: (ni podpore 2011/2) | BF111: 0 | BG111: 6.47 | BH111: 0 | BI111: 3.22 | BJ111: 0 | BK111: 2.43
A112: SE13-2013jun | B112: 3.1 Sončne elektrarne - na stavbah 2013 junij | D112: srednja - od 1MW do vključno 10MW | E112: SE13 | T112: 100.85 | U112: 0 | V112: 100.85 | W112: 100.85 | X112: 0 | Y112: 100.85 | Z112: 100.85 | AA112: 0 | AB112: 100.85 | AC112: 100.85 | AD112: 0 | AE112: 100.85 | AF112: 0.91 | AS112: =T112+U112 -> 100.85 | AT112: 54.75 | AU112: =W112+X112 -> 100.85 | AV112: 61.44 | AW112: =+Z112+AA112 -> 100.85 | AX112: 64.77 | AY112: 100.85 | AZ112: 67.28 | BB112: (ni podpore 2011/2) | BC112: (ni podpore 2011/2) | BD112: (ni podpore 2011/2) | BE112: (ni podpore 2011/2) | BF112: 0 | BG112: 6.69 | BH112: 0 | BI112: 3.33 | BJ112: 0 | BK112: 2.51
A113: SE14-2013jun | B113: 3.1 Sončne elektrarne - na stavbah 2013 junij | D113: velika - nad 10MW do vključno 125MW | E113: SE14 | T113: 89.76 | U113: 0 | V113: 89.76 | W113: 89.76 | X113: 0 | Y113: 89.76 | Z113: 89.76 | AA113: 0 | AB113: 89.76 | AC113: 89.76 | AD113: 0 | AE113: 89.76 | AF113: 1 | AS113: (ni ZO) | AT113: 39.1 | AU113: (ni ZO) | AV113: 46.45 | AW113: (ni ZO) | AX113: 50.11 | AY113: (ni ZO) | AZ113: 52.87 | BB113: (ni podpore 2011/2) | BC113: (ni podpore 2011/2) | BD113: (ni podpore 2011/2) | BE113: (ni podpore 2011/2) | BF113: (ni ZO) | BG113: 7.35 | BH113: (ni ZO) | BI113: 3.66 | BJ113: (ni ZO) | BK113: 2.76
A114: SE21-2013jun | B114: 3.2 Sončne elektrarne - ostale 2013 junij | D114: mikro - manjše od 50kW | E114: SE21 | T114: 124.86 | U114: 0 | V114: 124.86 | W114: 124.86 | X114: 0 | Y114: 124.86 | Z114: 124.86 | AA114: 0 | AB114: 124.86 | AC114: 124.86 | AD114: 0 | AE114: 124.86 | AF114: 0.88 | AS114: =T114+U114 -> 124.86 | AT114: 80.28 | AU114: =W114+X114 -> 124.86 | AV114: 86.75 | AW114: =+Z114+AA114 -> 124.86 | AX114: 89.97 | AY114: 124.86 | AZ114: 92.4 | BB114: (ni podpore 2011/2) | BC114: (ni podpore 2011/2) | BD114: (ni podpore 2011/2) | BE114: (ni podpore 2011/2) | BF114: =AU114-AS114 -> 0 | BG114: 6.47 | BH114: 0 | BI114: 3.22 | BJ114: 0 | BK114: 2.43
A115: SE22-2013jun | B115: 3.2 Sončne elektrarne - ostale 2013 junij | D115: mala - manjše od 1MW | E115: SE22 | T115: 115.03 | U115: 0 | V115: 115.03 | W115: 115.03 | X115: 0 | Y115: 115.03 | Z115: 115.03 | AA115: 0 | AB115: 115.03 | AC115: 115.03 | AD115: 0 | AE115: 115.03 | AF115: 0.88 | AS115: =T115+U115 -> 115.03 | AT115: 70.45 | AU115: =W115+X115 -> 115.03 | AV115: 76.92 | AW115: =+Z115+AA115 -> 115.03 | AX115: 80.14 | AY115: 115.03 | AZ115: 82.57 | BB115: (ni podpore 2011/2) | BC115: (ni podpore 2011/2) | BD115: (ni podpore 2011/2) | BE115: (ni podpore 2011/2) | BF115: 0 | BG115: 6.47 | BH115: 0 | BI115: 3.22 | BJ115: 0 | BK115: 2.43
A116: SE23-2013jun | B116: 3.2 Sončne elektrarne - ostale 2013 junij | D116: srednja - od 1MW do vključno 10MW | E116: SE23 | T116: 92.74 | U116: 0 | V116: 92.74 | W116: 92.74 | X116: 0 | Y116: 92.74 | Z116: 92.74 | AA116: 0 | AB116: 92.74 | AC116: 92.74 | AD116: 0 | AE116: 92.74 | AF116: 0.91 | AS116: =T116+U116 -> 92.74 | AT116: 46.64 | AU116: =W116+X116 -> 92.74 | AV116: 53.33 | AW116: =+Z116+AA116 -> 92.74 | AX116: 56.66 | AY116: 92.74 | AZ116: 59.17 | BB116: (ni podpore 2011/2) | BC116: (ni podpore 2011/2) | BD116: (ni podpore 2011/2) | BE116: (ni podpore 2011/2) | BF116: 0 | BG116: 6.69 | BH116: 0 | BI116: 3.33 | BJ116: 0 | BK116: 2.51
A117: SE24-2013jun | B117: 3.2 Sončne elektrarne - ostale 2013 junij | D117: velika - nad 10MW do vključno 125MW | E117: SE24 | T117: 86.1 | U117: 0 | V117: 86.1 | W117: 86.1 | X117: 0 | Y117: 86.1 | Z117: 86.1 | AA117: 0 | AB117: 86.1 | AC117: 86.1 | AD117: 0 | AE117: 86.1 | AF117: 1 | AS117: (ni ZO) | AT117: 35.44 | AU117: (ni ZO) | AV117: 42.79 | AW117: (ni ZO) | AX117: 46.45 | AY117: (ni ZO) | AZ117: 49.21 | BB117: (ni podpore 2011/2) | BC117: (ni podpore 2011/2) | BD117: (ni podpore 2011/2) | BE117: (ni podpore 2011/2) | BF117: (ni ZO) | BG117: 7.35 | BH117: (ni ZO) | BI117: 3.66 | BJ117: (ni ZO) | BK117: 2.76
A118: SE11-2013jul | B118: 3.1 Sončne elektrarne - na stavbah 2013 julij | D118: mikro - manjše od 50kW | E118: SE11 | T118: 130.22 | U118: 0 | V118: 130.22 | W118: 130.22 | X118: 0 | Y118: 130.22 | Z118: 130.22 | AA118: 0 | AB118: 130.22 | AC118: 130.22 | AD118: 0 | AE118: 130.22 | AF118: 0.88 | AS118: =T118+U118 -> 130.22 | AT118: 85.64 | AU118: =W118+X118 -> 130.22 | AV118: 92.11 | AW118: =+Z118+AA118 -> 130.22 | AX118: 95.33 | AY118: 130.22 | AZ118: 97.76 | BB118: (ni podpore 2011/2) | BC118: (ni podpore 2011/2) | BD118: (ni podpore 2011/2) | BE118: (ni podpore 2011/2) | BF118: =AU118-AS118 -> 0 | BG118: 6.47 | BH118: 0 | BI118: 3.22 | BJ118: 0 | BK118: 2.43
A119: SE12-2013jul | B119: 3.1 Sončne elektrarne - na stavbah 2013 julij | D119: mala - manjše od 1MW | E119: SE12 | T119: 119.1 | U119: 0 | V119: 119.1 | W119: 119.1 | X119: 0 | Y119: 119.1 | Z119: 119.1 | AA119: 0 | AB119: 119.1 | AC119: 119.1 | AD119: 0 | AE119: 119.1 | AF119: 0.88 | AS119: =T119+U119 -> 119.1 | AT119: 74.52 | AU119: =W119+X119 -> 119.1 | AV119: 80.99 | AW119: =+Z119+AA119 -> 119.1 | AX119: 84.21 | AY119: 119.1 | AZ119: 86.64 | BB119: (ni podpore 2011/2) | BC119: (ni podpore 2011/2) | BD119: (ni podpore 2011/2) | BE119: (ni podpore 2011/2) | BF119: 0 | BG119: 6.47 | BH119: 0 | BI119: 3.22 | BJ119: 0 | BK119: 2.43
A120: SE13-2013jul | B120: 3.1 Sončne elektrarne - na stavbah 2013 julij | D120: srednja - od 1MW do vključno 10MW | E120: SE13 | T120: 98.83 | U120: 0 | V120: 98.83 | W120: 98.83 | X120: 0 | Y120: 98.83 | Z120: 98.83 | AA120: 0 | AB120: 98.83 | AC120: 98.83 | AD120: 0 | AE120: 98.83 | AF120: 0.91 | AS120: =T120+U120 -> 98.83 | AT120: 52.73 | AU120: =W120+X120 -> 98.83 | AV120: 59.42 | AW120: =+Z120+AA120 -> 98.83 | AX120: 62.75 | AY120: 98.83 | AZ120: 65.26 | BB120: (ni podpore 2011/2) | BC120: (ni podpore 2011/2) | BD120: (ni podpore 2011/2) | BE120: (ni podpore 2011/2) | BF120: 0 | BG120: 6.69 | BH120: 0 | BI120: 3.33 | BJ120: 0 | BK120: 2.51
A121: SE14-2013jul | B121: 3.1 Sončne elektrarne - na stavbah 2013 julij | D121: velika - nad 10MW do vključno 125MW | E121: SE14 | T121: 87.96 | U121: 0 | V121: 87.96 | W121: 87.96 | X121: 0 | Y121: 87.96 | Z121: 87.96 | AA121: 0 | AB121: 87.96 | AC121: 87.96 | AD121: 0 | AE121: 87.96 | AF121: 1 | AS121: (ni ZO) | AT121: 37.3 | AU121: (ni ZO) | AV121: 44.65 | AW121: (ni ZO) | AX121: 48.31 | AY121: (ni ZO) | AZ121: 51.07 | BB121: (ni podpore 2011/2) | BC121: (ni podpore 2011/2) | BD121: (ni podpore 2011/2) | BE121: (ni podpore 2011/2) | BF121: (ni ZO) | BG121: 7.35 | BH121: (ni ZO) | BI121: 3.66 | BJ121: (ni ZO) | BK121: 2.76
A122: SE21-2013jul | B122: 3.2 Sončne elektrarne - ostale 2013 julij | D122: mikro - manjše od 50kW | E122: SE21 | T122: 122.36 | U122: 0 | V122: 122.36 | W122: 122.36 | X122: 0 | Y122: 122.36 | Z122: 122.36 | AA122: 0 | AB122: 122.36 | AC122: 122.36 | AD122: 0 | AE122: 122.36 | AF122: 0.88 | AS122: =T122+U122 -> 122.36 | AT122: 77.78 | AU122: =W122+X122 -> 122.36 | AV122: 84.25 | AW122: =+Z122+AA122 -> 122.36 | AX122: 87.47 | AY122: 122.36 | AZ122: 89.9 | BB122: (ni podpore 2011/2) | BC122: (ni podpore 2011/2) | BD122: (ni podpore 2011/2) | BE122: (ni podpore 2011/2) | BF122: =AU122-AS122 -> 0 | BG122: 6.47 | BH122: 0 | BI122: 3.22 | BJ122: 0 | BK122: 2.43
A123: SE22-2013jul | B123: 3.2 Sončne elektrarne - ostale 2013 julij | D123: mala - manjše od 1MW | E123: SE22 | T123: 112.73 | U123: 0 | V123: 112.73 | W123: 112.73 | X123: 0 | Y123: 112.73 | Z123: 112.73 | AA123: 0 | AB123: 112.73 | AC123: 112.73 | AD123: 0 | AE123: 112.73 | AF123: 0.88 | AS123: =T123+U123 -> 112.73 | AT123: 68.15 | AU123: =W123+X123 -> 112.73 | AV123: 74.62 | AW123: =+Z123+AA123 -> 112.73 | AX123: 77.84 | AY123: 112.73 | AZ123: 80.27 | BB123: (ni podpore 2011/2) | BC123: (ni podpore 2011/2) | BD123: (ni podpore 2011/2) | BE123: (ni podpore 2011/2) | BF123: 0 | BG123: 6.47 | BH123: 0 | BI123: 3.22 | BJ123: 0 | BK123: 2.43
A124: SE23-2013jul | B124: 3.2 Sončne elektrarne - ostale 2013 julij | D124: srednja - od 1MW do vključno 10MW | E124: SE23 | T124: 90.89 | U124: 0 | V124: 90.89 | W124: 90.89 | X124: 0 | Y124: 90.89 | Z124: 90.89 | AA124: 0 | AB124: 90.89 | AC124: 90.89 | AD124: 0 | AE124: 90.89 | AF124: 0.91 | AS124: =T124+U124 -> 90.89 | AT124: 44.79 | AU124: =W124+X124 -> 90.89 | AV124: 51.48 | AW124: =+Z124+AA124 -> 90.89 | AX124: 54.81 | AY124: 90.89 | AZ124: 57.32 | BB124: (ni podpore 2011/2) | BC124: (ni podpore 2011/2) | BD124: (ni podpore 2011/2) | BE124: (ni podpore 2011/2) | BF124: 0 | BG124: 6.69 | BH124: 0 | BI124: 3.33 | BJ124: 0 | BK124: 2.51
A125: SE24-2013jul | B125: 3.2 Sončne elektrarne - ostale 2013 julij | D125: velika - nad 10MW do vključno 125MW | E125: SE24 | T125: 84.38 | U125: 0 | V125: 84.38 | W125: 84.38 | X125: 0 | Y125: 84.38 | Z125: 84.38 | AA125: 0 | AB125: 84.38 | AC125: 84.38 | AD125: 0 | AE125: 84.38 | AF125: 1 | AS125: (ni ZO) | AT125: 33.72 | AU125: (ni ZO) | AV125: 41.07 | AW125: (ni ZO) | AX125: 44.73 | AY125: (ni ZO) | AZ125: 47.49 | BB125: (ni podpore 2011/2) | BC125: (ni podpore 2011/2) | BD125: (ni podpore 2011/2) | BE125: (ni podpore 2011/2) | BF125: (ni ZO) | BG125: 7.35 | BH125: (ni ZO) | BI125: 3.66 | BJ125: (ni ZO) | BK125: 2.76
A126: SE11-2013avg | B126: 3.1 Sončne elektrarne - na stavbah 2013 avgust | D126: mikro - manjše od 50kW | E126: SE11 | T126: 127.62 | U126: 0 | V126: 127.62 | W126: 127.62 | X126: 0 | Y126: 127.62 | Z126: 127.62 | AA126: 0 | AB126: 127.62 | AC126: 127.62 | AD126: 0 | AE126: 127.62 | AF126: 0.88 | AS126: =T126+U126 -> 127.62 | AT126: 83.04 | AU126: =W126+X126 -> 127.62 | AV126: 89.51 | AW126: =+Z126+AA126 -> 127.62 | AX126: 92.73 | AY126: 127.62 | AZ126: 95.16 | BB126: (ni podpore 2011/2) | BC126: (ni podpore 2011/2) | BD126: (ni podpore 2011/2) | BE126: (ni podpore 2011/2) | BF126: =AU126-AS126 -> 0 | BG126: =AV126-AT126 -> 6.47 | BH126: 0 | BI126: 3.22 | BJ126: 0 | BK126: 2.43
A127: SE12-2013avg | B127: 3.1 Sončne elektrarne - na stavbah 2013 avgust | D127: mala - manjše od 1MW | E127: SE12 | T127: 116.72 | U127: 0 | V127: 116.72 | W127: 116.72 | X127: 0 | Y127: 116.72 | Z127: 116.72 | AA127: 0 | AB127: 116.72 | AC127: 116.72 | AD127: 0 | AE127: 116.72 | AF127: 0.88 | AS127: =T127+U127 -> 116.72 | AT127: 72.14 | AU127: =W127+X127 -> 116.72 | AV127: 78.61 | AW127: =+Z127+AA127 -> 116.72 | AX127: 81.83 | AY127: 116.72 | AZ127: 84.26 | BB127: (ni podpore 2011/2) | BC127: (ni podpore 2011/2) | BD127: (ni podpore 2011/2) | BE127: (ni podpore 2011/2) | BF127: 0 | BG127: 6.47 | BH127: 0 | BI127: 3.22 | BJ127: 0 | BK127: 2.43
A128: SE13-2013avg | B128: 3.1 Sončne elektrarne - na stavbah 2013 avgust | D128: srednja - od 1MW do vključno 10MW | E128: SE13 | T128: 96.85 | U128: 0 | V128: 96.85 | W128: 96.85 | X128: 0 | Y128: 96.85 | Z128: 96.85 | AA128: 0 | AB128: 96.85 | AC128: 96.85 | AD128: 0 | AE128: 96.85 | AF128: 0.91 | AS128: =T128+U128 -> 96.85 | AT128: 50.75 | AU128: =W128+X128 -> 96.85 | AV128: 57.44 | AW128: =+Z128+AA128 -> 96.85 | AX128: 60.77 | AY128: 96.85 | AZ128: 63.28 | BB128: (ni podpore 2011/2) | BC128: (ni podpore 2011/2) | BD128: (ni podpore 2011/2) | BE128: (ni podpore 2011/2) | BF128: 0 | BG128: 6.69 | BH128: 0 | BI128: 3.33 | BJ128: 0 | BK128: 2.51
A129: SE14-2013avg | B129: 3.1 Sončne elektrarne - na stavbah 2013 avgust | D129: velika - nad 10MW do vključno 125MW | E129: SE14 | T129: 86.2 | U129: 0 | V129: 86.2 | W129: 86.2 | X129: 0 | Y129: 86.2 | Z129: 86.2 | AA129: 0 | AB129: 86.2 | AC129: 86.2 | AD129: 0 | AE129: 86.2 | AF129: 1 | AS129: (ni ZO) | AT129: 35.54 | AU129: (ni ZO) | AV129: 42.89 | AW129: (ni ZO) | AX129: 46.55 | AY129: (ni ZO) | AZ129: 49.31 | BB129: (ni podpore 2011/2) | BC129: (ni podpore 2011/2) | BD129: (ni podpore 2011/2) | BE129: (ni podpore 2011/2) | BF129: (ni ZO) | BG129: 7.35 | BH129: (ni ZO) | BI129: 3.66 | BJ129: (ni ZO) | BK129: 2.76
A130: SE21-2013avg | B130: 3.2 Sončne elektrarne - ostale 2013 avgust | D130: mikro - manjše od 50kW | E130: SE21 | T130: 119.91 | U130: 0 | V130: 119.91 | W130: 119.91 | X130: 0 | Y130: 119.91 | Z130: =+W130 -> 119.91 | AA130: =+X130 -> 0 | AB130: =+Z130+AA130 -> 119.91 | AC130: 119.91 | AD130: 0 | AE130: 119.91 | AF130: 0.88 | AS130: =T130+U130 -> 119.91 | AT130: =ROUND((T130+U130)-AF130*$H$326,2) -> 75.33 | AU130: =W130+X130 -> 119.91 | AV130: =ROUND((W130+X130)-AF130*$G$326,2) -> 81.8 | AW130: =+Z130+AA130 -> 119.91 | AX130: =ROUND((Z130+AA130)-AF130*$F$326,2) -> 85.02 | AY130: 119.91 | AZ130: 87.45 | BB130: (ni podpore 2011/2) | BC130: (ni podpore 2011/2) | BD130: (ni podpore 2011/2) | BE130: (ni podpore 2011/2) | BF130: =AU130-AS130 -> 0 | BG130: 6.47 | BH130: 0 | BI130: 3.22 | BJ130: =AY130-AW130 -> 0 | BK130: =AZ130-AX130 -> 2.43
A131: SE22-2013avg | B131: 3.2 Sončne elektrarne - ostale 2013 avgust | D131: mala - manjše od 1MW | E131: SE22 | T131: 110.48 | U131: 0 | V131: 110.48 | W131: 110.48 | X131: 0 | Y131: 110.48 | Z131: 110.48 | AA131: 0 | AB131: 110.48 | AC131: =+Z131 -> 110.48 | AD131: =+AA131 -> 0 | AE131: =+AC131+AD131 -> 110.48 | AF131: 0.88 | AS131: =T131+U131 -> 110.48 | AT131: 65.9 | AU131: =W131+X131 -> 110.48 | AV131: 72.37 | AW131: =+Z131+AA131 -> 110.48 | AX131: 75.59 | AY131: =+AC131+AD131 -> 110.48 | AZ131: =ROUND((AC131+AD131)-AF131*$E$326,2) -> 78.02 | BB131: (ni podpore 2011/2) | BC131: (ni podpore 2011/2) | BD131: (ni podpore 2011/2) | BE131: (ni podpore 2011/2) | BF131: 0 | BG131: 6.47 | BH131: =AW131-AU131 -> 0 | BI131: =AX131-AV131 -> 3.22 | BJ131: 0 | BK131: 2.43
A132: SE23-2013avg | B132: 3.2 Sončne elektrarne - ostale 2013 avgust | D132: srednja - od 1MW do vključno 10MW | E132: SE23 | T132: 89.07 | U132: 0 | V132: 89.07 | W132: 89.07 | X132: 0 | Y132: 89.07 | Z132: 89.07 | AA132: 0 | AB132: 89.07 | AC132: 89.07 | AD132: 0 | AE132: 89.07 | AF132: 0.91 | AS132: =T132+U132 -> 89.07 | AT132: 42.97 | AU132: =W132+X132 -> 89.07 | AV132: 49.66 | AW132: =+Z132+AA132 -> 89.07 | AX132: 52.99 | AY132: 89.07 | AZ132: 55.5 | BB132: (ni podpore 2011/2) | BC132: (ni podpore 2011/2) | BD132: (ni podpore 2011/2) | BE132: (ni podpore 2011/2) | BF132: 0 | BG132: 6.69 | BH132: 0 | BI132: 3.33 | BJ132: 0 | BK132: 2.51
A133: SE24-2013avg | B133: 3.2 Sončne elektrarne - ostale 2013 avgust | D133: velika - nad 10MW do vključno 125MW | E133: SE24 | T133: 82.69 | U133: 0 | V133: 82.69 | W133: 82.69 | X133: 0 | Y133: 82.69 | Z133: 82.69 | AA133: 0 | AB133: 82.69 | AC133: 82.69 | AD133: 0 | AE133: 82.69 | AF133: 1 | AS133: (ni ZO) | AT133: 32.03 | AU133: (ni ZO) | AV133: 39.38 | AW133: (ni ZO) | AX133: 43.04 | AY133: (ni ZO) | AZ133: 45.8 | BB133: (ni podpore 2011/2) | BC133: (ni podpore 2011/2) | BD133: (ni podpore 2011/2) | BE133: (ni podpore 2011/2) | BF133: (ni ZO) | BG133: 7.35 | BH133: (ni ZO) | BI133: 3.66 | BJ133: (ni ZO) | BK133: 2.76
A134: SE11-2013sep | B134: 3.1 Sončne elektrarne - na stavbah 2013 september | D134: mikro - manjše od 50kW | E134: SE11 | T134: 125.07 | U134: 0 | V134: =T134+U134 -> 125.07 | W134: 125.07 | X134: 0 | Y134: 125.07 | Z134: 125.07 | AA134: 0 | AB134: 125.07 | AC134: 125.07 | AD134: 0 | AE134: 125.07 | AF134: 0.88 | AS134: =T134+U134 -> 125.07 | AT134: 80.49 | AU134: =W134+X134 -> 125.07 | AV134: 86.96 | AW134: =+Z134+AA134 -> 125.07 | AX134: 90.18 | AY134: 125.07 | AZ134: 92.61 | BB134: (ni podpore 2011/2) | BC134: (ni podpore 2011/2) | BD134: (ni podpore 2011/2) | BE134: (ni podpore 2011/2) | BF134: =AU134-AS134 -> 0 | BG134: 6.47 | BH134: 0 | BI134: 3.22 | BJ134: 0 | BK134: 2.43
A135: SE12-2013sep | B135: 3.1 Sončne elektrarne - na stavbah 2013 september | D135: mala - manjše od 1MW | E135: SE12 | T135: =ROUND(0.98*T127,2) -> 114.39 | U135: 0 | V135: 114.39 | W135: =ROUND(0.98*W127,2) -> 114.39 | X135: 0 | Y135: 114.39 | Z135: 114.39 | AA135: 0 | AB135: 114.39 | AC135: 114.39 | AD135: 0 | AE135: 114.39 | AF135: 0.88 | AS135: =T135+U135 -> 114.39 | AT135: 69.81 | AU135: =W135+X135 -> 114.39 | AV135: 76.28 | AW135: =+Z135+AA135 -> 114.39 | AX135: 79.5 | AY135: 114.39 | AZ135: 81.93 | BB135: (ni podpore 2011/2) | BC135: (ni podpore 2011/2) | BD135: (ni podpore 2011/2) | BE135: (ni podpore 2011/2) | BF135: 0 | BG135: 6.47 | BH135: 0 | BI135: 3.22 | BJ135: 0 | BK135: 2.43
A136: SE13-2013sep | B136: 3.1 Sončne elektrarne - na stavbah 2013 september | D136: srednja - od 1MW do vključno 10MW | E136: SE13 | T136: 94.91 | U136: 0 | V136: 94.91 | W136: 94.91 | X136: 0 | Y136: 94.91 | Z136: 94.91 | AA136: 0 | AB136: 94.91 | AC136: 94.91 | AD136: 0 | AE136: 94.91 | AF136: 0.91 | AS136: =T136+U136 -> 94.91 | AT136: 48.81 | AU136: =W136+X136 -> 94.91 | AV136: 55.5 | AW136: =+Z136+AA136 -> 94.91 | AX136: 58.83 | AY136: 94.91 | AZ136: 61.34 | BB136: (ni podpore 2011/2) | BC136: (ni podpore 2011/2) | BD136: (ni podpore 2011/2) | BE136: (ni podpore 2011/2) | BF136: 0 | BG136: 6.69 | BH136: 0 | BI136: 3.33 | BJ136: 0 | BK136: 2.51
A137: SE14-2013sep | B137: 3.1 Sončne elektrarne - na stavbah 2013 september | D137: velika - nad 10MW do vključno 125MW | E137: SE14 | T137: 84.48 | U137: 0 | V137: 84.48 | W137: 84.48 | X137: 0 | Y137: 84.48 | Z137: 84.48 | AA137: 0 | AB137: 84.48 | AC137: 84.48 | AD137: 0 | AE137: 84.48 | AF137: 1 | AS137: (ni ZO) | AT137: 33.82 | AU137: (ni ZO) | AV137: 41.17 | AW137: (ni ZO) | AX137: 44.83 | AY137: (ni ZO) | AZ137: 47.59 | BB137: (ni podpore 2011/2) | BC137: (ni podpore 2011/2) | BD137: (ni podpore 2011/2) | BE137: (ni podpore 2011/2) | BF137: (ni ZO) | BG137: 7.35 | BH137: (ni ZO) | BI137: 3.66 | BJ137: (ni ZO) | BK137: 2.76
A138: SE21-2013sep | B138: 3.2 Sončne elektrarne - ostale 2013 september | D138: mikro - manjše od 50kW | E138: SE21 | T138: 117.51 | U138: 0 | V138: 117.51 | W138: 117.51 | X138: 0 | Y138: 117.51 | Z138: 117.51 | AA138: 0 | AB138: 117.51 | AC138: 117.51 | AD138: 0 | AE138: 117.51 | AF138: 0.88 | AS138: =T138+U138 -> 117.51 | AT138: 72.93 | AU138: =W138+X138 -> 117.51 | AV138: 79.4 | AW138: =+Z138+AA138 -> 117.51 | AX138: 82.62 | AY138: 117.51 | AZ138: 85.05 | BB138: (ni podpore 2011/2) | BC138: (ni podpore 2011/2) | BD138: (ni podpore 2011/2) | BE138: (ni podpore 2011/2) | BF138: =AU138-AS138 -> 0 | BG138: 6.47 | BH138: 0 | BI138: 3.22 | BJ138: 0 | BK138: 2.43
A139: SE22-2013sep | B139: 3.2 Sončne elektrarne - ostale 2013 september | D139: mala - manjše od 1MW | E139: SE22 | T139: 108.27 | U139: 0 | V139: 108.27 | W139: 108.27 | X139: 0 | Y139: 108.27 | Z139: 108.27 | AA139: 0 | AB139: 108.27 | AC139: 108.27 | AD139: 0 | AE139: 108.27 | AF139: 0.88 | AS139: =T139+U139 -> 108.27 | AT139: 63.69 | AU139: =W139+X139 -> 108.27 | AV139: 70.16 | AW139: =+Z139+AA139 -> 108.27 | AX139: 73.38 | AY139: 108.27 | AZ139: 75.81 | BB139: (ni podpore 2011/2) | BC139: (ni podpore 2011/2) | BD139: (ni podpore 2011/2) | BE139: (ni podpore 2011/2) | BF139: 0 | BG139: 6.47 | BH139: 0 | BI139: 3.22 | BJ139: 0 | BK139: 2.43
A140: SE23-2013sep | B140: 3.2 Sončne elektrarne - ostale 2013 september | D140: srednja - od 1MW do vključno 10MW | E140: SE23 | T140: 87.29 | U140: 0 | V140: 87.29 | W140: 87.29 | X140: 0 | Y140: 87.29 | Z140: 87.29 | AA140: 0 | AB140: 87.29 | AC140: 87.29 | AD140: 0 | AE140: 87.29 | AF140: 0.91 | AS140: =T140+U140 -> 87.29 | AT140: 41.19 | AU140: =W140+X140 -> 87.29 | AV140: 47.88 | AW140: =+Z140+AA140 -> 87.29 | AX140: 51.21 | AY140: 87.29 | AZ140: 53.72 | BB140: (ni podpore 2011/2) | BC140: (ni podpore 2011/2) | BD140: (ni podpore 2011/2) | BE140: (ni podpore 2011/2) | BF140: 0 | BG140: 6.69 | BH140: 0 | BI140: 3.33 | BJ140: 0 | BK140: 2.51
A141: SE24-2013sep | B141: 3.2 Sončne elektrarne - ostale 2013 september | D141: velika - nad 10MW do vključno 125MW | E141: SE24 | T141: 81.04 | U141: 0 | V141: 81.04 | W141: 81.04 | X141: 0 | Y141: 81.04 | Z141: 81.04 | AA141: 0 | AB141: 81.04 | AC141: 81.04 | AD141: 0 | AE141: 81.04 | AF141: 1 | AS141: (ni ZO) | AT141: 30.38 | AU141: (ni ZO) | AV141: 37.73 | AW141: (ni ZO) | AX141: 41.39 | AY141: (ni ZO) | AZ141: 44.15 | BB141: (ni podpore 2011/2) | BC141: (ni podpore 2011/2) | BD141: (ni podpore 2011/2) | BE141: (ni podpore 2011/2) | BF141: (ni ZO) | BG141: 7.35 | BH141: (ni ZO) | BI141: 3.66 | BJ141: (ni ZO) | BK141: 2.76
A142: SE11-2013okt | B142: 3.1 Sončne elektrarne - na stavbah 2013 oktober | D142: mikro - manjše od 50kW | E142: SE11 | T142: 122.57 | U142: 0 | V142: 122.57 | W142: 122.57 | X142: 0 | Y142: 122.57 | Z142: 122.57 | AA142: 0 | AB142: 122.57 | AC142: 122.57 | AD142: 0 | AE142: 122.57 | AF142: 0.88 | AS142: =T142+U142 -> 122.57 | AT142: 77.99 | AU142: =W142+X142 -> 122.57 | AV142: 84.46 | AW142: =+Z142+AA142 -> 122.57 | AX142: 87.68 | AY142: 122.57 | AZ142: 90.11 | BB142: (ni podpore 2011/2) | BC142: (ni podpore 2011/2) | BD142: (ni podpore 2011/2) | BE142: (ni podpore 2011/2) | BF142: =AU142-AS142 -> 0 | BG142: 6.47 | BH142: 0 | BI142: 3.22 | BJ142: 0 | BK142: 2.43
A143: SE12-2013okt | B143: 3.1 Sončne elektrarne - na stavbah 2013 oktober | D143: mala - manjše od 1MW | E143: SE12 | T143: 112.1 | U143: 0 | V143: 112.1 | W143: 112.1 | X143: 0 | Y143: 112.1 | Z143: 112.1 | AA143: 0 | AB143: 112.1 | AC143: 112.1 | AD143: 0 | AE143: 112.1 | AF143: 0.88 | AS143: =T143+U143 -> 112.1 | AT143: 67.52 | AU143: =W143+X143 -> 112.1 | AV143: 73.99 | AW143: =+Z143+AA143 -> 112.1 | AX143: 77.21 | AY143: 112.1 | AZ143: 79.64 | BB143: (ni podpore 2011/2) | BC143: (ni podpore 2011/2) | BD143: (ni podpore 2011/2) | BE143: (ni podpore 2011/2) | BF143: 0 | BG143: 6.47 | BH143: 0 | BI143: 3.22 | BJ143: 0 | BK143: 2.43
A144: SE13-2013okt | B144: 3.1 Sončne elektrarne - na stavbah 2013 oktober | D144: srednja - od 1MW do vključno 10MW | E144: SE13 | T144: 93.01 | U144: 0 | V144: 93.01 | W144: 93.01 | X144: 0 | Y144: 93.01 | Z144: 93.01 | AA144: 0 | AB144: 93.01 | AC144: 93.01 | AD144: 0 | AE144: 93.01 | AF144: 0.91 | AS144: =T144+U144 -> 93.01 | AT144: 46.91 | AU144: =W144+X144 -> 93.01 | AV144: 53.6 | AW144: =+Z144+AA144 -> 93.01 | AX144: 56.93 | AY144: 93.01 | AZ144: 59.44 | BB144: (ni podpore 2011/2) | BC144: (ni podpore 2011/2) | BD144: (ni podpore 2011/2) | BE144: (ni podpore 2011/2) | BF144: 0 | BG144: 6.69 | BH144: 0 | BI144: 3.33 | BJ144: 0 | BK144: 2.51
A145: SE14-2013okt | B145: 3.1 Sončne elektrarne - na stavbah 2013 oktober | D145: velika - nad 10MW do vključno 125MW | E145: SE14 | T145: 82.79 | U145: 0 | V145: 82.79 | W145: 82.79 | X145: 0 | Y145: 82.79 | Z145: 82.79 | AA145: 0 | AB145: 82.79 | AC145: 82.79 | AD145: 0 | AE145: 82.79 | AF145: 1 | AS145: (ni ZO) | AT145: 32.13 | AU145: (ni ZO) | AV145: 39.48 | AW145: (ni ZO) | AX145: 43.14 | AY145: (ni ZO) | AZ145: 45.9 | BB145: (ni podpore 2011/2) | BC145: (ni podpore 2011/2) | BD145: (ni podpore 2011/2) | BE145: (ni podpore 2011/2) | BF145: (ni ZO) | BG145: 7.35 | BH145: (ni ZO) | BI145: 3.66 | BJ145: (ni ZO) | BK145: 2.76
A146: SE21-2013okt | B146: 3.2 Sončne elektrarne - ostale 2013 oktober | D146: mikro - manjše od 50kW | E146: SE21 | T146: 115.16 | U146: 0 | V146: 115.16 | W146: 115.16 | X146: 0 | Y146: 115.16 | Z146: 115.16 | AA146: 0 | AB146: 115.16 | AC146: 115.16 | AD146: 0 | AE146: 115.16 | AF146: 0.88 | AS146: =T146+U146 -> 115.16 | AT146: 70.58 | AU146: =W146+X146 -> 115.16 | AV146: 77.05 | AW146: =+Z146+AA146 -> 115.16 | AX146: 80.27 | AY146: 115.16 | AZ146: 82.7 | BB146: (ni podpore 2011/2) | BC146: (ni podpore 2011/2) | BD146: (ni podpore 2011/2) | BE146: (ni podpore 2011/2) | BF146: =AU146-AS146 -> 0 | BG146: 6.47 | BH146: 0 | BI146: 3.22 | BJ146: 0 | BK146: 2.43
A147: SE22-2013okt | B147: 3.2 Sončne elektrarne - ostale 2013 oktober | D147: mala - manjše od 1MW | E147: SE22 | T147: 106.1 | U147: 0 | V147: 106.1 | W147: 106.1 | X147: 0 | Y147: 106.1 | Z147: 106.1 | AA147: 0 | AB147: 106.1 | AC147: 106.1 | AD147: 0 | AE147: 106.1 | AF147: 0.88 | AS147: =T147+U147 -> 106.1 | AT147: 61.52 | AU147: =W147+X147 -> 106.1 | AV147: 67.99 | AW147: =+Z147+AA147 -> 106.1 | AX147: 71.21 | AY147: 106.1 | AZ147: 73.64 | BB147: (ni podpore 2011/2) | BC147: (ni podpore 2011/2) | BD147: (ni podpore 2011/2) | BE147: (ni podpore 2011/2) | BF147: 0 | BG147: 6.47 | BH147: 0 | BI147: 3.22 | BJ147: 0 | BK147: 2.43
A148: SE23-2013okt | B148: 3.2 Sončne elektrarne - ostale 2013 oktober | D148: srednja - od 1MW do vključno 10MW | E148: SE23 | T148: 85.54 | U148: 0 | V148: 85.54 | W148: 85.54 | X148: 0 | Y148: 85.54 | Z148: 85.54 | AA148: 0 | AB148: 85.54 | AC148: 85.54 | AD148: 0 | AE148: 85.54 | AF148: 0.91 | AS148: =T148+U148 -> 85.54 | AT148: 39.44 | AU148: =W148+X148 -> 85.54 | AV148: 46.13 | AW148: =+Z148+AA148 -> 85.54 | AX148: 49.46 | AY148: 85.54 | AZ148: 51.97 | BB148: (ni podpore 2011/2) | BC148: (ni podpore 2011/2) | BD148: (ni podpore 2011/2) | BE148: (ni podpore 2011/2) | BF148: 0 | BG148: 6.69 | BH148: 0 | BI148: 3.33 | BJ148: 0 | BK148: 2.51
A149: SE24-2013okt | B149: 3.2 Sončne elektrarne - ostale 2013 oktober | D149: velika - nad 10MW do vključno 125MW | E149: SE24 | T149: 79.42 | U149: 0 | V149: 79.42 | W149: 79.42 | X149: 0 | Y149: 79.42 | Z149: 79.42 | AA149: 0 | AB149: 79.42 | AC149: 79.42 | AD149: 0 | AE149: 79.42 | AF149: 1 | AS149: (ni ZO) | AT149: 28.76 | AU149: (ni ZO) | AV149: 36.11 | AW149: (ni ZO) | AX149: 39.77 | AY149: (ni ZO) | AZ149: 42.53 | BB149: (ni podpore 2011/2) | BC149: (ni podpore 2011/2) | BD149: (ni podpore 2011/2) | BE149: (ni podpore 2011/2) | BF149: (ni ZO) | BG149: 7.35 | BH149: (ni ZO) | BI149: 3.66 | BJ149: (ni ZO) | BK149: 2.76
A150: SE11-2013nov | B150: 3.1 Sončne elektrarne - na stavbah 2013 november | D150: mikro - manjše od 50kW | E150: SE11 | T150: 120.12 | U150: 0 | V150: 120.12 | W150: 120.12 | X150: 0 | Y150: 120.12 | Z150: 120.12 | AA150: 0 | AB150: 120.12 | AC150: 120.12 | AD150: 0 | AE150: 120.12 | AF150: 0.88 | AS150: =T150+U150 -> 120.12 | AT150: 75.54 | AU150: =W150+X150 -> 120.12 | AV150: 82.01 | AW150: =+Z150+AA150 -> 120.12 | AX150: 85.23 | AY150: 120.12 | AZ150: 87.66 | BB150: (ni podpore 2011/2) | BC150: (ni podpore 2011/2) | BD150: (ni podpore 2011/2) | BE150: (ni podpore 2011/2) | BF150: =AU150-AS150 -> 0 | BG150: 6.47 | BH150: 0 | BI150: 3.22 | BJ150: 0 | BK150: 2.43
A151: SE12-2013nov | B151: 3.1 Sončne elektrarne - na stavbah 2013 november | D151: mala - manjše od 1MW | E151: SE12 | T151: 109.86 | U151: 0 | V151: 109.86 | W151: 109.86 | X151: 0 | Y151: 109.86 | Z151: 109.86 | AA151: 0 | AB151: 109.86 | AC151: 109.86 | AD151: 0 | AE151: 109.86 | AF151: 0.88 | AS151: =T151+U151 -> 109.86 | AT151: 65.28 | AU151: =W151+X151 -> 109.86 | AV151: 71.75 | AW151: =+Z151+AA151 -> 109.86 | AX151: 74.97 | AY151: 109.86 | AZ151: 77.4 | BB151: (ni podpore 2011/2) | BC151: (ni podpore 2011/2) | BD151: (ni podpore 2011/2) | BE151: (ni podpore 2011/2) | BF151: 0 | BG151: 6.47 | BH151: 0 | BI151: 3.22 | BJ151: 0 | BK151: 2.43
A152: SE13-2013nov | B152: 3.1 Sončne elektrarne - na stavbah 2013 november | D152: srednja - od 1MW do vključno 10MW | E152: SE13 | T152: 91.15 | U152: 0 | V152: 91.15 | W152: 91.15 | X152: 0 | Y152: 91.15 | Z152: 91.15 | AA152: 0 | AB152: 91.15 | AC152: 91.15 | AD152: 0 | AE152: 91.15 | AF152: 0.91 | AS152: =T152+U152 -> 91.15 | AT152: 45.05 | AU152: =W152+X152 -> 91.15 | AV152: 51.74 | AW152: =+Z152+AA152 -> 91.15 | AX152: 55.07 | AY152: 91.15 | AZ152: 57.58 | BB152: (ni podpore 2011/2) | BC152: (ni podpore 2011/2) | BD152: (ni podpore 2011/2) | BE152: (ni podpore 2011/2) | BF152: 0 | BG152: 6.69 | BH152: 0 | BI152: 3.33 | BJ152: 0 | BK152: 2.51
A153: SE14-2013nov | B153: 3.1 Sončne elektrarne - na stavbah 2013 november | D153: velika - nad 10MW do vključno 125MW | E153: SE14 | T153: 81.13 | U153: 0 | V153: 81.13 | W153: 81.13 | X153: 0 | Y153: 81.13 | Z153: 81.13 | AA153: 0 | AB153: 81.13 | AC153: 81.13 | AD153: 0 | AE153: 81.13 | AF153: 1 | AS153: (ni ZO) | AT153: 30.47 | AU153: (ni ZO) | AV153: 37.82 | AW153: (ni ZO) | AX153: 41.48 | AY153: (ni ZO) | AZ153: 44.24 | BB153: (ni podpore 2011/2) | BC153: (ni podpore 2011/2) | BD153: (ni podpore 2011/2) | BE153: (ni podpore 2011/2) | BF153: (ni ZO) | BG153: 7.35 | BH153: (ni ZO) | BI153: 3.66 | BJ153: (ni ZO) | BK153: 2.76
A154: SE21-2013nov | B154: 3.2 Sončne elektrarne - ostale 2013 november | D154: mikro - manjše od 50kW | E154: SE21 | T154: 112.86 | U154: 0 | V154: 112.86 | W154: 112.86 | X154: 0 | Y154: 112.86 | Z154: 112.86 | AA154: 0 | AB154: 112.86 | AC154: 112.86 | AD154: 0 | AE154: 112.86 | AF154: 0.88 | AS154: =T154+U154 -> 112.86 | AT154: 68.28 | AU154: =W154+X154 -> 112.86 | AV154: 74.75 | AW154: =+Z154+AA154 -> 112.86 | AX154: 77.97 | AY154: 112.86 | AZ154: 80.4 | BB154: (ni podpore 2011/2) | BC154: (ni podpore 2011/2) | BD154: (ni podpore 2011/2) | BE154: (ni podpore 2011/2) | BF154: =AU154-AS154 -> 0 | BG154: 6.47 | BH154: 0 | BI154: 3.22 | BJ154: 0 | BK154: 2.43
A155: SE22-2013nov | B155: 3.2 Sončne elektrarne - ostale 2013 november | D155: mala - manjše od 1MW | E155: SE22 | T155: 103.98 | U155: 0 | V155: 103.98 | W155: 103.98 | X155: 0 | Y155: 103.98 | Z155: 103.98 | AA155: 0 | AB155: 103.98 | AC155: 103.98 | AD155: 0 | AE155: 103.98 | AF155: 0.88 | AS155: =T155+U155 -> 103.98 | AT155: 59.4 | AU155: =W155+X155 -> 103.98 | AV155: 65.87 | AW155: =+Z155+AA155 -> 103.98 | AX155: 69.09 | AY155: 103.98 | AZ155: 71.52 | BB155: (ni podpore 2011/2) | BC155: (ni podpore 2011/2) | BD155: (ni podpore 2011/2) | BE155: (ni podpore 2011/2) | BF155: 0 | BG155: 6.47 | BH155: 0 | BI155: 3.22 | BJ155: 0 | BK155: 2.43
A156: SE23-2013nov | B156: 3.2 Sončne elektrarne - ostale 2013 november | D156: srednja - od 1MW do vključno 10MW | E156: SE23 | T156: 83.83 | U156: 0 | V156: 83.83 | W156: 83.83 | X156: 0 | Y156: 83.83 | Z156: 83.83 | AA156: 0 | AB156: 83.83 | AC156: 83.83 | AD156: 0 | AE156: 83.83 | AF156: 0.91 | AS156: =T156+U156 -> 83.83 | AT156: 37.73 | AU156: =W156+X156 -> 83.83 | AV156: 44.42 | AW156: =+Z156+AA156 -> 83.83 | AX156: 47.75 | AY156: 83.83 | AZ156: 50.26 | BB156: (ni podpore 2011/2) | BC156: (ni podpore 2011/2) | BD156: (ni podpore 2011/2) | BE156: (ni podpore 2011/2) | BF156: 0 | BG156: 6.69 | BH156: 0 | BI156: 3.33 | BJ156: 0 | BK156: 2.51
A157: SE24-2013nov | B157: 3.2 Sončne elektrarne - ostale 2013 november | D157: velika - nad 10MW do vključno 125MW | E157: SE24 | T157: 77.83 | U157: 0 | V157: 77.83 | W157: 77.83 | X157: 0 | Y157: 77.83 | Z157: 77.83 | AA157: 0 | AB157: 77.83 | AC157: 77.83 | AD157: 0 | AE157: 77.83 | AF157: 1 | AS157: (ni ZO) | AT157: 27.17 | AU157: (ni ZO) | AV157: 34.52 | AW157: (ni ZO) | AX157: 38.18 | AY157: (ni ZO) | AZ157: 40.94 | BB157: (ni podpore 2011/2) | BC157: (ni podpore 2011/2) | BD157: (ni podpore 2011/2) | BE157: (ni podpore 2011/2) | BF157: (ni ZO) | BG157: 7.35 | BH157: (ni ZO) | BI157: 3.66 | BJ157: (ni ZO) | BK157: 2.76
A158: SE11-2013dec | B158: 3.1 Sončne elektrarne - na stavbah 2013 december | D158: mikro - manjše od 50kW | E158: SE11 | T158: 117.72 | U158: 0 | V158: 117.72 | W158: 117.72 | X158: 0 | Y158: 117.72 | Z158: 117.72 | AA158: 0 | AB158: 117.72 | AC158: 117.72 | AD158: 0 | AE158: 117.72 | AF158: 0.88 | AS158: =T158+U158 -> 117.72 | AT158: 73.14 | AU158: =W158+X158 -> 117.72 | AV158: 79.61 | AW158: =+Z158+AA158 -> 117.72 | AX158: 82.83 | AY158: 117.72 | AZ158: 85.26 | BB158: (ni podpore 2011/2) | BC158: (ni podpore 2011/2) | BD158: (ni podpore 2011/2) | BE158: (ni podpore 2011/2) | BF158: =AU158-AS158 -> 0 | BG158: 6.47 | BH158: 0 | BI158: 3.22 | BJ158: 0 | BK158: 2.43
A159: SE12-2013dec | B159: 3.1 Sončne elektrarne - na stavbah 2013 december | D159: mala - manjše od 1MW | E159: SE12 | T159: 107.66 | U159: 0 | V159: 107.66 | W159: 107.66 | X159: 0 | Y159: 107.66 | Z159: 107.66 | AA159: 0 | AB159: 107.66 | AC159: 107.66 | AD159: 0 | AE159: 107.66 | AF159: 0.88 | AS159: =T159+U159 -> 107.66 | AT159: 63.08 | AU159: =W159+X159 -> 107.66 | AV159: 69.55 | AW159: =+Z159+AA159 -> 107.66 | AX159: 72.77 | AY159: 107.66 | AZ159: 75.2 | BB159: (ni podpore 2011/2) | BC159: (ni podpore 2011/2) | BD159: (ni podpore 2011/2) | BE159: (ni podpore 2011/2) | BF159: 0 | BG159: 6.47 | BH159: 0 | BI159: 3.22 | BJ159: 0 | BK159: 2.43
A160: SE13-2013dec | B160: 3.1 Sončne elektrarne - na stavbah 2013 december | D160: srednja - od 1MW do vključno 10MW | E160: SE13 | T160: 89.33 | U160: 0 | V160: 89.33 | W160: 89.33 | X160: 0 | Y160: 89.33 | Z160: 89.33 | AA160: 0 | AB160: 89.33 | AC160: 89.33 | AD160: 0 | AE160: 89.33 | AF160: 0.91 | AS160: =T160+U160 -> 89.33 | AT160: 43.23 | AU160: =W160+X160 -> 89.33 | AV160: 49.92 | AW160: =+Z160+AA160 -> 89.33 | AX160: 53.25 | AY160: 89.33 | AZ160: 55.76 | BB160: (ni podpore 2011/2) | BC160: (ni podpore 2011/2) | BD160: (ni podpore 2011/2) | BE160: (ni podpore 2011/2) | BF160: 0 | BG160: 6.69 | BH160: 0 | BI160: 3.33 | BJ160: 0 | BK160: 2.51
A161: SE14-2013dec | B161: 3.1 Sončne elektrarne - na stavbah 2013 december | D161: velika - nad 10MW do vključno 125MW | E161: SE14 | T161: 79.51 | U161: 0 | V161: 79.51 | W161: 79.51 | X161: 0 | Y161: 79.51 | Z161: 79.51 | AA161: 0 | AB161: 79.51 | AC161: 79.51 | AD161: 0 | AE161: 79.51 | AF161: 1 | AS161: (ni ZO) | AT161: 28.85 | AU161: (ni ZO) | AV161: 36.2 | AW161: (ni ZO) | AX161: 39.86 | AY161: (ni ZO) | AZ161: 42.62 | BB161: (ni podpore 2011/2) | BC161: (ni podpore 2011/2) | BD161: (ni podpore 2011/2) | BE161: (ni podpore 2011/2) | BF161: (ni ZO) | BG161: 7.35 | BH161: (ni ZO) | BI161: 3.66 | BJ161: (ni ZO) | BK161: 2.76
A162: SE21-2013dec | B162: 3.2 Sončne elektrarne - ostale 2013 december | D162: mikro - manjše od 50kW | E162: SE21 | T162: 110.6 | U162: 0 | V162: 110.6 | W162: 110.6 | X162: 0 | Y162: 110.6 | Z162: 110.6 | AA162: 0 | AB162: 110.6 | AC162: 110.6 | AD162: 0 | AE162: 110.6 | AF162: 0.88 | AS162: =T162+U162 -> 110.6 | AT162: 66.02 | AU162: =W162+X162 -> 110.6 | AV162: 72.49 | AW162: =+Z162+AA162 -> 110.6 | AX162: 75.71 | AY162: 110.6 | AZ162: 78.14 | BB162: (ni podpore 2011/2) | BC162: (ni podpore 2011/2) | BD162: (ni podpore 2011/2) | BE162: (ni podpore 2011/2) | BF162: =AU162-AS162 -> 0 | BG162: 6.47 | BH162: 0 | BI162: 3.22 | BJ162: 0 | BK162: 2.43
A163: SE22-2013dec | B163: 3.2 Sončne elektrarne - ostale 2013 december | D163: mala - manjše od 1MW | E163: SE22 | T163: 101.9 | U163: 0 | V163: 101.9 | W163: 101.9 | X163: 0 | Y163: 101.9 | Z163: 101.9 | AA163: 0 | AB163: 101.9 | AC163: 101.9 | AD163: 0 | AE163: 101.9 | AF163: 0.88 | AS163: =T163+U163 -> 101.9 | AT163: 57.32 | AU163: =W163+X163 -> 101.9 | AV163: 63.79 | AW163: =+Z163+AA163 -> 101.9 | AX163: 67.01 | AY163: 101.9 | AZ163: 69.44 | BB163: (ni podpore 2011/2) | BC163: (ni podpore 2011/2) | BD163: (ni podpore 2011/2) | BE163: (ni podpore 2011/2) | BF163: 0 | BG163: 6.47 | BH163: 0 | BI163: 3.22 | BJ163: 0 | BK163: 2.43
A164: SE23-2013dec | B164: 3.2 Sončne elektrarne - ostale 2013 december | D164: srednja - od 1MW do vključno 10MW | E164: SE23 | T164: 82.15 | U164: 0 | V164: 82.15 | W164: 82.15 | X164: 0 | Y164: 82.15 | Z164: 82.15 | AA164: 0 | AB164: 82.15 | AC164: 82.15 | AD164: 0 | AE164: 82.15 | AF164: 0.91 | AS164: =T164+U164 -> 82.15 | AT164: 36.05 | AU164: =W164+X164 -> 82.15 | AV164: 42.74 | AW164: =+Z164+AA164 -> 82.15 | AX164: 46.07 | AY164: 82.15 | AZ164: 48.58 | BB164: (ni podpore 2011/2) | BC164: (ni podpore 2011/2) | BD164: (ni podpore 2011/2) | BE164: (ni podpore 2011/2) | BF164: 0 | BG164: 6.69 | BH164: 0 | BI164: 3.33 | BJ164: 0 | BK164: 2.51
A165: SE24-2013dec | B165: 3.2 Sončne elektrarne - ostale 2013 december | D165: velika - nad 10MW do vključno 125MW | E165: SE24 | T165: 76.27 | U165: 0 | V165: 76.27 | W165: 76.27 | X165: 0 | Y165: 76.27 | Z165: 76.27 | AA165: 0 | AB165: 76.27 | AC165: 76.27 | AD165: 0 | AE165: 76.27 | AF165: 1 | AS165: (ni ZO) | AT165: 25.61 | AU165: (ni ZO) | AV165: 32.96 | AW165: (ni ZO) | AX165: 36.62 | AY165: (ni ZO) | AZ165: 39.38 | BB165: (ni podpore 2011/2) | BC165: (ni podpore 2011/2) | BD165: (ni podpore 2011/2) | BE165: (ni podpore 2011/2) | BF165: (ni ZO) | BG165: 7.35 | BH165: (ni ZO) | BI165: 3.66 | BJ165: (ni ZO) | BK165: 2.76
A166: SE11-2014jan | B166: 3.1 Sončne elektrarne - na stavbah 2014 januar | D166: mikro - manjše od 50kW | E166: SE11 | W166: 115.37 | X166: 0 | Y166: =W166+X166 -> 115.37 | Z166: 115.37 | AA166: 0 | AB166: 115.37 | AC166: 115.37 | AD166: 0 | AE166: 115.37 | AF166: 0.88 | AU166: =W166+X166 -> 115.37 | AV166: 77.26 | AW166: =+Z166+AA166 -> 115.37 | AX166: 80.48 | AY166: 115.37 | AZ166: 82.91 | BB166: (ni podpore 2011/2) | BC166: (ni podpore 2011/2) | BD166: (ni podpore 2011/2) | BE166: (ni podpore 2011/2) | BF166: (ni podpore 2013) | BG166: (ni podpore 2013) | BH166: 0 | BI166: 3.22 | BJ166: 0 | BK166: 2.43
A167: SE12-2014jan | B167: 3.1 Sončne elektrarne - na stavbah 2014 januar | D167: mala - manjše od 1MW | E167: SE12 | W167: 105.51 | X167: 0 | Y167: 105.51 | Z167: 105.51 | AA167: 0 | AB167: 105.51 | AC167: 105.51 | AD167: 0 | AE167: 105.51 | AF167: 0.88 | AU167: =W167+X167 -> 105.51 | AV167: 67.4 | AW167: =+Z167+AA167 -> 105.51 | AX167: 70.62 | AY167: 105.51 | AZ167: 73.05 | BB167: (ni podpore 2011/2) | BC167: (ni podpore 2011/2) | BD167: (ni podpore 2011/2) | BE167: (ni podpore 2011/2) | BF167: (ni podpore 2013) | BG167: (ni podpore 2013) | BH167: 0 | BI167: 3.22 | BJ167: 0 | BK167: 2.43
A168: SE13-2014jan | B168: 3.1 Sončne elektrarne - na stavbah 2014 januar | D168: srednja - od 1MW do vključno 10MW | E168: SE13 | W168: 87.54 | X168: 0 | Y168: 87.54 | Z168: 87.54 | AA168: 0 | AB168: 87.54 | AC168: 87.54 | AD168: 0 | AE168: 87.54 | AF168: 0.91 | AU168: =W168+X168 -> 87.54 | AV168: 48.13 | AW168: =+Z168+AA168 -> 87.54 | AX168: 51.46 | AY168: 87.54 | AZ168: 53.97 | BB168: (ni podpore 2011/2) | BC168: (ni podpore 2011/2) | BD168: (ni podpore 2011/2) | BE168: (ni podpore 2011/2) | BF168: (ni podpore 2013) | BG168: (ni podpore 2013) | BH168: 0 | BI168: 3.33 | BJ168: 0 | BK168: 2.51
A169: SE14-2014jan | B169: 3.1 Sončne elektrarne - na stavbah 2014 januar | D169: velika - nad 10MW do vključno 125MW | E169: SE14 | W169: 77.92 | X169: 0 | Y169: 77.92 | Z169: 77.92 | AA169: 0 | AB169: 77.92 | AC169: 77.92 | AD169: 0 | AE169: 77.92 | AF169: 1 | AU169: (ni ZO) | AV169: 34.61 | AW169: (ni ZO) | AX169: 38.27 | AY169: (ni ZO) | AZ169: 41.03 | BB169: (ni podpore 2011/2) | BC169: (ni podpore 2011/2) | BD169: (ni podpore 2011/2) | BE169: (ni podpore 2011/2) | BF169: (ni podpore 2013) | BG169: (ni podpore 2013) | BH169: (ni ZO) | BI169: 3.66 | BJ169: (ni ZO) | BK169: 2.76
A170: SE21-2014jan | B170: 3.2 Sončne elektrarne - ostale 2014 januar | D170: mikro - manjše od 50kW | E170: SE21 | W170: 108.39 | X170: 0 | Y170: 108.39 | Z170: 108.39 | AA170: 0 | AB170: 108.39 | AC170: 108.39 | AD170: 0 | AE170: 108.39 | AF170: 0.88 | AU170: =W170+X170 -> 108.39 | AV170: 70.28 | AW170: =+Z170+AA170 -> 108.39 | AX170: 73.5 | AY170: 108.39 | AZ170: 75.93 | BB170: (ni podpore 2011/2) | BC170: (ni podpore 2011/2) | BD170: (ni podpore 2011/2) | BE170: (ni podpore 2011/2) | BF170: (ni podpore 2013) | BG170: (ni podpore 2013) | BH170: 0 | BI170: 3.22 | BJ170: 0 | BK170: 2.43
A171: SE22-2014jan | B171: 3.2 Sončne elektrarne - ostale 2014 januar | D171: mala - manjše od 1MW | E171: SE22 | W171: 99.86 | X171: 0 | Y171: 99.86 | Z171: 99.86 | AA171: 0 | AB171: 99.86 | AC171: 99.86 | AD171: 0 | AE171: 99.86 | AF171: 0.88 | AU171: =W171+X171 -> 99.86 | AV171: 61.75 | AW171: =+Z171+AA171 -> 99.86 | AX171: 64.97 | AY171: 99.86 | AZ171: 67.4 | BB171: (ni podpore 2011/2) | BC171: (ni podpore 2011/2) | BD171: (ni podpore 2011/2) | BE171: (ni podpore 2011/2) | BF171: (ni podpore 2013) | BG171: (ni podpore 2013) | BH171: 0 | BI171: 3.22 | BJ171: 0 | BK171: 2.43
A172: SE23-2014jan | B172: 3.2 Sončne elektrarne - ostale 2014 januar | D172: srednja - od 1MW do vključno 10MW | E172: SE23 | W172: 80.51 | X172: 0 | Y172: 80.51 | Z172: 80.51 | AA172: 0 | AB172: 80.51 | AC172: 80.51 | AD172: 0 | AE172: 80.51 | AF172: 0.91 | AU172: =W172+X172 -> 80.51 | AV172: 41.1 | AW172: =+Z172+AA172 -> 80.51 | AX172: 44.43 | AY172: 80.51 | AZ172: 46.94 | BB172: (ni podpore 2011/2) | BC172: (ni podpore 2011/2) | BD172: (ni podpore 2011/2) | BE172: (ni podpore 2011/2) | BF172: (ni podpore 2013) | BG172: (ni podpore 2013) | BH172: 0 | BI172: 3.33 | BJ172: 0 | BK172: 2.51
A173: SE24-2014jan | B173: 3.2 Sončne elektrarne - ostale 2014 januar | D173: velika - nad 10MW do vključno 125MW | E173: SE24 | W173: 74.74 | X173: 0 | Y173: 74.74 | Z173: 74.74 | AA173: 0 | AB173: 74.74 | AC173: 74.74 | AD173: 0 | AE173: 74.74 | AF173: 1 | AU173: (ni ZO) | AV173: 31.43 | AW173: (ni ZO) | AX173: 35.09 | AY173: (ni ZO) | AZ173: 37.85 | BB173: (ni podpore 2011/2) | BC173: (ni podpore 2011/2) | BD173: (ni podpore 2011/2) | BE173: (ni podpore 2011/2) | BF173: (ni podpore 2013) | BG173: (ni podpore 2013) | BH173: (ni ZO) | BI173: 3.66 | BJ173: (ni ZO) | BK173: 2.76
A174: SE11-2014feb | B174: 3.1 Sončne elektrarne - na stavbah 2014 februar | D174: mikro - manjše od 50kW | E174: SE11 | W174: 113.06 | X174: 0 | Y174: 113.06 | Z174: 113.06 | AA174: 0 | AB174: 113.06 | AC174: 113.06 | AD174: 0 | AE174: 113.06 | AF174: 0.88 | AU174: =W174+X174 -> 113.06 | AV174: 74.95 | AW174: =+Z174+AA174 -> 113.06 | AX174: 78.17 | AY174: 113.06 | AZ174: 80.6 | BB174: (ni podpore 2011/2) | BC174: (ni podpore 2011/2) | BD174: (ni podpore 2011/2) | BE174: (ni podpore 2011/2) | BF174: (ni podpore 2013) | BG174: (ni podpore 2013) | BH174: 0 | BI174: 3.22 | BJ174: 0 | BK174: 2.43
A175: SE12-2014feb | B175: 3.1 Sončne elektrarne - na stavbah 2014 februar | D175: mala - manjše od 1MW | E175: SE12 | W175: 103.4 | X175: 0 | Y175: 103.4 | Z175: 103.4 | AA175: 0 | AB175: 103.4 | AC175: 103.4 | AD175: 0 | AE175: 103.4 | AF175: 0.88 | AU175: =W175+X175 -> 103.4 | AV175: 65.29 | AW175: =+Z175+AA175 -> 103.4 | AX175: 68.51 | AY175: 103.4 | AZ175: 70.94 | BB175: (ni podpore 2011/2) | BC175: (ni podpore 2011/2) | BD175: (ni podpore 2011/2) | BE175: (ni podpore 2011/2) | BF175: (ni podpore 2013) | BG175: (ni podpore 2013) | BH175: 0 | BI175: 3.22 | BJ175: 0 | BK175: 2.43
A176: SE13-2014feb | B176: 3.1 Sončne elektrarne - na stavbah 2014 februar | D176: srednja - od 1MW do vključno 10MW | E176: SE13 | W176: 85.79 | X176: 0 | Y176: 85.79 | Z176: 85.79 | AA176: 0 | AB176: 85.79 | AC176: 85.79 | AD176: 0 | AE176: 85.79 | AF176: 0.91 | AU176: =W176+X176 -> 85.79 | AV176: 46.38 | AW176: =+Z176+AA176 -> 85.79 | AX176: 49.71 | AY176: 85.79 | AZ176: 52.22 | BB176: (ni podpore 2011/2) | BC176: (ni podpore 2011/2) | BD176: (ni podpore 2011/2) | BE176: (ni podpore 2011/2) | BF176: (ni podpore 2013) | BG176: (ni podpore 2013) | BH176: 0 | BI176: 3.33 | BJ176: 0 | BK176: 2.51
A177: SE14-2014feb | B177: 3.1 Sončne elektrarne - na stavbah 2014 februar | D177: velika - nad 10MW do vključno 125MW | E177: SE14 | W177: 76.36 | X177: 0 | Y177: 76.36 | Z177: 76.36 | AA177: 0 | AB177: 76.36 | AC177: 76.36 | AD177: 0 | AE177: 76.36 | AF177: 1 | AU177: (ni ZO) | AV177: 33.05 | AW177: (ni ZO) | AX177: 36.71 | AY177: (ni ZO) | AZ177: 39.47 | BB177: (ni podpore 2011/2) | BC177: (ni podpore 2011/2) | BD177: (ni podpore 2011/2) | BE177: (ni podpore 2011/2) | BF177: (ni podpore 2013) | BG177: (ni podpore 2013) | BH177: (ni ZO) | BI177: 3.66 | BJ177: (ni ZO) | BK177: 2.76
A178: SE21-2014feb | B178: 3.2 Sončne elektrarne - ostale 2014 februar | D178: mikro - manjše od 50kW | E178: SE21 | W178: 106.22 | X178: 0 | Y178: 106.22 | Z178: 106.22 | AA178: 0 | AB178: 106.22 | AC178: 106.22 | AD178: 0 | AE178: 106.22 | AF178: 0.88 | AU178: =W178+X178 -> 106.22 | AV178: 68.11 | AW178: =+Z178+AA178 -> 106.22 | AX178: 71.33 | AY178: 106.22 | AZ178: 73.76 | BB178: (ni podpore 2011/2) | BC178: (ni podpore 2011/2) | BD178: (ni podpore 2011/2) | BE178: (ni podpore 2011/2) | BF178: (ni podpore 2013) | BG178: (ni podpore 2013) | BH178: 0 | BI178: 3.22 | BJ178: 0 | BK178: 2.43
A179: SE22-2014feb | B179: 3.2 Sončne elektrarne - ostale 2014 februar | D179: mala - manjše od 1MW | E179: SE22 | W179: 97.86 | X179: 0 | Y179: 97.86 | Z179: 97.86 | AA179: 0 | AB179: 97.86 | AC179: 97.86 | AD179: 0 | AE179: 97.86 | AF179: 0.88 | AU179: =W179+X179 -> 97.86 | AV179: 59.75 | AW179: =+Z179+AA179 -> 97.86 | AX179: 62.97 | AY179: 97.86 | AZ179: 65.4 | BB179: (ni podpore 2011/2) | BC179: (ni podpore 2011/2) | BD179: (ni podpore 2011/2) | BE179: (ni podpore 2011/2) | BF179: (ni podpore 2013) | BG179: (ni podpore 2013) | BH179: 0 | BI179: 3.22 | BJ179: 0 | BK179: 2.43
A180: SE23-2014feb | B180: 3.2 Sončne elektrarne - ostale 2014 februar | D180: srednja - od 1MW do vključno 10MW | E180: SE23 | W180: 78.9 | X180: 0 | Y180: 78.9 | Z180: 78.9 | AA180: 0 | AB180: 78.9 | AC180: 78.9 | AD180: 0 | AE180: 78.9 | AF180: 0.91 | AU180: =W180+X180 -> 78.9 | AV180: 39.49 | AW180: =+Z180+AA180 -> 78.9 | AX180: 42.82 | AY180: 78.9 | AZ180: 45.33 | BB180: (ni podpore 2011/2) | BC180: (ni podpore 2011/2) | BD180: (ni podpore 2011/2) | BE180: (ni podpore 2011/2) | BF180: (ni podpore 2013) | BG180: (ni podpore 2013) | BH180: 0 | BI180: 3.33 | BJ180: 0 | BK180: 2.51
A181: SE24-2014feb | B181: 3.2 Sončne elektrarne - ostale 2014 februar | D181: velika - nad 10MW do vključno 125MW | E181: SE24 | W181: 73.25 | X181: 0 | Y181: 73.25 | Z181: 73.25 | AA181: 0 | AB181: 73.25 | AC181: 73.25 | AD181: 0 | AE181: 73.25 | AF181: 1 | AU181: (ni ZO) | AV181: 29.94 | AW181: (ni ZO) | AX181: 33.6 | AY181: (ni ZO) | AZ181: 36.36 | BB181: (ni podpore 2011/2) | BC181: (ni podpore 2011/2) | BD181: (ni podpore 2011/2) | BE181: (ni podpore 2011/2) | BF181: (ni podpore 2013) | BG181: (ni podpore 2013) | BH181: (ni ZO) | BI181: 3.66 | BJ181: (ni ZO) | BK181: 2.76
A182: SE11-2014mar | B182: 3.1 Sončne elektrarne - na stavbah 2014 marec | D182: mikro - manjše od 50kW | E182: SE11 | W182: 110.8 | X182: 0 | Y182: 110.8 | Z182: 110.8 | AA182: 0 | AB182: 110.8 | AC182: 110.8 | AD182: 0 | AE182: 110.8 | AF182: 0.88 | AU182: =W182+X182 -> 110.8 | AV182: 72.69 | AW182: =+Z182+AA182 -> 110.8 | AX182: 75.91 | AY182: 110.8 | AZ182: 78.34 | BB182: (ni podpore 2011/2) | BC182: (ni podpore 2011/2) | BD182: (ni podpore 2011/2) | BE182: (ni podpore 2011/2) | BF182: (ni podpore 2013) | BG182: (ni podpore 2013) | BH182: 0 | BI182: 3.22 | BJ182: 0 | BK182: 2.43
A183: SE12-2014mar | B183: 3.1 Sončne elektrarne - na stavbah 2014 marec | D183: mala - manjše od 1MW | E183: SE12 | W183: 101.33 | X183: 0 | Y183: 101.33 | Z183: 101.33 | AA183: 0 | AB183: 101.33 | AC183: 101.33 | AD183: 0 | AE183: 101.33 | AF183: 0.88 | AU183: =W183+X183 -> 101.33 | AV183: 63.22 | AW183: =+Z183+AA183 -> 101.33 | AX183: 66.44 | AY183: 101.33 | AZ183: 68.87 | BB183: (ni podpore 2011/2) | BC183: (ni podpore 2011/2) | BD183: (ni podpore 2011/2) | BE183: (ni podpore 2011/2) | BF183: (ni podpore 2013) | BG183: (ni podpore 2013) | BH183: 0 | BI183: 3.22 | BJ183: 0 | BK183: 2.43
A184: SE13-2014mar | B184: 3.1 Sončne elektrarne - na stavbah 2014 marec | D184: srednja - od 1MW do vključno 10MW | E184: SE13 | W184: 84.07 | X184: 0 | Y184: 84.07 | Z184: 84.07 | AA184: 0 | AB184: 84.07 | AC184: 84.07 | AD184: 0 | AE184: 84.07 | AF184: 0.91 | AU184: =W184+X184 -> 84.07 | AV184: 44.66 | AW184: =+Z184+AA184 -> 84.07 | AX184: 47.99 | AY184: 84.07 | AZ184: 50.5 | BB184: (ni podpore 2011/2) | BC184: (ni podpore 2011/2) | BD184: (ni podpore 2011/2) | BE184: (ni podpore 2011/2) | BF184: (ni podpore 2013) | BG184: (ni podpore 2013) | BH184: 0 | BI184: 3.33 | BJ184: 0 | BK184: 2.51
A185: SE14-2014mar | B185: 3.1 Sončne elektrarne - na stavbah 2014 marec | D185: velika - nad 10MW do vključno 125MW | E185: SE14 | W185: 74.83 | X185: 0 | Y185: 74.83 | Z185: 74.83 | AA185: 0 | AB185: 74.83 | AC185: 74.83 | AD185: 0 | AE185: 74.83 | AF185: 1 | AU185: (ni ZO) | AV185: 31.52 | AW185: (ni ZO) | AX185: 35.18 | AY185: (ni ZO) | AZ185: 37.94 | BB185: (ni podpore 2011/2) | BC185: (ni podpore 2011/2) | BD185: (ni podpore 2011/2) | BE185: (ni podpore 2011/2) | BF185: (ni podpore 2013) | BG185: (ni podpore 2013) | BH185: (ni ZO) | BI185: 3.66 | BJ185: (ni ZO) | BK185: 2.76
A186: SE21-2014mar | B186: 3.2 Sončne elektrarne - ostale 2014 marec | D186: mikro - manjše od 50kW | E186: SE21 | W186: 104.1 | X186: 0 | Y186: 104.1 | Z186: 104.1 | AA186: 0 | AB186: 104.1 | AC186: 104.1 | AD186: 0 | AE186: 104.1 | AF186: 0.88 | AU186: =W186+X186 -> 104.1 | AV186: 65.99 | AW186: =+Z186+AA186 -> 104.1 | AX186: 69.21 | AY186: 104.1 | AZ186: 71.64 | BB186: (ni podpore 2011/2) | BC186: (ni podpore 2011/2) | BD186: (ni podpore 2011/2) | BE186: (ni podpore 2011/2) | BF186: (ni podpore 2013) | BG186: (ni podpore 2013) | BH186: 0 | BI186: 3.22 | BJ186: 0 | BK186: 2.43
A187: SE22-2014mar | B187: 3.2 Sončne elektrarne - ostale 2014 marec | D187: mala - manjše od 1MW | E187: SE22 | W187: 95.9 | X187: 0 | Y187: 95.9 | Z187: 95.9 | AA187: 0 | AB187: 95.9 | AC187: 95.9 | AD187: 0 | AE187: 95.9 | AF187: 0.88 | AU187: =W187+X187 -> 95.9 | AV187: 57.79 | AW187: =+Z187+AA187 -> 95.9 | AX187: 61.01 | AY187: 95.9 | AZ187: 63.44 | BB187: (ni podpore 2011/2) | BC187: (ni podpore 2011/2) | BD187: (ni podpore 2011/2) | BE187: (ni podpore 2011/2) | BF187: (ni podpore 2013) | BG187: (ni podpore 2013) | BH187: 0 | BI187: 3.22 | BJ187: 0 | BK187: 2.43
A188: SE23-2014mar | B188: 3.2 Sončne elektrarne - ostale 2014 marec | D188: srednja - od 1MW do vključno 10MW | E188: SE23 | W188: 77.32 | X188: 0 | Y188: 77.32 | Z188: 77.32 | AA188: 0 | AB188: 77.32 | AC188: 77.32 | AD188: 0 | AE188: 77.32 | AF188: 0.91 | AU188: =W188+X188 -> 77.32 | AV188: 37.91 | AW188: =+Z188+AA188 -> 77.32 | AX188: 41.24 | AY188: 77.32 | AZ188: 43.75 | BB188: (ni podpore 2011/2) | BC188: (ni podpore 2011/2) | BD188: (ni podpore 2011/2) | BE188: (ni podpore 2011/2) | BF188: (ni podpore 2013) | BG188: (ni podpore 2013) | BH188: 0 | BI188: 3.33 | BJ188: 0 | BK188: 2.51
A189: SE24-2014mar | B189: 3.2 Sončne elektrarne - ostale 2014 marec | D189: velika - nad 10MW do vključno 125MW | E189: SE24 | W189: 71.79 | X189: 0 | Y189: 71.79 | Z189: 71.79 | AA189: 0 | AB189: 71.79 | AC189: 71.79 | AD189: 0 | AE189: 71.79 | AF189: 1 | AU189: (ni ZO) | AV189: 28.48 | AW189: (ni ZO) | AX189: 32.14 | AY189: (ni ZO) | AZ189: 34.9 | BB189: (ni podpore 2011/2) | BC189: (ni podpore 2011/2) | BD189: (ni podpore 2011/2) | BE189: (ni podpore 2011/2) | BF189: (ni podpore 2013) | BG189: (ni podpore 2013) | BH189: (ni ZO) | BI189: 3.66 | BJ189: (ni ZO) | BK189: 2.76
A190: SE11-2014apr | B190: 3.1 Sončne elektrarne - na stavbah 2014 april | D190: mikro - manjše od 50kW | E190: SE11 | W190: 108.58 | X190: 0 | Y190: 108.58 | Z190: 108.58 | AA190: 0 | AB190: 108.58 | AC190: 108.58 | AD190: 0 | AE190: 108.58 | AF190: 0.88 | AU190: =W190+X190 -> 108.58 | AV190: 70.47 | AW190: =+Z190+AA190 -> 108.58 | AX190: 73.69 | AY190: 108.58 | AZ190: 76.12 | BB190: (ni podpore 2011/2) | BC190: (ni podpore 2011/2) | BD190: (ni podpore 2011/2) | BE190: (ni podpore 2011/2) | BF190: (ni podpore 2013) | BG190: (ni podpore 2013) | BH190: 0 | BI190: 3.22 | BJ190: 0 | BK190: 2.43
A191: SE12-2014apr | B191: 3.1 Sončne elektrarne - na stavbah 2014 april | D191: mala - manjše od 1MW | E191: SE12 | W191: 99.3 | X191: 0 | Y191: 99.3 | Z191: 99.3 | AA191: 0 | AB191: 99.3 | AC191: 99.3 | AD191: 0 | AE191: 99.3 | AF191: 0.88 | AU191: =W191+X191 -> 99.3 | AV191: 61.19 | AW191: =+Z191+AA191 -> 99.3 | AX191: 64.41 | AY191: 99.3 | AZ191: 66.84 | BB191: (ni podpore 2011/2) | BC191: (ni podpore 2011/2) | BD191: (ni podpore 2011/2) | BE191: (ni podpore 2011/2) | BF191: (ni podpore 2013) | BG191: (ni podpore 2013) | BH191: 0 | BI191: 3.22 | BJ191: 0 | BK191: 2.43
A192: SE13-2014apr | B192: 3.1 Sončne elektrarne - na stavbah 2014 april | D192: srednja - od 1MW do vključno 10MW | E192: SE13 | W192: 82.39 | X192: 0 | Y192: 82.39 | Z192: 82.39 | AA192: 0 | AB192: 82.39 | AC192: 82.39 | AD192: 0 | AE192: 82.39 | AF192: 0.91 | AU192: =W192+X192 -> 82.39 | AV192: 42.98 | AW192: =+Z192+AA192 -> 82.39 | AX192: 46.31 | AY192: 82.39 | AZ192: 48.82 | BB192: (ni podpore 2011/2) | BC192: (ni podpore 2011/2) | BD192: (ni podpore 2011/2) | BE192: (ni podpore 2011/2) | BF192: (ni podpore 2013) | BG192: (ni podpore 2013) | BH192: 0 | BI192: 3.33 | BJ192: 0 | BK192: 2.51
A193: SE14-2014apr | B193: 3.1 Sončne elektrarne - na stavbah 2014 april | D193: velika - nad 10MW do vključno 125MW | E193: SE14 | W193: 73.33 | X193: 0 | Y193: 73.33 | Z193: 73.33 | AA193: 0 | AB193: 73.33 | AC193: 73.33 | AD193: 0 | AE193: 73.33 | AF193: 1 | AU193: (ni ZO) | AV193: 30.02 | AW193: (ni ZO) | AX193: 33.68 | AY193: (ni ZO) | AZ193: 36.44 | BB193: (ni podpore 2011/2) | BC193: (ni podpore 2011/2) | BD193: (ni podpore 2011/2) | BE193: (ni podpore 2011/2) | BF193: (ni podpore 2013) | BG193: (ni podpore 2013) | BH193: (ni ZO) | BI193: 3.66 | BJ193: (ni ZO) | BK193: 2.76
A194: SE21-2014apr | B194: 3.2 Sončne elektrarne - ostale 2014 april | D194: mikro - manjše od 50kW | E194: SE21 | W194: 102.02 | X194: 0 | Y194: 102.02 | Z194: =+W194 -> 102.02 | AA194: =+X194 -> 0 | AB194: =+Z194+AA194 -> 102.02 | AC194: 102.02 | AD194: 0 | AE194: 102.02 | AF194: 0.88 | AU194: =W194+X194 -> 102.02 | AV194: =ROUND((W194+X194)-AF194*$G$326,2) -> 63.91 | AW194: =+Z194+AA194 -> 102.02 | AX194: =ROUND((Z194+AA194)-AF194*$F$326,2) -> 67.13 | AY194: 102.02 | AZ194: 69.56 | BB194: (ni podpore 2011/2) | BC194: (ni podpore 2011/2) | BD194: (ni podpore 2011/2) | BE194: (ni podpore 2011/2) | BF194: (ni podpore 2013) | BG194: (ni podpore 2013) | BH194: 0 | BI194: 3.22 | BJ194: =AY194-AW194 -> 0 | BK194: =AZ194-AX194 -> 2.43
A195: SE22-2014apr | B195: 3.2 Sončne elektrarne - ostale 2014 april | D195: mala - manjše od 1MW | E195: SE22 | W195: 93.98 | X195: 0 | Y195: 93.98 | Z195: 93.98 | AA195: 0 | AB195: 93.98 | AC195: =+Z195 -> 93.98 | AD195: =+AA195 -> 0 | AE195: =+AC195+AD195 -> 93.98 | AF195: 0.88 | AU195: =W195+X195 -> 93.98 | AV195: 55.87 | AW195: =+Z195+AA195 -> 93.98 | AX195: 59.09 | AY195: =+AC195+AD195 -> 93.98 | AZ195: =ROUND((AC195+AD195)-AF195*$E$326,2) -> 61.52 | BB195: (ni podpore 2011/2) | BC195: (ni podpore 2011/2) | BD195: (ni podpore 2011/2) | BE195: (ni podpore 2011/2) | BF195: (ni podpore 2013) | BG195: (ni podpore 2013) | BH195: =AW195-AU195 -> 0 | BI195: =AX195-AV195 -> 3.22 | BJ195: 0 | BK195: 2.43
A196: SE23-2014apr | B196: 3.2 Sončne elektrarne - ostale 2014 april | D196: srednja - od 1MW do vključno 10MW | E196: SE23 | W196: 75.77 | X196: 0 | Y196: 75.77 | Z196: 75.77 | AA196: 0 | AB196: 75.77 | AC196: 75.77 | AD196: 0 | AE196: 75.77 | AF196: 0.91 | AU196: =W196+X196 -> 75.77 | AV196: 36.36 | AW196: =+Z196+AA196 -> 75.77 | AX196: 39.69 | AY196: 75.77 | AZ196: 42.2 | BB196: (ni podpore 2011/2) | BC196: (ni podpore 2011/2) | BD196: (ni podpore 2011/2) | BE196: (ni podpore 2011/2) | BF196: (ni podpore 2013) | BG196: (ni podpore 2013) | BH196: 0 | BI196: 3.33 | BJ196: 0 | BK196: 2.51
A197: SE24-2014apr | B197: 3.2 Sončne elektrarne - ostale 2014 april | D197: velika - nad 10MW do vključno 125MW | E197: SE24 | W197: 70.35 | X197: 0 | Y197: 70.35 | Z197: 70.35 | AA197: 0 | AB197: 70.35 | AC197: 70.35 | AD197: 0 | AE197: 70.35 | AF197: 1 | AU197: (ni ZO) | AV197: 27.04 | AW197: (ni ZO) | AX197: 30.7 | AY197: (ni ZO) | AZ197: 33.46 | BB197: (ni podpore 2011/2) | BC197: (ni podpore 2011/2) | BD197: (ni podpore 2011/2) | BE197: (ni podpore 2011/2) | BF197: (ni podpore 2013) | BG197: (ni podpore 2013) | BH197: (ni ZO) | BI197: 3.66 | BJ197: (ni ZO) | BK197: 2.76
A198: SE11-2014maj | B198: 3.1 Sončne elektrarne - na stavbah 2014 maj | D198: mikro - manjše od 50kW | E198: SE11 | W198: 106.41 | X198: 0 | Y198: 106.41 | Z198: 106.41 | AA198: 0 | AB198: 106.41 | AC198: 106.41 | AD198: 0 | AE198: 106.41 | AF198: 0.88 | AU198: =W198+X198 -> 106.41 | AV198: 68.3 | AW198: =+Z198+AA198 -> 106.41 | AX198: 71.52 | AY198: 106.41 | AZ198: 73.95 | BB198: (ni podpore 2011/2) | BC198: (ni podpore 2011/2) | BD198: (ni podpore 2011/2) | BE198: (ni podpore 2011/2) | BF198: (ni podpore 2013) | BG198: (ni podpore 2013) | BH198: 0 | BI198: 3.22 | BJ198: 0 | BK198: 2.43
A199: SE12-2014maj | B199: 3.1 Sončne elektrarne - na stavbah 2014 maj | D199: mala - manjše od 1MW | E199: SE12 | W199: =ROUND(0.98*W191,2) -> 97.31 | X199: 0 | Y199: 97.31 | Z199: 97.31 | AA199: 0 | AB199: 97.31 | AC199: 97.31 | AD199: 0 | AE199: 97.31 | AF199: 0.88 | AU199: =W199+X199 -> 97.31 | AV199: 59.2 | AW199: =+Z199+AA199 -> 97.31 | AX199: 62.42 | AY199: 97.31 | AZ199: 64.85 | BB199: (ni podpore 2011/2) | BC199: (ni podpore 2011/2) | BD199: (ni podpore 2011/2) | BE199: (ni podpore 2011/2) | BF199: (ni podpore 2013) | BG199: (ni podpore 2013) | BH199: 0 | BI199: 3.22 | BJ199: 0 | BK199: 2.43
A200: SE13-2014maj | B200: 3.1 Sončne elektrarne - na stavbah 2014 maj | D200: srednja - od 1MW do vključno 10MW | E200: SE13 | W200: 80.74 | X200: 0 | Y200: 80.74 | Z200: 80.74 | AA200: 0 | AB200: 80.74 | AC200: 80.74 | AD200: 0 | AE200: 80.74 | AF200: 0.91 | AU200: =W200+X200 -> 80.74 | AV200: 41.33 | AW200: =+Z200+AA200 -> 80.74 | AX200: 44.66 | AY200: 80.74 | AZ200: 47.17 | BB200: (ni podpore 2011/2) | BC200: (ni podpore 2011/2) | BD200: (ni podpore 2011/2) | BE200: (ni podpore 2011/2) | BF200: (ni podpore 2013) | BG200: (ni podpore 2013) | BH200: 0 | BI200: 3.33 | BJ200: 0 | BK200: 2.51
... 145 more rows

Sheet OPOMBE (hidden)
A2: Upoštevani parametri AGEN-RS za 2012
A4: elektrika | B4: 55.79 | C4: EUR/MWh
A5: plin | B5: 0.3768 | C5: EUR/Sm3
A6: lesna biomasa | B6: 54.47 | C6: EUR/t
A7: koruzna silaža | B7: 24 | C7: EUR/t
A8: premog | B8: 2.65 | C8: EUR/GJ
A10: v28nov11
A11: popravljeni SDRS 2012 za skupino SF2
A13: v23dec11
A14: dodani H1 in H2 za 2012 za PV (RSEE) glede na spremembo uredbe OVE
A16: v20nov12
A17: Narejena verzija za podpore 2013 - manjkajo še PV instalirane v 2013
A18: Upoštevani parametri AGEN
A19: EE | B19: €/MWh | C19: 50.66
A20: PREMOG | B20: EUR/GJ | C20: 2.61
A21: LB sosežig | B21: EUR/GJ | C21: 8.27
A22: lesna biomasa - Clb | B22: €/t | C22: 58.5
A23: koruzna silaža - Cs | B23: EUR/t | C23: 24
A24: zemeljski plin - Cb | B24: €/Sm3 | C24: 0.4087
A26: v3jan13
A28: cena koruzne silaže popravljena iz 24 na 32 glede na objavo AGEN-RS z dne 31.12.2012
A30: v18jul14
A31: korigirana cena plina za drugo polovico 2014 (1.7.-31.12.)
A33: v2dec14
A34: popravljena formula pri BP13 SDRS

Sheet Podpore 2014 (hidden)
A1: VIŠINE PODPOR 2014
D3: KODA | E3: NDRS 2014 | F3: SDRS 2014 | G3: Skupni 2014 | H3: Faktor B po Prilogi III | I3: Cena ZO 2014 | J3: Višina OP 2014 | L3: ZO2014 - ZO2013 | M3: OP2014 - OP2013
A4: HE01 | B4: 1. Hidroelektrarne | C4: mikro - manjše od 50kW | D4: HE01 | E4: 105.47 | F4: 0 | G4: 105.47 | H4: 0.86 | I4: 105.47 | J4: 68.22 | L4: 0 | M4: 6.32
A5: HE02 | C5: mala - manjše od 1MW | D5: HE02 | E5: 92.61 | F5: 0 | G5: 92.61 | H5: 0.86 | I5: 92.61 | J5: 55.36 | L5: 0 | M5: 6.32
A6: HE03 | C6: srednja - od 1MW do vključno 10MW | D6: HE03 | E6: 82.34 | F6: 0 | G6: 82.34 | H6: 0.9 | I6: 82.34 | J6: 43.36 | L6: 0 | M6: 6.61
A7: HE04 | C7: velika - nad 10MW do vključno 125MW | D7: HE04 | E7: 76.57 | F7: 0 | G7: 76.57 | H7: 0.9 | I7: (ni ZO) | J7: 37.59 | L7: (ni ZO) | M7: 6.61
A8: VE01 | B8: 2. Vetrne elektrarne | C8: mikro - manjše od 50kW | D8: VE01 | E8: 95.38 | F8: 0 | G8: 95.38 | H8: 0.8 | I8: 95.38 | J8: 60.73 | L8: 0 | M8: 5.88
A9: VE02 | C9: mala - manjše od 1MW | D9: VE02 | E9: 95.38 | F9: 0 | G9: 95.38 | H9: 0.8 | I9: 95.38 | J9: 60.73 | L9: 0 | M9: 5.88
A10: VE03 | C10: srednja - od 1MW do vključno 10MW | D10: VE03 | E10: 95.38 | F10: 0 | G10: 95.38 | H10: 0.8 | I10: 95.38 | J10: 60.73 | L10: 0 | M10: 5.88
A11: VE04 | C11: velika - nad 10MW do vključno 125MW | D11: VE04 | E11: 86.74 | F11: 0 | G11: 86.74 | H11: 0.86 | I11: (ni ZO) | J11: 49.49 | L11: (ni ZO) | M11: 6.32
A12: SE11-2009 | B12: 3.1 Sončne elektrarne - na stavbah 2009 | C12: mikro - manjše od 50kW | D12: SE11 | E12: 415.46 | F12: 0 | G12: 415.46 | H12: 0.88 | I12: 415.46 | J12: 377.35 | L12: 0 | M12: 6.47
A13: SE12-2009 | C13: mala - manjše od 1MW | D13: SE12 | E13: 380.02 | F13: 0 | G13: 380.02 | H13: 0.88 | I13: 380.02 | J13: 341.91 | L13: 0 | M13: 6.47
A14: SE13-2009 | C14: srednja - od 1MW do vključno 10MW | D14: SE13 | E14: 315.36 | F14: 0 | G14: 315.36 | H14: 0.91 | I14: 315.36 | J14: 275.95 | L14: 0 | M14: 6.69
A15: SE14-2009 | C15: velika - nad 10MW do vključno 125MW | D15: SE14 | E15: 280.71 | F15: 0 | G15: 280.71 | H15: 1 | I15: (ni ZO) | J15: 237.4 | L15: (ni ZO) | M15: 7.35
B16: 3.1. INT Sončne elektrarne - integrirane 2009 | C16: mikro - manjše od 50kW | E16: 477.78 | F16: 0 | G16: 477.78 | H16: 0.88 | I16: 477.78 | J16: 439.67 | L16: 0 | M16: 6.47
C17: mala - manjše od 1MW | E17: 437.02 | F17: 0 | G17: 437.02 | H17: 0.88 | I17: 437.02 | J17: 398.91 | L17: 0 | M17: 6.47
C18: srednja - od 1MW do vključno 10MW | E18: 362.66 | F18: 0 | G18: 362.66 | H18: 0.91 | I18: 362.66 | J18: 323.25 | L18: 0 | M18: 6.69
C19: velika - nad 10MW do vključno 125MW | E19: 322.82 | F19: 0 | G19: 322.82 | H19: 1 | I19: (ni ZO) | J19: 279.51 | L19: (ni ZO) | M19: 7.35
A20: SE21-2009 | B20: 3.2 Sončne elektrarne - samostojni objekti 2009 | C20: mikro - manjše od 50kW | D20: SE21 | E20: 390.42 | F20: 0 | G20: 390.42 | H20: 0.88 | I20: 390.42 | J20: 352.31 | L20: 0 | M20: 6.47
A21: SE22-2009 | C21: mala - manjše od 1MW | D21: SE22 | E21: 359.71 | F21: 0 | G21: 359.71 | H21: 0.88 | I21: 359.71 | J21: 321.6 | L21: 0 | M21: 6.47
A22: SE23-2009 | C22: srednja - od 1MW do vključno 10MW | D22: SE23 | E22: 289.98 | F22: 0 | G22: 289.98 | H22: 0.91 | I22: 289.98 | J22: 250.57 | L22: 0 | M22: 6.69
A23: SE24-2009 | C23: velika - nad 10MW do vključno 125MW | D23: SE24 | E23: 269.22 | F23: 0 | G23: 269.22 | H23: 1 | I23: (ni ZO) | J23: 225.91 | L23: (ni ZO) | M23: 7.35
A24: SE11-2010 | B24: 3.1 Sončne elektrarne - na stavbah 2010 | C24: mikro - manjše od 50kW | D24: SE11 | E24: 386.38 | F24: 0 | G24: 386.38 | H24: 0.88 | I24: 386.38 | J24: 348.27 | L24: 0 | M24: 6.47
A25: SE12-2010 | C25: mala - manjše od 1MW | D25: SE12 | E25: 353.42 | F25: 0 | G25: 353.42 | H25: 0.88 | I25: 353.42 | J25: 315.31 | L25: 0 | M25: 6.47
A26: SE13-2010 | C26: srednja - od 1MW do vključno 10MW | D26: SE13 | E26: 293.28 | F26: 0 | G26: 293.28 | H26: 0.91 | I26: 293.28 | J26: 253.87 | L26: 0 | M26: 6.69
A27: SE14-2010 | C27: velika - nad 10MW do vključno 125MW | D27: SE14 | E27: 261.06 | F27: 0 | G27: 261.06 | H27: 1 | I27: (ni ZO) | J27: 217.75 | L27: (ni ZO) | M27: 7.35
B28: 3.1 INT Sončne elektrarne - integrirane 2010 | C28: mikro - manjše od 50kW | E28: 444.34 | F28: 0 | G28: 444.34 | H28: 0.88 | I28: 444.34 | J28: 406.23 | L28: 0 | M28: 6.47
C29: mala - manjše od 1MW | E29: 406.43 | F29: 0 | G29: 406.43 | H29: 0.88 | I29: 406.43 | J29: 368.32 | L29: 0 | M29: 6.47
C30: srednja - od 1MW do vključno 10MW | E30: 337.27 | F30: 0 | G30: 337.27 | H30: 0.91 | I30: 337.27 | J30: 297.86 | L30: 0 | M30: 6.69
C31: velika - nad 10MW do vključno 125MW | E31: 300.22 | F31: 0 | G31: 300.22 | H31: 1 | I31: (ni ZO) | J31: 256.91 | L31: (ni ZO) | M31: 7.35
A32: SE21-2010 | B32: 3.2 Sončne elektrarne - samostojni objekti 2010 | C32: mikro - manjše od 50kW | D32: SE21 | E32: 363.09 | F32: 0 | G32: 363.09 | H32: 0.88 | I32: 363.09 | J32: 324.98 | L32: 0 | M32: 6.47
A33: SE22-2010 | C33: mala - manjše od 1MW | D33: SE22 | E33: 334.53 | F33: 0 | G33: 334.53 | H33: 0.88 | I33: 334.53 | J33: 296.42 | L33: 0 | M33: 6.47
A34: SE23-2010 | C34: srednja - od 1MW do vključno 10MW | D34: SE23 | E34: 269.68 | F34: 0 | G34: 269.68 | H34: 0.91 | I34: 269.68 | J34: 230.27 | L34: 0 | M34: 6.69
A35: SE24-2010 | C35: velika - nad 10MW do vključno 125MW | D35: SE24 | E35: 250.37 | F35: 0 | G35: 250.37 | H35: 1 | I35: (ni ZO) | J35: 207.06 | L35: (ni ZO) | M35: 7.35
A36: SE11-2011 | B36: 3.1 Sončne elektrarne - na stavbah 2011 | C36: mikro - manjše od 50kW | D36: SE11 | E36: 332.37 | F36: 0 | G36: 332.37 | H36: 0.88 | I36: 332.37 | J36: 294.26 | L36: 0 | M36: 6.47
A37: SE12-2011 | C37: mala - manjše od 1MW | D37: SE12 | E37: 304.02 | F37: 0 | G37: 304.02 | H37: 0.88 | I37: 304.02 | J37: 265.91 | L37: 0 | M37: 6.47
A38: SE13-2011 | C38: srednja - od 1MW do vključno 10MW | D38: SE13 | E38: 252.29 | F38: 0 | G38: 252.29 | H38: 0.91 | I38: 252.29 | J38: 212.88 | L38: 0 | M38: 6.69
A39: SE14-2011 | C39: velika - nad 10MW do vključno 125MW | D39: SE14 | E39: 224.57 | F39: 0 | G39: 224.57 | H39: 1 | I39: (ni ZO) | J39: 181.26 | L39: (ni ZO) | M39: 7.35
B40: 3.1 INT Sončne elektrarne - integrirane 2011 | C40: mikro - manjše od 50kW | E40: 382.23 | F40: 0 | G40: 382.23 | H40: 0.88 | I40: 382.23 | J40: 344.12 | L40: 0 | M40: 6.47
C41: mala - manjše od 1MW | E41: 349.62 | F41: 0 | G41: 349.62 | H41: 0.88 | I41: 349.62 | J41: 311.51 | L41: 0 | M41: 6.47
C42: srednja - od 1MW do vključno 10MW | E42: 290.13 | F42: 0 | G42: 290.13 | H42: 0.91 | I42: 290.13 | J42: 250.72 | L42: 0 | M42: 6.69
C43: velika - nad 10MW do vključno 125MW | E43: 258.26 | F43: 0 | G43: 258.26 | H43: 1 | I43: (ni ZO) | J43: 214.95 | L43: (ni ZO) | M43: 7.35
A44: SE21-2011 | B44: 3.2 Sončne elektrarne - samostojni objekti 2011 | C44: mikro - manjše od 50kW | D44: SE21 | E44: 312.34 | F44: 0 | G44: 312.34 | H44: 0.88 | I44: 312.34 | J44: 274.23 | L44: 0 | M44: 6.47
A45: SE22-2011 | C45: mala - manjše od 1MW | D45: SE22 | E45: 287.77 | F45: 0 | G45: 287.77 | H45: 0.88 | I45: 287.77 | J45: 249.66 | L45: 0 | M45: 6.47
A46: SE23-2011 | C46: srednja - od 1MW do vključno 10MW | D46: SE23 | E46: 231.98 | F46: 0 | G46: 231.98 | H46: 0.91 | I46: 231.98 | J46: 192.57 | L46: 0 | M46: 6.69
A47: SE24-2011 | C47: velika - nad 10MW do vključno 125MW | D47: SE24 | E47: 215.38 | F47: 0 | G47: 215.38 | H47: 1 | I47: (ni ZO) | J47: 172.07 | L47: (ni ZO) | M47: 7.35
A48: SE11-2012H1 | B48: 3.1 Sončne elektrarne - na stavbah 2012 H1 | C48: mikro - manjše od 50kW | D48: SE11 | E48: 290.82 | F48: 0 | G48: 290.82 | H48: 0.88 | I48: 290.82 | J48: 252.71 | L48: 0 | M48: 6.47
A49: SE12-2012H1 | C49: mala - manjše od 1MW | D49: SE12 | E49: 266.01 | F49: 0 | G49: 266.01 | H49: 0.88 | I49: 266.01 | J49: 227.9 | L49: 0 | M49: 6.47
A50: SE13-2012H1 | C50: srednja - od 1MW do vključno 10MW | D50: SE13 | E50: 220.75 | F50: 0 | G50: 220.75 | H50: 0.91 | I50: 220.75 | J50: 181.34 | L50: 0 | M50: 6.69
A51: SE14-2012H1 | C51: velika - nad 10MW do vključno 125MW | D51: SE14 | E51: 196.5 | F51: 0 | G51: 196.5 | H51: 1 | I51: (ni ZO) | J51: 153.19 | L51: (ni ZO) | M51: 7.35
A52: SE11-2012H2 | B52: 3.1 Sončne elektrarne - na stavbah 2012 H2 | C52: mikro - manjše od 50kW | D52: SE11 | E52: 197.55 | F52: 0 | G52: 197.55 | H52: 0.88 | I52: 197.55 | J52: 159.44 | L52: 0 | M52: 6.47
A53: SE12-2012H2 | C53: mala - manjše od 1MW | D53: SE12 | E53: 180.7 | F53: 0 | G53: 180.7 | H53: 0.88 | I53: 180.7 | J53: 142.59 | L53: 0 | M53: 6.47
A54: SE13-2012H2 | C54: srednja - od 1MW do vključno 10MW | D54: SE13 | E54: 149.95 | F54: 0 | G54: 149.95 | H54: 0.91 | I54: 149.95 | J54: 110.54 | L54: 0 | M54: 6.69
A55: SE14-2012H2 | C55: velika - nad 10MW do vključno 125MW | D55: SE14 | E55: 133.48 | F55: 0 | G55: 133.48 | H55: 1 | I55: (ni ZO) | J55: 90.17 | L55: (ni ZO) | M55: 7.35
A56: SE21-2012H1 | B56: 3.2 Sončne elektrarne - ostale 2012 H1 | C56: mikro - manjše od 50kW | D56: SE21 | E56: 273.29 | F56: 0 | G56: 273.29 | H56: 0.88 | I56: 273.29 | J56: 235.18 | L56: 0 | M56: 6.47
A57: SE22-2012H1 | C57: mala - manjše od 1MW | D57: SE22 | E57: 251.8 | F57: 0 | G57: 251.8 | H57: 0.88 | I57: 251.8 | J57: 213.69 | L57: 0 | M57: 6.47
A58: SE23-2012H1 | C58: srednja - od 1MW do vključno 10MW | D58: SE23 | E58: 202.99 | F58: 0 | G58: 202.99 | H58: 0.91 | I58: 202.99 | J58: 163.58 | L58: 0 | M58: 6.69
A59: SE24-2012H1 | C59: velika - nad 10MW do vključno 125MW | D59: SE24 | E59: 188.45 | F59: 0 | G59: 188.45 | H59: 1 | I59: (ni ZO) | J59: 145.14 | L59: (ni ZO) | M59: 7.35
A60: SE21-2012H2 | B60: 3.2 Sončne elektrarne - ostale 2012 H2 | C60: mikro - manjše od 50kW | D60: SE21 | E60: 185.64 | F60: 0 | G60: 185.64 | H60: 0.88 | I60: 185.64 | J60: 147.53 | L60: 0 | M60: 6.47
A61: SE22-2012H2 | C61: mala - manjše od 1MW | D61: SE22 | E61: 171.04 | F61: 0 | G61: 171.04 | H61: 0.88 | I61: 171.04 | J61: 132.93 | L61: 0 | M61: 6.47
A62: SE23-2012H2 | C62: srednja - od 1MW do vključno 10MW | D62: SE23 | E62: 137.89 | F62: 0 | G62: 137.89 | H62: 0.91 | I62: 137.89 | J62: 98.48 | L62: 0 | M62: 6.69
A63: SE24-2012H2 | C63: velika - nad 10MW do vključno 125MW | D63: SE24 | E63: 128.01 | F63: 0 | G63: 128.01 | H63: 1 | I63: (ni ZO) | J63: 84.7 | L63: (ni ZO) | M63: 7.35
A64: SE11-2012dec | B64: =CONCATENATE("3.1 Sončne elektrarne - na stavbah"," ",RIGHT(A64,7)) -> 3.1 Sončne elektrarne - na stavbah 2012dec | C64: mikro - manjše od 50kW | D64: SE11 | E64: 150 | F64: 0 | G64: 150 | H64: 0.88 | I64: 150 | J64: 111.89 | L64: 0 | M64: 6.47
A65: SE12-2012dec | C65: mala - manjše od 1MW | D65: SE12 | E65: 137.19 | F65: 0 | G65: 137.19 | H65: 0.88 | I65: 137.19 | J65: 99.08 | L65: 0 | M65: 6.47
A66: SE13-2012dec | C66: srednja - od 1MW do vključno 10MW | D66: SE13 | E66: 113.85 | F66: 0 | G66: 113.85 | H66: 0.91 | I66: 113.85 | J66: 74.44 | L66: 0 | M66: 6.69
A67: SE14-2012dec | C67: velika - nad 10MW do vključno 125MW | D67: SE14 | E67: 101.34 | F67: 0 | G67: 101.34 | H67: 1 | I67: (ni ZO) | J67: 58.03 | L67: (ni ZO) | M67: 7.35
A68: SE21-2012dec | B68: =CONCATENATE("3.2 Sončne elektrarne - ostale"," ",RIGHT(A68,7)) -> 3.2 Sončne elektrarne - ostale 2012dec | C68: mikro - manjše od 50kW | D68: SE21 | E68: 140.95 | F68: 0 | G68: 140.95 | H68: 0.88 | I68: 140.95 | J68: 102.84 | L68: 0 | M68: 6.47
A69: SE22-2012dec | C69: mala - manjše od 1MW | D69: SE22 | E69: 129.86 | F69: 0 | G69: 129.86 | H69: 0.88 | I69: 129.86 | J69: 91.75 | L69: 0 | M69: 6.47
A70: SE23-2012dec | C70: srednja - od 1MW do vključno 10MW | D70: SE23 | E70: 104.68 | F70: 0 | G70: 104.68 | H70: 0.91 | I70: 104.68 | J70: 65.27 | L70: 0 | M70: 6.69
A71: SE24-2012dec | C71: velika - nad 10MW do vključno 125MW | D71: SE24 | E71: 97.19 | F71: 0 | G71: 97.19 | H71: 1 | I71: (ni ZO) | J71: 53.88 | L71: (ni ZO) | M71: 7.35
A72: SE11-2013jan | B72: =CONCATENATE("3.1 Sončne elektrarne - na stavbah"," ",RIGHT(A72,7)) -> 3.1 Sončne elektrarne - na stavbah 2013jan | C72: mikro - manjše od 50kW | D72: SE11 | E72: 147 | F72: 0 | G72: 147 | H72: 0.88 | I72: 147 | J72: 108.89 | L72: 0 | M72: 6.47
A73: SE12-2013jan | C73: mala - manjše od 1MW | D73: SE12 | E73: 134.45 | F73: 0 | G73: 134.45 | H73: 0.88 | I73: 134.45 | J73: 96.34 | L73: 0 | M73: 6.47
A74: SE13-2013jan | C74: srednja - od 1MW do vključno 10MW | D74: SE13 | E74: 111.57 | F74: 0 | G74: 111.57 | H74: 0.91 | I74: 111.57 | J74: 72.16 | L74: 0 | M74: 6.69
A75: SE14-2013jan | C75: velika - nad 10MW do vključno 125MW | D75: SE14 | E75: 99.31 | F75: 0 | G75: 99.31 | H75: 1 | I75: (ni ZO) | J75: 56 | L75: (ni ZO) | M75: 7.35
A76: SE21-2013jan | B76: =CONCATENATE("3.2 Sončne elektrarne - ostale"," ",RIGHT(A76,7)) -> 3.2 Sončne elektrarne - ostale 2013jan | C76: mikro - manjše od 50kW | D76: SE21 | E76: 138.13 | F76: 0 | G76: 138.13 | H76: 0.88 | I76: 138.13 | J76: 100.02 | L76: 0 | M76: 6.47
A77: SE22-2013jan | C77: mala - manjše od 1MW | D77: SE22 | E77: 127.26 | F77: 0 | G77: 127.26 | H77: 0.88 | I77: 127.26 | J77: 89.15 | L77: 0 | M77: 6.47
A78: SE23-2013jan | C78: srednja - od 1MW do vključno 10MW | D78: SE23 | E78: 102.59 | F78: 0 | G78: 102.59 | H78: 0.91 | I78: 102.59 | J78: 63.18 | L78: 0 | M78: 6.69
A79: SE24-2013jan | C79: velika - nad 10MW do vključno 125MW | D79: SE24 | E79: 95.25 | F79: 0 | G79: 95.25 | H79: 1 | I79: (ni ZO) | J79: 51.94 | L79: (ni ZO) | M79: 7.35
A80: SE11-2013feb | B80: =CONCATENATE("3.1 Sončne elektrarne - na stavbah"," ",RIGHT(A80,7)) -> 3.1 Sončne elektrarne - na stavbah 2013feb | C80: mikro - manjše od 50kW | D80: SE11 | E80: 144.06 | F80: 0 | G80: 144.06 | H80: 0.88 | I80: 144.06 | J80: 105.95 | L80: 0 | M80: 6.47
A81: SE12-2013feb | C81: mala - manjše od 1MW | D81: SE12 | E81: 131.76 | F81: 0 | G81: 131.76 | H81: 0.88 | I81: 131.76 | J81: 93.65 | L81: 0 | M81: 6.47
A82: SE13-2013feb | C82: srednja - od 1MW do vključno 10MW | D82: SE13 | E82: 109.34 | F82: 0 | G82: 109.34 | H82: 0.91 | I82: 109.34 | J82: 69.93 | L82: 0 | M82: 6.69
A83: SE14-2013feb | C83: velika - nad 10MW do vključno 125MW | D83: SE14 | E83: 97.32 | F83: 0 | G83: 97.32 | H83: 1 | I83: (ni ZO) | J83: 54.01 | L83: (ni ZO) | M83: 7.35
A84: SE21-2013feb | B84: =CONCATENATE("3.2 Sončne elektrarne - ostale"," ",RIGHT(A84,7)) -> 3.2 Sončne elektrarne - ostale 2013feb | C84: mikro - manjše od 50kW | D84: SE21 | E84: 135.37 | F84: 0 | G84: 135.37 | H84: 0.88 | I84: 135.37 | J84: 97.26 | L84: 0 | M84: 6.47
A85: SE22-2013feb | C85: mala - manjše od 1MW | D85: SE22 | E85: 124.71 | F85: 0 | G85: 124.71 | H85: 0.88 | I85: 124.71 | J85: 86.6 | L85: 0 | M85: 6.47
A86: SE23-2013feb | C86: srednja - od 1MW do vključno 10MW | D86: SE23 | E86: 100.54 | F86: 0 | G86: 100.54 | H86: 0.91 | I86: 100.54 | J86: 61.13 | L86: 0 | M86: 6.69
A87: SE24-2013feb | C87: velika - nad 10MW do vključno 125MW | D87: SE24 | E87: 93.35 | F87: 0 | G87: 93.35 | H87: 1 | I87: (ni ZO) | J87: 50.04 | L87: (ni ZO) | M87: 7.35
A88: SE11-2013mar | B88: =CONCATENATE("3.1 Sončne elektrarne - na stavbah"," ",RIGHT(A88,7)) -> 3.1 Sončne elektrarne - na stavbah 2013mar | C88: mikro - manjše od 50kW | D88: SE11 | E88: 141.18 | F88: 0 | G88: 141.18 | H88: 0.88 | I88: 141.18 | J88: 103.07 | L88: 0 | M88: 6.47
A89: SE12-2013mar | C89: mala - manjše od 1MW | D89: SE12 | E89: 129.12 | F89: 0 | G89: 129.12 | H89: 0.88 | I89: 129.12 | J89: 91.01 | L89: 0 | M89: 6.47
A90: SE13-2013mar | C90: srednja - od 1MW do vključno 10MW | D90: SE13 | E90: 107.15 | F90: 0 | G90: 107.15 | H90: 0.91 | I90: 107.15 | J90: 67.74 | L90: 0 | M90: 6.69
A91: SE14-2013mar | C91: velika - nad 10MW do vključno 125MW | D91: SE14 | E91: 95.37 | F91: 0 | G91: 95.37 | H91: 1 | I91: (ni ZO) | J91: 52.06 | L91: (ni ZO) | M91: 7.35
A92: SE21-2013mar | B92: =CONCATENATE("3.2 Sončne elektrarne - ostale"," ",RIGHT(A92,7)) -> 3.2 Sončne elektrarne - ostale 2013mar | C92: mikro - manjše od 50kW | D92: SE21 | E92: 132.66 | F92: 0 | G92: 132.66 | H92: 0.88 | I92: 132.66 | J92: 94.55 | L92: 0 | M92: 6.47
A93: SE22-2013mar | C93: mala - manjše od 1MW | D93: SE22 | E93: 122.22 | F93: 0 | G93: 122.22 | H93: 0.88 | I93: 122.22 | J93: 84.11 | L93: 0 | M93: 6.47
A94: SE23-2013mar | C94: srednja - od 1MW do vključno 10MW | D94: SE23 | E94: 98.53 | F94: 0 | G94: 98.53 | H94: 0.91 | I94: 98.53 | J94: 59.12 | L94: 0 | M94: 6.69
A95: SE24-2013mar | C95: velika - nad 10MW do vključno 125MW | D95: SE24 | E95: 91.48 | F95: 0 | G95: 91.48 | H95: 1 | I95: (ni ZO) | J95: 48.17 | L95: (ni ZO) | M95: 7.35
A96: SE11-2013apr | B96: =CONCATENATE("3.1 Sončne elektrarne - na stavbah"," ",RIGHT(A96,7)) -> 3.1 Sončne elektrarne - na stavbah 2013apr | C96: mikro - manjše od 50kW | D96: SE11 | E96: 138.36 | F96: 0 | G96: 138.36 | H96: 0.88 | I96: 138.36 | J96: 100.25 | L96: 0 | M96: 6.47
A97: SE12-2013apr | C97: mala - manjše od 1MW | D97: SE12 | E97: 126.54 | F97: 0 | G97: 126.54 | H97: 0.88 | I97: 126.54 | J97: 88.43 | L97: 0 | M97: 6.47
A98: SE13-2013apr | C98: srednja - od 1MW do vključno 10MW | D98: SE13 | E98: 105.01 | F98: 0 | G98: 105.01 | H98: 0.91 | I98: 105.01 | J98: 65.6 | L98: 0 | M98: 6.69
A99: SE14-2013apr | C99: velika - nad 10MW do vključno 125MW | D99: SE14 | E99: 93.46 | F99: 0 | G99: 93.46 | H99: 1 | I99: (ni ZO) | J99: 50.15 | L99: (ni ZO) | M99: 7.35
A100: SE21-2013apr | B100: =CONCATENATE("3.2 Sončne elektrarne - ostale"," ",RIGHT(A100,7)) -> 3.2 Sončne elektrarne - ostale 2013apr | C100: mikro - manjše od 50kW | D100: SE21 | E100: 130.01 | F100: 0 | G100: 130.01 | H100: 0.88 | I100: 130.01 | J100: 91.9 | L100: 0 | M100: 6.47
A101: SE22-2013apr | C101: mala - manjše od 1MW | D101: SE22 | E101: 119.78 | F101: 0 | G101: 119.78 | H101: 0.88 | I101: 119.78 | J101: 81.67 | L101: 0 | M101: 6.47
A102: SE23-2013apr | C102: srednja - od 1MW do vključno 10MW | D102: SE23 | E102: 96.56 | F102: 0 | G102: 96.56 | H102: 0.91 | I102: 96.56 | J102: 57.15 | L102: 0 | M102: 6.69
A103: SE24-2013apr | C103: velika - nad 10MW do vključno 125MW | D103: SE24 | E103: 89.65 | F103: 0 | G103: 89.65 | H103: 1 | I103: (ni ZO) | J103: 46.34 | L103: (ni ZO) | M103: 7.35
A104: SE11-2013maj | B104: =CONCATENATE("3.1 Sončne elektrarne - na stavbah"," ",RIGHT(A104,7)) -> 3.1 Sončne elektrarne - na stavbah 2013maj | C104: mikro - manjše od 50kW | D104: SE11 | E104: 135.59 | F104: 0 | G104: 135.59 | H104: 0.88 | I104: 135.59 | J104: 97.48 | L104: 0 | M104: 6.47
A105: SE12-2013maj | C105: mala - manjše od 1MW | D105: SE12 | E105: 124.01 | F105: 0 | G105: 124.01 | H105: 0.88 | I105: 124.01 | J105: 85.9 | L105: 0 | M105: 6.47
A106: SE13-2013maj | C106: srednja - od 1MW do vključno 10MW | D106: SE13 | E106: 102.91 | F106: 0 | G106: 102.91 | H106: 0.91 | I106: 102.91 | J106: 63.5 | L106: 0 | M106: 6.69
A107: SE14-2013maj | C107: velika - nad 10MW do vključno 125MW | D107: SE14 | E107: 91.59 | F107: 0 | G107: 91.59 | H107: 1 | I107: (ni ZO) | J107: 48.28 | L107: (ni ZO) | M107: 7.35
A108: SE21-2013maj | B108: =CONCATENATE("3.2 Sončne elektrarne - ostale"," ",RIGHT(A108,7)) -> 3.2 Sončne elektrarne - ostale 2013maj | C108: mikro - manjše od 50kW | D108: SE21 | E108: 127.41 | F108: 0 | G108: 127.41 | H108: 0.88 | I108: 127.41 | J108: 89.3 | L108: 0 | M108: 6.47
A109: SE22-2013maj | C109: mala - manjše od 1MW | D109: SE22 | E109: 117.38 | F109: 0 | G109: 117.38 | H109: 0.88 | I109: 117.38 | J109: 79.27 | L109: 0 | M109: 6.47
A110: SE23-2013maj | C110: srednja - od 1MW do vključno 10MW | D110: SE23 | E110: 94.63 | F110: 0 | G110: 94.63 | H110: 0.91 | I110: 94.63 | J110: 55.22 | L110: 0 | M110: 6.69
A111: SE24-2013maj | C111: velika - nad 10MW do vključno 125MW | D111: SE24 | E111: 87.86 | F111: 0 | G111: 87.86 | H111: 1 | I111: (ni ZO) | J111: 44.55 | L111: (ni ZO) | M111: 7.35
A112: SE11-2013jun | B112: =CONCATENATE("3.1 Sončne elektrarne - na stavbah"," ",RIGHT(A112,7)) -> 3.1 Sončne elektrarne - na stavbah 2013jun | C112: mikro - manjše od 50kW | D112: SE11 | E112: 132.88 | F112: 0 | G112: 132.88 | H112: 0.88 | I112: 132.88 | J112: 94.77 | L112: 0 | M112: 6.47
A113: SE12-2013jun | C113: mala - manjše od 1MW | D113: SE12 | E113: 121.53 | F113: 0 | G113: 121.53 | H113: 0.88 | I113: 121.53 | J113: 83.42 | L113: 0 | M113: 6.47
A114: SE13-2013jun | C114: srednja - od 1MW do vključno 10MW | D114: SE13 | E114: 100.85 | F114: 0 | G114: 100.85 | H114: 0.91 | I114: 100.85 | J114: 61.44 | L114: 0 | M114: 6.69
A115: SE14-2013jun | C115: velika - nad 10MW do vključno 125MW | D115: SE14 | E115: 89.76 | F115: 0 | G115: 89.76 | H115: 1 | I115: (ni ZO) | J115: 46.45 | L115: (ni ZO) | M115: 7.35
A116: SE21-2013jun | B116: =CONCATENATE("3.2 Sončne elektrarne - ostale"," ",RIGHT(A116,7)) -> 3.2 Sončne elektrarne - ostale 2013jun | C116: mikro - manjše od 50kW | D116: SE21 | E116: 124.86 | F116: 0 | G116: 124.86 | H116: 0.88 | I116: 124.86 | J116: 86.75 | L116: 0 | M116: 6.47
A117: SE22-2013jun | C117: mala - manjše od 1MW | D117: SE22 | E117: 115.03 | F117: 0 | G117: 115.03 | H117: 0.88 | I117: 115.03 | J117: 76.92 | L117: 0 | M117: 6.47
A118: SE23-2013jun | C118: srednja - od 1MW do vključno 10MW | D118: SE23 | E118: 92.74 | F118: 0 | G118: 92.74 | H118: 0.91 | I118: 92.74 | J118: 53.33 | L118: 0 | M118: 6.69
A119: SE24-2013jun | C119: velika - nad 10MW do vključno 125MW | D119: SE24 | E119: 86.1 | F119: 0 | G119: 86.1 | H119: 1 | I119: (ni ZO) | J119: 42.79 | L119: (ni ZO) | M119: 7.35
A120: SE11-2013jul | B120: =CONCATENATE("3.1 Sončne elektrarne - na stavbah"," ",RIGHT(A120,7)) -> 3.1 Sončne elektrarne - na stavbah 2013jul | C120: mikro - manjše od 50kW | D120: SE11 | E120: 130.22 | F120: 0 | G120: 130.22 | H120: 0.88 | I120: 130.22 | J120: 92.11 | L120: 0 | M120: 6.47
A121: SE12-2013jul | C121: mala - manjše od 1MW | D121: SE12 | E121: 119.1 | F121: 0 | G121: 119.1 | H121: 0.88 | I121: 119.1 | J121: 80.99 | L121: 0 | M121: 6.47
A122: SE13-2013jul | C122: srednja - od 1MW do vključno 10MW | D122: SE13 | E122: 98.83 | F122: 0 | G122: 98.83 | H122: 0.91 | I122: 98.83 | J122: 59.42 | L122: 0 | M122: 6.69
A123: SE14-2013jul | C123: velika - nad 10MW do vključno 125MW | D123: SE14 | E123: 87.96 | F123: 0 | G123: 87.96 | H123: 1 | I123: (ni ZO) | J123: 44.65 | L123: (ni ZO) | M123: 7.35
A124: SE21-2013jul | B124: =CONCATENATE("3.2 Sončne elektrarne - ostale"," ",RIGHT(A124,7)) -> 3.2 Sončne elektrarne - ostale 2013jul | C124: mikro - manjše od 50kW | D124: SE21 | E124: 122.36 | F124: 0 | G124: 122.36 | H124: 0.88 | I124: 122.36 | J124: 84.25 | L124: 0 | M124: 6.47
A125: SE22-2013jul | C125: mala - manjše od 1MW | D125: SE22 | E125: 112.73 | F125: 0 | G125: 112.73 | H125: 0.88 | I125: 112.73 | J125: 74.62 | L125: 0 | M125: 6.47
A126: SE23-2013jul | C126: srednja - od 1MW do vključno 10MW | D126: SE23 | E126: 90.89 | F126: 0 | G126: 90.89 | H126: 0.91 | I126: 90.89 | J126: 51.48 | L126: 0 | M126: 6.69
A127: SE24-2013jul | C127: velika - nad 10MW do vključno 125MW | D127: SE24 | E127: 84.38 | F127: 0 | G127: 84.38 | H127: 1 | I127: (ni ZO) | J127: 41.07 | L127: (ni ZO) | M127: 7.35
A128: SE11-2013avg | B128: =CONCATENATE("3.1 Sončne elektrarne - na stavbah"," ",RIGHT(A128,7)) -> 3.1 Sončne elektrarne - na stavbah 2013avg | C128: mikro - manjše od 50kW | D128: SE11 | E128: 127.62 | F128: 0 | G128: 127.62 | H128: 0.88 | I128: 127.62 | J128: 89.51 | L128: 0 | M128: 6.47
A129: SE12-2013avg | C129: mala - manjše od 1MW | D129: SE12 | E129: 116.72 | F129: 0 | G129: 116.72 | H129: 0.88 | I129: 116.72 | J129: 78.61 | L129: 0 | M129: 6.47
A130: SE13-2013avg | C130: srednja - od 1MW do vključno 10MW | D130: SE13 | E130: 96.85 | F130: 0 | G130: 96.85 | H130: 0.91 | I130: 96.85 | J130: 57.44 | L130: 0 | M130: 6.69
A131: SE14-2013avg | C131: velika - nad 10MW do vključno 125MW | D131: SE14 | E131: 86.2 | F131: 0 | G131: 86.2 | H131: 1 | I131: (ni ZO) | J131: 42.89 | L131: (ni ZO) | M131: 7.35
A132: SE21-2013avg | B132: =CONCATENATE("3.2 Sončne elektrarne - ostale"," ",RIGHT(A132,7)) -> 3.2 Sončne elektrarne - ostale 2013avg | C132: mikro - manjše od 50kW | D132: SE21 | E132: 119.91 | F132: 0 | G132: 119.91 | H132: 0.88 | I132: 119.91 | J132: 81.8 | L132: 0 | M132: 6.47
A133: SE22-2013avg | C133: mala - manjše od 1MW | D133: SE22 | E133: 110.48 | F133: 0 | G133: 110.48 | H133: 0.88 | I133: 110.48 | J133: 72.37 | L133: 0 | M133: 6.47
A134: SE23-2013avg | C134: srednja - od 1MW do vključno 10MW | D134: SE23 | E134: 89.07 | F134: 0 | G134: 89.07 | H134: 0.91 | I134: 89.07 | J134: 49.66 | L134: 0 | M134: 6.69
A135: SE24-2013avg | C135: velika - nad 10MW do vključno 125MW | D135: SE24 | E135: 82.69 | F135: 0 | G135: 82.69 | H135: 1 | I135: (ni ZO) | J135: 39.38 | L135: (ni ZO) | M135: 7.35
A136: SE11-2013sep | B136: =CONCATENATE("3.1 Sončne elektrarne - na stavbah"," ",RIGHT(A136,7)) -> 3.1 Sončne elektrarne - na stavbah 2013sep | C136: mikro - manjše od 50kW | D136: SE11 | E136: 125.07 | F136: 0 | G136: 125.07 | H136: 0.88 | I136: 125.07 | J136: 86.96 | L136: 0 | M136: 6.47
A137: SE12-2013sep | C137: mala - manjše od 1MW | D137: SE12 | E137: 114.39 | F137: 0 | G137: 114.39 | H137: 0.88 | I137: 114.39 | J137: 76.28 | L137: 0 | M137: 6.47
A138: SE13-2013sep | C138: srednja - od 1MW do vključno 10MW | D138: SE13 | E138: 94.91 | F138: 0 | G138: 94.91 | H138: 0.91 | I138: 94.91 | J138: 55.5 | L138: 0 | M138: 6.69
A139: SE14-2013sep | C139: velika - nad 10MW do vključno 125MW | D139: SE14 | E139: 84.48 | F139: 0 | G139: 84.48 | H139: 1 | I139: (ni ZO) | J139: 41.17 | L139: (ni ZO) | M139: 7.35
A140: SE21-2013sep | B140: =CONCATENATE("3.2 Sončne elektrarne - ostale"," ",RIGHT(A140,7)) -> 3.2 Sončne elektrarne - ostale 2013sep | C140: mikro - manjše od 50kW | D140: SE21 | E140: 117.51 | F140: 0 | G140: 117.51 | H140: 0.88 | I140: 117.51 | J140: 79.4 | L140: 0 | M140: 6.47
A141: SE22-2013sep | C141: mala - manjše od 1MW | D141: SE22 | E141: 108.27 | F141: 0 | G141: 108.27 | H141: 0.88 | I141: 108.27 | J141: 70.16 | L141: 0 | M141: 6.47
A142: SE23-2013sep | C142: srednja - od 1MW do vključno 10MW | D142: SE23 | E142: 87.29 | F142: 0 | G142: 87.29 | H142: 0.91 | I142: 87.29 | J142: 47.88 | L142: 0 | M142: 6.69
A143: SE24-2013sep | C143: velika - nad 10MW do vključno 125MW | D143: SE24 | E143: 81.04 | F143: 0 | G143: 81.04 | H143: 1 | I143: (ni ZO) | J143: 37.73 | L143: (ni ZO) | M143: 7.35
A144: SE11-2013okt | B144: =CONCATENATE("3.1 Sončne elektrarne - na stavbah"," ",RIGHT(A144,7)) -> 3.1 Sončne elektrarne - na stavbah 2013okt | C144: mikro - manjše od 50kW | D144: SE11 | E144: 122.57 | F144: 0 | G144: 122.57 | H144: 0.88 | I144: 122.57 | J144: 84.46 | L144: 0 | M144: 6.47
A145: SE12-2013okt | C145: mala - manjše od 1MW | D145: SE12 | E145: 112.1 | F145: 0 | G145: 112.1 | H145: 0.88 | I145: 112.1 | J145: 73.99 | L145: 0 | M145: 6.47
A146: SE13-2013okt | C146: srednja - od 1MW do vključno 10MW | D146: SE13 | E146: 93.01 | F146: 0 | G146: 93.01 | H146: 0.91 | I146: 93.01 | J146: 53.6 | L146: 0 | M146: 6.69
A147: SE14-2013okt | C147: velika - nad 10MW do vključno 125MW | D147: SE14 | E147: 82.79 | F147: 0 | G147: 82.79 | H147: 1 | I147: (ni ZO) | J147: 39.48 | L147: (ni ZO) | M147: 7.35
A148: SE21-2013okt | B148: =CONCATENATE("3.2 Sončne elektrarne - ostale"," ",RIGHT(A148,7)) -> 3.2 Sončne elektrarne - ostale 2013okt | C148: mikro - manjše od 50kW | D148: SE21 | E148: 115.16 | F148: 0 | G148: 115.16 | H148: 0.88 | I148: 115.16 | J148: 77.05 | L148: 0 | M148: 6.47
A149: SE22-2013okt | C149: mala - manjše od 1MW | D149: SE22 | E149: 106.1 | F149: 0 | G149: 106.1 | H149: 0.88 | I149: 106.1 | J149: 67.99 | L149: 0 | M149: 6.47
A150: SE23-2013okt | C150: srednja - od 1MW do vključno 10MW | D150: SE23 | E150: 85.54 | F150: 0 | G150: 85.54 | H150: 0.91 | I150: 85.54 | J150: 46.13 | L150: 0 | M150: 6.69
A151: SE24-2013okt | C151: velika - nad 10MW do vključno 125MW | D151: SE24 | E151: 79.42 | F151: 0 | G151: 79.42 | H151: 1 | I151: (ni ZO) | J151: 36.11 | L151: (ni ZO) | M151: 7.35
A152: SE11-2013nov | B152: =CONCATENATE("3.1 Sončne elektrarne - na stavbah"," ",RIGHT(A152,7)) -> 3.1 Sončne elektrarne - na stavbah 2013nov | C152: mikro - manjše od 50kW | D152: SE11 | E152: 120.12 | F152: 0 | G152: 120.12 | H152: 0.88 | I152: 120.12 | J152: 82.01 | L152: 0 | M152: 6.47
A153: SE12-2013nov | C153: mala - manjše od 1MW | D153: SE12 | E153: 109.86 | F153: 0 | G153: 109.86 | H153: 0.88 | I153: 109.86 | J153: 71.75 | L153: 0 | M153: 6.47
A154: SE13-2013nov | C154: srednja - od 1MW do vključno 10MW | D154: SE13 | E154: 91.15 | F154: 0 | G154: 91.15 | H154: 0.91 | I154: 91.15 | J154: 51.74 | L154: 0 | M154: 6.69
A155: SE14-2013nov | C155: velika - nad 10MW do vključno 125MW | D155: SE14 | E155: 81.13 | F155: 0 | G155: 81.13 | H155: 1 | I155: (ni ZO) | J155: 37.82 | L155: (ni ZO) | M155: 7.35
A156: SE21-2013nov | B156: =CONCATENATE("3.2 Sončne elektrarne - ostale"," ",RIGHT(A156,7)) -> 3.2 Sončne elektrarne - ostale 2013nov | C156: mikro - manjše od 50kW | D156: SE21 | E156: 112.86 | F156: 0 | G156: 112.86 | H156: 0.88 | I156: 112.86 | J156: 74.75 | L156: 0 | M156: 6.47
A157: SE22-2013nov | C157: mala - manjše od 1MW | D157: SE22 | E157: 103.98 | F157: 0 | G157: 103.98 | H157: 0.88 | I157: 103.98 | J157: 65.87 | L157: 0 | M157: 6.47
A158: SE23-2013nov | C158: srednja - od 1MW do vključno 10MW | D158: SE23 | E158: 83.83 | F158: 0 | G158: 83.83 | H158: 0.91 | I158: 83.83 | J158: 44.42 | L158: 0 | M158: 6.69
A159: SE24-2013nov | C159: velika - nad 10MW do vključno 125MW | D159: SE24 | E159: 77.83 | F159: 0 | G159: 77.83 | H159: 1 | I159: (ni ZO) | J159: 34.52 | L159: (ni ZO) | M159: 7.35
A160: SE11-2013dec | B160: =CONCATENATE("3.1 Sončne elektrarne - na stavbah"," ",RIGHT(A160,7)) -> 3.1 Sončne elektrarne - na stavbah 2013dec | C160: mikro - manjše od 50kW | D160: SE11 | E160: 117.72 | F160: 0 | G160: 117.72 | H160: 0.88 | I160: 117.72 | J160: 79.61 | L160: 0 | M160: 6.47
A161: SE12-2013dec | C161: mala - manjše od 1MW | D161: SE12 | E161: 107.66 | F161: 0 | G161: 107.66 | H161: 0.88 | I161: 107.66 | J161: 69.55 | L161: 0 | M161: 6.47
A162: SE13-2013dec | C162: srednja - od 1MW do vključno 10MW | D162: SE13 | E162: 89.33 | F162: 0 | G162: 89.33 | H162: 0.91 | I162: 89.33 | J162: 49.92 | L162: 0 | M162: 6.69
A163: SE14-2013dec | C163: velika - nad 10MW do vključno 125MW | D163: SE14 | E163: 79.51 | F163: 0 | G163: 79.51 | H163: 1 | I163: (ni ZO) | J163: 36.2 | L163: (ni ZO) | M163: 7.35
A164: SE21-2013dec | B164: =CONCATENATE("3.2 Sončne elektrarne - ostale"," ",RIGHT(A164,7)) -> 3.2 Sončne elektrarne - ostale 2013dec | C164: mikro - manjše od 50kW | D164: SE21 | E164: 110.6 | F164: 0 | G164: 110.6 | H164: 0.88 | I164: 110.6 | J164: 72.49 | L164: 0 | M164: 6.47
A165: SE22-2013dec | C165: mala - manjše od 1MW | D165: SE22 | E165: 101.9 | F165: 0 | G165: 101.9 | H165: 0.88 | I165: 101.9 | J165: 63.79 | L165: 0 | M165: 6.47
A166: SE23-2013dec | C166: srednja - od 1MW do vključno 10MW | D166: SE23 | E166: 82.15 | F166: 0 | G166: 82.15 | H166: 0.91 | I166: 82.15 | J166: 42.74 | L166: 0 | M166: 6.69
A167: SE24-2013dec | C167: velika - nad 10MW do vključno 125MW | D167: SE24 | E167: 76.27 | F167: 0 | G167: 76.27 | H167: 1 | I167: (ni ZO) | J167: 32.96 | L167: (ni ZO) | M167: 7.35
A168: SE11-2014jan | B168: =CONCATENATE("3.1 Sončne elektrarne - na stavbah"," ",RIGHT(A168,7)) -> 3.1 Sončne elektrarne - na stavbah 2014jan | C168: mikro - manjše od 50kW | D168: SE11 | E168: 115.37 | F168: 0 | G168: 115.37 | H168: 0.88 | I168: 115.37 | J168: 77.26 | L168: (ni podpore 2013) | M168: (ni podpore 2013)
A169: SE12-2014jan | C169: mala - manjše od 1MW | D169: SE12 | E169: 105.51 | F169: 0 | G169: 105.51 | H169: 0.88 | I169: 105.51 | J169: 67.4 | L169: (ni podpore 2013) | M169: (ni podpore 2013)
A170: SE13-2014jan | C170: srednja - od 1MW do vključno 10MW | D170: SE13 | E170: 87.54 | F170: 0 | G170: 87.54 | H170: 0.91 | I170: 87.54 | J170: 48.13 | L170: (ni podpore 2013) | M170: (ni podpore 2013)
A171: SE14-2014jan | C171: velika - nad 10MW do vključno 125MW | D171: SE14 | E171: 77.92 | F171: 0 | G171: 77.92 | H171: 1 | I171: (ni ZO) | J171: 34.61 | L171: (ni podpore 2013) | M171: (ni podpore 2013)
A172: SE21-2014jan | B172: =CONCATENATE("3.2 Sončne elektrarne - ostale"," ",RIGHT(A172,7)) -> 3.2 Sončne elektrarne - ostale 2014jan | C172: mikro - manjše od 50kW | D172: SE21 | E172: 108.39 | F172: 0 | G172: 108.39 | H172: 0.88 | I172: 108.39 | J172: 70.28 | L172: (ni podpore 2013) | M172: (ni podpore 2013)
A173: SE22-2014jan | C173: mala - manjše od 1MW | D173: SE22 | E173: 99.86 | F173: 0 | G173: 99.86 | H173: 0.88 | I173: 99.86 | J173: 61.75 | L173: (ni podpore 2013) | M173: (ni podpore 2013)
A174: SE23-2014jan | C174: srednja - od 1MW do vključno 10MW | D174: SE23 | E174: 80.51 | F174: 0 | G174: 80.51 | H174: 0.91 | I174: 80.51 | J174: 41.1 | L174: (ni podpore 2013) | M174: (ni podpore 2013)
A175: SE24-2014jan | C175: velika - nad 10MW do vključno 125MW | D175: SE24 | E175: 74.74 | F175: 0 | G175: 74.74 | H175: 1 | I175: (ni ZO) | J175: 31.43 | L175: (ni podpore 2013) | M175: (ni podpore 2013)
A176: SE11-2014feb | B176: =CONCATENATE("3.1 Sončne elektrarne - na stavbah"," ",RIGHT(A176,7)) -> 3.1 Sončne elektrarne - na stavbah 2014feb | C176: mikro - manjše od 50kW | D176: SE11 | E176: 113.06 | F176: 0 | G176: 113.06 | H176: 0.88 | I176: 113.06 | J176: 74.95 | L176: (ni podpore 2013) | M176: (ni podpore 2013)
A177: SE12-2014feb | C177: mala - manjše od 1MW | D177: SE12 | E177: 103.4 | F177: 0 | G177: 103.4 | H177: 0.88 | I177: 103.4 | J177: 65.29 | L177: (ni podpore 2013) | M177: (ni podpore 2013)
A178: SE13-2014feb | C178: srednja - od 1MW do vključno 10MW | D178: SE13 | E178: 85.79 | F178: 0 | G178: 85.79 | H178: 0.91 | I178: 85.79 | J178: 46.38 | L178: (ni podpore 2013) | M178: (ni podpore 2013)
A179: SE14-2014feb | C179: velika - nad 10MW do vključno 125MW | D179: SE14 | E179: 76.36 | F179: 0 | G179: 76.36 | H179: 1 | I179: (ni ZO) | J179: 33.05 | L179: (ni podpore 2013) | M179: (ni podpore 2013)
A180: SE21-2014feb | B180: =CONCATENATE("3.2 Sončne elektrarne - ostale"," ",RIGHT(A180,7)) -> 3.2 Sončne elektrarne - ostale 2014feb | C180: mikro - manjše od 50kW | D180: SE21 | E180: 106.22 | F180: 0 | G180: 106.22 | H180: 0.88 | I180: 106.22 | J180: 68.11 | L180: (ni podpore 2013) | M180: (ni podpore 2013)
A181: SE22-2014feb | C181: mala - manjše od 1MW | D181: SE22 | E181: 97.86 | F181: 0 | G181: 97.86 | H181: 0.88 | I181: 97.86 | J181: 59.75 | L181: (ni podpore 2013) | M181: (ni podpore 2013)
A182: SE23-2014feb | C182: srednja - od 1MW do vključno 10MW | D182: SE23 | E182: 78.9 | F182: 0 | G182: 78.9 | H182: 0.91 | I182: 78.9 | J182: 39.49 | L182: (ni podpore 2013) | M182: (ni podpore 2013)
A183: SE24-2014feb | C183: velika - nad 10MW do vključno 125MW | D183: SE24 | E183: 73.25 | F183: 0 | G183: 73.25 | H183: 1 | I183: (ni ZO) | J183: 29.94 | L183: (ni podpore 2013) | M183: (ni podpore 2013)
A184: SE11-2014mar | B184: =CONCATENATE("3.1 Sončne elektrarne - na stavbah"," ",RIGHT(A184,7)) -> 3.1 Sončne elektrarne - na stavbah 2014mar | C184: mikro - manjše od 50kW | D184: SE11 | E184: 110.8 | F184: 0 | G184: 110.8 | H184: 0.88 | I184: 110.8 | J184: 72.69 | L184: (ni podpore 2013) | M184: (ni podpore 2013)
A185: SE12-2014mar | C185: mala - manjše od 1MW | D185: SE12 | E185: 101.33 | F185: 0 | G185: 101.33 | H185: 0.88 | I185: 101.33 | J185: 63.22 | L185: (ni podpore 2013) | M185: (ni podpore 2013)
A186: SE13-2014mar | C186: srednja - od 1MW do vključno 10MW | D186: SE13 | E186: 84.07 | F186: 0 | G186: 84.07 | H186: 0.91 | I186: 84.07 | J186: 44.66 | L186: (ni podpore 2013) | M186: (ni podpore 2013)
A187: SE14-2014mar | C187: velika - nad 10MW do vključno 125MW | D187: SE14 | E187: 74.83 | F187: 0 | G187: 74.83 | H187: 1 | I187: (ni ZO) | J187: 31.52 | L187: (ni podpore 2013) | M187: (ni podpore 2013)
A188: SE21-2014mar | B188: =CONCATENATE("3.2 Sončne elektrarne - ostale"," ",RIGHT(A188,7)) -> 3.2 Sončne elektrarne - ostale 2014mar | C188: mikro - manjše od 50kW | D188: SE21 | E188: 104.1 | F188: 0 | G188: 104.1 | H188: 0.88 | I188: 104.1 | J188: 65.99 | L188: (ni podpore 2013) | M188: (ni podpore 2013)
A189: SE22-2014mar | C189: mala - manjše od 1MW | D189: SE22 | E189: 95.9 | F189: 0 | G189: 95.9 | H189: 0.88 | I189: 95.9 | J189: 57.79 | L189: (ni podpore 2013) | M189: (ni podpore 2013)
A190: SE23-2014mar | C190: srednja - od 1MW do vključno 10MW | D190: SE23 | E190: 77.32 | F190: 0 | G190: 77.32 | H190: 0.91 | I190: 77.32 | J190: 37.91 | L190: (ni podpore 2013) | M190: (ni podpore 2013)
A191: SE24-2014mar | C191: velika - nad 10MW do vključno 125MW | D191: SE24 | E191: 71.79 | F191: 0 | G191: 71.79 | H191: 1 | I191: (ni ZO) | J191: 28.48 | L191: (ni podpore 2013) | M191: (ni podpore 2013)
A192: SE11-2014apr | B192: =CONCATENATE("3.1 Sončne elektrarne - na stavbah"," ",RIGHT(A192,7)) -> 3.1 Sončne elektrarne - na stavbah 2014apr | C192: mikro - manjše od 50kW | D192: SE11 | E192: 108.58 | F192: 0 | G192: 108.58 | H192: 0.88 | I192: 108.58 | J192: 70.47 | L192: (ni podpore 2013) | M192: (ni podpore 2013)
A193: SE12-2014apr | C193: mala - manjše od 1MW | D193: SE12 | E193: 99.3 | F193: 0 | G193: 99.3 | H193: 0.88 | I193: 99.3 | J193: 61.19 | L193: (ni podpore 2013) | M193: (ni podpore 2013)
A194: SE13-2014apr | C194: srednja - od 1MW do vključno 10MW | D194: SE13 | E194: 82.39 | F194: 0 | G194: 82.39 | H194: 0.91 | I194: 82.39 | J194: 42.98 | L194: (ni podpore 2013) | M194: (ni podpore 2013)
A195: SE14-2014apr | C195: velika - nad 10MW do vključno 125MW | D195: SE14 | E195: 73.33 | F195: 0 | G195: 73.33 | H195: 1 | I195: (ni ZO) | J195: 30.02 | L195: (ni podpore 2013) | M195: (ni podpore 2013)
A196: SE21-2014apr | B196: =CONCATENATE("3.2 Sončne elektrarne - ostale"," ",RIGHT(A196,7)) -> 3.2 Sončne elektrarne - ostale 2014apr | C196: mikro - manjše od 50kW | D196: SE21 | E196: 102.02 | F196: 0 | G196: 102.02 | H196: 0.88 | I196: 102.02 | J196: 63.91 | L196: (ni podpore 2013) | M196: (ni podpore 2013)
A197: SE22-2014apr | C197: mala - manjše od 1MW | D197: SE22 | E197: 93.98 | F197: 0 | G197: 93.98 | H197: 0.88 | I197: 93.98 | J197: 55.87 | L197: (ni podpore 2013) | M197: (ni podpore 2013)
A198: SE23-2014apr | C198: srednja - od 1MW do vključno 10MW | D198: SE23 | E198: 75.77 | F198: 0 | G198: 75.77 | H198: 0.91 | I198: 75.77 | J198: 36.36 | L198: (ni podpore 2013) | M198: (ni podpore 2013)
A199: SE24-2014apr | C199: velika - nad 10MW do vključno 125MW | D199: SE24 | E199: 70.35 | F199: 0 | G199: 70.35 | H199: 1 | I199: (ni ZO) | J199: 27.04 | L199: (ni podpore 2013) | M199: (ni podpore 2013)
A200: SE11-2014maj | B200: =CONCATENATE("3.1 Sončne elektrarne - na stavbah"," ",RIGHT(A200,7)) -> 3.1 Sončne elektrarne - na stavbah 2014maj | C200: mikro - manjše od 50kW | D200: SE11 | E200: 106.41 | F200: 0 | G200: 106.41 | H200: 0.88 | I200: 106.41 | J200: 68.3 | L200: (ni podpore 2013) | M200: (ni podpore 2013)
A201: SE12-2014maj | C201: mala - manjše od 1MW | D201: SE12 | E201: 97.31 | F201: 0 | G201: 97.31 | H201: 0.88 | I201: 97.31 | J201: 59.2 | L201: (ni podpore 2013) | M201: (ni podpore 2013)
... 142 more rows

Sheet Podpore 2016
A1: VIŠINE PODPOR 2016
D3: KODA | E3: NDRS 2016 | F3: SDRS 2016 | G3: Skupni stroški 2016 | H3: Faktor B po Prilogi III | I3: Cena ZO 2016 | J3: Višina OP 2016 | L3: ZO2016 - ZO2015 | M3: OP2016 - OP2015
A4: HE01 | B4: 1. Hidroelektrarne | C4: mikro - manjše od 50kW | D4: HE01 | E4: 105.47 | F4: 0 | G4: 105.47 | H4: 0.86 | I4: 105.47 | J4: 73.74 | L4: 0 | M4: 2.37
A5: HE02 | C5: mala - manjše od 1MW | D5: HE02 | E5: 92.61 | F5: 0 | G5: 92.61 | H5: 0.86 | I5: 92.61 | J5: 60.88 | L5: 0 | M5: 2.37
A6: HE03 | C6: srednja - od 1MW do vključno 10MW | D6: HE03 | E6: 82.34 | F6: 0 | G6: 82.34 | H6: 0.9 | I6: 82.34 | J6: 49.14 | L6: 0 | M6: 2.48
A7: HE04 | C7: velika - nad 10MW do vključno 125MW | D7: HE04 | E7: 76.57 | F7: 0 | G7: 76.57 | H7: 0.9 | I7: (ni ZO) | J7: 43.37 | L7: (ni ZO) | M7: 2.48
A8: VE01 | B8: 2. Vetrne elektrarne | C8: mikro - manjše od 50kW | D8: VE01 | E8: 95.38 | F8: 0 | G8: 95.38 | H8: 0.8 | I8: 95.38 | J8: 65.87 | L8: 0 | M8: 2.21
A9: VE02 | C9: mala - manjše od 1MW | D9: VE02 | E9: 95.38 | F9: 0 | G9: 95.38 | H9: 0.8 | I9: 95.38 | J9: 65.87 | L9: 0 | M9: 2.21
A10: VE03 | C10: srednja - od 1MW do vključno 10MW | D10: VE03 | E10: 95.38 | F10: 0 | G10: 95.38 | H10: 0.8 | I10: 95.38 | J10: 65.87 | L10: 0 | M10: 2.21
A11: VE04 | C11: velika - nad 10MW do vključno 125MW | D11: VE04 | E11: 86.74 | F11: 0 | G11: 86.74 | H11: 0.86 | I11: (ni ZO) | J11: 55.01 | L11: (ni ZO) | M11: 2.37
A12: SE11-2009 | B12: 3.1 Sončne elektrarne - na stavbah 2009 | C12: mikro - manjše od 50kW | D12: SE11 | E12: 415.46 | F12: 0 | G12: 415.46 | H12: 0.88 | I12: 415.46 | J12: 383 | L12: 0 | M12: 2.43
A13: SE12-2009 | C13: mala - manjše od 1MW | D13: SE12 | E13: 380.02 | F13: 0 | G13: 380.02 | H13: 0.88 | I13: 380.02 | J13: 347.56 | L13: 0 | M13: 2.43
A14: SE13-2009 | C14: srednja - od 1MW do vključno 10MW | D14: SE13 | E14: 315.36 | F14: 0 | G14: 315.36 | H14: 0.91 | I14: 315.36 | J14: 281.79 | L14: 0 | M14: 2.51
A15: SE14-2009 | C15: velika - nad 10MW do vključno 125MW | D15: SE14 | E15: 280.71 | F15: 0 | G15: 280.71 | H15: 1 | I15: (ni ZO) | J15: 243.82 | L15: (ni ZO) | M15: 2.76
B16: 3.1. INT Sončne elektrarne - integrirane 2009 | C16: mikro - manjše od 50kW | E16: 477.78 | F16: 0 | G16: 477.78 | H16: 0.88 | I16: 477.78 | J16: 445.32 | L16: 0 | M16: 2.43
C17: mala - manjše od 1MW | E17: 437.02 | F17: 0 | G17: 437.02 | H17: 0.88 | I17: 437.02 | J17: 404.56 | L17: 0 | M17: 2.43
C18: srednja - od 1MW do vključno 10MW | E18: 362.66 | F18: 0 | G18: 362.66 | H18: 0.91 | I18: 362.66 | J18: 329.09 | L18: 0 | M18: 2.51
C19: velika - nad 10MW do vključno 125MW | E19: 322.82 | F19: 0 | G19: 322.82 | H19: 1 | I19: (ni ZO) | J19: 285.93 | L19: (ni ZO) | M19: 2.76
A20: SE21-2009 | B20: 3.2 Sončne elektrarne - samostojni objekti 2009 | C20: mikro - manjše od 50kW | D20: SE21 | E20: 390.42 | F20: 0 | G20: 390.42 | H20: 0.88 | I20: 390.42 | J20: 357.96 | L20: 0 | M20: 2.43
A21: SE22-2009 | C21: mala - manjše od 1MW | D21: SE22 | E21: 359.71 | F21: 0 | G21: 359.71 | H21: 0.88 | I21: 359.71 | J21: 327.25 | L21: 0 | M21: 2.43
A22: SE23-2009 | C22: srednja - od 1MW do vključno 10MW | D22: SE23 | E22: 289.98 | F22: 0 | G22: 289.98 | H22: 0.91 | I22: 289.98 | J22: 256.41 | L22: 0 | M22: 2.51
A23: SE24-2009 | C23: velika - nad 10MW do vključno 125MW | D23: SE24 | E23: 269.22 | F23: 0 | G23: 269.22 | H23: 1 | I23: (ni ZO) | J23: 232.33 | L23: (ni ZO) | M23: 2.76
A24: SE11-2010 | B24: 3.1 Sončne elektrarne - na stavbah 2010 | C24: mikro - manjše od 50kW | D24: SE11 | E24: 386.38 | F24: 0 | G24: 386.38 | H24: 0.88 | I24: 386.38 | J24: 353.92 | L24: 0 | M24: 2.43
A25: SE12-2010 | C25: mala - manjše od 1MW | D25: SE12 | E25: 353.42 | F25: 0 | G25: 353.42 | H25: 0.88 | I25: 353.42 | J25: 320.96 | L25: 0 | M25: 2.43
A26: SE13-2010 | C26: srednja - od 1MW do vključno 10MW | D26: SE13 | E26: 293.28 | F26: 0 | G26: 293.28 | H26: 0.91 | I26: 293.28 | J26: 259.71 | L26: 0 | M26: 2.51
A27: SE14-2010 | C27: velika - nad 10MW do vključno 125MW | D27: SE14 | E27: 261.06 | F27: 0 | G27: 261.06 | H27: 1 | I27: (ni ZO) | J27: 224.17 | L27: (ni ZO) | M27: 2.76
B28: 3.1 INT Sončne elektrarne - integrirane 2010 | C28: mikro - manjše od 50kW | E28: 444.34 | F28: 0 | G28: 444.34 | H28: 0.88 | I28: 444.34 | J28: 411.88 | L28: 0 | M28: 2.43
C29: mala - manjše od 1MW | E29: 406.43 | F29: 0 | G29: 406.43 | H29: 0.88 | I29: 406.43 | J29: 373.97 | L29: 0 | M29: 2.43
C30: srednja - od 1MW do vključno 10MW | E30: 337.27 | F30: 0 | G30: 337.27 | H30: 0.91 | I30: 337.27 | J30: 303.7 | L30: 0 | M30: 2.51
C31: velika - nad 10MW do vključno 125MW | E31: 300.22 | F31: 0 | G31: 300.22 | H31: 1 | I31: (ni ZO) | J31: 263.33 | L31: (ni ZO) | M31: 2.76
A32: SE21-2010 | B32: 3.2 Sončne elektrarne - samostojni objekti 2010 | C32: mikro - manjše od 50kW | D32: SE21 | E32: 363.09 | F32: 0 | G32: 363.09 | H32: 0.88 | I32: 363.09 | J32: 330.63 | L32: 0 | M32: 2.43
A33: SE22-2010 | C33: mala - manjše od 1MW | D33: SE22 | E33: 334.53 | F33: 0 | G33: 334.53 | H33: 0.88 | I33: 334.53 | J33: 302.07 | L33: 0 | M33: 2.43
A34: SE23-2010 | C34: srednja - od 1MW do vključno 10MW | D34: SE23 | E34: 269.68 | F34: 0 | G34: 269.68 | H34: 0.91 | I34: 269.68 | J34: 236.11 | L34: 0 | M34: 2.51
A35: SE24-2010 | C35: velika - nad 10MW do vključno 125MW | D35: SE24 | E35: 250.37 | F35: 0 | G35: 250.37 | H35: 1 | I35: (ni ZO) | J35: 213.48 | L35: (ni ZO) | M35: 2.76
A36: SE11-2011 | B36: 3.1 Sončne elektrarne - na stavbah 2011 | C36: mikro - manjše od 50kW | D36: SE11 | E36: 332.37 | F36: 0 | G36: 332.37 | H36: 0.88 | I36: 332.37 | J36: 299.91 | L36: 0 | M36: 2.43
A37: SE12-2011 | C37: mala - manjše od 1MW | D37: SE12 | E37: 304.02 | F37: 0 | G37: 304.02 | H37: 0.88 | I37: 304.02 | J37: 271.56 | L37: 0 | M37: 2.43
A38: SE13-2011 | C38: srednja - od 1MW do vključno 10MW | D38: SE13 | E38: 252.29 | F38: 0 | G38: 252.29 | H38: 0.91 | I38: 252.29 | J38: 218.72 | L38: 0 | M38: 2.51
A39: SE14-2011 | C39: velika - nad 10MW do vključno 125MW | D39: SE14 | E39: 224.57 | F39: 0 | G39: 224.57 | H39: 1 | I39: (ni ZO) | J39: 187.68 | L39: (ni ZO) | M39: 2.76
B40: 3.1 INT Sončne elektrarne - integrirane 2011 | C40: mikro - manjše od 50kW | E40: 382.23 | F40: 0 | G40: 382.23 | H40: 0.88 | I40: 382.23 | J40: 349.77 | L40: 0 | M40: 2.43
C41: mala - manjše od 1MW | E41: 349.62 | F41: 0 | G41: 349.62 | H41: 0.88 | I41: 349.62 | J41: 317.16 | L41: 0 | M41: 2.43
C42: srednja - od 1MW do vključno 10MW | E42: 290.13 | F42: 0 | G42: 290.13 | H42: 0.91 | I42: 290.13 | J42: 256.56 | L42: 0 | M42: 2.51
C43: velika - nad 10MW do vključno 125MW | E43: 258.26 | F43: 0 | G43: 258.26 | H43: 1 | I43: (ni ZO) | J43: 221.37 | L43: (ni ZO) | M43: 2.76
A44: SE21-2011 | B44: 3.2 Sončne elektrarne - samostojni objekti 2011 | C44: mikro - manjše od 50kW | D44: SE21 | E44: 312.34 | F44: 0 | G44: 312.34 | H44: 0.88 | I44: 312.34 | J44: 279.88 | L44: 0 | M44: 2.43
A45: SE22-2011 | C45: mala - manjše od 1MW | D45: SE22 | E45: 287.77 | F45: 0 | G45: 287.77 | H45: 0.88 | I45: 287.77 | J45: 255.31 | L45: 0 | M45: 2.43
A46: SE23-2011 | C46: srednja - od 1MW do vključno 10MW | D46: SE23 | E46: 231.98 | F46: 0 | G46: 231.98 | H46: 0.91 | I46: 231.98 | J46: 198.41 | L46: 0 | M46: 2.51
A47: SE24-2011 | C47: velika - nad 10MW do vključno 125MW | D47: SE24 | E47: 215.38 | F47: 0 | G47: 215.38 | H47: 1 | I47: (ni ZO) | J47: 178.49 | L47: (ni ZO) | M47: 2.76
A48: SE11-2012H1 | B48: 3.1 Sončne elektrarne - na stavbah 2012 H1 | C48: mikro - manjše od 50kW | D48: SE11 | E48: 290.82 | F48: 0 | G48: 290.82 | H48: 0.88 | I48: 290.82 | J48: 258.36 | L48: 0 | M48: 2.43
A49: SE12-2012H1 | C49: mala - manjše od 1MW | D49: SE12 | E49: 266.01 | F49: 0 | G49: 266.01 | H49: 0.88 | I49: 266.01 | J49: 233.55 | L49: 0 | M49: 2.43
A50: SE13-2012H1 | C50: srednja - od 1MW do vključno 10MW | D50: SE13 | E50: 220.75 | F50: 0 | G50: 220.75 | H50: 0.91 | I50: 220.75 | J50: 187.18 | L50: 0 | M50: 2.51
A51: SE14-2012H1 | C51: velika - nad 10MW do vključno 125MW | D51: SE14 | E51: 196.5 | F51: 0 | G51: 196.5 | H51: 1 | I51: (ni ZO) | J51: 159.61 | L51: (ni ZO) | M51: 2.76
A52: SE11-2012H2 | B52: 3.1 Sončne elektrarne - na stavbah 2012 H2 | C52: mikro - manjše od 50kW | D52: SE11 | E52: 197.55 | F52: 0 | G52: 197.55 | H52: 0.88 | I52: 197.55 | J52: 165.09 | L52: 0 | M52: 2.43
A53: SE12-2012H2 | C53: mala - manjše od 1MW | D53: SE12 | E53: 180.7 | F53: 0 | G53: 180.7 | H53: 0.88 | I53: 180.7 | J53: 148.24 | L53: 0 | M53: 2.43
A54: SE13-2012H2 | C54: srednja - od 1MW do vključno 10MW | D54: SE13 | E54: 149.95 | F54: 0 | G54: 149.95 | H54: 0.91 | I54: 149.95 | J54: 116.38 | L54: 0 | M54: 2.51
A55: SE14-2012H2 | C55: velika - nad 10MW do vključno 125MW | D55: SE14 | E55: 133.48 | F55: 0 | G55: 133.48 | H55: 1 | I55: (ni ZO) | J55: 96.59 | L55: (ni ZO) | M55: 2.76
A56: SE21-2012H1 | B56: 3.2 Sončne elektrarne - ostale 2012 H1 | C56: mikro - manjše od 50kW | D56: SE21 | E56: 273.29 | F56: 0 | G56: 273.29 | H56: 0.88 | I56: 273.29 | J56: 240.83 | L56: 0 | M56: 2.43
A57: SE22-2012H1 | C57: mala - manjše od 1MW | D57: SE22 | E57: 251.8 | F57: 0 | G57: 251.8 | H57: 0.88 | I57: 251.8 | J57: 219.34 | L57: 0 | M57: 2.43
A58: SE23-2012H1 | C58: srednja - od 1MW do vključno 10MW | D58: SE23 | E58: 202.99 | F58: 0 | G58: 202.99 | H58: 0.91 | I58: 202.99 | J58: 169.42 | L58: 0 | M58: 2.51
A59: SE24-2012H1 | C59: velika - nad 10MW do vključno 125MW | D59: SE24 | E59: 188.45 | F59: 0 | G59: 188.45 | H59: 1 | I59: (ni ZO) | J59: 151.56 | L59: (ni ZO) | M59: 2.76
A60: SE21-2012H2 | B60: 3.2 Sončne elektrarne - ostale 2012 H2 | C60: mikro - manjše od 50kW | D60: SE21 | E60: 185.64 | F60: 0 | G60: 185.64 | H60: 0.88 | I60: 185.64 | J60: 153.18 | L60: 0 | M60: 2.43
A61: SE22-2012H2 | C61: mala - manjše od 1MW | D61: SE22 | E61: 171.04 | F61: 0 | G61: 171.04 | H61: 0.88 | I61: 171.04 | J61: 138.58 | L61: 0 | M61: 2.43
A62: SE23-2012H2 | C62: srednja - od 1MW do vključno 10MW | D62: SE23 | E62: 137.89 | F62: 0 | G62: 137.89 | H62: 0.91 | I62: 137.89 | J62: 104.32 | L62: 0 | M62: 2.51
A63: SE24-2012H2 | C63: velika - nad 10MW do vključno 125MW | D63: SE24 | E63: 128.01 | F63: 0 | G63: 128.01 | H63: 1 | I63: (ni ZO) | J63: 91.12 | L63: (ni ZO) | M63: 2.76
A64: SE11-2012dec | B64: =CONCATENATE("3.1 Sončne elektrarne - na stavbah"," ",RIGHT(A64,7)) -> 3.1 Sončne elektrarne - na stavbah 2012dec | C64: mikro - manjše od 50kW | D64: SE11 | E64: 150 | F64: 0 | G64: 150 | H64: 0.88 | I64: 150 | J64: 117.54 | L64: 0 | M64: 2.43
A65: SE12-2012dec | C65: mala - manjše od 1MW | D65: SE12 | E65: 137.19 | F65: 0 | G65: 137.19 | H65: 0.88 | I65: 137.19 | J65: 104.73 | L65: 0 | M65: 2.43
A66: SE13-2012dec | C66: srednja - od 1MW do vključno 10MW | D66: SE13 | E66: 113.85 | F66: 0 | G66: 113.85 | H66: 0.91 | I66: 113.85 | J66: 80.28 | L66: 0 | M66: 2.51
A67: SE14-2012dec | C67: velika - nad 10MW do vključno 125MW | D67: SE14 | E67: 101.34 | F67: 0 | G67: 101.34 | H67: 1 | I67: (ni ZO) | J67: 64.45 | L67: (ni ZO) | M67: 2.76
A68: SE21-2012dec | B68: =CONCATENATE("3.2 Sončne elektrarne - ostale"," ",RIGHT(A68,7)) -> 3.2 Sončne elektrarne - ostale 2012dec | C68: mikro - manjše od 50kW | D68: SE21 | E68: 140.95 | F68: 0 | G68: 140.95 | H68: 0.88 | I68: 140.95 | J68: 108.49 | L68: 0 | M68: 2.43
A69: SE22-2012dec | C69: mala - manjše od 1MW | D69: SE22 | E69: 129.86 | F69: 0 | G69: 129.86 | H69: 0.88 | I69: 129.86 | J69: 97.4 | L69: 0 | M69: 2.43
A70: SE23-2012dec | C70: srednja - od 1MW do vključno 10MW | D70: SE23 | E70: 104.68 | F70: 0 | G70: 104.68 | H70: 0.91 | I70: 104.68 | J70: 71.11 | L70: 0 | M70: 2.51
A71: SE24-2012dec | C71: velika - nad 10MW do vključno 125MW | D71: SE24 | E71: 97.19 | F71: 0 | G71: 97.19 | H71: 1 | I71: (ni ZO) | J71: 60.3 | L71: (ni ZO) | M71: 2.76
A72: SE11-2013jan | B72: =CONCATENATE("3.1 Sončne elektrarne - na stavbah"," ",RIGHT(A72,7)) -> 3.1 Sončne elektrarne - na stavbah 2013jan | C72: mikro - manjše od 50kW | D72: SE11 | E72: 147 | F72: 0 | G72: 147 | H72: 0.88 | I72: 147 | J72: 114.54 | L72: 0 | M72: 2.43
A73: SE12-2013jan | C73: mala - manjše od 1MW | D73: SE12 | E73: 134.45 | F73: 0 | G73: 134.45 | H73: 0.88 | I73: 134.45 | J73: 101.99 | L73: 0 | M73: 2.43
A74: SE13-2013jan | C74: srednja - od 1MW do vključno 10MW | D74: SE13 | E74: 111.57 | F74: 0 | G74: 111.57 | H74: 0.91 | I74: 111.57 | J74: 78 | L74: 0 | M74: 2.51
A75: SE14-2013jan | C75: velika - nad 10MW do vključno 125MW | D75: SE14 | E75: 99.31 | F75: 0 | G75: 99.31 | H75: 1 | I75: (ni ZO) | J75: 62.42 | L75: (ni ZO) | M75: 2.76
A76: SE21-2013jan | B76: =CONCATENATE("3.2 Sončne elektrarne - ostale"," ",RIGHT(A76,7)) -> 3.2 Sončne elektrarne - ostale 2013jan | C76: mikro - manjše od 50kW | D76: SE21 | E76: 138.13 | F76: 0 | G76: 138.13 | H76: 0.88 | I76: 138.13 | J76: 105.67 | L76: 0 | M76: 2.43
A77: SE22-2013jan | C77: mala - manjše od 1MW | D77: SE22 | E77: 127.26 | F77: 0 | G77: 127.26 | H77: 0.88 | I77: 127.26 | J77: 94.8 | L77: 0 | M77: 2.43
A78: SE23-2013jan | C78: srednja - od 1MW do vključno 10MW | D78: SE23 | E78: 102.59 | F78: 0 | G78: 102.59 | H78: 0.91 | I78: 102.59 | J78: 69.02 | L78: 0 | M78: 2.51
A79: SE24-2013jan | C79: velika - nad 10MW do vključno 125MW | D79: SE24 | E79: 95.25 | F79: 0 | G79: 95.25 | H79: 1 | I79: (ni ZO) | J79: 58.36 | L79: (ni ZO) | M79: 2.76
A80: SE11-2013feb | B80: =CONCATENATE("3.1 Sončne elektrarne - na stavbah"," ",RIGHT(A80,7)) -> 3.1 Sončne elektrarne - na stavbah 2013feb | C80: mikro - manjše od 50kW | D80: SE11 | E80: 144.06 | F80: 0 | G80: 144.06 | H80: 0.88 | I80: 144.06 | J80: 111.6 | L80: 0 | M80: 2.43
A81: SE12-2013feb | C81: mala - manjše od 1MW | D81: SE12 | E81: 131.76 | F81: 0 | G81: 131.76 | H81: 0.88 | I81: 131.76 | J81: 99.3 | L81: 0 | M81: 2.43
A82: SE13-2013feb | C82: srednja - od 1MW do vključno 10MW | D82: SE13 | E82: 109.34 | F82: 0 | G82: 109.34 | H82: 0.91 | I82: 109.34 | J82: 75.77 | L82: 0 | M82: 2.51
A83: SE14-2013feb | C83: velika - nad 10MW do vključno 125MW | D83: SE14 | E83: 97.32 | F83: 0 | G83: 97.32 | H83: 1 | I83: (ni ZO) | J83: 60.43 | L83: (ni ZO) | M83: 2.76
A84: SE21-2013feb | B84: =CONCATENATE("3.2 Sončne elektrarne - ostale"," ",RIGHT(A84,7)) -> 3.2 Sončne elektrarne - ostale 2013feb | C84: mikro - manjše od 50kW | D84: SE21 | E84: 135.37 | F84: 0 | G84: 135.37 | H84: 0.88 | I84: 135.37 | J84: 102.91 | L84: 0 | M84: 2.43
A85: SE22-2013feb | C85: mala - manjše od 1MW | D85: SE22 | E85: 124.71 | F85: 0 | G85: 124.71 | H85: 0.88 | I85: 124.71 | J85: 92.25 | L85: 0 | M85: 2.43
A86: SE23-2013feb | C86: srednja - od 1MW do vključno 10MW | D86: SE23 | E86: 100.54 | F86: 0 | G86: 100.54 | H86: 0.91 | I86: 100.54 | J86: 66.97 | L86: 0 | M86: 2.51
A87: SE24-2013feb | C87: velika - nad 10MW do vključno 125MW | D87: SE24 | E87: 93.35 | F87: 0 | G87: 93.35 | H87: 1 | I87: (ni ZO) | J87: 56.46 | L87: (ni ZO) | M87: 2.76
A88: SE11-2013mar | B88: =CONCATENATE("3.1 Sončne elektrarne - na stavbah"," ",RIGHT(A88,7)) -> 3.1 Sončne elektrarne - na stavbah 2013mar | C88: mikro - manjše od 50kW | D88: SE11 | E88: 141.18 | F88: 0 | G88: 141.18 | H88: 0.88 | I88: 141.18 | J88: 108.72 | L88: 0 | M88: 2.43
A89: SE12-2013mar | C89: mala - manjše od 1MW | D89: SE12 | E89: 129.12 | F89: 0 | G89: 129.12 | H89: 0.88 | I89: 129.12 | J89: 96.66 | L89: 0 | M89: 2.43
A90: SE13-2013mar | C90: srednja - od 1MW do vključno 10MW | D90: SE13 | E90: 107.15 | F90: 0 | G90: 107.15 | H90: 0.91 | I90: 107.15 | J90: 73.58 | L90: 0 | M90: 2.51
A91: SE14-2013mar | C91: velika - nad 10MW do vključno 125MW | D91: SE14 | E91: 95.37 | F91: 0 | G91: 95.37 | H91: 1 | I91: (ni ZO) | J91: 58.48 | L91: (ni ZO) | M91: 2.76
A92: SE21-2013mar | B92: =CONCATENATE("3.2 Sončne elektrarne - ostale"," ",RIGHT(A92,7)) -> 3.2 Sončne elektrarne - ostale 2013mar | C92: mikro - manjše od 50kW | D92: SE21 | E92: 132.66 | F92: 0 | G92: 132.66 | H92: 0.88 | I92: 132.66 | J92: 100.2 | L92: 0 | M92: 2.43
A93: SE22-2013mar | C93: mala - manjše od 1MW | D93: SE22 | E93: 122.22 | F93: 0 | G93: 122.22 | H93: 0.88 | I93: 122.22 | J93: 89.76 | L93: 0 | M93: 2.43
A94: SE23-2013mar | C94: srednja - od 1MW do vključno 10MW | D94: SE23 | E94: 98.53 | F94: 0 | G94: 98.53 | H94: 0.91 | I94: 98.53 | J94: 64.96 | L94: 0 | M94: 2.51
A95: SE24-2013mar | C95: velika - nad 10MW do vključno 125MW | D95: SE24 | E95: 91.48 | F95: 0 | G95: 91.48 | H95: 1 | I95: (ni ZO) | J95: 54.59 | L95: (ni ZO) | M95: 2.76
A96: SE11-2013apr | B96: =CONCATENATE("3.1 Sončne elektrarne - na stavbah"," ",RIGHT(A96,7)) -> 3.1 Sončne elektrarne - na stavbah 2013apr | C96: mikro - manjše od 50kW | D96: SE11 | E96: 138.36 | F96: 0 | G96: 138.36 | H96: 0.88 | I96: 138.36 | J96: 105.9 | L96: 0 | M96: 2.43
A97: SE12-2013apr | C97: mala - manjše od 1MW | D97: SE12 | E97: 126.54 | F97: 0 | G97: 126.54 | H97: 0.88 | I97: 126.54 | J97: 94.08 | L97: 0 | M97: 2.43
A98: SE13-2013apr | C98: srednja - od 1MW do vključno 10MW | D98: SE13 | E98: 105.01 | F98: 0 | G98: 105.01 | H98: 0.91 | I98: 105.01 | J98: 71.44 | L98: 0 | M98: 2.51
A99: SE14-2013apr | C99: velika - nad 10MW do vključno 125MW | D99: SE14 | E99: 93.46 | F99: 0 | G99: 93.46 | H99: 1 | I99: (ni ZO) | J99: 56.57 | L99: (ni ZO) | M99: 2.76
A100: SE21-2013apr | B100: =CONCATENATE("3.2 Sončne elektrarne - ostale"," ",RIGHT(A100,7)) -> 3.2 Sončne elektrarne - ostale 2013apr | C100: mikro - manjše od 50kW | D100: SE21 | E100: 130.01 | F100: 0 | G100: 130.01 | H100: 0.88 | I100: 130.01 | J100: 97.55 | L100: 0 | M100: 2.43
A101: SE22-2013apr | C101: mala - manjše od 1MW | D101: SE22 | E101: 119.78 | F101: 0 | G101: 119.78 | H101: 0.88 | I101: 119.78 | J101: 87.32 | L101: 0 | M101: 2.43
A102: SE23-2013apr | C102: srednja - od 1MW do vključno 10MW | D102: SE23 | E102: 96.56 | F102: 0 | G102: 96.56 | H102: 0.91 | I102: 96.56 | J102: 62.99 | L102: 0 | M102: 2.51
A103: SE24-2013apr | C103: velika - nad 10MW do vključno 125MW | D103: SE24 | E103: 89.65 | F103: 0 | G103: 89.65 | H103: 1 | I103: (ni ZO) | J103: 52.76 | L103: (ni ZO) | M103: 2.76
A104: SE11-2013maj | B104: =CONCATENATE("3.1 Sončne elektrarne - na stavbah"," ",RIGHT(A104,7)) -> 3.1 Sončne elektrarne - na stavbah 2013maj | C104: mikro - manjše od 50kW | D104: SE11 | E104: 135.59 | F104: 0 | G104: 135.59 | H104: 0.88 | I104: 135.59 | J104: 103.13 | L104: 0 | M104: 2.43
A105: SE12-2013maj | C105: mala - manjše od 1MW | D105: SE12 | E105: 124.01 | F105: 0 | G105: 124.01 | H105: 0.88 | I105: 124.01 | J105: 91.55 | L105: 0 | M105: 2.43
A106: SE13-2013maj | C106: srednja - od 1MW do vključno 10MW | D106: SE13 | E106: 102.91 | F106: 0 | G106: 102.91 | H106: 0.91 | I106: 102.91 | J106: 69.34 | L106: 0 | M106: 2.51
A107: SE14-2013maj | C107: velika - nad 10MW do vključno 125MW | D107: SE14 | E107: 91.59 | F107: 0 | G107: 91.59 | H107: 1 | I107: (ni ZO) | J107: 54.7 | L107: (ni ZO) | M107: 2.76
A108: SE21-2013maj | B108: =CONCATENATE("3.2 Sončne elektrarne - ostale"," ",RIGHT(A108,7)) -> 3.2 Sončne elektrarne - ostale 2013maj | C108: mikro - manjše od 50kW | D108: SE21 | E108: 127.41 | F108: 0 | G108: 127.41 | H108: 0.88 | I108: 127.41 | J108: 94.95 | L108: 0 | M108: 2.43
A109: SE22-2013maj | C109: mala - manjše od 1MW | D109: SE22 | E109: 117.38 | F109: 0 | G109: 117.38 | H109: 0.88 | I109: 117.38 | J109: 84.92 | L109: 0 | M109: 2.43
A110: SE23-2013maj | C110: srednja - od 1MW do vključno 10MW | D110: SE23 | E110: 94.63 | F110: 0 | G110: 94.63 | H110: 0.91 | I110: 94.63 | J110: 61.06 | L110: 0 | M110: 2.51
A111: SE24-2013maj | C111: velika - nad 10MW do vključno 125MW | D111: SE24 | E111: 87.86 | F111: 0 | G111: 87.86 | H111: 1 | I111: (ni ZO) | J111: 50.97 | L111: (ni ZO) | M111: 2.76
A112: SE11-2013jun | B112: =CONCATENATE("3.1 Sončne elektrarne - na stavbah"," ",RIGHT(A112,7)) -> 3.1 Sončne elektrarne - na stavbah 2013jun | C112: mikro - manjše od 50kW | D112: SE11 | E112: 132.88 | F112: 0 | G112: 132.88 | H112: 0.88 | I112: 132.88 | J112: 100.42 | L112: 0 | M112: 2.43
A113: SE12-2013jun | C113: mala - manjše od 1MW | D113: SE12 | E113: 121.53 | F113: 0 | G113: 121.53 | H113: 0.88 | I113: 121.53 | J113: 89.07 | L113: 0 | M113: 2.43
A114: SE13-2013jun | C114: srednja - od 1MW do vključno 10MW | D114: SE13 | E114: 100.85 | F114: 0 | G114: 100.85 | H114: 0.91 | I114: 100.85 | J114: 67.28 | L114: 0 | M114: 2.51
A115: SE14-2013jun | C115: velika - nad 10MW do vključno 125MW | D115: SE14 | E115: 89.76 | F115: 0 | G115: 89.76 | H115: 1 | I115: (ni ZO) | J115: 52.87 | L115: (ni ZO) | M115: 2.76
A116: SE21-2013jun | B116: =CONCATENATE("3.2 Sončne elektrarne - ostale"," ",RIGHT(A116,7)) -> 3.2 Sončne elektrarne - ostale 2013jun | C116: mikro - manjše od 50kW | D116: SE21 | E116: 124.86 | F116: 0 | G116: 124.86 | H116: 0.88 | I116: 124.86 | J116: 92.4 | L116: 0 | M116: 2.43
A117: SE22-2013jun | C117: mala - manjše od 1MW | D117: SE22 | E117: 115.03 | F117: 0 | G117: 115.03 | H117: 0.88 | I117: 115.03 | J117: 82.57 | L117: 0 | M117: 2.43
A118: SE23-2013jun | C118: srednja - od 1MW do vključno 10MW | D118: SE23 | E118: 92.74 | F118: 0 | G118: 92.74 | H118: 0.91 | I118: 92.74 | J118: 59.17 | L118: 0 | M118: 2.51
A119: SE24-2013jun | C119: velika - nad 10MW do vključno 125MW | D119: SE24 | E119: 86.1 | F119: 0 | G119: 86.1 | H119: 1 | I119: (ni ZO) | J119: 49.21 | L119: (ni ZO) | M119: 2.76
A120: SE11-2013jul | B120: =CONCATENATE("3.1 Sončne elektrarne - na stavbah"," ",RIGHT(A120,7)) -> 3.1 Sončne elektrarne - na stavbah 2013jul | C120: mikro - manjše od 50kW | D120: SE11 | E120: 130.22 | F120: 0 | G120: 130.22 | H120: 0.88 | I120: 130.22 | J120: 97.76 | L120: 0 | M120: 2.43
A121: SE12-2013jul | C121: mala - manjše od 1MW | D121: SE12 | E121: 119.1 | F121: 0 | G121: 119.1 | H121: 0.88 | I121: 119.1 | J121: 86.64 | L121: 0 | M121: 2.43
A122: SE13-2013jul | C122: srednja - od 1MW do vključno 10MW | D122: SE13 | E122: 98.83 | F122: 0 | G122: 98.83 | H122: 0.91 | I122: 98.83 | J122: 65.26 | L122: 0 | M122: 2.51
A123: SE14-2013jul | C123: velika - nad 10MW do vključno 125MW | D123: SE14 | E123: 87.96 | F123: 0 | G123: 87.96 | H123: 1 | I123: (ni ZO) | J123: 51.07 | L123: (ni ZO) | M123: 2.76
A124: SE21-2013jul | B124: =CONCATENATE("3.2 Sončne elektrarne - ostale"," ",RIGHT(A124,7)) -> 3.2 Sončne elektrarne - ostale 2013jul | C124: mikro - manjše od 50kW | D124: SE21 | E124: 122.36 | F124: 0 | G124: 122.36 | H124: 0.88 | I124: 122.36 | J124: 89.9 | L124: 0 | M124: 2.43
A125: SE22-2013jul | C125: mala - manjše od 1MW | D125: SE22 | E125: 112.73 | F125: 0 | G125: 112.73 | H125: 0.88 | I125: 112.73 | J125: 80.27 | L125: 0 | M125: 2.43
A126: SE23-2013jul | C126: srednja - od 1MW do vključno 10MW | D126: SE23 | E126: 90.89 | F126: 0 | G126: 90.89 | H126: 0.91 | I126: 90.89 | J126: 57.32 | L126: 0 | M126: 2.51
A127: SE24-2013jul | C127: velika - nad 10MW do vključno 125MW | D127: SE24 | E127: 84.38 | F127: 0 | G127: 84.38 | H127: 1 | I127: (ni ZO) | J127: 47.49 | L127: (ni ZO) | M127: 2.76
A128: SE11-2013avg | B128: =CONCATENATE("3.1 Sončne elektrarne - na stavbah"," ",RIGHT(A128,7)) -> 3.1 Sončne elektrarne - na stavbah 2013avg | C128: mikro - manjše od 50kW | D128: SE11 | E128: 127.62 | F128: 0 | G128: 127.62 | H128: 0.88 | I128: 127.62 | J128: 95.16 | L128: 0 | M128: 2.43
A129: SE12-2013avg | C129: mala - manjše od 1MW | D129: SE12 | E129: 116.72 | F129: 0 | G129: 116.72 | H129: 0.88 | I129: 116.72 | J129: 84.26 | L129: 0 | M129: 2.43
A130: SE13-2013avg | C130: srednja - od 1MW do vključno 10MW | D130: SE13 | E130: 96.85 | F130: 0 | G130: 96.85 | H130: 0.91 | I130: 96.85 | J130: 63.28 | L130: 0 | M130: 2.51
A131: SE14-2013avg | C131: velika - nad 10MW do vključno 125MW | D131: SE14 | E131: 86.2 | F131: 0 | G131: 86.2 | H131: 1 | I131: (ni ZO) | J131: 49.31 | L131: (ni ZO) | M131: 2.76
A132: SE21-2013avg | B132: =CONCATENATE("3.2 Sončne elektrarne - ostale"," ",RIGHT(A132,7)) -> 3.2 Sončne elektrarne - ostale 2013avg | C132: mikro - manjše od 50kW | D132: SE21 | E132: 119.91 | F132: 0 | G132: 119.91 | H132: 0.88 | I132: 119.91 | J132: 87.45 | L132: 0 | M132: 2.43
A133: SE22-2013avg | C133: mala - manjše od 1MW | D133: SE22 | E133: 110.48 | F133: 0 | G133: 110.48 | H133: 0.88 | I133: 110.48 | J133: 78.02 | L133: 0 | M133: 2.43
A134: SE23-2013avg | C134: srednja - od 1MW do vključno 10MW | D134: SE23 | E134: 89.07 | F134: 0 | G134: 89.07 | H134: 0.91 | I134: 89.07 | J134: 55.5 | L134: 0 | M134: 2.51
A135: SE24-2013avg | C135: velika - nad 10MW do vključno 125MW | D135: SE24 | E135: 82.69 | F135: 0 | G135: 82.69 | H135: 1 | I135: (ni ZO) | J135: 45.8 | L135: (ni ZO) | M135: 2.76
A136: SE11-2013sep | B136: =CONCATENATE("3.1 Sončne elektrarne - na stavbah"," ",RIGHT(A136,7)) -> 3.1 Sončne elektrarne - na stavbah 2013sep | C136: mikro - manjše od 50kW | D136: SE11 | E136: 125.07 | F136: 0 | G136: 125.07 | H136: 0.88 | I136: 125.07 | J136: 92.61 | L136: 0 | M136: 2.43
A137: SE12-2013sep | C137: mala - manjše od 1MW | D137: SE12 | E137: 114.39 | F137: 0 | G137: 114.39 | H137: 0.88 | I137: 114.39 | J137: 81.93 | L137: 0 | M137: 2.43
A138: SE13-2013sep | C138: srednja - od 1MW do vključno 10MW | D138: SE13 | E138: 94.91 | F138: 0 | G138: 94.91 | H138: 0.91 | I138: 94.91 | J138: 61.34 | L138: 0 | M138: 2.51
A139: SE14-2013sep | C139: velika - nad 10MW do vključno 125MW | D139: SE14 | E139: 84.48 | F139: 0 | G139: 84.48 | H139: 1 | I139: (ni ZO) | J139: 47.59 | L139: (ni ZO) | M139: 2.76
A140: SE21-2013sep | B140: =CONCATENATE("3.2 Sončne elektrarne - ostale"," ",RIGHT(A140,7)) -> 3.2 Sončne elektrarne - ostale 2013sep | C140: mikro - manjše od 50kW | D140: SE21 | E140: 117.51 | F140: 0 | G140: 117.51 | H140: 0.88 | I140: 117.51 | J140: 85.05 | L140: 0 | M140: 2.43
A141: SE22-2013sep | C141: mala - manjše od 1MW | D141: SE22 | E141: 108.27 | F141: 0 | G141: 108.27 | H141: 0.88 | I141: 108.27 | J141: 75.81 | L141: 0 | M141: 2.43
A142: SE23-2013sep | C142: srednja - od 1MW do vključno 10MW | D142: SE23 | E142: 87.29 | F142: 0 | G142: 87.29 | H142: 0.91 | I142: 87.29 | J142: 53.72 | L142: 0 | M142: 2.51
A143: SE24-2013sep | C143: velika - nad 10MW do vključno 125MW | D143: SE24 | E143: 81.04 | F143: 0 | G143: 81.04 | H143: 1 | I143: (ni ZO) | J143: 44.15 | L143: (ni ZO) | M143: 2.76
A144: SE11-2013okt | B144: =CONCATENATE("3.1 Sončne elektrarne - na stavbah"," ",RIGHT(A144,7)) -> 3.1 Sončne elektrarne - na stavbah 2013okt | C144: mikro - manjše od 50kW | D144: SE11 | E144: 122.57 | F144: 0 | G144: 122.57 | H144: 0.88 | I144: 122.57 | J144: 90.11 | L144: 0 | M144: 2.43
A145: SE12-2013okt | C145: mala - manjše od 1MW | D145: SE12 | E145: 112.1 | F145: 0 | G145: 112.1 | H145: 0.88 | I145: 112.1 | J145: 79.64 | L145: 0 | M145: 2.43
A146: SE13-2013okt | C146: srednja - od 1MW do vključno 10MW | D146: SE13 | E146: 93.01 | F146: 0 | G146: 93.01 | H146: 0.91 | I146: 93.01 | J146: 59.44 | L146: 0 | M146: 2.51
A147: SE14-2013okt | C147: velika - nad 10MW do vključno 125MW | D147: SE14 | E147: 82.79 | F147: 0 | G147: 82.79 | H147: 1 | I147: (ni ZO) | J147: 45.9 | L147: (ni ZO) | M147: 2.76
A148: SE21-2013okt | B148: =CONCATENATE("3.2 Sončne elektrarne - ostale"," ",RIGHT(A148,7)) -> 3.2 Sončne elektrarne - ostale 2013okt | C148: mikro - manjše od 50kW | D148: SE21 | E148: 115.16 | F148: 0 | G148: 115.16 | H148: 0.88 | I148: 115.16 | J148: 82.7 | L148: 0 | M148: 2.43
A149: SE22-2013okt | C149: mala - manjše od 1MW | D149: SE22 | E149: 106.1 | F149: 0 | G149: 106.1 | H149: 0.88 | I149: 106.1 | J149: 73.64 | L149: 0 | M149: 2.43
A150: SE23-2013okt | C150: srednja - od 1MW do vključno 10MW | D150: SE23 | E150: 85.54 | F150: 0 | G150: 85.54 | H150: 0.91 | I150: 85.54 | J150: 51.97 | L150: 0 | M150: 2.51
A151: SE24-2013okt | C151: velika - nad 10MW do vključno 125MW | D151: SE24 | E151: 79.42 | F151: 0 | G151: 79.42 | H151: 1 | I151: (ni ZO) | J151: 42.53 | L151: (ni ZO) | M151: 2.76
A152: SE11-2013nov | B152: =CONCATENATE("3.1 Sončne elektrarne - na stavbah"," ",RIGHT(A152,7)) -> 3.1 Sončne elektrarne - na stavbah 2013nov | C152: mikro - manjše od 50kW | D152: SE11 | E152: 120.12 | F152: 0 | G152: 120.12 | H152: 0.88 | I152: 120.12 | J152: 87.66 | L152: 0 | M152: 2.43
A153: SE12-2013nov | C153: mala - manjše od 1MW | D153: SE12 | E153: 109.86 | F153: 0 | G153: 109.86 | H153: 0.88 | I153: 109.86 | J153: 77.4 | L153: 0 | M153: 2.43
A154: SE13-2013nov | C154: srednja - od 1MW do vključno 10MW | D154: SE13 | E154: 91.15 | F154: 0 | G154: 91.15 | H154: 0.91 | I154: 91.15 | J154: 57.58 | L154: 0 | M154: 2.51
A155: SE14-2013nov | C155: velika - nad 10MW do vključno 125MW | D155: SE14 | E155: 81.13 | F155: 0 | G155: 81.13 | H155: 1 | I155: (ni ZO) | J155: 44.24 | L155: (ni ZO) | M155: 2.76
A156: SE21-2013nov | B156: =CONCATENATE("3.2 Sončne elektrarne - ostale"," ",RIGHT(A156,7)) -> 3.2 Sončne elektrarne - ostale 2013nov | C156: mikro - manjše od 50kW | D156: SE21 | E156: 112.86 | F156: 0 | G156: 112.86 | H156: 0.88 | I156: 112.86 | J156: 80.4 | L156: 0 | M156: 2.43
A157: SE22-2013nov | C157: mala - manjše od 1MW | D157: SE22 | E157: 103.98 | F157: 0 | G157: 103.98 | H157: 0.88 | I157: 103.98 | J157: 71.52 | L157: 0 | M157: 2.43
A158: SE23-2013nov | C158: srednja - od 1MW do vključno 10MW | D158: SE23 | E158: 83.83 | F158: 0 | G158: 83.83 | H158: 0.91 | I158: 83.83 | J158: 50.26 | L158: 0 | M158: 2.51
A159: SE24-2013nov | C159: velika - nad 10MW do vključno 125MW | D159: SE24 | E159: 77.83 | F159: 0 | G159: 77.83 | H159: 1 | I159: (ni ZO) | J159: 40.94 | L159: (ni ZO) | M159: 2.76
A160: SE11-2013dec | B160: =CONCATENATE("3.1 Sončne elektrarne - na stavbah"," ",RIGHT(A160,7)) -> 3.1 Sončne elektrarne - na stavbah 2013dec | C160: mikro - manjše od 50kW | D160: SE11 | E160: 117.72 | F160: 0 | G160: 117.72 | H160: 0.88 | I160: 117.72 | J160: 85.26 | L160: 0 | M160: 2.43
A161: SE12-2013dec | C161: mala - manjše od 1MW | D161: SE12 | E161: 107.66 | F161: 0 | G161: 107.66 | H161: 0.88 | I161: 107.66 | J161: 75.2 | L161: 0 | M161: 2.43
A162: SE13-2013dec | C162: srednja - od 1MW do vključno 10MW | D162: SE13 | E162: 89.33 | F162: 0 | G162: 89.33 | H162: 0.91 | I162: 89.33 | J162: 55.76 | L162: 0 | M162: 2.51
A163: SE14-2013dec | C163: velika - nad 10MW do vključno 125MW | D163: SE14 | E163: 79.51 | F163: 0 | G163: 79.51 | H163: 1 | I163: (ni ZO) | J163: 42.62 | L163: (ni ZO) | M163: 2.76
A164: SE21-2013dec | B164: =CONCATENATE("3.2 Sončne elektrarne - ostale"," ",RIGHT(A164,7)) -> 3.2 Sončne elektrarne - ostale 2013dec | C164: mikro - manjše od 50kW | D164: SE21 | E164: 110.6 | F164: 0 | G164: 110.6 | H164: 0.88 | I164: 110.6 | J164: 78.14 | L164: 0 | M164: 2.43
A165: SE22-2013dec | C165: mala - manjše od 1MW | D165: SE22 | E165: 101.9 | F165: 0 | G165: 101.9 | H165: 0.88 | I165: 101.9 | J165: 69.44 | L165: 0 | M165: 2.43
A166: SE23-2013dec | C166: srednja - od 1MW do vključno 10MW | D166: SE23 | E166: 82.15 | F166: 0 | G166: 82.15 | H166: 0.91 | I166: 82.15 | J166: 48.58 | L166: 0 | M166: 2.51
A167: SE24-2013dec | C167: velika - nad 10MW do vključno 125MW | D167: SE24 | E167: 76.27 | F167: 0 | G167: 76.27 | H167: 1 | I167: (ni ZO) | J167: 39.38 | L167: (ni ZO) | M167: 2.76
A168: SE11-2014jan | B168: =CONCATENATE("3.1 Sončne elektrarne - na stavbah"," ",RIGHT(A168,7)) -> 3.1 Sončne elektrarne - na stavbah 2014jan | C168: mikro - manjše od 50kW | D168: SE11 | E168: 115.37 | F168: 0 | G168: 115.37 | H168: 0.88 | I168: 115.37 | J168: 82.91 | L168: 0 | M168: 2.43
A169: SE12-2014jan | C169: mala - manjše od 1MW | D169: SE12 | E169: 105.51 | F169: 0 | G169: 105.51 | H169: 0.88 | I169: 105.51 | J169: 73.05 | L169: 0 | M169: 2.43
A170: SE13-2014jan | C170: srednja - od 1MW do vključno 10MW | D170: SE13 | E170: 87.54 | F170: 0 | G170: 87.54 | H170: 0.91 | I170: 87.54 | J170: 53.97 | L170: 0 | M170: 2.51
A171: SE14-2014jan | C171: velika - nad 10MW do vključno 125MW | D171: SE14 | E171: 77.92 | F171: 0 | G171: 77.92 | H171: 1 | I171: (ni ZO) | J171: 41.03 | L171: (ni ZO) | M171: 2.76
A172: SE21-2014jan | B172: =CONCATENATE("3.2 Sončne elektrarne - ostale"," ",RIGHT(A172,7)) -> 3.2 Sončne elektrarne - ostale 2014jan | C172: mikro - manjše od 50kW | D172: SE21 | E172: 108.39 | F172: 0 | G172: 108.39 | H172: 0.88 | I172: 108.39 | J172: 75.93 | L172: 0 | M172: 2.43
A173: SE22-2014jan | C173: mala - manjše od 1MW | D173: SE22 | E173: 99.86 | F173: 0 | G173: 99.86 | H173: 0.88 | I173: 99.86 | J173: 67.4 | L173: 0 | M173: 2.43
A174: SE23-2014jan | C174: srednja - od 1MW do vključno 10MW | D174: SE23 | E174: 80.51 | F174: 0 | G174: 80.51 | H174: 0.91 | I174: 80.51 | J174: 46.94 | L174: 0 | M174: 2.51
A175: SE24-2014jan | C175: velika - nad 10MW do vključno 125MW | D175: SE24 | E175: 74.74 | F175: 0 | G175: 74.74 | H175: 1 | I175: (ni ZO) | J175: 37.85 | L175: (ni ZO) | M175: 2.76
A176: SE11-2014feb | B176: =CONCATENATE("3.1 Sončne elektrarne - na stavbah"," ",RIGHT(A176,7)) -> 3.1 Sončne elektrarne - na stavbah 2014feb | C176: mikro - manjše od 50kW | D176: SE11 | E176: 113.06 | F176: 0 | G176: 113.06 | H176: 0.88 | I176: 113.06 | J176: 80.6 | L176: 0 | M176: 2.43
A177: SE12-2014feb | C177: mala - manjše od 1MW | D177: SE12 | E177: 103.4 | F177: 0 | G177: 103.4 | H177: 0.88 | I177: 103.4 | J177: 70.94 | L177: 0 | M177: 2.43
A178: SE13-2014feb | C178: srednja - od 1MW do vključno 10MW | D178: SE13 | E178: 85.79 | F178: 0 | G178: 85.79 | H178: 0.91 | I178: 85.79 | J178: 52.22 | L178: 0 | M178: 2.51
A179: SE14-2014feb | C179: velika - nad 10MW do vključno 125MW | D179: SE14 | E179: 76.36 | F179: 0 | G179: 76.36 | H179: 1 | I179: (ni ZO) | J179: 39.47 | L179: (ni ZO) | M179: 2.76
A180: SE21-2014feb | B180: =CONCATENATE("3.2 Sončne elektrarne - ostale"," ",RIGHT(A180,7)) -> 3.2 Sončne elektrarne - ostale 2014feb | C180: mikro - manjše od 50kW | D180: SE21 | E180: 106.22 | F180: 0 | G180: 106.22 | H180: 0.88 | I180: 106.22 | J180: 73.76 | L180: 0 | M180: 2.43
A181: SE22-2014feb | C181: mala - manjše od 1MW | D181: SE22 | E181: 97.86 | F181: 0 | G181: 97.86 | H181: 0.88 | I181: 97.86 | J181: 65.4 | L181: 0 | M181: 2.43
A182: SE23-2014feb | C182: srednja - od 1MW do vključno 10MW | D182: SE23 | E182: 78.9 | F182: 0 | G182: 78.9 | H182: 0.91 | I182: 78.9 | J182: 45.33 | L182: 0 | M182: 2.51
A183: SE24-2014feb | C183: velika - nad 10MW do vključno 125MW | D183: SE24 | E183: 73.25 | F183: 0 | G183: 73.25 | H183: 1 | I183: (ni ZO) | J183: 36.36 | L183: (ni ZO) | M183: 2.76
A184: SE11-2014mar | B184: =CONCATENATE("3.1 Sončne elektrarne - na stavbah"," ",RIGHT(A184,7)) -> 3.1 Sončne elektrarne - na stavbah 2014mar | C184: mikro - manjše od 50kW | D184: SE11 | E184: 110.8 | F184: 0 | G184: 110.8 | H184: 0.88 | I184: 110.8 | J184: 78.34 | L184: 0 | M184: 2.43
A185: SE12-2014mar | C185: mala - manjše od 1MW | D185: SE12 | E185: 101.33 | F185: 0 | G185: 101.33 | H185: 0.88 | I185: 101.33 | J185: 68.87 | L185: 0 | M185: 2.43
A186: SE13-2014mar | C186: srednja - od 1MW do vključno 10MW | D186: SE13 | E186: 84.07 | F186: 0 | G186: 84.07 | H186: 0.91 | I186: 84.07 | J186: 50.5 | L186: 0 | M186: 2.51
A187: SE14-2014mar | C187: velika - nad 10MW do vključno 125MW | D187: SE14 | E187: 74.83 | F187: 0 | G187: 74.83 | H187: 1 | I187: (ni ZO) | J187: 37.94 | L187: (ni ZO) | M187: 2.76
A188: SE21-2014mar | B188: =CONCATENATE("3.2 Sončne elektrarne - ostale"," ",RIGHT(A188,7)) -> 3.2 Sončne elektrarne - ostale 2014mar | C188: mikro - manjše od 50kW | D188: SE21 | E188: 104.1 | F188: 0 | G188: 104.1 | H188: 0.88 | I188: 104.1 | J188: 71.64 | L188: 0 | M188: 2.43
A189: SE22-2014mar | C189: mala - manjše od 1MW | D189: SE22 | E189: 95.9 | F189: 0 | G189: 95.9 | H189: 0.88 | I189: 95.9 | J189: 63.44 | L189: 0 | M189: 2.43
A190: SE23-2014mar | C190: srednja - od 1MW do vključno 10MW | D190: SE23 | E190: 77.32 | F190: 0 | G190: 77.32 | H190: 0.91 | I190: 77.32 | J190: 43.75 | L190: 0 | M190: 2.51
A191: SE24-2014mar | C191: velika - nad 10MW do vključno 125MW | D191: SE24 | E191: 71.79 | F191: 0 | G191: 71.79 | H191: 1 | I191: (ni ZO) | J191: 34.9 | L191: (ni ZO) | M191: 2.76
A192: SE11-2014apr | B192: =CONCATENATE("3.1 Sončne elektrarne - na stavbah"," ",RIGHT(A192,7)) -> 3.1 Sončne elektrarne - na stavbah 2014apr | C192: mikro - manjše od 50kW | D192: SE11 | E192: 108.58 | F192: 0 | G192: 108.58 | H192: 0.88 | I192: 108.58 | J192: 76.12 | L192: 0 | M192: 2.43
A193: SE12-2014apr | C193: mala - manjše od 1MW | D193: SE12 | E193: 99.3 | F193: 0 | G193: 99.3 | H193: 0.88 | I193: 99.3 | J193: 66.84 | L193: 0 | M193: 2.43
A194: SE13-2014apr | C194: srednja - od 1MW do vključno 10MW | D194: SE13 | E194: 82.39 | F194: 0 | G194: 82.39 | H194: 0.91 | I194: 82.39 | J194: 48.82 | L194: 0 | M194: 2.51
A195: SE14-2014apr | C195: velika - nad 10MW do vključno 125MW | D195: SE14 | E195: 73.33 | F195: 0 | G195: 73.33 | H195: 1 | I195: (ni ZO) | J195: 36.44 | L195: (ni ZO) | M195: 2.76
A196: SE21-2014apr | B196: =CONCATENATE("3.2 Sončne elektrarne - ostale"," ",RIGHT(A196,7)) -> 3.2 Sončne elektrarne - ostale 2014apr | C196: mikro - manjše od 50kW | D196: SE21 | E196: 102.02 | F196: 0 | G196: 102.02 | H196: 0.88 | I196: 102.02 | J196: 69.56 | L196: 0 | M196: 2.43
A197: SE22-2014apr | C197: mala - manjše od 1MW | D197: SE22 | E197: 93.98 | F197: 0 | G197: 93.98 | H197: 0.88 | I197: 93.98 | J197: 61.52 | L197: 0 | M197: 2.43
A198: SE23-2014apr | C198: srednja - od 1MW do vključno 10MW | D198: SE23 | E198: 75.77 | F198: 0 | G198: 75.77 | H198: 0.91 | I198: 75.77 | J198: 42.2 | L198: 0 | M198: 2.51
A199: SE24-2014apr | C199: velika - nad 10MW do vključno 125MW | D199: SE24 | E199: 70.35 | F199: 0 | G199: 70.35 | H199: 1 | I199: (ni ZO) | J199: 33.46 | L199: (ni ZO) | M199: 2.76
A200: SE11-2014maj | B200: =CONCATENATE("3.1 Sončne elektrarne - na stavbah"," ",RIGHT(A200,7)) -> 3.1 Sončne elektrarne - na stavbah 2014maj | C200: mikro - manjše od 50kW | D200: SE11 | E200: 106.41 | F200: 0 | G200: 106.41 | H200: 0.88 | I200: 106.41 | J200: 73.95 | L200: 0 | M200: 2.43
A201: SE12-2014maj | C201: mala - manjše od 1MW | D201: SE12 | E201: 97.31 | F201: 0 | G201: 97.31 | H201: 0.88 | I201: 97.31 | J201: 64.85 | L201: 0 | M201: 2.43
... 104 more rows

Sheet Podpore 2013 (hidden)
A1: VIŠINE PODPOR 2013
K2: Razlike v podporah 2013 - 2012
A3: VRSTA | B3: RAZRED MOČI | C3: KODA | D3: NDRS 2013 | E3: SDRS 2013 | F3: Skupni 2013 | G3: Faktor B po Prilogi III | H3: Cena ZO 2013 | I3: Višina OP 2013 | K3: ZO2013 - ZO2012 | L3: OP2013 - OP2012
A4: 1. Hidroelektrarne | B4: mikro - manjše od 50kW | C4: HE01 | D4: 105.47 | E4: 0 | F4: 105.47 | G4: 0.86 | H4: 105.47 | I4: 61.9 | K4: 0 | L4: 4.41
B5: mala - manjše od 1MW | C5: HE02 | D5: 92.61 | E5: 0 | F5: 92.61 | G5: 0.86 | H5: 92.61 | I5: 49.04 | K5: 0 | L5: 4.41
B6: srednja - od 1MW do vključno 10MW | C6: HE03 | D6: 82.34 | E6: 0 | F6: 82.34 | G6: 0.9 | H6: 82.34 | I6: 36.75 | K6: 0 | L6: 4.62
B7: velika - nad 10MW do vključno 125MW | C7: HE04 | D7: 76.57 | E7: 0 | F7: 76.57 | G7: 0.9 | H7: (ni ZO) | I7: 30.98 | K7: (ni ZO) | L7: 4.62
A8: 2. Vetrne elektrarne | B8: mikro - manjše od 50kW | C8: VE01 | D8: 95.38 | E8: 0 | F8: 95.38 | G8: 0.8 | H8: 95.38 | I8: 54.85 | K8: 0 | L8: 4.1
B9: mala - manjše od 1MW | C9: VE02 | D9: 95.38 | E9: 0 | F9: 95.38 | G9: 0.8 | H9: 95.38 | I9: 54.85 | K9: 0 | L9: 4.1
B10: srednja - od 1MW do vključno 10MW | C10: VE03 | D10: 95.38 | E10: 0 | F10: 95.38 | G10: 0.8 | H10: 95.38 | I10: 54.85 | K10: 0 | L10: 4.1
B11: velika - nad 10MW do vključno 125MW | C11: VE04 | D11: 86.74 | E11: 0 | F11: 86.74 | G11: 0.86 | H11: (ni ZO) | I11: 43.17 | K11: (ni ZO) | L11: 4.41
A12: 3.1 Sončne elektrarne - na stavbah 2009 | B12: mikro - manjše od 50kW | C12: SE11 | D12: 415.46 | E12: 0 | F12: 415.46 | G12: 0.88 | H12: 415.46 | I12: 370.88 | K12: 0 | L12: 4.52
B13: mala - manjše od 1MW | C13: SE12 | D13: 380.02 | E13: 0 | F13: 380.02 | G13: 0.88 | H13: 380.02 | I13: 335.44 | K13: 0 | L13: 4.52
B14: srednja - od 1MW do vključno 10MW | C14: SE13 | D14: 315.36 | E14: 0 | F14: 315.36 | G14: 0.91 | H14: 315.36 | I14: 269.26 | K14: 0 | L14: 4.67
B15: velika - nad 10MW do vključno 125MW | C15: SE14 | D15: 280.71 | E15: 0 | F15: 280.71 | G15: 1 | H15: (ni ZO) | I15: 230.05 | K15: (ni ZO) | L15: 5.13
A16: 3.1. INT Sončne elektrarne - integrirane 2009 | B16: mikro - manjše od 50kW | D16: 477.78 | E16: 0 | F16: 477.78 | G16: 0.88 | H16: 477.78 | I16: 433.2 | K16: 0 | L16: 4.52
B17: mala - manjše od 1MW | D17: 437.02 | E17: 0 | F17: 437.02 | G17: 0.88 | H17: 437.02 | I17: 392.44 | K17: 0 | L17: 4.52
B18: srednja - od 1MW do vključno 10MW | D18: 362.66 | E18: 0 | F18: 362.66 | G18: 0.91 | H18: 362.66 | I18: 316.56 | K18: 0 | L18: 4.67
B19: velika - nad 10MW do vključno 125MW | D19: 322.82 | E19: 0 | F19: 322.82 | G19: 1 | H19: (ni ZO) | I19: 272.16 | K19: (ni ZO) | L19: 5.13
A20: 3.2 Sončne elektrarne - samostojni objekti 2009 | B20: mikro - manjše od 50kW | C20: SE21 | D20: 390.42 | E20: 0 | F20: 390.42 | G20: 0.88 | H20: 390.42 | I20: 345.84 | K20: 0 | L20: 4.52
B21: mala - manjše od 1MW | C21: SE22 | D21: 359.71 | E21: 0 | F21: 359.71 | G21: 0.88 | H21: 359.71 | I21: 315.13 | K21: 0 | L21: 4.52
B22: srednja - od 1MW do vključno 10MW | C22: SE23 | D22: 289.98 | E22: 0 | F22: 289.98 | G22: 0.91 | H22: 289.98 | I22: 243.88 | K22: 0 | L22: 4.67
B23: velika - nad 10MW do vključno 125MW | C23: SE24 | D23: 269.22 | E23: 0 | F23: 269.22 | G23: 1 | H23: (ni ZO) | I23: 218.56 | K23: (ni ZO) | L23: 5.13
A24: 3.1 Sončne elektrarne - na stavbah 2010 | B24: mikro - manjše od 50kW | C24: SE11 | D24: 386.38 | E24: 0 | F24: 386.38 | G24: 0.88 | H24: 386.38 | I24: 341.8 | K24: 0 | L24: 4.52
B25: mala - manjše od 1MW | C25: SE12 | D25: 353.42 | E25: 0 | F25: 353.42 | G25: 0.88 | H25: 353.42 | I25: 308.84 | K25: 0 | L25: 4.52
B26: srednja - od 1MW do vključno 10MW | C26: SE13 | D26: 293.28 | E26: 0 | F26: 293.28 | G26: 0.91 | H26: 293.28 | I26: 247.18 | K26: 0 | L26: 4.67
B27: velika - nad 10MW do vključno 125MW | C27: SE14 | D27: 261.06 | E27: 0 | F27: 261.06 | G27: 1 | H27: (ni ZO) | I27: 210.4 | K27: (ni ZO) | L27: 5.13
A28: 3.1 INT Sončne elektrarne - integrirane 2010 | B28: mikro - manjše od 50kW | D28: 444.34 | E28: 0 | F28: 444.34 | G28: 0.88 | H28: 444.34 | I28: 399.76 | K28: 0 | L28: 4.52
B29: mala - manjše od 1MW | D29: 406.43 | E29: 0 | F29: 406.43 | G29: 0.88 | H29: 406.43 | I29: 361.85 | K29: 0 | L29: 4.52
B30: srednja - od 1MW do vključno 10MW | D30: 337.27 | E30: 0 | F30: 337.27 | G30: 0.91 | H30: 337.27 | I30: 291.17 | K30: 0 | L30: 4.67
B31: velika - nad 10MW do vključno 125MW | D31: 300.22 | E31: 0 | F31: 300.22 | G31: 1 | H31: (ni ZO) | I31: 249.56 | K31: (ni ZO) | L31: 5.13
A32: 3.2 Sončne elektrarne - samostojni objekti 2010 | B32: mikro - manjše od 50kW | C32: SE21 | D32: 363.09 | E32: 0 | F32: 363.09 | G32: 0.88 | H32: 363.09 | I32: 318.51 | K32: 0 | L32: 4.52
B33: mala - manjše od 1MW | C33: SE22 | D33: 334.53 | E33: 0 | F33: 334.53 | G33: 0.88 | H33: 334.53 | I33: 289.95 | K33: 0 | L33: 4.52
B34: srednja - od 1MW do vključno 10MW | C34: SE23 | D34: 269.68 | E34: 0 | F34: 269.68 | G34: 0.91 | H34: 269.68 | I34: 223.58 | K34: 0 | L34: 4.67
B35: velika - nad 10MW do vključno 125MW | C35: SE24 | D35: 250.37 | E35: 0 | F35: 250.37 | G35: 1 | H35: (ni ZO) | I35: 199.71 | K35: (ni ZO) | L35: 5.13
A36: 3.1 Sončne elektrarne - na stavbah 2011 | B36: mikro - manjše od 50kW | C36: SE11 | D36: 332.37 | E36: 0 | F36: 332.37 | G36: 0.88 | H36: 332.37 | I36: 287.79 | K36: 0 | L36: 4.52
B37: mala - manjše od 1MW | C37: SE12 | D37: 304.02 | E37: 0 | F37: 304.02 | G37: 0.88 | H37: 304.02 | I37: 259.44 | K37: 0 | L37: 4.52
B38: srednja - od 1MW do vključno 10MW | C38: SE13 | D38: 252.29 | E38: 0 | F38: 252.29 | G38: 0.91 | H38: 252.29 | I38: 206.19 | K38: 0 | L38: 4.67
B39: velika - nad 10MW do vključno 125MW | C39: SE14 | D39: 224.57 | E39: 0 | F39: 224.57 | G39: 1 | H39: (ni ZO) | I39: 173.91 | K39: (ni ZO) | L39: 5.13
A40: 3.1 INT Sončne elektrarne - integrirane 2011 | B40: mikro - manjše od 50kW | D40: 382.23 | E40: 0 | F40: 382.23 | G40: 0.88 | H40: 382.23 | I40: 337.65 | K40: 0 | L40: 4.52
B41: mala - manjše od 1MW | D41: 349.62 | E41: 0 | F41: 349.62 | G41: 0.88 | H41: 349.62 | I41: 305.04 | K41: 0 | L41: 4.52
B42: srednja - od 1MW do vključno 10MW | D42: 290.13 | E42: 0 | F42: 290.13 | G42: 0.91 | H42: 290.13 | I42: 244.03 | K42: 0 | L42: 4.67
B43: velika - nad 10MW do vključno 125MW | D43: 258.26 | E43: 0 | F43: 258.26 | G43: 1 | H43: (ni ZO) | I43: 207.6 | K43: (ni ZO) | L43: 5.13
A44: 3.2 Sončne elektrarne - samostojni objekti 2011 | B44: mikro - manjše od 50kW | C44: SE21 | D44: 312.34 | E44: 0 | F44: 312.34 | G44: 0.88 | H44: 312.34 | I44: 267.76 | K44: 0 | L44: 4.52
B45: mala - manjše od 1MW | C45: SE22 | D45: 287.77 | E45: 0 | F45: 287.77 | G45: 0.88 | H45: 287.77 | I45: 243.19 | K45: 0 | L45: 4.52
B46: srednja - od 1MW do vključno 10MW | C46: SE23 | D46: 231.98 | E46: 0 | F46: 231.98 | G46: 0.91 | H46: 231.98 | I46: 185.88 | K46: 0 | L46: 4.67
B47: velika - nad 10MW do vključno 125MW | C47: SE24 | D47: 215.38 | E47: 0 | F47: 215.38 | G47: 1 | H47: (ni ZO) | I47: 164.72 | K47: (ni ZO) | L47: 5.13
A48: 3.1 Sončne elektrarne - na stavbah 2012 H1 | B48: mikro - manjše od 50kW | C48: SE11 | D48: 290.82 | E48: 0 | F48: 290.82 | G48: 0.88 | H48: 290.82 | I48: 246.24 | K48: 0 | L48: 4.52
B49: mala - manjše od 1MW | C49: SE12 | D49: 266.01 | E49: 0 | F49: 266.01 | G49: 0.88 | H49: 266.01 | I49: 221.43 | K49: 0 | L49: 4.52
B50: srednja - od 1MW do vključno 10MW | C50: SE13 | D50: 220.75 | E50: 0 | F50: 220.75 | G50: 0.91 | H50: 220.75 | I50: 174.65 | K50: 0 | L50: 4.67
B51: velika - nad 10MW do vključno 125MW | C51: SE14 | D51: 196.5 | E51: 0 | F51: 196.5 | G51: 1 | H51: (ni ZO) | I51: 145.84 | K51: (ni ZO) | L51: 5.13
A52: 3.1 Sončne elektrarne - na stavbah 2012 H2 | B52: mikro - manjše od 50kW | C52: SE11 | D52: 197.55 | E52: 0 | F52: 197.55 | G52: 0.88 | H52: 197.55 | I52: 152.97 | K52: 0 | L52: 4.52
B53: mala - manjše od 1MW | C53: SE12 | D53: 180.7 | E53: 0 | F53: 180.7 | G53: 0.88 | H53: 180.7 | I53: 136.12 | K53: 0 | L53: 4.52
B54: srednja - od 1MW do vključno 10MW | C54: SE13 | D54: 149.95 | E54: 0 | F54: 149.95 | G54: 0.91 | H54: 149.95 | I54: 103.85 | K54: 0 | L54: 4.67
B55: velika - nad 10MW do vključno 125MW | C55: SE14 | D55: 133.48 | E55: 0 | F55: 133.48 | G55: 1 | H55: (ni ZO) | I55: 82.82 | K55: (ni ZO) | L55: 5.13
A56: 3.2 Sončne elektrarne - ostale 2012 H1 | B56: mikro - manjše od 50kW | C56: SE21 | D56: 273.29 | E56: 0 | F56: 273.29 | G56: 0.88 | H56: 273.29 | I56: 228.71 | K56: 0 | L56: 4.52
B57: mala - manjše od 1MW | C57: SE22 | D57: 251.8 | E57: 0 | F57: 251.8 | G57: 0.88 | H57: 251.8 | I57: 207.22 | K57: 0 | L57: 4.52
B58: srednja - od 1MW do vključno 10MW | C58: SE23 | D58: 202.99 | E58: 0 | F58: 202.99 | G58: 0.91 | H58: 202.99 | I58: 156.89 | K58: 0 | L58: 4.67
B59: velika - nad 10MW do vključno 125MW | C59: SE24 | D59: 188.45 | E59: 0 | F59: 188.45 | G59: 1 | H59: (ni ZO) | I59: 137.79 | K59: (ni ZO) | L59: 5.13
A60: 3.2 Sončne elektrarne - ostale 2012 H2 | B60: mikro - manjše od 50kW | C60: SE21 | D60: 185.64 | E60: 0 | F60: 185.64 | G60: 0.88 | H60: 185.64 | I60: 141.06 | K60: 0 | L60: 4.52
B61: mala - manjše od 1MW | C61: SE22 | D61: 171.04 | E61: 0 | F61: 171.04 | G61: 0.88 | H61: 171.04 | I61: 126.46 | K61: 0 | L61: 4.52
B62: srednja - od 1MW do vključno 10MW | C62: SE23 | D62: 137.89 | E62: 0 | F62: 137.89 | G62: 0.91 | H62: 137.89 | I62: 91.79 | K62: 0 | L62: 4.67
B63: velika - nad 10MW do vključno 125MW | C63: SE24 | D63: 128.01 | E63: 0 | F63: 128.01 | G63: 1 | H63: (ni ZO) | I63: 77.35 | K63: (ni ZO) | L63: 5.13
A64: 4. Geotermalne elektrarne | B64: mikro - manjše od 50kW | C64: GT01 | D64: 152.47 | E64: 0 | F64: 152.47 | G64: 0.92 | H64: 152.47 | I64: 105.86 | K64: 0 | L64: 4.72
B65: mala - manjše od 1MW | C65: GT02 | D65: 152.47 | E65: 0 | F65: 152.47 | G65: 0.92 | H65: 152.47 | I65: 105.86 | K65: 0 | L65: 4.72
B66: srednja - od 1MW do vključno 10MW | C66: GT03 | D66: 152.47 | E66: 0 | F66: 152.47 | G66: 0.92 | H66: 152.47 | I66: 105.86 | K66: 0 | L66: 4.72
B67: velika - nad 10MW do vključno 125MW | C67: GT04 | D67: (indvid.) | E67: 0 | F67: (indvid.) | G67: 0.92 | H67: (ni ZO) | I67: (indvid.) | K67: (ni ZO; individ.) | L67: (individ.)
A68: 5.1 Elektrarne na lesno biomaso | B68: mikro - manjše od 50kW | C68: LB11 | D68: (indvid.) | E68: (indvid.) | F68: (indvid.) | G68: 0.88 | H68: (indvid.) | I68: (indvid.) | K68: (individ.) | L68: (individ.)
B69: mala - manjše od 1MW | C69: LB12 | D69: 161.95 | E69: 90.58 | F69: 252.53 | G69: 0.91 | H69: 252.53 | I69: 206.43 | K69: 6.24 | L69: 10.91
B70: srednja - od 1MW do vključno 10MW | C70: LB13 | D70: 115.52 | E70: 75.37 | F70: 190.89 | G70: 0.92 | H70: 190.89 | I70: 144.28 | K70: 5.19 | L70: 9.91
B71: velika - nad 10MW do vključno 125MW | C71: LB14 | D71: (indvid.) | E71: (indvid.) | F71: (indvid.) | G71: 0.92 | H71: (ni ZO) | I71: (indvid.) | K71: (ni ZO; individ.) | L71: (individ.)
A72: 5.2.Sosežig lesne biomase >5% | B72: mikro - manjše od 50kW | C72: LB21 | D72: 51.34 | E72: 74.32 | F72: 125.66 | G72: 0.88 | H72: (ni ZO) | I72: 81.08 | K72: (ni ZO) | L72: 9.64
B73: mala - manjše od 1MW | C73: LB22 | D73: 51.34 | E73: 74.32 | F73: 125.66 | G73: 0.91 | H73: (ni ZO) | I73: 79.56 | K73: (ni ZO) | L73: 9.79
B74: srednja - od 1MW do vključno 10MW | C74: LB23 | D74: 51.34 | E74: 74.32 | F74: 125.66 | G74: 0.92 | H74: (ni ZO) | I74: 79.05 | K74: (ni ZO) | L74: 9.84
B75: velika - nad 10MW do vključno 125MW | C75: LB24 | F75: (indvid.) | G75: 0.92 | H75: (ni ZO) | I75: (indvid.) | K75: (ni ZO; individ.) | L75: (individ.)
A76: 5.3.Sosežig lesne biomase <5% | B76: mikro - manjše od 50kW | C76: LB31 | D76: 0 | E76: 67.92 | F76: 67.92 | G76: OP=SDRS | H76: (ni ZO) | I76: 67.92 | K76: (ni ZO) | L76: 7.32
B77: mala - manjše od 1MW | C77: LB32 | D77: 0 | E77: 67.92 | F77: 67.92 | G77: OP=SDRS | H77: (ni ZO) | I77: 67.92 | K77: (ni ZO) | L77: 7.32
B78: srednja - od 1MW do vključno 10MW | C78: LB33 | D78: 0 | E78: 67.92 | F78: 67.92 | G78: OP=SDRS | H78: (ni ZO) | I78: 67.92 | K78: (ni ZO) | L78: 7.32
B79: velika - nad 10MW do vključno 125MW | C79: LB34 | D79: 0 | E79: 67.92 | F79: 67.92 | G79: OP=SDRS | H79: (ni ZO) | I79: 67.92 | K79: (ni ZO) | L79: 7.32
A80: 6.1 Bioplinske enote - biomasa | B80: mikro - manjše od 50kW | C80: BP11 | D80: 118.72 | E80: 51.82 | F80: 170.54 | G80: 0.88 | H80: 170.54 | I80: 125.96 | K80: 9.98 | L80: 14.5
B81: mala - manjše od 1MW | C81: BP12 | D81: 111.75 | E81: 55.44 | F81: 167.19 | G81: 0.91 | H81: 167.19 | I81: 121.09 | K81: 10.88 | L81: 15.55
B82: srednja - od 1MW do vključno 10MW | C82: BP13 | D82: 96.18 | E82: 57.94 | F82: 154.12 | G82: 0.92 | H82: 154.12 | I82: 107.51 | K82: 12.7 | L82: 17.42
B83: velika - nad 10MW do vključno 125MW | C83: BP14 | D83: (ni predv.) | E83: (ni predv.) | F83: (ni predv.) | G83: 1 | H83: (ni predv.) | I83: (ni predv.) | K83: (ni predv.) | L83: (ni predv.)
A84: 6.2 Bioplinske enote - odpadki | B84: mikro - manjše od 50kW | C84: BP21 | D84: 139.23 | E84: 0 | F84: 139.23 | G84: 0.88 | H84: 139.23 | I84: 94.65 | K84: 0 | L84: 4.52
B85: mala - manjše od 1MW | C85: BP22 | D85: 139.23 | E85: 0 | F85: 139.23 | G85: 0.91 | H85: 139.23 | I85: 93.13 | K85: 0 | L85: 4.67
B86: srednja - od 1MW do vključno 10MW | C86: BP23 | D86: 129.15 | E86: 0 | F86: 129.15 | G86: 0.92 | H86: 129.15 | I86: 82.54 | K86: 0 | L86: 4.72
B87: velika - nad 10MW do vključno 125MW | C87: BP24 | D87: (ni predv.) | E87: (ni predv.) | F87: (ni predv.) | G87: 1 | H87: (ni predv.) | I87: (ni predv.) | K87: (ni predv.) | L87: (ni predv.)
A88: 7. Elektrarne na bioplin iz čistilnih naprav | B88: mikro - manjše od 50kW | C88: ČN01 | D88: 85.84 | E88: 0 | F88: 85.84 | G88: 0.92 | H88: 85.84 | I88: 39.23 | K88: 0 | L88: 4.72
B89: mala - manjše od 1MW | C89: ČN02 | D89: 74.42 | E89: 0 | F89: 74.42 | G89: 0.92 | H89: 74.42 | I89: 27.81 | K89: 0 | L89: 4.72
B90: srednja - od 1MW do vključno 10MW | C90: ČN03 | D90: 66.09 | E90: 0 | F90: 66.09 | G90: 0.92 | H90: 66.09 | I90: 19.48 | K90: 0 | L90: 4.72
B91: velika - nad 10MW do vključno 125MW | C91: ČN04 | D91: (ni predv.) | E91: (ni predv.) | F91: (ni predv.) | G91: 1 | H91: (ni predv.) | I91: (ni predv.) | K91: (ni predv.) | L91: (ni predv.)
A92: 8. Elektrarne na odlagališčni plin | B92: mikro - manjše od 50kW | C92: OP01 | D92: 99.33 | E92: 0 | F92: 99.33 | G92: 0.92 | H92: 99.33 | I92: 52.72 | K92: 0 | L92: 4.72
B93: mala - manjše od 1MW | C93: OP02 | D93: 67.47 | E93: 0 | F93: 67.47 | G93: 0.92 | H93: 67.47 | I93: 20.86 | K93: 0 | L93: 4.72
B94: srednja - od 1MW do vključno 10MW | C94: OP03 | D94: 61.67 | E94: 0 | F94: 61.67 | G94: 0.92 | H94: 61.67 | I94: 15.06 | K94: 0 | L94: 4.72
B95: velika - nad 10MW do vključno 125MW | C95: OP04 | D95: (ni predv.) | E95: (ni predv.) | F95: (ni predv.) | G95: 1 | H95: (ni predv.) | I95: (ni predv.) | K95: (ni predv.) | L95: (ni predv.)
A96: 9. Elektrarne na biološko razgradljive odpadke | B96: mikro - manjše od 50kW | C96: BO01 | D96: (ni predv.) | E96: (ni predv.) | F96: (ni predv.) | G96: 0.92 | H96: (ni predv.) | I96: (ni predv.) | K96: (ni predv.) | L96: (ni predv.)
B97: mala - manjše od 1MW | C97: BO02 | D97: 77.44 | E97: 0 | F97: 77.44 | G97: 0.92 | H97: 77.44 | I97: 30.83 | K97: 0 | L97: 4.72
B98: srednja - od 1MW do vključno 10MW | C98: BO03 | D98: 74.34 | E98: 0 | F98: 74.34 | G98: 0.92 | H98: 74.34 | I98: 27.73 | K98: 0 | L98: 4.72
B99: velika - nad 10MW do vključno 125MW | C99: BO04 | D99: (indvid.) | E99: 0 | F99: (indvid.) | G99: 0.92 | H99: (ni ZO) | I99: (indvid.) | K99: (ni ZO; individ.) | L99: (individ.)
A100: 10. SPTE na lesno biomaso (do 4.000 ur) | B100: mikro - manjše od 50kW | C100: SL11 | D100: (indvid.) | E100: (indvid.) | F100: (indvid.) | G100: 0.85 | H100: (indvid.) | I100: (indvid.) | K100: (individ.) | L100: (individ.)
B101: mala - manjše od 1MW | C101: SL12 | D101: 293.27 | E101: 48.53 | F101: 341.8 | G101: 0.88 | H101: 341.8 | I101: 297.22 | K101: 3.35 | L101: 7.87
B102: srednja - nižja - od 1MW do vključno 5MW | C102: SL13 | D102: 221.27 | E102: 45.67 | F102: 266.94 | G102: 0.93 | H102: (ni ZO) | I102: 219.83 | K102: (ni ZO) | L102: 7.92
B103: srednja - višja - nad 5MW do vključno 25MW | C103: SL14 | D103: 159.27 | E103: 40.25 | F103: 199.52 | G103: 0.93 | H103: (ni ZO) | I103: 152.41 | K103: (ni ZO) | L103: 7.54
B104: velika - nižja - nad 25MW do vključno 50MW | C104: SL15 | D104: 127.05 | E104: 41.59 | F104: 168.64 | G104: 0.96 | H104: (ni ZO) | I104: 120.01 | K104: (ni ZO) | L104: 7.8
B105: velika - višja - nad 50MW do 200MW | C105: SL16 | D105: (indvid.) | E105: (indvid.) | F105: (indvid.) | G105: 0.96 | H105: (ni ZO) | I105: (indvid.) | K105: (ni ZO; individ.) | L105: (individ.)
A106: 10. SPTE na lesno biomaso (več kot 4.000 ur) | B106: mikro - manjše od 50kW | C106: SL21 | D106: (indvid.) | E106: (indvid.) | F106: (indvid.) | G106: 0.9 | H106: (indvid.) | I106: (indvid.) | K106: (individ.) | L106: (individ.)
B107: mala - manjše od 1MW | C107: SL22 | D107: 186.62 | E107: 48.53 | F107: 235.15 | G107: 0.92 | H107: 235.15 | I107: 188.54 | K107: 3.35 | L107: 8.07
B108: srednja - nižja - od 1MW do vključno 5MW | C108: SL23 | D108: 140.81 | E108: 45.67 | F108: 186.48 | G108: 0.94 | H108: (ni ZO) | I108: 138.86 | K108: (ni ZO) | L108: 7.97
B109: srednja - višja - nad 5MW do vključno 25MW | C109: SL24 | D109: 101.36 | E109: 40.25 | F109: 141.61 | G109: 0.94 | H109: (ni ZO) | I109: 93.99 | K109: (ni ZO) | L109: 7.59
B110: velika - nižja - nad 25MW do vključno 50MW | C110: SL25 | D110: 80.85 | E110: 41.59 | F110: 122.44 | G110: 0.97 | H110: (ni ZO) | I110: 73.3 | K110: (ni ZO) | L110: 7.85
B111: velika - višja - nad 50MW do 200MW | C111: SL26 | D111: (indvid.) | E111: (indvid.) | F111: (indvid.) | G111: 0.97 | H111: (ni ZO) | I111: (indvid.) | K111: (ni ZO; individ.) | L111: (individ.)
A112: 11. SPTE na fosilna goriva (do 4.000 ur) | B112: mikro - manjše od 50kW | C112: SF11 | D112: 174.07 | E112: 81.87 | F112: 255.94 | G112: 0.85 | H112: 255.94 | I112: 212.88 | K112: 4.2 | L112: 8.56
B113: mala - manjše od 1MW | C113: SF12 | D113: 92.94 | E113: 83.09 | F113: 176.03 | G113: 0.88 | H113: 176.03 | I113: 131.45 | K113: 4.49 | L113: 9.01
B114: srednja - nižja - od 1MW do vključno 5MW | C114: SF13 | D114: 73.1 | E114: 69.55 | F114: 142.65 | G114: 0.93 | H114: (ni ZO) | I114: 95.54 | K114: (ni ZO) | L114: 9.47
B115: srednja - višja - nad 5MW do vključno 25MW | C115: SF14 | D115: 64 | E115: 78.3 | F115: 142.3 | G115: 0.93 | H115: (ni ZO) | I115: 95.19 | K115: (ni ZO) | L115: 10.15
B116: velika - nižja - nad 25MW do vključno 50MW | C116: SF15 | D116: 72.5 | E116: 71.06 | F116: 143.56 | G116: 0.96 | H116: (ni ZO) | I116: 94.93 | K116: (ni ZO) | L116: 9.87
B117: velika - višja - nad 50MW do 200MW | C117: SF16 | D117: 66.2 | E117: 65.22 | F117: 131.42 | G117: 0.96 | H117: (ni ZO) | I117: 82.79 | K117: (ni ZO) | L117: 9.52
A118: 11. SPTE na fosilna goriva (več kot 4.000 ur) | B118: mikro - manjše od 50kW | C118: SF21 | D118: 116.23 | E118: 81.87 | F118: 198.1 | G118: 0.9 | H118: 198.1 | I118: 152.51 | K118: 4.2 | L118: 8.82
B119: mala - manjše od 1MW | C119: SF22 | D119: 62.41 | E119: 83.09 | F119: 145.5 | G119: 0.92 | H119: 145.5 | I119: 98.89 | K119: 4.49 | L119: 9.21
B120: srednja - nižja - od 1MW do vključno 5MW | C120: SF23 | D120: 49.43 | E120: 69.55 | F120: 118.98 | G120: 0.94 | H120: (ni ZO) | I120: 71.36 | K120: (ni ZO) | L120: 9.52
B121: srednja - višja - nad 5MW do vključno 25MW | C121: SF24 | D121: 43.27 | E121: 78.3 | F121: 121.57 | G121: 0.94 | H121: (ni ZO) | I121: 73.95 | K121: (ni ZO) | L121: 10.2
B122: velika - nižja - nad 25MW do vključno 50MW | C122: SF25 | D122: 47.59 | E122: 71.06 | F122: 118.65 | G122: 0.97 | H122: (ni ZO) | I122: 69.51 | K122: (ni ZO) | L122: 9.92
B123: velika - višja - nad 50MW do 200MW | C123: SF26 | D123: 43.22 | E123: 65.22 | F123: 108.44 | G123: 0.97 | H123: (ni ZO) | I123: 59.3 | K123: (ni ZO) | L123: 9.57
C126: 2013 | D126: 2012 | E126: 2011 | F126: 2010 | G126: 2009 | H126: Indeks cene 2013 | I126: Indeks cene 2012 | J126: Indeks cene 2011 | K126: Indeks cene 2010
A127: EE | B127: €/MWh | C127: 50.66 | D127: 55.79 | E127: 53.13 | F127: 53.41 | G127: 65
A128: PREMOG | B128: EUR/GJ | C128: 2.61 | D128: 2.65 | E128: 2.83 | F128: 2.87 | G128: 3.5
A129: LB sosežig | B129: EUR/GJ | C129: 8.27 | D129: 7.7 | E129: 6.56 | F129: 5.83 | G129: 5.7
A130: lesna biomasa - Clb | B130: €/t | C130: 58.5 | D130: 54.47 | E130: 46.4 | F130: 41.2 | G130: 40.3 | H130: 1.45161 | I130: 1.35161 | J130: 1.15136 | K130: 1.02233
A131: koruzna silaža - Cs | B131: EUR/t | C131: 32 | D131: 24 | E131: 24 | F131: 24 | G131: 23.59 | H131: =ROUND(C131/G131,5) -> 1.35651 | I131: 1.01738 | J131: 1.01738 | K131: 1.01738
A132: zemeljski plin - Cb | B132: €/Sm3 | C132: 0.4087 | D132: 0.3768 | E132: 0.3344 | F132: 0.2679 | G132: 0.24 | H132: 1.70292 | I132: 1.57 | J132: 1.39333 | K132: 1.11625
A136: PODPORE PV INSTALACIJA DEC 2012 in KASNEJE
A138: MESEC: DECEMBER 2012
A139: Koda | B139: Referenčni stroški (EUR/MWh) | C139: Cena ZO (EUR/MWh) | D139: Višina OP (EUR/MWh)
A140: SE11 | B140: 150 | C140: 150 | D140: 105.42
A141: SE12 | B141: 137.19 | C141: 137.19 | D141: 92.61
A142: SE13 | B142: 113.85 | C142: 113.85 | D142: 67.75
A143: SE14 | B143: 101.34 | C143: / | D143: 50.68
A144: SE21 | B144: 140.95 | C144: 140.95 | D144: 96.37
A145: SE22 | B145: 129.86 | C145: 129.86 | D145: 85.28
A146: SE23 | B146: 104.68 | C146: 104.68 | D146: 58.58
A147: SE24 | B147: 97.19 | C147: / | D147: 46.53
A149: MESEC: JANUAR 2013
A150: Koda | B150: Referenčni stroški (EUR/MWh) | C150: Cena ZO (EUR/MWh) | D150: Višina OP (EUR/MWh)
A151: SE11 | B151: 147 | C151: 147 | D151: 102.42
A152: SE12 | B152: 134.45 | C152: 134.45 | D152: 89.87
A153: SE13 | B153: 111.57 | C153: 111.57 | D153: 65.47
A154: SE14 | B154: 99.31 | C154: / | D154: 48.65
A155: SE21 | B155: 138.13 | C155: 138.13 | D155: 93.55
A156: SE22 | B156: 127.26 | C156: 127.26 | D156: 82.68
A157: SE23 | B157: 102.59 | C157: 102.59 | D157: 56.49
A158: SE24 | B158: 95.25 | C158: / | D158: 44.59
A160: MESEC: FEBRUAR 2013
A161: Koda | B161: Referenčni stroški (EUR/MWh) | C161: Cena ZO (EUR/MWh) | D161: Višina OP (EUR/MWh)
A162: SE11 | B162: 144.06 | C162: 144.06 | D162: 99.48
A163: SE12 | B163: 131.76 | C163: 131.76 | D163: 87.18
A164: SE13 | B164: 109.34 | C164: 109.34 | D164: 63.24
A165: SE14 | B165: 97.32 | C165: / | D165: 46.66
A166: SE21 | B166: 135.37 | C166: 135.37 | D166: 90.79
A167: SE22 | B167: 124.71 | C167: 124.71 | D167: 80.13
A168: SE23 | B168: 100.54 | C168: 100.54 | D168: 54.44
A169: SE24 | B169: 93.35 | C169: / | D169: 42.69
A171: MESEC: MAREC 2013
A172: Koda | B172: Referenčni stroški (EUR/MWh) | C172: Cena ZO (EUR/MWh) | D172: Višina OP (EUR/MWh)
A173: SE11 | B173: 141.18 | C173: 141.18 | D173: 96.6
A174: SE12 | B174: 129.12 | C174: 129.12 | D174: 84.54
A175: SE13 | B175: 107.15 | C175: 107.15 | D175: 61.05
A176: SE14 | B176: 95.37 | C176: / | D176: 44.71
A177: SE21 | B177: 132.66 | C177: 132.66 | D177: 88.08
A178: SE22 | B178: 122.22 | C178: 122.22 | D178: 77.64
A179: SE23 | B179: 98.53 | C179: 98.53 | D179: 52.43
A180: SE24 | B180: 91.48 | C180: / | D180: 40.82
A182: MESEC: APRIL 2013
A183: Koda | B183: Referenčni stroški (EUR/MWh) | C183: Cena ZO (EUR/MWh) | D183: Višina OP (EUR/MWh)
A184: SE11 | B184: 138.36 | C184: 138.36 | D184: 93.78
A185: SE12 | B185: 126.54 | C185: 126.54 | D185: 81.96
A186: SE13 | B186: 105.01 | C186: 105.01 | D186: 58.91
A187: SE14 | B187: 93.46 | C187: / | D187: 42.8
A188: SE21 | B188: 130.01 | C188: 130.01 | D188: 85.43
A189: SE22 | B189: 119.78 | C189: 119.78 | D189: 75.2
A190: SE23 | B190: 96.56 | C190: 96.56 | D190: 50.46
A191: SE24 | B191: 89.65 | C191: / | D191: 38.99
A193: MESEC: MAJ 2013
A194: Koda | B194: Referenčni stroški (EUR/MWh) | C194: Cena ZO (EUR/MWh) | D194: Višina OP (EUR/MWh)
A195: SE11 | B195: 135.59 | C195: 135.59 | D195: 91.01
A196: SE12 | B196: 124.01 | C196: 124.01 | D196: 79.43
A197: SE13 | B197: 102.91 | C197: 102.91 | D197: 56.81
A198: SE14 | B198: 91.59 | C198: / | D198: 40.93
A199: SE21 | B199: 127.41 | C199: 127.41 | D199: 82.83
A200: SE22 | B200: 117.38 | C200: 117.38 | D200: 72.8
A201: SE23 | B201: 94.63 | C201: 94.63 | D201: 48.53
A202: SE24 | B202: 87.86 | C202: / | D202: 37.2
A204: MESEC: JUNIJ 2013
A205: Koda | B205: Referenčni stroški (EUR/MWh) | C205: Cena ZO (EUR/MWh) | D205: Višina OP (EUR/MWh)
A206: SE11 | B206: 132.88 | C206: 132.88 | D206: 88.3
A207: SE12 | B207: 121.53 | C207: 121.53 | D207: 76.95
A208: SE13 | B208: 100.85 | C208: 100.85 | D208: 54.75
A209: SE14 | B209: 89.76 | C209: / | D209: 39.1
A210: SE21 | B210: 124.86 | C210: 124.86 | D210: 80.28
A211: SE22 | B211: 115.03 | C211: 115.03 | D211: 70.45
A212: SE23 | B212: 92.74 | C212: 92.74 | D212: 46.64
... 61 more rows

Sheet Podpore 2012 (hidden)
A1: VIŠINE PODPOR 2012
A3: VRSTA | B3: RAZRED MOČI | C3: KODA | D3: NDRS 2012 | E3: SDRS 2012 | F3: Skupni refernčni stroški 2012 | G3: Faktor B po Prilogi III | H3: Cena ZO 2012 | I3: Višina OP 2012
A4: 1. Hidroelektrarne | B4: mikro - manjše od 50kW | C4: HE01 | D4: 105.47 | E4: 0 | F4: 105.47 | G4: 0.86 | H4: 105.47 | I4: 57.49
B5: mala - manjše od 1MW | C5: HE02 | D5: 92.61 | E5: 0 | F5: 92.61 | G5: 0.86 | H5: 92.61 | I5: 44.63
B6: srednja - od 1MW do vključno 10MW | C6: HE03 | D6: 82.34 | E6: 0 | F6: 82.34 | G6: 0.9 | H6: 82.34 | I6: 32.13
B7: velika - nad 10MW do vključno 125MW | C7: HE04 | D7: 76.57 | E7: 0 | F7: 76.57 | G7: 0.9 | H7: (ni ZO) | I7: 26.36
A8: 2. Vetrne elektrarne | B8: mikro - manjše od 50kW | C8: VE01 | D8: 95.38 | E8: 0 | F8: 95.38 | G8: 0.8 | H8: 95.38 | I8: 50.75
B9: mala - manjše od 1MW | C9: VE02 | D9: 95.38 | E9: 0 | F9: 95.38 | G9: 0.8 | H9: 95.38 | I9: 50.75
B10: srednja - od 1MW do vključno 10MW | C10: VE03 | D10: 95.38 | E10: 0 | F10: 95.38 | G10: 0.8 | H10: 95.38 | I10: 50.75
B11: velika - nad 10MW do vključno 125MW | C11: VE04 | D11: 86.74 | E11: 0 | F11: 86.74 | G11: 0.86 | H11: (ni ZO) | I11: 38.76
A12: 3.1 Sončne elektrarne - na stavbah 2009 | B12: mikro - manjše od 50kW | C12: SE11 | D12: 415.46 | E12: 0 | F12: 415.46 | G12: 0.88 | H12: 415.46 | I12: 366.36
B13: mala - manjše od 1MW | C13: SE12 | D13: 380.02 | E13: 0 | F13: 380.02 | G13: 0.88 | H13: 380.02 | I13: 330.92
B14: srednja - od 1MW do vključno 10MW | C14: SE13 | D14: 315.36 | E14: 0 | F14: 315.36 | G14: 0.91 | H14: 315.36 | I14: 264.59
B15: velika - nad 10MW do vključno 125MW | C15: SE14 | D15: 280.71 | E15: 0 | F15: 280.71 | G15: 1 | H15: (ni ZO) | I15: 224.92
A16: 3.1. INT Sončne elektrarne - integrirane 2009 | B16: mikro - manjše od 50kW | D16: 477.78 | E16: 0 | F16: 477.78 | G16: 0.88 | H16: 477.78 | I16: 428.68
B17: mala - manjše od 1MW | D17: 437.02 | E17: 0 | F17: 437.02 | G17: 0.88 | H17: 437.02 | I17: 387.92
B18: srednja - od 1MW do vključno 10MW | D18: 362.66 | E18: 0 | F18: 362.66 | G18: 0.91 | H18: 362.66 | I18: 311.89
B19: velika - nad 10MW do vključno 125MW | D19: 322.82 | E19: 0 | F19: 322.82 | G19: 1 | H19: (ni ZO) | I19: 267.03
A20: 3.2 Sončne elektrarne - samostojni objekti 2009 | B20: mikro - manjše od 50kW | C20: SE21 | D20: 390.42 | E20: 0 | F20: 390.42 | G20: 0.88 | H20: 390.42 | I20: 341.32
B21: mala - manjše od 1MW | C21: SE22 | D21: 359.71 | E21: 0 | F21: 359.71 | G21: 0.88 | H21: 359.71 | I21: 310.61
B22: srednja - od 1MW do vključno 10MW | C22: SE23 | D22: 289.98 | E22: 0 | F22: 289.98 | G22: 0.91 | H22: 289.98 | I22: 239.21
B23: velika - nad 10MW do vključno 125MW | C23: SE24 | D23: 269.22 | E23: 0 | F23: 269.22 | G23: 1 | H23: (ni ZO) | I23: 213.43
A24: 3.1 Sončne elektrarne - na stavbah 2010 | B24: mikro - manjše od 50kW | C24: SE11 | D24: 386.38 | E24: 0 | F24: 386.38 | G24: 0.88 | H24: 386.38 | I24: 337.28
B25: mala - manjše od 1MW | C25: SE12 | D25: 353.42 | E25: 0 | F25: 353.42 | G25: 0.88 | H25: 353.42 | I25: 304.32
B26: srednja - od 1MW do vključno 10MW | C26: SE13 | D26: 293.28 | E26: 0 | F26: 293.28 | G26: 0.91 | H26: 293.28 | I26: 242.51
B27: velika - nad 10MW do vključno 125MW | C27: SE14 | D27: 261.06 | E27: 0 | F27: 261.06 | G27: 1 | H27: (ni ZO) | I27: 205.27
A28: 3.1 INT Sončne elektrarne - integrirane 2010 | B28: mikro - manjše od 50kW | D28: 444.34 | E28: 0 | F28: 444.34 | G28: 0.88 | H28: 444.34 | I28: 395.24
B29: mala - manjše od 1MW | D29: 406.43 | E29: 0 | F29: 406.43 | G29: 0.88 | H29: 406.43 | I29: 357.33
B30: srednja - od 1MW do vključno 10MW | D30: 337.27 | E30: 0 | F30: 337.27 | G30: 0.91 | H30: 337.27 | I30: 286.5
B31: velika - nad 10MW do vključno 125MW | D31: 300.22 | E31: 0 | F31: 300.22 | G31: 1 | H31: (ni ZO) | I31: 244.43
A32: 3.2 Sončne elektrarne - samostojni objekti 2010 | B32: mikro - manjše od 50kW | C32: SE21 | D32: 363.09 | E32: 0 | F32: 363.09 | G32: 0.88 | H32: 363.09 | I32: 313.99
B33: mala - manjše od 1MW | C33: SE22 | D33: 334.53 | E33: 0 | F33: 334.53 | G33: 0.88 | H33: 334.53 | I33: 285.43
B34: srednja - od 1MW do vključno 10MW | C34: SE23 | D34: 269.68 | E34: 0 | F34: 269.68 | G34: 0.91 | H34: 269.68 | I34: 218.91
B35: velika - nad 10MW do vključno 125MW | C35: SE24 | D35: 250.37 | E35: 0 | F35: 250.37 | G35: 1 | H35: (ni ZO) | I35: 194.58
A36: 3.1 Sončne elektrarne - na stavbah 2011 | B36: mikro - manjše od 50kW | C36: SE11 | D36: 332.37 | E36: 0 | F36: 332.37 | G36: 0.88 | H36: 332.37 | I36: 283.27
B37: mala - manjše od 1MW | C37: SE12 | D37: 304.02 | E37: 0 | F37: 304.02 | G37: 0.88 | H37: 304.02 | I37: 254.92
B38: srednja - od 1MW do vključno 10MW | C38: SE13 | D38: 252.29 | E38: 0 | F38: 252.29 | G38: 0.91 | H38: 252.29 | I38: 201.52
B39: velika - nad 10MW do vključno 125MW | C39: SE14 | D39: 224.57 | E39: 0 | F39: 224.57 | G39: 1 | H39: (ni ZO) | I39: 168.78
A40: 3.1 INT Sončne elektrarne - integrirane 2011 | B40: mikro - manjše od 50kW | D40: 382.23 | E40: 0 | F40: 382.23 | G40: 0.88 | H40: 382.23 | I40: 333.13
B41: mala - manjše od 1MW | D41: 349.62 | E41: 0 | F41: 349.62 | G41: 0.88 | H41: 349.62 | I41: 300.52
B42: srednja - od 1MW do vključno 10MW | D42: 290.13 | E42: 0 | F42: 290.13 | G42: 0.91 | H42: 290.13 | I42: 239.36
B43: velika - nad 10MW do vključno 125MW | D43: 258.26 | E43: 0 | F43: 258.26 | G43: 1 | H43: (ni ZO) | I43: 202.47
A44: 3.2 Sončne elektrarne - samostojni objekti 2011 | B44: mikro - manjše od 50kW | C44: SE21 | D44: 312.34 | E44: 0 | F44: 312.34 | G44: 0.88 | H44: 312.34 | I44: 263.24
B45: mala - manjše od 1MW | C45: SE22 | D45: 287.77 | E45: 0 | F45: 287.77 | G45: 0.88 | H45: 287.77 | I45: 238.67
B46: srednja - od 1MW do vključno 10MW | C46: SE23 | D46: 231.98 | E46: 0 | F46: 231.98 | G46: 0.91 | H46: 231.98 | I46: 181.21
B47: velika - nad 10MW do vključno 125MW | C47: SE24 | D47: 215.38 | E47: 0 | F47: 215.38 | G47: 1 | H47: (ni ZO) | I47: 159.59
A48: 3.1 Sončne elektrarne - na stavbah 2012 H1 | B48: mikro - manjše od 50kW | C48: SE11 | D48: 290.82 | E48: 0 | F48: 290.82 | G48: 0.88 | H48: 290.82 | I48: 241.72
B49: mala - manjše od 1MW | C49: SE12 | D49: 266.01 | E49: 0 | F49: 266.01 | G49: 0.88 | H49: 266.01 | I49: 216.91
B50: srednja - od 1MW do vključno 10MW | C50: SE13 | D50: 220.75 | E50: 0 | F50: 220.75 | G50: 0.91 | H50: 220.75 | I50: 169.98
B51: velika - nad 10MW do vključno 125MW | C51: SE14 | D51: 196.5 | E51: 0 | F51: 196.5 | G51: 1 | H51: (ni ZO) | I51: 140.71
A52: 3.2 Sončne elektrarne - ostale 2012 H1 | B52: mikro - manjše od 50kW | C52: SE21 | D52: 273.29 | E52: 0 | F52: 273.29 | G52: 0.88 | H52: 273.29 | I52: 224.19
B53: mala - manjše od 1MW | C53: SE22 | D53: 251.8 | E53: 0 | F53: 251.8 | G53: 0.88 | H53: 251.8 | I53: 202.7
B54: srednja - od 1MW do vključno 10MW | C54: SE23 | D54: 202.99 | E54: 0 | F54: 202.99 | G54: 0.91 | H54: 202.99 | I54: 152.22
B55: velika - nad 10MW do vključno 125MW | C55: SE24 | D55: 188.45 | E55: 0 | F55: 188.45 | G55: 1 | H55: (ni ZO) | I55: 132.66
A56: 3.1 Sončne elektrarne - na stavbah 2012 H2 | B56: mikro - manjše od 50kW | C56: SE11 | D56: 249.28 | E56: 0 | F56: 249.28 | G56: 0.88 | H56: 197.55 | I56: 148.45 | K56: Popravek glede na UL 42/2012 z dne 8.6.2012
B57: mala - manjše od 1MW | C57: SE12 | D57: 228.01 | E57: 0 | F57: 228.01 | G57: 0.88 | H57: 180.7 | I57: 131.6
B58: srednja - od 1MW do vključno 10MW | C58: SE13 | D58: 189.22 | E58: 0 | F58: 189.22 | G58: 0.91 | H58: 149.95 | I58: 99.18
B59: velika - nad 10MW do vključno 125MW | C59: SE14 | D59: 168.43 | E59: 0 | F59: 168.43 | G59: 1 | H59: (ni ZO) | I59: 77.69
A60: 3.2 Sončne elektrarne - ostale 2012 H2 | B60: mikro - manjše od 50kW | C60: SE21 | D60: 234.25 | E60: 0 | F60: 234.25 | G60: 0.88 | H60: 185.64 | I60: 136.54
B61: mala - manjše od 1MW | C61: SE22 | D61: 215.83 | E61: 0 | F61: 215.83 | G61: 0.88 | H61: 171.04 | I61: 121.94
B62: srednja - od 1MW do vključno 10MW | C62: SE23 | D62: 173.99 | E62: 0 | F62: 173.99 | G62: 0.91 | H62: 137.89 | I62: 87.12
B63: velika - nad 10MW do vključno 125MW | C63: SE24 | D63: 161.53 | E63: 0 | F63: 161.53 | G63: 1 | H63: (ni ZO) | I63: 72.22
A64: 4. Geotermalne elektrarne | B64: mikro - manjše od 50kW | C64: GT01 | D64: 152.47 | E64: 0 | F64: 152.47 | G64: 0.92 | H64: 152.47 | I64: 101.14
B65: mala - manjše od 1MW | C65: GT02 | D65: 152.47 | E65: 0 | F65: 152.47 | G65: 0.92 | H65: 152.47 | I65: 101.14
B66: srednja - od 1MW do vključno 10MW | C66: GT03 | D66: 152.47 | E66: 0 | F66: 152.47 | G66: 0.92 | H66: 152.47 | I66: 101.14
B67: velika - nad 10MW do vključno 125MW | C67: GT04 | D67: (indvid.) | E67: 0 | F67: (indvid.) | G67: 0.92 | H67: (ni ZO) | I67: (indvid.)
A68: 5.1 Elektrarne na lesno biomaso | B68: mikro - manjše od 50kW | C68: LB11 | D68: (indvid.) | E68: (indvid.) | F68: (indvid.) | G68: 0.88 | H68: (indvid.) | I68: (indvid.)
B69: mala - manjše od 1MW | C69: LB12 | D69: 161.95 | E69: 84.34 | F69: 246.29 | G69: 0.91 | H69: 246.29 | I69: 195.52
B70: srednja - od 1MW do vključno 10MW | C70: LB13 | D70: 115.52 | E70: 70.18 | F70: 185.7 | G70: 0.92 | H70: 185.7 | I70: 134.37
B71: velika - nad 10MW do vključno 125MW | C71: LB14 | D71: (indvid.) | E71: (indvid.) | F71: (indvid.) | G71: 0.92 | H71: (ni ZO) | I71: (indvid.)
A72: 5.2.Sosežig lesne biomase >5% | B72: mikro - manjše od 50kW | C72: LB21 | D72: 51.34 | E72: 69.2 | F72: 120.54 | G72: 0.88 | H72: (ni ZO) | I72: 71.44
B73: mala - manjše od 1MW | C73: LB22 | D73: 51.34 | E73: 69.2 | F73: 120.54 | G73: 0.91 | H73: (ni ZO) | I73: 69.77
B74: srednja - od 1MW do vključno 10MW | C74: LB23 | D74: 51.34 | E74: 69.2 | F74: 120.54 | G74: 0.92 | H74: (ni ZO) | I74: 69.21
B75: velika - nad 10MW do vključno 125MW | C75: LB24 | D75: (indvid.) | E75: (indvid.) | F75: (indvid.) | G75: 0.92 | H75: (ni ZO) | I75: (indvid.)
A76: 5.3.Sosežig lesne biomase <5% | B76: mikro - manjše od 50kW | C76: LB31 | D76: 0 | E76: 60.6 | F76: 60.6 | G76: OP=SDRS | H76: (ni ZO) | I76: 60.6
B77: mala - manjše od 1MW | C77: LB32 | D77: 0 | E77: 60.6 | F77: 60.6 | G77: OP=SDRS | H77: (ni ZO) | I77: 60.6
B78: srednja - od 1MW do vključno 10MW | C78: LB33 | D78: 0 | E78: 60.6 | F78: 60.6 | G78: OP=SDRS | H78: (ni ZO) | I78: 60.6
B79: velika - nad 10MW do vključno 125MW | C79: LB34 | D79: 0 | E79: 60.6 | F79: 60.6 | G79: OP=SDRS | H79: (ni ZO) | I79: 60.6
A80: 6.1 Bioplinske enote - biomasa | B80: mikro - manjše od 50kW | C80: BP11 | D80: 118.72 | E80: 41.84 | F80: 160.56 | G80: 0.88 | H80: 160.56 | I80: 111.46
B81: mala - manjše od 1MW | C81: BP12 | D81: 111.75 | E81: 44.56 | F81: 156.31 | G81: 0.91 | H81: 156.31 | I81: 105.54
B82: srednja - od 1MW do vključno 10MW | C82: BP13 | D82: 96.18 | E82: 45.24 | F82: 141.42 | G82: 0.92 | H82: 141.42 | I82: 90.09
B83: velika - nad 10MW do vključno 125MW | C83: BP14 | D83: (ni predv.) | E83: (ni predv.) | F83: (ni predv.) | G83: 1 | H83: (ni predv.) | I83: (ni predv.)
A84: 6.2 Bioplinske enote - odpadki | B84: mikro - manjše od 50kW | C84: BP21 | D84: 139.23 | E84: 0 | F84: 139.23 | G84: 0.88 | H84: 139.23 | I84: 90.13
B85: mala - manjše od 1MW | C85: BP22 | D85: 139.23 | E85: 0 | F85: 139.23 | G85: 0.91 | H85: 139.23 | I85: 88.46
B86: srednja - od 1MW do vključno 10MW | C86: BP23 | D86: 129.15 | E86: 0 | F86: 129.15 | G86: 0.92 | H86: 129.15 | I86: 77.82
B87: velika - nad 10MW do vključno 125MW | C87: BP24 | D87: (ni predv.) | E87: (ni predv.) | F87: (ni predv.) | G87: 1 | H87: (ni predv.) | I87: (ni predv.)
A88: 7. Elektrarne na bioplin iz čistilnih naprav | B88: mikro - manjše od 50kW | C88: ČN01 | D88: 85.84 | E88: 0 | F88: 85.84 | G88: 0.92 | H88: 85.84 | I88: 34.51
B89: mala - manjše od 1MW | C89: ČN02 | D89: 74.42 | E89: 0 | F89: 74.42 | G89: 0.92 | H89: 74.42 | I89: 23.09
B90: srednja - od 1MW do vključno 10MW | C90: ČN03 | D90: 66.09 | E90: 0 | F90: 66.09 | G90: 0.92 | H90: 66.09 | I90: 14.76
B91: velika - nad 10MW do vključno 125MW | C91: ČN04 | D91: (ni predv.) | E91: (ni predv.) | F91: (ni predv.) | G91: 1 | H91: (ni predv.) | I91: (ni predv.)
A92: 8. Elektrarne na odlagališčni plin | B92: mikro - manjše od 50kW | C92: OP01 | D92: 99.33 | E92: 0 | F92: 99.33 | G92: 0.92 | H92: 99.33 | I92: 48
B93: mala - manjše od 1MW | C93: OP02 | D93: 67.47 | E93: 0 | F93: 67.47 | G93: 0.92 | H93: 67.47 | I93: 16.14
B94: srednja - od 1MW do vključno 10MW | C94: OP03 | D94: 61.67 | E94: 0 | F94: 61.67 | G94: 0.92 | H94: 61.67 | I94: 10.34
B95: velika - nad 10MW do vključno 125MW | C95: OP04 | D95: (ni predv.) | E95: (ni predv.) | F95: (ni predv.) | G95: 1 | H95: (ni predv.) | I95: (ni predv.)
A96: 9. Elektrarne na biološko razgradljive odpadke | B96: mikro - manjše od 50kW | C96: BO01 | D96: (ni predv.) | E96: (ni predv.) | F96: (ni predv.) | G96: 0.92 | H96: (ni predv.) | I96: (ni predv.)
B97: mala - manjše od 1MW | C97: BO02 | D97: 77.44 | E97: 0 | F97: 77.44 | G97: 0.92 | H97: 77.44 | I97: 26.11
B98: srednja - od 1MW do vključno 10MW | C98: BO03 | D98: 74.34 | E98: 0 | F98: 74.34 | G98: 0.92 | H98: 74.34 | I98: 23.01
B99: velika - nad 10MW do vključno 125MW | C99: BO04 | D99: (indvid.) | E99: 0 | F99: (indvid.) | G99: 0.92 | H99: (ni ZO) | I99: (indvid.)
A100: 10. SPTE na lesno biomaso (do 4.000 ur) | B100: mikro - manjše od 50kW | C100: SL11 | D100: (indvid.) | E100: (indvid.) | F100: (indvid.) | G100: 0.85 | H100: (indvid.) | I100: (indvid.)
B101: mala - manjše od 1MW | C101: SL12 | D101: 293.27 | E101: 45.18 | F101: 338.45 | G101: 0.88 | H101: 338.45 | I101: 289.35
B102: srednja - nižja - od 1MW do vključno 5MW | C102: SL13 | D102: 221.27 | E102: 42.52 | F102: 263.79 | G102: 0.93 | H102: (ni ZO) | I102: 211.91
B103: srednja - višja - nad 5MW do vključno 25MW | C103: SL14 | D103: 159.27 | E103: 37.48 | F103: 196.75 | G103: 0.93 | H103: (ni ZO) | I103: 144.87
B104: velika - nižja - nad 25MW do vključno 50MW | C104: SL15 | D104: 127.05 | E104: 38.72 | F104: 165.77 | G104: 0.96 | H104: (ni ZO) | I104: 112.21
B105: velika - višja - nad 50MW do 200MW | C105: SL16 | D105: (indvid.) | E105: (indvid.) | F105: (indvid.) | G105: 0.96 | H105: (ni ZO) | I105: (indvid.)
A106: 10. SPTE na lesno biomaso (več kot 4.000 ur) | B106: mikro - manjše od 50kW | C106: SL21 | D106: (indvid.) | E106: (indvid.) | F106: (indvid.) | G106: 0.9 | H106: (indvid.) | I106: (indvid.)
B107: mala - manjše od 1MW | C107: SL22 | D107: 186.62 | E107: 45.18 | F107: 231.8 | G107: 0.92 | H107: 231.8 | I107: 180.47
B108: srednja - nižja - od 1MW do vključno 5MW | C108: SL23 | D108: 140.81 | E108: 42.52 | F108: 183.33 | G108: 0.94 | H108: (ni ZO) | I108: 130.89
B109: srednja - višja - nad 5MW do vključno 25MW | C109: SL24 | D109: 101.36 | E109: 37.48 | F109: 138.84 | G109: 0.94 | H109: (ni ZO) | I109: 86.4
B110: velika - nižja - nad 25MW do vključno 50MW | C110: SL25 | D110: 80.85 | E110: 38.72 | F110: 119.57 | G110: 0.97 | H110: (ni ZO) | I110: 65.45
B111: velika - višja - nad 50MW do 200MW | C111: SL26 | D111: (indvid.) | E111: (indvid.) | F111: (indvid.) | G111: 0.97 | H111: (ni ZO) | I111: (indvid.)
A112: 11. SPTE na fosilna goriva (do 4.000 ur) | B112: mikro - manjše od 50kW | C112: SF11 | D112: 174.07 | E112: 77.67 | F112: 251.74 | G112: 0.85 | H112: 251.74 | I112: 204.32
B113: mala - manjše od 1MW | C113: SF12 | D113: 92.94 | E113: 78.6 | F113: 171.54 | G113: 0.88 | H113: 171.54 | I113: 122.44
B114: srednja - nižja - od 1MW do vključno 5MW | C114: SF13 | D114: 73.1 | E114: 64.85 | F114: 137.95 | G114: 0.93 | H114: (ni ZO) | I114: 86.07
B115: srednja - višja - nad 5MW do vključno 25MW | C115: SF14 | D115: 64 | E115: 72.92 | F115: 136.92 | G115: 0.93 | H115: (ni ZO) | I115: 85.04
B116: velika - nižja - nad 25MW do vključno 50MW | C116: SF15 | D116: 72.5 | E116: 66.12 | F116: 138.62 | G116: 0.96 | H116: (ni ZO) | I116: 85.06
B117: velika - višja - nad 50MW do 200MW | C117: SF16 | D117: 66.2 | E117: 60.63 | F117: 126.83 | G117: 0.96 | H117: (ni ZO) | I117: 73.27
A118: 11. SPTE na fosilna goriva (več kot 4.000 ur) | B118: mikro - manjše od 50kW | C118: SF21 | D118: 116.23 | E118: 77.67 | F118: 193.9 | G118: 0.9 | H118: 193.9 | I118: 143.69
B119: mala - manjše od 1MW | C119: SF22 | D119: 62.41 | E119: 78.6 | F119: 141.01 | G119: 0.92 | H119: 141.01 | I119: 89.68
B120: srednja - nižja - od 1MW do vključno 5MW | C120: SF23 | D120: 49.43 | E120: 64.85 | F120: 114.28 | G120: 0.94 | H120: (ni ZO) | I120: 61.84
B121: srednja - višja - nad 5MW do vključno 25MW | C121: SF24 | D121: 43.27 | E121: 72.92 | F121: 116.19 | G121: 0.94 | H121: (ni ZO) | I121: 63.75
B122: velika - nižja - nad 25MW do vključno 50MW | C122: SF25 | D122: 47.59 | E122: 66.12 | F122: 113.71 | G122: 0.97 | H122: (ni ZO) | I122: 59.59
B123: velika - višja - nad 50MW do 200MW | C123: SF26 | D123: 43.22 | E123: 60.63 | F123: 103.85 | G123: 0.97 | H123: (ni ZO) | I123: 49.73
C126: 2012 | D126: 2011 | E126: 2010 | F126: 2009 | G126: Indeks cene 2012 | H126: Indeks cene 2011 | I126: Indeks cene 2010
A127: EE | B127: €/MWh | C127: 55.79 | D127: 53.13 | E127: 53.41 | F127: 65
A128: PREMOG | B128: EUR/GJ | C128: 2.65 | D128: 2.83 | E128: 2.87 | F128: 3.5
A129: LB sosežig | B129: EUR/GJ | C129: 7.7 | D129: 6.56 | E129: 5.83 | F129: 5.7
A130: lesna biomasa - Clb | B130: €/t | C130: 54.47 | D130: 46.4 | E130: 41.2 | F130: 40.3 | G130: 1.35161 | H130: 1.15136 | I130: 1.02233
A131: koruzna silaža - Cs | B131: EUR/t | C131: 24 | D131: 24 | E131: 24 | F131: 23.59 | G131: 1.01738 | H131: 1.01738 | I131: 1.01738
A132: zemeljski plin - Cb | B132: €/Sm3 | C132: 0.3768 | D132: 0.3344 | E132: 0.2679 | F132: 0.24 | G132: 1.57 | H132: 1.39333 | I132: 1.11625

Sheet Metodologija - OU in spec I str (hidden)
A1: METODOLOGIJA - predvidene obratovalne ure in specifični investicijski stroški
B4: KODA | C4: OU po metodologiji | D4: Specifični investicijski stroški (EUR/kWel) | E4: Možni dodatki
A5: 1. Hidroelektrarne | B5: HE01 | C5: 4000 | D5: 2300
B6: HE02 | C6: 3500 | D6: 1700
B7: HE03 | C7: 3500 | D7: 1500
B8: HE04 | C8: 3500 | D8: 1400
A9: 2. Vetrne elektrarne | B9: VE01 | C9: 2100 | D9: 1200
B10: VE02 | C10: 2100 | D10: 1200
B11: VE03 | C11: 2100 | D11: 1200
B12: VE04 | C12: 2100 | D12: 1090
A13: 3.1 Sončne elektrarne - na stavbah | B13: SE11 | C13: 1050 | D13: 3860 | E13: INT | F13: dodatek za INT le za priključitve do konca 2011; GD mora biti izdano do 30.9.2011
B14: SE12 | C14: 1050 | D14: 3525 | E14: INT | F14: dodatek za INT le za priključitve do konca 2011; GD mora biti izdano do 30.9.2011
B15: SE13 | C15: 1050 | D15: 2925 | E15: INT | F15: dodatek za INT le za priključitve do konca 2011; GD mora biti izdano do 30.9.2011
B16: SE14 | C16: 1050 | D16: 2630 | E16: INT | F16: dodatek za INT le za priključitve do konca 2011; GD mora biti izdano do 30.9.2011
A17: 3.2 Sončne elektrarne - samostojni objekti | B17: SE21 | C17: 1050 | D17: 3620
B18: SE22 | C18: 1050 | D18: 3330
B19: SE23 | C19: 1050 | D19: 2685
B20: SE24 | C20: 1050 | D20: 2455
A21: 4. Geotermalne elektrarne | B21: GT01 | C21: 6000 | D21: 4600 | E21: T
B22: GT02 | C22: 6000 | D22: 4600 | E22: T
B23: GT03 | C23: 6000 | D23: 4600 | E23: T
B24: GT04 | C24: (ind.) | D24: (ind.) | E24: T
A25: 5.1 Elektrarne na lesno biomaso | B25: LB11 | C25: (ind.) | D25: (ind.) | E25: LB
B26: LB12 | C26: 5500 | D26: 4500 | E26: LB
B27: LB13 | C27: 5500 | D27: 3200 | E27: LB
B28: LB14 | C28: (ind.) | D28: (ind.) | E28: LB
A29: 5.2.Sosežig lesne biomase >5% | B29: LB21 | C29: 5500 | D29: 1400 | E29: LB
B30: LB22 | C30: 5500 | D30: 1400 | E30: LB
B31: LB23 | C31: 5500 | D31: 1400 | E31: LB
B32: LB24 | C32: (ind.) | D32: (ind.) | E32: LB
A33: 6.1 Bioplinske enote - biomasa | B33: BP11 | C33: 6800 | D33: 4000 | E33: TS1S2 | F33: možen tudi odbitek glede substrata (UL 43/2011)
B34: BP12 | C34: 6800 | D34: 3800 | E34: TS1S2 | F34: možen tudi odbitek glede substrata (UL 43/2011)
B35: BP13 | C35: 6800 | D35: 3300 | E35: TS1 | F35: možen tudi odbitek glede substrata (UL 43/2011)
B36: BP14 | C36: (ni predv,) | D36: (ni predv,)
A37: 6.2 Bioplinske enote - odpadki | B37: BP21 | C37: 6800 | D37: 4800 | E37: T
B38: BP22 | C38: 6800 | D38: 4800 | E38: T
B39: BP23 | C39: 6800 | D39: 4500 | E39: T
B40: BP24 | C40: (ni predv,) | D40: (ni predv,)
A41: 7. Elektrarne na bioplin iz čistilnih naprav | B41: ČN01 | C41: 6000 | D41: 2500 | E41: T
B42: ČN02 | C42: 6000 | D42: 2200 | E42: T
B43: ČN03 | C43: 6000 | D43: 2000 | E43: T
B44: ČN04 | C44: (ni predv,) | D44: (ni predv,)
A45: 8. Elektrarne na odlagališčni plin | B45: OP01 | C45: 6000 | D45: 3400 | E45: T
B46: OP02 | C46: 6000 | D46: 2300 | E46: T
B47: OP03 | C47: 6000 | D47: 2100 | E47: T
B48: OP04 | C48: (ni predv,) | D48: (ni predv,)
A49: 9. Elektrarne na biološko razgradljive odpadke | B49: BO01 | C49: (ni predv,) | D49: (ni predv,) | E49: T
B50: BO02 | C50: 6000 | D50: 2500
B51: BO03 | C51: 6000 | D51: 2400 | E51: T
B52: BO04 | C52: (ind.) | D52: (ind.) | E52: T
A53: 10. SPTE na lesno biomaso (do 4.000 ur) | B53: SL11 | C53: (ind.) | D53: (ind.) | E53: LB
B54: SL12 | C54: 3500 | D54: 4500 | E54: LB
B55: SL13 | C55: 3500 | D55: 3500 | E55: LB
B56: SL14 | C56: 3500 | D56: 2500 | E56: LB
B57: SL15 | C57: 3500 | D57: 2000 | E57: LB
B58: SL16 | C58: (ind.) | D58: (ind.) | E58: LB
A59: 10. SPTE na lesno biomaso (več kot 4.000 ur) | B59: SL21 | C59: (ind.) | D59: (ind.) | E59: LB
B60: SL22 | C60: 5500 | D60: 4500 | E60: LB
B61: SL23 | C61: 5500 | D61: 3500 | E61: LB
B62: SL24 | C62: 5500 | D62: 2500 | E62: LB
B63: SL25 | C63: 5500 | D63: 2000 | E63: LB
B64: SL26 | C64: (ind.) | D64: (ind.) | E64: LB
A65: 11. SPTE na fosilna goriva (do 4.000 ur) | B65: SF11 | C65: 3500 | D65: 2900
B66: SF12 | C66: 3500 | D66: 1400
B67: SF13 | C67: 3500 | D67: 1100
B68: SF14 | C68: 3500 | D68: 1000
B69: SF15 | C69: 3500 | D69: 1200
B70: SF16 | C70: 3500 | D70: 1100
A71: 11. SPTE na fosilna goriva (več kot 4.000 ur) | B71: SF21 | C71: 5500 | D71: 2900
B72: SF22 | C72: 5500 | D72: 1400
B73: SF23 | C73: 5500 | D73: 1100
B74: SF24 | C74: 5500 | D74: 1000
B75: SF25 | C75: 5500 | D75: 1200
B76: SF26 | C76: 5500 | D76: 1100

Sheet Šifranti (hidden)
A1: ŠIFRANTI
A4: I. Vrste naprav | C4: KODA | G4: II. Velikostni razredi naprav
C5: Vrsta | D5: Podvrsta | E5: Velikostni razred
A6: 1. Hidroelektrarne | C6: HE | D6: 0 | E6: 1- 4 | G6: OVE | H6: Velikostni razred
A7: 2. Vetrne elektrarne | C7: VE | D7: 0 | E7: 1- 4 | G7: 0 | H7: 1 | I7: manjše od 50 kW
A8: 3.1 Sončne elektrarne - na stavbah | C8: SE | D8: 1 | E8: 1- 4 | G8: 50 | H8: 2 | I8: manjše od 1 MW
A9: 3.2 Sončne elektrarne - samostojni objekti | C9: SE | D9: 2 | E9: 1- 4 | G9: 1000 | H9: 3 | I9: od 1 MW do vključno 10 MW
A10: 4. Geotermalne elektrarne | C10: GT | D10: 0 | E10: 1- 4 | G10: 10000.01 | H10: 4 | I10: nad 10 MW do vključno 125 MW
A11: 5.1 Elektrarne na lesno biomaso | C11: LB | D11: 1 | E11: 1- 4 | G11: 125000 | H11: 5 | I11: nad 125 MW
A12: 5.2.Sosežig lesne biomase >5% | C12: LB | D12: 2 | E12: 1- 4
A13: 5.3.Sosežig lesne biomase <5% | C13: LB | D13: 3 | E13: 1- 4 | G13: SPTE | H13: Velikostni razred
A14: 6.1 Bioplinske enote - biomasa | C14: BP | D14: 1 | E14: 1- 3 | G14: 0 | H14: 1 | I14: manjše od 50 kW
A15: 6.2 Bioplinske enote - odpadki | C15: BP | D15: 2 | E15: 1- 3 | G15: 50 | H15: 2 | I15: manjše od 1 MW
A16: 7. Elektrarne na bioplin iz čistilnih naprav | C16: ČN | D16: 0 | E16: 1- 3 | G16: 1000 | H16: 3 | I16: od 1 MW do vključno 5 MW
A17: 8. Elektrarne na odlagališčni plin | C17: OP | D17: 0 | E17: 1- 3 | G17: 5000.01 | H17: 4 | I17: nad 5 MW do vključno 25 MW
A18: 9. Elektrarne na biološko razgradljive odpadke | C18: BO | D18: 0 | E18: 2- 4 | G18: 25000.01 | H18: 5 | I18: nad 25 MW do vključno 50 MW
A19: 10. Soproizvodnja na lesno biomaso | C19: SL | D19: 1.2 | E19: 1- 6 | G19: 50000.01 | H19: 6 | I19: nad 50 MW do 200 MW
A20: 11. Soproizvodnja na fosilna goriva | C20: SF | D20: 1.2 | E20: 1- 6 | G20: 200000 | H20: 7 | I20: 200 MW in več
A21: 12. Drugo - individualna obravnava OVE | C21: IO | D21: 0 | E21: /
A22: 13. Drugo - individualna obravnava SPTE | C22: IS | D22: 0 | E22: /
C23: Obratovalne ure SPTE:
C24: Do 4.000 | D24: 1
C25: Nad 4.000 | D25: 2
A27: III. Dodatki
A29: 1. Integirane SE | B29: INT | C29: 0.15 | D29: NDRS
A30: 2. Izkoriščanje odpadne toplote | B30: T | C30: 0.1 | D30: OP
A31: 3. Substrat bioplin - > 30% gnoja | B31: S1 | C31: 0.1 | D31: OP
A32: 4. Substrat bioplin - > 70% gnoja | B32: S2 | C32: 0.2 | D32: OP
A33: 5. Sestava lesne biomase | B33: LB | D33: SDRS

Sheet Primerjava stari - novi 2010 (hidden)
A1: PRIMERJAVA STARE IN NOVE PODPORNE SHEME
A3: Cene so brez 20% DDV. | E3: Velja od : 1.11.2009 | K3: Velja od : 1.1.2010
A4: STARA PODPORNA SHEMA | F4: NOVA PODPORNA SHEMA
A5: Vrsta KE glede na vir primarne energije | B5: Št. Vira | C5: Velikostni razred | D5: Enotna letna cena ELC | E5: Enotna letna premija ELP | F5: Cena zagotovljenega odkupa | G5: Obratovalna podpora | H5: Velikostni razred | I5: Vrsta proizvodne naprave | J5: Koda | K5: Možni dodatki
D7: €/MWh | E7: €/MWh | F7: €/MWh | G7: €/MWh
A8: Hidroelektrarne | B8: 1 | C8: do vključno 1 MW | D8: 65.72 | E8: 12.1 | F8: 105.47 | G8: 59.54 | H8: 1 | I8: 1. Hidroelektrarne | J8: HE01 | K8: /
F9: 92.61 | G9: 46.68 | H9: 2 | J9: HE02
B10: 2 | C10: nad 1 MW do 10 MW | D10: 63.41 | E10: 10 | F10: 82.34 | G10: 34.27 | H10: 3 | J10: HE03
F11: (ni ZO) | G11: 28.5 | H11: 4 | J11: HE04
A12: KE na biomaso | B12: 3 | C12: do vključno 1 MW | D12: 123.17 | E12: 70.79 | F12: (indvid.) | G12: (indvid.) | H12: 1 | I12: 5.1 Elektrarne na lesno biomaso | J12: LB11 | K12: LB
F13: 225.74 | G13: 177.14 | H13: 2 | J13: LB12 | K13: LB
F14: (indvid.) | G14: (indvid.) | H14: 1 | I14: 10. SPTE na lesno biomaso (do 4.000 ur) | J14: SL11 | K14: LB
F15: 327.45 | G15: 280.45 | H15: 2 | J15: SL12 | K15: LB
F16: (indvid.) | G16: (indvid.) | H16: 1 | I16: 10. SPTE na lesno biomaso (več kot 4.000 ur) | J16: SL21 | K16: LB
F17: 220.8 | G17: 171.66 | H17: 2 | J17: SL22 | K17: LB
B18: 4 | C18: nad 1 MW | D18: 119.35 | E18: 66.97 | F18: 168.6 | G18: 119.46 | H18: 3 | I18: 5.1 Elektrarne na lesno biomaso | J18: LB13 | K18: LB
F19: (ni ZO) | G19: (indvid.) | H19: 4 | J19: LB14 | K19: LB
F20: (ni ZO) | G20: 203.76 | H20: 3 | I20: 10. SPTE na lesno biomaso (do 4.000 ur) | J20: SL13 | K20: LB
F21: (ni ZO) | G21: 137.95 | H21: 4 | J21: SL14 | K21: LB
F22: (ni ZO) | G22: 105.07 | H22: 5 | J22: SL15 | K22: LB
F23: (ni ZO) | G23: (indvid.) | H23: 6 | J23: SL16 | K23: LB
F24: (ni ZO) | G24: 122.76 | H24: 3 | I24: 10. SPTE na lesno biomaso (več kot 4.000 ur) | J24: SL23 | K24: LB
F25: (ni ZO) | G25: 79.5 | H25: 4 | J25: SL24 | K25: LB
F26: (ni ZO) | G26: 58.33 | H26: 5 | J26: SL25 | K26: LB
F27: (ni ZO) | G27: (indvid.) | H27: 6 | J27: SL26 | K27: LB
A28: Vetrne KE | B28: 5 | C28: do vključno 1 MW | D28: 64.84 | E28: 12.46 | F28: 95.38 | G28: 52.65 | H28: 1 | I28: 2. Vetrne elektrarne | J28: VE01 | K28: /
F29: 95.38 | G29: 52.65 | H29: 2 | J29: VE02
B30: 6 | C30: nad 1 MW | D30: 62.61 | E30: 10.23 | F30: 95.38 | G30: 52.65 | H30: 3 | J30: VE03
F31: (ni ZO) | G31: 40.81 | H31: 4 | J31: VE04
A32: Geotermalne KE | B32: 7 | D32: 61.61 | E32: 10.23 | F32: 152.47 | G32: 103.33 | H32: 1 | I32: 4. Geotermalne elektrarne | J32: GT01 | K32: T
F33: 152.47 | G33: 103.33 | H33: 2 | J33: GT02 | K33: T
F34: 152.47 | G34: 103.33 | H34: 3 | J34: GT03 | K34: T
F35: (ni ZO) | G35: (indvid.) | H35: 4 | J35: GT04 | K35: T
A36: Sončne KE | B36: 8 | C36: do vključno 50 kW | D36: 399.57 | E36: 347.19 | F36: 386.38 | G36: 339.38 | H36: 1 | I36: 3.1 Sončne elektrarne - na stavbah | J36: SE11 | K36: INT
F37: 363.09 | G37: 316.09 | H37: 1 | I37: 3.2 Sončne elektrarne - samostojni objekti | J37: SE21 | K37: /
B38: 9 | C38: nad 50 kW | D38: 399.57 | E38: 347.19 | F38: 353.42 | G38: 306.42 | H38: 2 | I38: 3.1 Sončne elektrarne - na stavbah | J38: SE12 | K38: INT
F39: 293.28 | G39: 244.68 | H39: 3 | J39: SE13 | K39: INT
F40: (ni ZO) | G40: 207.65 | H40: 4 | J40: SE14 | K40: INT
F41: 334.53 | G41: 287.53 | H41: 2 | I41: 3.2 Sončne elektrarne - samostojni objekti | J41: SE22 | K41: /
F42: 269.68 | G42: 221.08 | H42: 3 | J42: SE23
F43: (ni ZO) | G43: 196.96 | H43: 4 | J43: SE24
A44: Druge KE 2 | B44: 10 | D44: 120.89 | E44: 68.51 | F44: 160.56 | G44: 113.56 | H44: 1 | I44: 6.1 Bioplinske enote - biomasa | J44: BP11 | K44: T, S1 ali S2
F45: 156.31 | G45: 107.71 | H45: 2 | J45: BP12 | K45: T, S1 ali S2
F46: 141.42 | G46: 92.28 | H46: 3 | J46: BP13 | K46: T, S1
F47: (ni predv.) | G47: (ni predv.) | H47: 4 | J47: BP14 | K47: T, S1
F48: 139.23 | G48: 92.23 | H48: 1 | I48: 6.2 Bioplinske enote - odpadki | J48: BP21 | K48: T
F49: 139.23 | G49: 90.63 | H49: 2 | J49: BP22 | K49: T
F50: 129.15 | G50: 80.01 | H50: 3 | J50: BP23 | K50: T
F51: (ni predv.) | G51: (ni predv.) | H51: 4 | J51: BP24 | K51: T
A52: Kombinirane KE na OVE3 | B52: 11 | D52: 66.98 | E52: 14.6 | F52: 0
A53: KE ali toplarne na komunalne odpadke 4 | B53: 12 | C53: do vključno 1 MW | D53: 56.77 | E53: 4.39 | F53: 85.84 | G53: 36.7 | H53: 1 | I53: 7. Elektrarne na bioplin iz čistilnih naprav | J53: ČN01 | K53: T
F54: 74.42 | G54: 25.28 | H54: 2 | J54: ČN02 | K54: T
F55: 99.33 | G55: 50.19 | H55: 1 | I55: 8. Elektrarne na odlagališčni plin | J55: OP01 | K55: T
F56: 67.47 | G56: 18.33 | H56: 2 | J56: OP02 | K56: T
F57: (ni predv.) | G57: (ni predv.) | H57: 1 | I57: 9. Elektrarne na biološko razgradljive odpadke | J57: BO01 | K57: T
F58: 77.44 | G58: 28.3 | H58: 2 | J58: BO02 | K58: T
B59: 13 | C59: nad 1 MW do 10 MW | D59: 52.89 | E59: 0.51 | F59: 66.09 | G59: 16.95 | H59: 3 | I59: 7. Elektrarne na bioplin iz čistilnih naprav | J59: ČN03 | K59: T
F60: (ni predv.) | G60: (ni predv.) | H60: 4 | J60: ČN04 | K60: T
F61: 61.67 | G61: 12.53 | H61: 3 | I61: 8. Elektrarne na odlagališčni plin | J61: OP03 | K61: T
F62: (ni predv.) | G62: (ni predv.) | H62: 4 | J62: OP04 | K62: T
F63: 74.34 | G63: 25.2 | H63: 3 | I63: 9. Elektrarne na biološko razgradljive odpadke | J63: BO03 | K63: T
F64: (ni ZO) | G64: (indvid.) | H64: 4 | J64: BO04 | K64: T
A65: Toplarne za daljinsko ogrevanje in industrijske toplarne 5 | B65: 14 | C65: do vključno 1 MW | D65: 79.63 | E65: 27.25 | F65: 232.01 | G65: 186.61 | H65: 1 | I65: 11. SPTE na fosilna goriva (do 4.000 ur) | J65: SF11 | K65: /
F66: 150.52 | G66: 103.52 | H66: 2 | J66: SF12
B67: 16 | D67: 77.35 | E67: / | F67: 174.17 | G67: 126.1 | H67: 1 | I67: 11. SPTE na fosilna goriva (več kot 4.000 ur) | J67: SF21
F68: 119.99 | G68: 70.85 | H68: 2 | J68: SF22
B69: 15 | C69: nad 1 MW do 10 MW | D69: 75.07 | E69: 22.69 | F69: (ni ZO) | G69: 66.22 | H69: 3 | I69: 11. SPTE na fosilna goriva (do 4.000 ur) | J69: SF13 | K69: /
F70: (ni ZO) | G70: 62.02 | H70: 4 | J70: SF14
F71: (ni ZO) | G71: 42.01 | H71: 3 | I71: 11. SPTE na fosilna goriva (več kot 4.000 ur) | J71: SF23
F72: (ni ZO) | G72: 40.75 | H72: 4 | J72: SF24
B73: / | F73: (ni ZO) | G73: 64.13 | H73: 5 | I73: 11. SPTE na fosilna goriva (do 4.000 ur) | J73: SF15 | K73: /
F74: (ni ZO) | G74: 54.01 | H74: 6 | J74: SF16
F75: (ni ZO) | G75: 38.68 | H75: 5 | I75: 11. SPTE na fosilna goriva (več kot 4.000 ur) | J75: SF25
F76: (ni ZO) | G76: 30.49 | H76: 6 | J76: SF26
A77: Sosežig biomase 1 | B77: 17 | C77: / | F77: (ni ZO) | G77: 56.68 | H77: 1 | I77: 5.2.Sosežig lesne biomase >5% | J77: LB21 | K77: LB
F78: (ni ZO) | G78: 55.08 | H78: 2 | J78: LB22 | K78: LB
F79: (ni ZO) | G79: 35.52 | H79: 1 | I79: 5.3.Sosežig lesne biomase <5% | J79: LB31 | K79: /
F80: (ni ZO) | G80: 35.52 | H80: 2 | J80: LB32
C81: nad 1 MW | E81: 22 | F81: (ni ZO) | G81: 54.54 | H81: 3 | I81: 5.2.Sosežig lesne biomase >5% | J81: LB23 | K81: LB
F82: (ni ZO) | G82: (indvid.) | H82: 4 | J82: LB24 | K82: LB
F83: (ni ZO) | G83: 35.52 | H83: 3 | I83: 5.3.Sosežig lesne biomase <5% | J83: LB33 | K83: /
F84: (ni ZO) | G84: 35.52 | H84: 4 | J84: LB34
A85: / | H85: 1 do 4 | I85: 12. Individualna obravnava OVE | J85: IO
H86: 1 do 6 | I86: 13. Individualna obravnava SPTE | J86: IS
A88: OPOMBE
A89: "STARA SHEMA"
A90: 1 Sosežig lesne biomase v termoelektrarnah, kjer predstavlja biomasa do 5% energetske vrednosti vhodne energije in kjer za sosežig ni opravljena rekonstrukcija kurilne naprave. Cena velja za leto 2008; v letu 2009 je bila premija ločena po tipu premoga in določena v posebnem sklepu, skupaj z omejitvijo proizvedene EE (Sklep o določitvi količine električne energije proizvedene s sosežigom biomase ter o višini premije v letu 2009, Ur.l. RS, št. 17/2009)
A91: 2 Elektrarne, ki kot vhodno energijo uporabljajo katerokoli drugo vrsto obnovljive energije, ki ni fosilnega ali jedrskega izvora, v to skupino sodijo KE na bioplin iz živalskih in rastlinskih odpadkov v kmetijski dejavnosti.
A92: 3 Kombinacije navedenih elektrarn na obnovljive vire.
A93: 4 KE in toplarne na komunalne odpadke vključujejo tudi KE na deponijski plin in KE na plin iz komunalnih čistilnih naprav.
A94: 5 Povprečna odkupna cena za industrijske toplarne do 1 MW velja za vse viške nad porabo, ki jih kvalificirani proizvajalec odda v javno omrežje.
A96: "NOVA SHEMA"
A97: DODATKI | B97: Oznaka | C97: Velikost | D97: Obračunan na | E97: POSEBNI POGOJI
A98: 1. Integirane SE | B98: INT | C98: 0.15 | D98: NDRS | E98: sestavni del ovoja, gradbeno dovoljenje
A99: 2. Izkoriščanje odpadne toplote | B99: T | C99: 0.1 | D99: OP | E99: GT in BO koristna izraba nad 30% vhodne toplote, ostali nad 15%
A100: 3. Substrat bioplin - > 30% gnoja | B100: S1 | C100: 0.1 | D100: OP
A101: 4. Substrat bioplin - > 70% gnoja | B101: S2 | C101: 0.2 | D101: OP | E101: nazivna električna moč do 200 kW
A102: 5. Sestava lesne biomase | B102: LB | C102: tehtano po sestavi | D102: SDRS | E102: v določenih primerih je lahko tudi odbitek
A104: Pri SE so upoštevani referenčni stroški 2010
A106: (individ,) = individualna obravnava
A107: (ni predv.) = podpora za kategorijo ni predvidena
A108: (ni ZO) = zagotovljeni odkup ni možen
A110: Velikostni razred OVE | B110: Velikostni razred SPTE
A111: 1 manjše od 50 kW | B111: 1 manjše od 50 kW
A112: 2 manjše od 1 MW | B112: 2 manjše od 1 MW
A113: 3 od 1 MW do vključno 10 MW | B113: 3 od 1 MW do vključno 5 MW
A114: 4 nad 10 MW do vključno 125 MW | B114: 4 nad 5 MW do vključno 25 MW
B115: 5 nad 25 MW do vključno 50 MW
B116: 6 nad 50 MW do 200 MW

Sheet Stara shema (hidden)
A2: CENIK ENOTNIH LETNIH CEN IN PREMIJ ZA ODKUP ELEKTRIČNE ENERGIJE OD KE ("stara shema")
A4: Cene so brez 20% DDV. | E4: Velja od : 1.1.2011
A6: Vrsta KE glede na vir primarne energije | B6: Št. Vira | C6: Velikostni razred | D6: Enotna letna cena ELC | E6: Enotna letna premija ELP
D8: €/MWh | E8: €/MWh
A9: Hidroelektrarne | B9: 1 | C9: do vključno 1 MW | D9: 65.72 | E9: 11.72
B10: 2 | C10: nad 1 MW do 10 MW | D10: 63.41 | E10: 9.69
A11: KE na biomaso | B11: 3 | C11: do vključno 1 MW | D11: 123.17 | E11: 70.79
B12: 4 | C12: nad 1 MW | D12: 119.35 | E12: 66.97
A13: Vetrne KE | B13: 5 | C13: do vključno 1 MW | D13: 64.84 | E13: 12.46
B14: 6 | C14: nad 1 MW | D14: 62.61 | E14: 10.23
A15: Geotermalne KE | B15: 7 | D15: 61.61 | E15: 10.23
A16: Sončne KE | B16: 8 | C16: do vključno 50 kW | D16: 399.57 | E16: 347.19
B17: 9 | C17: nad 50 kW | D17: 399.57 | E17: 347.19
A18: Druge KE 2 | B18: 10 | D18: 120.89 | E18: 68.51
A19: Kombinirane KE na OVE 3 | B19: 11 | D19: 66.98 | E19: 14.6
A20: KE ali toplarne na | B20: 12 | C20: do vključno 1 MW | D20: 56.77 | E20: 4.39
A21: komunalne odpadke 4 | B21: 13 | C21: nad 1 MW do 10 MW | D21: 52.89 | E21: 0.51
A22: Toplarne za daljinsko | B22: 14 | C22: do vključno 1 MW | D22: 79.63 | E22: 27.25
A23: ogrevanje | B23: 15 | C23: nad 1 MW do 10 MW | D23: 75.07 | E23: 22.69
A24: Industrijske toplarne 5 | B24: 16 | C24: do vključno 1 MW | D24: 77.35
A25: Sosežig biomase 1 | B25: 17 | C25: nad 1 MW | E25: (glej opombo)
A27: Opombe:
A28: 1 Sosežig lesne biomase v termoelektrarnah, kjer predstavlja biomasa do 5% energetske vrednosti vhodne energije in kjer za sosežig ni opravljena rekonstrukcija kurilne naprave. Premija za leto 2008 je bila 22 EUR/MWh; v letu 2009 je bila premija ločena po tipu premoga in določena v posebnem sklepu, skupaj z omejitvijo proizvedene EE (Sklep o določitvi količine električne energije proizvedene s sosežigom biomase ter o višini premije v letu 2009, Ur.l. RS, št. 17/2009) - glej sklep spodaj
A29: 2 Elektrarne, ki kot vhodno energijo uporabljajo katerokoli drugo vrsto obnovljive energije, ki ni fosilnega ali jedrskega izvora, v to skupino sodijo KE na bioplin iz živalskih in rastlinskih odpadkov v kmetijski dejavnosti.
A30: 3 Kombinacije navedenih elektrarn na obnovljive vire.
A31: 4 KE in toplarne na komunalne odpadke vključujejo tudi KE na deponijski plin in KE na plin iz komunalnih čistilnih naprav.
A32: 5 Povprečna odkupna cena za industrijske toplarne do 1 MW velja za vse viške nad porabo, ki jih kvalificirani proizvajalec odda v javno omrežje.
A34: Uporabljeni kratici:
A35: KE : kvalificirana elektrarna
A36: OVE : obnovljivi viri energije
A38: PREMIJE ZA HE
A39: Sklep o cenah in premijah za odkup električne energije od kvalificiranih proizvajalcev električne energije (Uradni list RS št. 65/08 in 98/08): koda 1 premija 13,34; koda 2 premija 11,03 EUR/MWh
A40: Sklep o premijah za elektricno energijo, proizvedeno v hidroelektrarnah (Uradni list RS št. 85/09) - SPREMEMBA PREMIJ ZA HE, v veljavi od 1.11.2009 dalje: koda 1 = 12,10 ; koda 2 = 10,00 EUR/MWh
A41: Sklep o o uskladitvi premij za odkup električne energije, proizvedene v hidroelektrarnah, za leto 2010 (Uradni list RS št. 106/2010) - SPREMEMBA PREMIJ ZA HE, v veljavi od 1.1.2011 dalje: koda 1 = 11,72 ; koda 2 = 9,69 EUR/MWh
A44: Uradni list RS, št. 65/2008
A45: z dne 30. 6. 2008
A46: Natisni
A47: 2822. Sklep o cenah in premijah za odkup električne energije od kvalificiranih proizvajalcev električne energije, Stran 8705.
A50: Na podlagi 10. člena Uredbe o pravilih za določitev cen in za odkup električne energije od kvalificiranih proizvajalcev električne energije (Uradni list RS, št. 25/02) je Vlada Republike Slovenije sprejela
A51: S K L E P
A52: o cenah in premijah za odkup električne energije od kvalificiranih proizvajalcev električne energije
A53: I.
A54: Enotne letne cene za odkup električne energije od kvalificiranih proizvajalcev in enotne letne premije za električno energijo, ki jo kvalificirani proizvajalci prodajo samostojno ali preko posrednika, so:
A55: +---------------------+----------------+-----------+-----------+
A56: |Vrsta KE glede na |Velikostni |Enotna |Enotna |
A57: |vir primarne |razred |letna cena |letna |
A58: |energije | |(€/MWh) |premija |
A59: | | | |(€/MWh) |
A60: +---------------------+----------------+-----------+-----------+
A61: |hidroelektrarne |do vključno | 65,72| 13,34|
A62: | |1 MW | | |
A63: | +----------------+-----------+-----------+
A64: | |nad 1 MW do 10 | 63,41| 11,03|
A65: | |MW | | |
A66: +---------------------+----------------+-----------+-----------+
A67: |KE na biomaso |do vključno | 123,17| 70,79|
A68: | |1 MW | | |
A69: | +----------------+-----------+-----------+
A70: | |nad 1 MW | 119,35| 66,97|
A71: +---------------------+----------------+-----------+-----------+
A72: |sosežig |nad 1 MW | /| 22,00|
A73: |biomase(1) | | | |
A74: +---------------------+----------------+-----------+-----------+
A75: |vetrne KE |do vključno | 64,84| 12,46|
A76: | |1 MW | | |
A77: | +----------------+-----------+-----------+
A78: | |nad 1 MW | 62,61| 10,23|
A79: +---------------------+----------------+-----------+-----------+
A80: |geotermalne KE | | 62,61| 10,23|
A81: +---------------------+----------------+-----------+-----------+
A82: |sončne KE |do vključno 50 | 399,57| 347,19|
A83: | |kW | | |
A84: | +----------------+-----------+-----------+
A85: | |nad 50 kW | 399,57| 347,19|
A86: +---------------------+----------------+-----------+-----------+
A87: |druge KE(2) | | 120,89| 83,33|
A88: +---------------------+----------------+-----------+-----------+
A89: |kombinirane KE na | | 66,98| 29,42|
A90: |OVE(3) | | | |
A91: +---------------------+----------------+-----------+-----------+
A92: |KE ali toplarne na |do vključno | 56,77| 4,39|
A93: |komunalne odpadke(4) |1 MW | | |
A94: | +----------------+-----------+-----------+
A95: | |nad 1 MW do 10 | 52,89| 0,51|
A96: | |MW | | |
A97: +---------------------+----------------+-----------+-----------+
A98: |toplarne za |do vključno | 79,63| 27,25|
A99: |daljinsko |1 MW | | |
A100: |ogrevanje +----------------+-----------+-----------+
A101: | |nad 1 MW do 10 | 75,07| 22,69|
A102: | |MW | | |
A103: +---------------------+----------------+-----------+-----------+
A104: |industrijske |do vključno | 77,35| /|
A105: |toplarne(5) |1 MW | | |
A106: +---------------------+----------------+-----------+-----------+
A107: (1) Sosežig lesne biomase v termoelektrarnah, kjer predstavlja biomasa do 5% energetske vrednosti vhodne energije in kjer za sosežig ni opravljena rekonstrukcija kurilne naprave.
A108: Količina električne energije iz proizvedene iz biomase na prej določeni način, ki prejema enotno letno premijo, v letu 2008 ne sme preseči 130 GWh.
A109: (2) Elektrarne, ki kot vhodno energijo uporabljajo katerokoli drugo vrsto obnovljive energije, ki ni fosilnega ali jedrskega izvora, v to skupino sodijo KE na bioplin iz živalskih in rastlinskih odpadkov v kmetijski dejavnosti.
A110: (3) Kombinacije navedenih elektrarn na obnovljive vire.
A111: (4) KE in toplarne na komunalne odpadke vključujejo tudi KE na deponijski plin in KE na plin iz komunalnih čistilnih naprav.
A112: (5) Povprečna odkupna cena za industrijske toplarne do 1 MW velja za vse viške nad lastno porabo, ki jih kvalificirani proizvajalec odda v javno omrežje.
A113: V tabeli uporabljeni kratici pomenita:
A114: – KE: kvalificirana elektrarna,
A115: – OVE: obnovljivi viri energije.
A116: II.
A117: Enotne letne cene in enotne letne premije ne vsebujejo davka na dodano vrednost.
A118: III.
A119: Z dnem uveljavitve tega sklepa preneha veljati Sklep o cenah in premijah za odkup električne energije od kvalificiranih proizvajalcev električne energije (Uradni list RS, št. 75/06).
A120: IV.
A121: Ta sklep začne veljati naslednji dan po objavi v Uradnem listu Republike Slovenije.
A122: Št. 36001-4/2008/10
A123: Ljubljana, dne 18. junija 2008
A124: EVA 2008-2111-0058
A125: Vlada Republike Slovenije
A126: Janez Janša l.r.
A127: Predsednik
A131: Uradni list RS, št. 98/2008
A132: z dne 14. 10. 2008
A133: Natisni
A134: 4182. Sklep o spremembah Sklepa o cenah in premijah za odkup električne energije od kvalificiranih proizvajalcev električne energije, Stran 13237.
A137: Na podlagi 10. člena Uredbe o pravilih za določitev cen in za odkup električne energije od kvalificiranih proizvajalcev električne energije (Uradni list RS, št. 25/02) je Vlada Republike Slovenije sprejela
A138: S K L E P
A139: o spremembah Sklepa o cenah in premijah za odkup električne energije od kvalificiranih proizvajalcev električne energije
A140: I.
A141: V Sklepu o cenah in premijah za odkup električne energije od kvalificiranih proizvajalcev električne energije (Uradni list RS, št. 65/08) se v tabeli enotna letna premija za druge KE spremeni tako, da se znesek »83,33« nadomesti z zneskom »68,51«.
A142: II.
A143: Enotna letna premija za kombinirane KE na OVE se spremeni tako, da se znesek »29,42« nadomesti z zneskom »14,60«.
A144: III.
A145: Enotna letna cena iz I. točke tega sklepa velja za leto 2008.
A146: IV.
A147: Ta sklep začne veljati naslednji dan po objavi v Uradnem listu Republike Slovenije.
A148: Št. 36001-5/2008/6
A149: Ljubljana, dne 1. oktobra 2008
A150: EVA 2008-2111-0094
A151: Vlada Republike Slovenije
A152: Janez Janša l.r.
A153: Predsednik
A157: Uradni list RS, št. 85/2009
A158: z dne 30. 10. 2009
A159: Natisni
A160: 3797. Sklep o premijah za električno energijo, proizvedeno v hidroelektrarnah, Stran 11375.
A163: Na podlagi tretje alinee tretjega odstavka 42. člena Zakona o spremembah in dopolnitvah Energetskega zakona (Uradni list RS, št. 70/08) je Vlada Republike Slovenije sprejela
A164: S K L E P
A165: o premijah za električno energijo, proizvedeno v hidroelektrarnah
A166: I.
A167: Enotna letna premija za električno energijo, proizvedeno v hidroelektrarnah, ki jo proizvajalci samostojno prodajajo, znaša:
A168: – 12,10 €/MWh za hidroelektrarne nazivnih moči do vključno 1 MW,
A169: – 10,00 €/MWh za hidroelektrarne nazivnih moči nad 1 MW do vključno 10 MW.
A170: II.
A171: Z dnem uveljavitve tega sklepa preneha veljati enotna letna premija za električno energijo iz hidroelektrarn, določena v I. točki Sklepa o cenah in premijah za odkup električne energije od kvalificiranih proizvajalcev električne energije (Uradni list RS, št. 65/08, 98/08 in 105/08).
A172: III.
A173: Ta sklep začne veljati naslednji dan po objavi v Uradnem listu Republike Slovenije.
A174: Št. 36000-8/2009/4
A175: Ljubljana, dne 22. oktobra 2009
A176: EVA 2009-2111-0046
A177: Vlada Republike Slovenije
A178: Borut Pahor l.r.
A179: Predsednik
A183: Uradni list RS, št. 106/2010
A184: z dne 27. 12. 2010
A185: Natisni
A186: 5495. Sklep o uskladitvi premij za odkup električne energije, proizvedene v hidroelektrarnah, za leto 2010, Stran 16460.
A189: Na podlagi tretje alinee tretjega odstavka 42. člena Zakona o spremembah in dopolnitvah Energetskega zakona (Uradni list RS, št. 70/08) je Vlada Republike Slovenije sprejela
A190: S K L E P
A191: o uskladitvi premij za odkup električne energije, proizvedene v hidroelektrarnah, za leto 2010
A192: I.
A193: Enotna letna premija za električno energijo, proizvedeno v hidroelektrarnah, ki jo proizvajalci samostojno prodajajo, znaša:
A194: – 11,72 €/MWh za hidroelektrarne nazivnih moči do vključno 1MW,
A195: – 9,69 €/MWh za hidroelektrarne nazivnih moči nad 1MW do vključno 10MW.
A196: II.
A197: Z dnem uveljavitve tega sklepa preneha veljati enotna letna premija za električno energijo iz hidroelektrarn, določena v I. točki Sklepa o premijah za električno energijo, proizvedeno v hidroelektrarnah (Uradni list RS, št. 85/09).
A198: III.
A199: Ta sklep začne veljati naslednji dan po objavi v Uradnem listu Republike Slovenije.
A200: Št. 36000-11/2010
A201: Ljubljana, dne 23. decembra 2010
A202: EVA 2010-2111-0117
A203: Vlada Republike Slovenije
A204: mag. Mitja Gaspari l.r.
A205: Minister
A210: Uradni list RS, št. 17/2009
A211: z dne 6. 3. 2009
A212: Natisni
A213: 647. Sklep o določitvi količine električne energije, proizvedene s sosežigom biomase, ter o višini premije v letu 2009, Stran 2314.
A216: Na podlagi pete alinee tretjega odstavka 42. člena Zakona o spremembah in dopolnitvah Energetskega zakona (Uradni list RS, št. 70/08) Vlada Republike sprejme
A217: S K L E P
A218: o določitvi količine električne energije, proizvedene s sosežigom biomase, ter o višini premije v letu 2009
A219: I.
A220: Premija za električno energijo, proizvedeno s sosežigom biomase, pri katerem predstavlja biomasa do 5% energijske vrednosti vhodne energije in kjer za sosežig ni opravljena rekonstrukcija kurilne naprave, znaša:
A221: – za sosežig biomase in lignita: 33,6 €/MWh,
A222: – za sosežig biomase in rjavega premoga: 19,2 €/MWh.
A223: II.
A224: Količina električne energije, ki je upravičena do premije za sosežig, znaša:
A225: – 185 GWh za sosežig biomase in lignita,
A226: – 31 GWh za sosežig biomase in rjavega premoga.
A227: III.
A228: Premija za električno energijo, proizvedeno s sosežigom, na podlagi pogodbe o zagotavljanju podpor ter na podlagi predanih potrdil o izvoru centru za podpore izplačuje center za podpore pri družbi Borzen, d.o.o.. Dinamika izplačevanja podpore se uredi s pogodbo med centrom za podpore in proizvajalci električne energije s sosežigom biomase glede na razpoložljiva sredstva.
A229: IV.
A230: Ta sklep začne veljati naslednji dan po objavi v Uradnem listu Republike Slovenije.
A231: Št. 36000-2/2009/4
A232: Ljubljana, dne 5. marca 2009
... 4 more rows
